Workbook

Sheet Help
B2: For Help
B3: For Help watch the video on my Youtube Channel
B4: https://youtu.be/QWmVZqxh1yE
B5: OR search the youtube channel "Learn with ummed tarad"
B6: नोट:-हालाँकि यह प्रोग्राम पूर्णतया सावधानी के साथ बनाया गया है फिर भी किसी त्रुटि की स्थिति में आपके विवेक के साथ विभागीय नियम ही अंतिम रूप से मान्य होंगे, इसे अंतिम रूप देने से पहले अच्छी तरह से अवश्य जाँच लेवें और ज्यादा जानकारी के लिए उपर Click Here बटन पर क्लिक करें. किसी प्रकार की हेल्प हेतु निर्माणकर्त्ता को कॉल नहीं करें.

Sheet Master
B2: t; fgUn | G2: oUns ekrje~ | N2: t; fgUn
B4: RESULT PREPARATION PROGRAM | K4: 108 | L4: School Logo ® | Y4: 2019-20 | Z4: PRIMARY
K5: Subject Detail | M5: Staff Detail | Y5: 2019-21 | Z5: UPPER PRIMARY
B6: SESSION | D6: :- | E6: 2023-24 | K6: Sr. No. | L6: Subject's Name | M6: Sr. No. | N6: Teacher's Name | O6: Sr. No. | P6: Teacher's Name | Y6: 2019-22 | Z6: SECONDARY
K7: =IF(L7>1,1,0) -> 1 | L7: HINDI Comp. | M7: =IF(N7>1,1,0) -> 1 | N7: A | O7: =IF(P7>1,M20+1,0) -> 0 | Y7: 2019-21 | Z7: UPPER PRIMARY
B8: SCHOOL'S FULL NAME | D8: :- | E8: Govt. Sr. Secondary School | K8: =IF(L8>1,K7+1,0) -> 2 | L8: ENGLISH Comp. | M8: =IF(N8>1,M7+1,0) -> 2 | N8: B | O8: =IF(P8>1,O7+1,0) -> 0
K9: =IF(L9>1,K8+1,0) -> 3 | L9: Hindi Lit. | M9: =IF(N9>1,M8+1,0) -> 3 | N9: C | O9: =IF(P9>1,O8+1,0) -> 0 | Y9: 2019-22 | Z9: SECONDARY
K10: =IF(L10>1,K9+1,0) -> 4 | L10: History | M10: =IF(N10>1,M9+1,0) -> 4 | N10: D | O10: 0 | R10: DEVLOPED BY:- | Y10: 2019-23 | Z10: SR. SECONDARY
B11: ADDRESS | D11: :- | E11: P.S.-Bapini (Jodhpur) | K11: =IF(L11>1,K10+1,0) -> 5 | L11: Pol. Sc. | M11: =IF(N11>1,M10+1,0) -> 5 | N11: E | O11: 0
K12: =IF(L12>1,K11+1,0) -> 6 | L12: History | M12: =IF(N12>1,M11+1,0) -> 6 | N12: F | O12: 0 | R12: UMMED TARAD | Y12: 2019-24
K13: =IF(L13>1,K12+1,0) -> 7 | L13: Drawing | M13: 7 | N13: G | O13: 0 | Y13: 2019-23 | Z13: SR. SECONDARY
B14: U-DISE CODE | D14: :- | E14: 08151106901 | K14: 8 | L14: Eng. Lit. | M14: 0 | O14: 0 | R14: (GSSS RAIMALWADA) | Y14: 2019-24
K15: 9 | L15: BIOLOGY | M15: 0 | O15: 0 | Y15: 2019-25
B16: NAME OF PRINCIPAL | D16: :- | K16: 10 | L16: MATHEMATICS | M16: 0 | O16: 0 | R16: EMAIL ID-ummedtrdedu@gmail.com | Y16: 2019-26
K17: 11 | L17: PHYSICS | M17: 0 | O17: 0 | R17: UPDATED ON :-06-04-2024
B18: SCHOOL TYPE | D18: :- | E18: Sr. Secondary | K18: 12 | L18: CHEMISTRY | M18: 0 | O18: 0
K19: 0 | M19: 0 | O19: 0 | Y19: 2019-25
B20: Result Date | D20: :- | E20: 2024-05-07 | K20: 0 | M20: 0 | O20: 0 | Y20: 2019-26
Y21: 2019-27

Sheet Result Entry
C1: =Master!E8 -> Govt. Sr. Secondary School | FG1: =Master!E8 -> Govt. Sr. Secondary School
L2: Result Date:- | T2: =Master!E20 -> 2024-05-07 | Z2: Result Entry | HF2: AB | HG2: ML
C3: School U-Dise Code :- | G3: =Master!E14 -> 08151106901 | I3: Session :- | J3: =Master!E6 -> 2023-24 | L3: HINDI Comp. | Z3: ENGLISH Comp. | AN3: Optional Subject (1/2/3) | AO3: PHYSICS | BE3: Optional Subject (1/2/3) | BF3: CHEMISTRY | BV3: Optional Subject (1/2/3) | BW3: BIOLOGY | CM3: Optional Subject (1/2/3) | CN3: History | DD3: Optional Subject (1/2/3) | DU3: Foundation Of Information Tech. | EI3: G.I.A.I.-II | EU3: SOC.SER.PLAN | FG3: Jeewan Kaushal | FM3: Attendance | FP3: Statics | FW3: Remark | FX3: Subject Wise Result | GE3: Subject Which Failed | GF3: Subject Which supplymentry | GG3: Subject Which 1 Grace | GH3: Subject Which 2 Grace | GI3: Subject Which Re-Exam
C4: Class - | G4: 11 | I4: Saction :- | J4: (A) | L4: 0 | Z4: 0 | AO4: 0 | BF4: 0 | BW4: 0 | CN4: 0 | DE4: 0 | FM4: Total Attendance | FN4: Student's Attendance | FO4: Attandance % | FP4: Total Maximum Marks | FQ4: Obtained Marks | FR4: Percentage | FS4: Overall Div. | FT4: Result | FV4: Position in Class
C5: Student Related Basic Details | L5: Tests | O5: Total Tests | P5: Half Yearly | Q5: Total (Tests+H.Y.) | R5: Yearly Exam | U5: Total Marks | V5: MARKS % | W5: 2T+E OR 2E+T | X5: Result | Y5: Div. | Z5: Tests | AC5: Total Tests | AD5: Half Yearly | AE5: Total (Tests+H.Y.) | AF5: Yearly Exam | AI5: Total Marks | AJ5: MARKS % | AK5: 2T+E OR 2E+T | AL5: Result | AM5: Div. | AO5: Tests | AR5: Total Tests | AS5: Half Yeary | AV5: Total (Tests+H.Y.) | AW5: Yearly Exam | AZ5: Total Marks | BA5: MARKS % | BB5: 2T+E OR 2E+T | BC5: Result | BD5: Div. | BF5: Tests | BI5: Total Tests | BJ5: Half Yeary | BM5: Total (Tests+H.Y.) | BN5: Yearly Exam | BQ5: Total Marks | BR5: MARKS % | BS5: 2T+E OR 2E+T | BT5: Result | BU5: Div. | BW5: Tests | BZ5: Total Tests | CA5: Half Yeary | CD5: Total (Tests+H.Y.) | CE5: Yearly Exam | CH5: Total Marks | CI5: MARKS % | CJ5: 2T+E OR 2E+T | CK5: Result | CL5: Div. | CN5: Tests | CQ5: Total Tests | CR5: Half Yeary | CU5: Total (Tests+H.Y.) | CV5: Yearly Exam | CY5: Total Marks | CZ5: MARKS % | DA5: 2T+E OR 2E+T | DB5: Result | DC5: Div. | DE5: Tests | DH5: Total Tests | DI5: Half Yeary | DL5: Total (Tests+H.Y.) | DM5: Yearly Exam | DP5: Total Marks | DQ5: MARKS % | DR5: 2T+E OR 2E+T | DS5: Result | DT5: Div. | DU5: Tests | DX5: Total Tests | DY5: Half Yeary | EB5: Total (Tests+H.Y.) | EC5: Yearly Exam | EF5: Total Marks | EG5: MARKS % | EH5: Grd. | EI5: Tests | EL5: Total Tests | EM5: Half Yearly | EN5: Total (Tests+H.Y.) | EO5: Yearly Exam | ER5: Total Marks | ES5: MARKS % | ET5: Grd. | EU5: Tests | EX5: Total Tests | EY5: Half Yearly | EZ5: Total (Tests+H.Y.) | FA5: Yearly Exam | FD5: Total Marks | FE5: MARKS % | FF5: Grd. | FG5: Cont. Assmnt. | FH5: Cont. Assmnt. | FI5: Annual Exam | FJ5: Total | FK5: MARKS % | FL5: Grd. | FX5: =L3 -> HINDI Comp. | FY5: =Z3 -> ENGLISH Comp. | FZ5: =AO3 -> PHYSICS | GA5: =BF3 -> CHEMISTRY | GB5: =BW3 -> BIOLOGY | GC5: =CN3 -> History | GD5: =DE3 -> 0
C6: Sr. No. | D6: Class | E6: Scholar Number | F6: Cast/ Cat. | G6: Roll Number | H6: Student's Name | I6: Father's Name | J6: Mother's Name | K6: Date Of Birth | L6: First Test | M6: Second Test | N6: Third Test | Y6: D/I/II/III/S | Z6: First Test | AA6: Second Test | AB6: Third Test | AM6: D/I/II/III/S | AO6: First Test | AP6: Second Test | AQ6: Third Test | AS6: Theory | AT6: Practical | AU6: Total H.Y. | AW6: Theory | AX6: Practical | AY6: Total Yearly | BD6: D/I/II/III/S | BF6: First Test | BG6: Second Test | BH6: Third Test | BJ6: Theory | BK6: Practical | BL6: Total H.Y. | BN6: Theory | BO6: Practical | BP6: Total Yearly | BU6: D/I/II/III/S | BW6: First Test | BX6: Second Test | BY6: Third Test | CA6: Theory | CB6: Practical | CC6: Total H.Y. | CE6: Theory | CF6: Practical | CG6: Total Yearly | CL6: D/I/II/III/S | CN6: First Test | CO6: Second Test | CP6: Third Test | CR6: Theory | CS6: Practical | CT6: Total H.Y. | CV6: Theory | CW6: Practical | CX6: Total Yearly | DC6: D/I/II/III/S | DE6: First Test | DF6: Second Test | DG6: Third Test | DI6: Theory | DJ6: Practical | DK6: Total H.Y. | DM6: Theory | DN6: Practical | DO6: Total Yearly | DT6: D/I/II/III/S | DU6: First Test | DV6: Second Test | DW6: Third Test | DY6: Theory | DZ6: Practical | EA6: Total H.Y. | EC6: Theory | ED6: Practical | EE6: Total Yearly | EH6: A//B/C/D | EI6: First Test | EJ6: Second Test | EK6: Third Test | ET6: A//B/C/D | EU6: First Test | EV6: Second Test | EW6: Third Test | FF6: A//B/C/D | FL6: A//B/C/D
L7: 10 | M7: 10 | N7: 10 | O7: =SUM(L7:N7) -> 30 | P7: 70 | Q7: =SUM(O7,P7) -> 100 | R7: 100 | U7: =SUM(Q7,R7) -> 200 | Z7: 10 | AA7: 10 | AB7: 10 | AC7: =SUM(Z7:AB7) -> 30 | AD7: 70 | AE7: =SUM(AC7,AD7) -> 100 | AF7: 100 | AI7: =SUM(AE7,AF7) -> 200 | AO7: 10 | AP7: 10 | AQ7: 10 | AR7: =SUM(AO7:AQ7) -> 30 | AS7: 40 | AT7: 30 | AU7: =SUM(AS7:AT7) -> 70 | AV7: =SUM(AU7,AR7) -> 100 | AW7: 100 | AX7: 0 | AY7: =SUM(AW7:AX7) -> 100 | AZ7: =SUM(AV7,AY7) -> 200 | BF7: 10 | BG7: 10 | BH7: 10 | BI7: =SUM(BF7:BH7) -> 30 | BJ7: 70 | BK7: 0 | BL7: =SUM(BJ7:BK7) -> 70 | BM7: =SUM(BL7,BI7) -> 100 | BN7: 100 | BO7: 0 | BP7: =SUM(BN7:BO7) -> 100 | BQ7: =SUM(BM7,BP7) -> 200 | BW7: 10 | BX7: 10 | BY7: 10 | BZ7: =SUM(BW7:BY7) -> 30 | CA7: 70 | CB7: 0 | CC7: =SUM(CA7:CB7) -> 70 | CD7: =SUM(CC7,BZ7) -> 100 | CE7: 100 | CF7: 0 | CG7: =SUM(CE7:CF7) -> 100 | CH7: =SUM(CD7,CG7) -> 200 | CN7: 10 | CO7: 10 | CP7: 10 | CQ7: =SUM(CN7:CP7) -> 30 | CR7: 70 | CS7: 0 | CT7: =SUM(CR7:CS7) -> 70 | CU7: =SUM(CT7,CQ7) -> 100 | CV7: 100 | CW7: 0 | CX7: =SUM(CV7:CW7) -> 100 | CY7: =SUM(CU7,CX7) -> 200 | DE7: 10 | DF7: 10 | DG7: 10 | DH7: =SUM(DE7:DG7) -> 30 | DI7: 70 | DJ7: 0 | DK7: =SUM(DI7:DJ7) -> 70 | DL7: =SUM(DK7,DH7) -> 100 | DM7: 100 | DN7: 0 | DO7: =SUM(DM7:DN7) -> 100 | DP7: =SUM(DL7,DO7) -> 200 | DU7: 10 | DV7: 10 | DW7: 10 | DX7: =SUM(DU7:DW7) -> 30 | DY7: 70 | DZ7: 0 | EA7: =SUM(DY7:DZ7) -> 70 | EB7: =SUM(EA7,DX7) -> 100 | EC7: 100 | ED7: 0 | EE7: =SUM(EC7:ED7) -> 100 | EF7: =SUM(EB7,EE7) -> 200 | EI7: 10 | EJ7: 10 | EK7: 10 | EL7: =SUM(EI7:EK7) -> 30 | EM7: 70 | EN7: =SUM(EL7,EM7) -> 100 | EO7: 100 | ER7: =SUM(EN7,EO7) -> 200 | EU7: 10 | EV7: 10 | EW7: 10 | EX7: =SUM(EU7:EW7) -> 30 | EY7: 70 | EZ7: =SUM(EX7,EY7) -> 100 | FA7: 100 | FD7: =SUM(EZ7,FA7) -> 200 | FG7: 30 | FH7: 30 | FI7: 40 | FJ7: =SUM(FG7:FI7) -> 100 | GL7: =DU3 -> Foundation Of Information Tech. | GP7: =EI3 -> G.I.A.I.-II | GT7: =EU3 -> SOC.SER.PLAN | GX7: =FG3 -> Jeewan Kaushal
C8: 0 | D8: 0 | E8: 0 | F8: 0 | H8: 0 | I8: 0 | J8: 0 | K8: 0 | N8: =SUM(L8:M8) -> 0 | O8: 0 | P8: =IF($P$7="NA",O8,IF($P$7<=100,ROUNDUP(O8*$P$7/$O$7,0))) -> 0 | Q8: =SUM(N8,O8) -> 0 | R8: =SUM(#REF!,P8) ->  | S8: 0 | T8: 0 | U8: =IF($S$7="NA",#REF!+P8+T8,#REF!+P8+S8) ->  | V8: =IF(OR(U8="",$U$7=""),"",ROUNDUP(U8/$U$7*100,0)) ->  | W8: =IF(AND(OR(L8="ab",L8="ml"),OR(M8="ab",M8="ml"),OR(#REF!="ab",#REF!="ml")),"AB",IF(AND(OR(L8="ab",L8="ml"),OR(M8="ab",M8="ml"),OR(O8="ab",O8="ml")),"AB",IF(AND(OR(L8="ab",L8="ml"),OR(O8="ab",O8="ml"),OR(#REF!="ab",#REF!="ml")),"AB",IF(AND(OR(O8="ab",O8="ml"),OR(M8="ab",M8="ml"),OR(#REF!="ab",#REF!="ml")),"AB","")))) ->  | X8: =IF(OR($G8="NSO",$G8="",O8=""),"",IF(OR(W8="AB",O8="ab"),"AB",IF(V8>36,"P",IF(V8>34,"G2",IF(V8>31,"G1",IF(V8>25,"S","F")))))) ->  | Y8: =IF(OR(X8="",X8=0,X8="S",X8="F",X8="AB"),X8,IF(V8>=75,"D",IF(V8>=60,"I",IF(V8>=48,"II",IF(V8>=36,"III",#REF!))))) ->  | AB8: =SUM(Z8:AA8) -> 0 | AC8: 0 | AD8: =IF($P$7="NA",AC8,IF($P$7<=100,ROUNDUP(AC8*$P$7/$O$7,0))) -> 0 | AE8: =SUM(AB8,AC8) -> 0 | AF8: =SUM(#REF!,AD8) ->  | AG8: 0 | AH8: 0 | AI8: =IF($S$7="NA",#REF!+AD8+AH8,#REF!+AD8+AG8) ->  | AJ8: =IF(OR(AI8="",$U$7=""),"",ROUNDUP(AI8/$U$7*100,0)) ->  | AK8: =IF(AND(OR(Z8="ab",Z8="ml"),OR(AA8="ab",AA8="ml"),OR(#REF!="ab",#REF!="ml")),"AB",IF(AND(OR(Z8="ab",Z8="ml"),OR(AA8="ab",AA8="ml"),OR(AC8="ab",AC8="ml")),"AB",IF(AND(OR(Z8="ab",Z8="ml"),OR(AC8="ab",AC8="ml"),OR(#REF!="ab",#REF!="ml")),"AB",IF(AND(OR(AC8="ab",AC8="ml"),OR(AA8="ab",AA8="ml"),OR(#REF!="ab",#REF!="ml")),"AB","")))) ->  | AL8: =IF(OR($G8="NSO",$G8="",AC8=""),"",IF(OR(AK8="AB",AC8="ab"),"AB",IF(AJ8>36,"P",IF(AJ8>34,"G2",IF(AJ8>31,"G1",IF(AJ8>25,"S","F")))))) ->  | AM8: =IF(OR(AL8="",AL8=0,AL8="S",AL8="F",AL8="AB"),AL8,IF(AJ8>=75,"D",IF(AJ8>=60,"I",IF(AJ8>=48,"II",IF(AJ8>=36,"III",#REF!))))) ->  | AQ8: =SUM(AO8:AP8) -> 0 | AR8: 0 | AT8: =IF($P$7="NA",AR8,IF($P$7<=100,ROUNDUP(AR8*$P$7/$O$7,0))) -> 0 | AU8: =SUM(AQ8,AR8) -> 0 | AV8: =SUM(#REF!,AT8) ->  | AX8: 0 | AY8: 0 | AZ8: =IF($S$7="NA",#REF!+AT8+AY8,#REF!+AT8+AX8) ->  | BA8: =IF(OR(AZ8="",$U$7=""),"",ROUNDUP(AZ8/$U$7*100,0)) ->  | BB8: =IF(AND(OR(AO8="ab",AO8="ml"),OR(AP8="ab",AP8="ml"),OR(#REF!="ab",#REF!="ml")),"AB",IF(AND(OR(AO8="ab",AO8="ml"),OR(AP8="ab",AP8="ml"),OR(AR8="ab",AR8="ml")),"AB",IF(AND(OR(AO8="ab",AO8="ml"),OR(AR8="ab",AR8="ml"),OR(#REF!="ab",#REF!="ml")),"AB",IF(AND(OR(AR8="ab",AR8="ml"),OR(AP8="ab",AP8="ml"),OR(#REF!="ab",#REF!="ml")),"AB","")))) ->  | BC8: =IF(OR($G8="NSO",$G8="",AR8=""),"",IF(OR(BB8="AB",AR8="ab"),"AB",IF(BA8>36,"P",IF(BA8>34,"G2",IF(BA8>31,"G1",IF(BA8>25,"S","F")))))) ->  | BD8: =IF(OR(BC8="",BC8=0,BC8="S",BC8="F",BC8="AB"),BC8,IF(BA8>=75,"D",IF(BA8>=60,"I",IF(BA8>=48,"II",IF(BA8>=36,"III",#REF!))))) ->  | BH8: =SUM(BF8:BG8) -> 0 | BI8: 0 | BK8: =IF($P$7="NA",BI8,IF($P$7<=100,ROUNDUP(BI8*$P$7/$O$7,0))) -> 0 | BL8: =SUM(BH8,BI8) -> 0 | BM8: =SUM(#REF!,BK8) ->  | BO8: 0 | BP8: 0 | BQ8: =IF($S$7="NA",#REF!+BK8+BP8,#REF!+BK8+BO8) ->  | BR8: =IF(OR(BQ8="",$U$7=""),"",ROUNDUP(BQ8/$U$7*100,0)) ->  | BS8: =IF(AND(OR(BF8="ab",BF8="ml"),OR(BG8="ab",BG8="ml"),OR(#REF!="ab",#REF!="ml")),"AB",IF(AND(OR(BF8="ab",BF8="ml"),OR(BG8="ab",BG8="ml"),OR(BI8="ab",BI8="ml")),"AB",IF(AND(OR(BF8="ab",BF8="ml"),OR(BI8="ab",BI8="ml"),OR(#REF!="ab",#REF!="ml")),"AB",IF(AND(OR(BI8="ab",BI8="ml"),OR(BG8="ab",BG8="ml"),OR(#REF!="ab",#REF!="ml")),"AB","")))) ->  | BT8: =IF(OR($G8="NSO",$G8="",BI8=""),"",IF(OR(BS8="AB",BI8="ab"),"AB",IF(BR8>36,"P",IF(BR8>34,"G2",IF(BR8>31,"G1",IF(BR8>25,"S","F")))))) ->  | BU8: =IF(OR(BT8="",BT8=0,BT8="S",BT8="F",BT8="AB"),BT8,IF(BR8>=75,"D",IF(BR8>=60,"I",IF(BR8>=48,"II",IF(BR8>=36,"III",#REF!))))) ->  | BY8: =SUM(BW8:BX8) -> 0 | BZ8: 0 | CB8: =IF($P$7="NA",BZ8,IF($P$7<=100,ROUNDUP(BZ8*$P$7/$O$7,0))) -> 0 | CC8: =SUM(BY8,BZ8) -> 0 | CD8: =SUM(#REF!,CB8) ->  | CF8: 0 | CG8: 0 | CH8: =IF($S$7="NA",#REF!+CB8+CG8,#REF!+CB8+CF8) ->  | CI8: =IF(OR(CH8="",$U$7=""),"",ROUNDUP(CH8/$U$7*100,0)) ->  | CJ8: =IF(AND(OR(BW8="ab",BW8="ml"),OR(BX8="ab",BX8="ml"),OR(#REF!="ab",#REF!="ml")),"AB",IF(AND(OR(BW8="ab",BW8="ml"),OR(BX8="ab",BX8="ml"),OR(BZ8="ab",BZ8="ml")),"AB",IF(AND(OR(BW8="ab",BW8="ml"),OR(BZ8="ab",BZ8="ml"),OR(#REF!="ab",#REF!="ml")),"AB",IF(AND(OR(BZ8="ab",BZ8="ml"),OR(BX8="ab",BX8="ml"),OR(#REF!="ab",#REF!="ml")),"AB","")))) ->  | CK8: =IF(OR($G8="NSO",$G8="",BZ8=""),"",IF(OR(CJ8="AB",BZ8="ab"),"AB",IF(CI8>36,"P",IF(CI8>34,"G2",IF(CI8>31,"G1",IF(CI8>25,"S","F")))))) ->  | CL8: =IF(OR(CK8="",CK8=0,CK8="S",CK8="F",CK8="AB"),CK8,IF(CI8>=75,"D",IF(CI8>=60,"I",IF(CI8>=48,"II",IF(CI8>=36,"III",#REF!))))) ->  | CP8: =SUM(CN8:CO8) -> 0 | CQ8: 0 | CS8: =IF($P$7="NA",CQ8,IF($P$7<=100,ROUNDUP(CQ8*$P$7/$O$7,0))) -> 0 | CT8: =SUM(CP8,CQ8) -> 0 | CU8: =SUM(#REF!,CS8) ->  | CW8: 0 | CX8: 0 | CY8: =IF($S$7="NA",#REF!+CS8+CX8,#REF!+CS8+CW8) ->  | CZ8: =IF(OR(CY8="",$U$7=""),"",ROUNDUP(CY8/$U$7*100,0)) ->  | DA8: =IF(AND(OR(CN8="ab",CN8="ml"),OR(CO8="ab",CO8="ml"),OR(#REF!="ab",#REF!="ml")),"AB",IF(AND(OR(CN8="ab",CN8="ml"),OR(CO8="ab",CO8="ml"),OR(CQ8="ab",CQ8="ml")),"AB",IF(AND(OR(CN8="ab",CN8="ml"),OR(CQ8="ab",CQ8="ml"),OR(#REF!="ab",#REF!="ml")),"AB",IF(AND(OR(CQ8="ab",CQ8="ml"),OR(CO8="ab",CO8="ml"),OR(#REF!="ab",#REF!="ml")),"AB","")))) ->  | DB8: =IF(OR($G8="NSO",$G8="",CQ8=""),"",IF(OR(DA8="AB",CQ8="ab"),"AB",IF(CZ8>36,"P",IF(CZ8>34,"G2",IF(CZ8>31,"G1",IF(CZ8>25,"S","F")))))) ->  | DC8: =IF(OR(DB8="",DB8=0,DB8="S",DB8="F",DB8="AB"),DB8,IF(CZ8>=75,"D",IF(CZ8>=60,"I",IF(CZ8>=48,"II",IF(CZ8>=36,"III",#REF!))))) ->  | DG8: =SUM(DE8:DF8) -> 0 | DH8: 0 | DJ8: =IF($P$7="NA",DH8,IF($P$7<=100,ROUNDUP(DH8*$P$7/$O$7,0))) -> 0 | DK8: =SUM(DG8,DH8) -> 0 | DL8: =SUM(#REF!,DJ8) ->  | DN8: 0 | DO8: 0 | DP8: =IF($S$7="NA",#REF!+DJ8+DO8,#REF!+DJ8+DN8) ->  | DQ8: =IF(OR(DP8="",$U$7=""),"",ROUNDUP(DP8/$U$7*100,0)) ->  | DR8: =IF(AND(OR(DE8="ab",DE8="ml"),OR(DF8="ab",DF8="ml"),OR(#REF!="ab",#REF!="ml")),"AB",IF(AND(OR(DE8="ab",DE8="ml"),OR(DF8="ab",DF8="ml"),OR(DH8="ab",DH8="ml")),"AB",IF(AND(OR(DE8="ab",DE8="ml"),OR(DH8="ab",DH8="ml"),OR(#REF!="ab",#REF!="ml")),"AB",IF(AND(OR(DH8="ab",DH8="ml"),OR(DF8="ab",DF8="ml"),OR(#REF!="ab",#REF!="ml")),"AB","")))) ->  | DS8: =IF(OR($G8="NSO",$G8="",DH8=""),"",IF(OR(DR8="AB",DH8="ab"),"AB",IF(DQ8>36,"P",IF(DQ8>34,"G2",IF(DQ8>31,"G1",IF(DQ8>25,"S","F")))))) ->  | DT8: =IF(OR(DS8="",DS8=0,DS8="S",DS8="F",DS8="AB"),DS8,IF(DQ8>=75,"D",IF(DQ8>=60,"I",IF(DQ8>=48,"II",IF(DQ8>=36,"III",#REF!))))) ->  | DW8: =SUM(DU8:DV8) -> 0 | DX8: 0 | DZ8: =IF($P$7="NA",DX8,IF($P$7<=100,ROUNDUP(DX8*$P$7/$O$7,0))) -> 0 | EA8: =SUM(DW8,DX8) -> 0 | EB8: =SUM(#REF!,DZ8) ->  | ED8: 0 | EE8: 0 | EF8: =IF($S$7="NA",#REF!+DZ8+EE8,#REF!+DZ8+ED8) ->  | EG8: =IF(OR(EF8="",$U$7=""),"",ROUNDUP(EF8/$U$7*100,0)) ->  | EH8: =IF(OR(EG8="",$G8="",$G8="ab",$G8="ml"),"",IF(EG8>80,"A",IF(EG8>60,"B",IF(EG8>40,"C",IF(EG8=0,0,"D"))))) ->  | EK8: =SUM(EI8:EJ8) -> 0 | EL8: 0 | EM8: =IF($P$7="NA",EL8,IF($P$7<=100,ROUNDUP(EL8*$P$7/$O$7,0))) -> 0 | EN8: =SUM(EK8,EL8) -> 0 | EO8: =SUM(#REF!,EM8) ->  | EP8: 0 | EQ8: 0 | ER8: =IF($S$7="NA",#REF!+EM8+EQ8,#REF!+EM8+EP8) ->  | ES8: =IF(OR(ER8="",$U$7=""),"",ROUNDUP(ER8/$U$7*100,0)) ->  | ET8: =IF(OR(ES8="",$G8="",$G8="ab",$G8="ml"),"",IF(ES8>80,"A",IF(ES8>60,"B",IF(ES8>40,"C",IF(ES8=0,0,"D"))))) ->  | EW8: =SUM(EU8:EV8) -> 0 | EX8: 0 | EY8: =IF($P$7="NA",EX8,IF($P$7<=100,ROUNDUP(EX8*$P$7/$O$7,0))) -> 0 | EZ8: =SUM(EW8,EX8) -> 0 | FA8: =SUM(#REF!,EY8) ->  | FB8: 0 | FC8: 0 | FD8: =IF($S$7="NA",#REF!+EY8+FC8,#REF!+EY8+FB8) ->  | FE8: =IF(OR(FD8="",$U$7=""),"",ROUNDUP(FD8/$U$7*100,0)) ->  | FF8: =IF(OR(FE8="",$G8="",$G8="ab",$G8="ml"),"",IF(FE8>80,"A",IF(FE8>60,"B",IF(FE8>40,"C",IF(FE8=0,0,"D"))))) ->  | FG8: 0 | FH8: 0 | FI8: 0 | FJ8: 0 | FL8: 0 | FM8: 0 | FN8: 0 | FO8: 0 | FP8: 0 | FQ8: 0 | FR8: 0 | FS8: =IF(AND(FR8>=60,FT8="Pass"),"First",IF(AND(FR8>=60,FT8="Pass With G"),"First",IF(AND(FR8>=48,FT8="Pass"),"Second;",IF(AND(FR8>=48,FT8="Pass With G"),"Second",IF(OR(FT8="Pass",FT8="Pass With G"),"Third",FT8))))) ->  | FT8: =IF($G8="NSO","NSO",IF(OR($G8="",$G8=0,O8="",AC8="",AR8="",BI8="",BZ8="",CQ8=""),"",IF(OR(GE8>0,(GF8+GG8+GH8)>2),"FAIL",IF(OR(GF8>0,GG8>1),"SUPP.",IF(AND(GG8>0,GH8>0),"SUPP.",IF((GG8+GH8),"PASS With G","PASS")))))) ->  | FV8: 0 | FW8: =IF(FR8>81,"Excellent",IF(FR8>60,"Verry Good",IF(FR8>48,"Good",IF(FR8>36,"Average",IF(FR8=0,0,"Need Improvement"))))) -> 0 | FX8: =Y8 ->  | FY8: =AM8 ->  | FZ8: =BD8 ->  | GA8: =BU8 ->  | GB8: =CL8 ->  | GC8: =DC8 ->  | GE8: =COUNTIF(FX8:GC8,"F")+COUNTIF(FX8:GC8,"AB") -> 0 | GF8: =COUNTIF(FX8:GC8,"S") -> 0 | GG8: =COUNTIF(FX8:GC8,"G1") -> 0 | GH8: =COUNTIF(FX8:GC8,"G2") -> 0
A9: =G9 -> 1101 | B9: 1 | C9: 1 | D9: =IF(E9>0,$G$4,0) -> 11 | E9: 793 | F9: SC | G9: 1101 | H9: ABHISHEK | I9: RAMU KHAN | J9: SEEPA DEVI | K9: 2005-07-22 | L9: 8 | M9: 10 | N9: 5 | O9: =SUM(L9:N9) -> 23 | P9: 10 | Q9: =SUM(O9:P9) -> 33 | R9: 40 | U9: =SUM(Q9,R9) -> 73 | V9: =IF(OR(U9="",U$7=""),"",U9/U$7*100) -> 36.50 | W9: =IF(R9="AB","AB",IF(AND(OR(L9="ab",L9="ml"),OR(M9="ab",M9="ml"),OR(O9="ab",O9="ml")),"AB",IF(AND(OR(L9="ab",L9="ml"),OR(O9="ab",O9="ml")),"AB",""))) ->  | X9: =IF(OR($G9="NSO",$G9="",R9=""),"",IF(OR(W9="AB",R9="ab"),"AB",IF(AND(V9>=36,R9>=20),"P",IF(AND(V9>=34,R9=20,COUNTIF(L9:T9,"ML")=0),"G2",IF(AND(V9>31,R9>20,COUNTIF(L9:T9,"ML")=0),"G1",IF(AND(V9>25,R9>20),"S","F")))))) -> P | Y9: =IF(OR(X9="",X9=0,X9="S",X9="F",X9="AB"),X9,IF(V9>=75,"D",IF(V9>=60,"I",IF(V9>=48,"II",IF(V9>=36,"III",X9))))) -> III | Z9: 2 | AA9: 10 | AB9: 5 | AC9: =SUM(Z9:AB9) -> 17 | AD9: 40 | AE9: =SUM(AC9:AD9) -> 57 | AF9: 40 | AI9: =SUM(AE9,AF9) -> 97 | AJ9: =IF(OR(AI9="",AI$7=""),"",AI9/AI$7*100) -> 48.50 | AK9: =IF(AF9="AB","AB",IF(AND(OR(Z9="ab",Z9="ml"),OR(AA9="ab",AA9="ml"),OR(AC9="ab",AC9="ml")),"AB",IF(AND(OR(Z9="ab",Z9="ml"),OR(AC9="ab",AC9="ml")),"AB",""))) ->  | AL9: =IF(OR($G9="NSO",$G9="",AF9=""),"",IF(OR(AK9="AB",AF9="ab"),"AB",IF(AND(AJ9>=36,AF9>=20),"P",IF(AND(AJ9>=34,AF9=20,COUNTIF(Z9:AH9,"ML")=0),"G2",IF(AND(AJ9>31,AF9>20,COUNTIF(Z9:AH9,"ML")=0),"G1",IF(AND(AJ9>25,AF9>20),"S","F")))))) -> P | AM9: =IF(OR(AL9="",AL9=0,AL9="S",AL9="F",AL9="AB"),AL9,IF(AJ9>=75,"D",IF(AJ9>=60,"I",IF(AJ9>=48,"II",IF(AJ9>=36,"III",AL9))))) -> II | AN9: 1 | AO9: 10 | AP9: 10 | AQ9: 10 | AR9: =SUM(AO9:AQ9) -> 30 | AS9: 35 | AT9: 25 | AU9: =SUM(AS9:AT9) -> 60 | AV9: =SUM(AU9,AR9) -> 90 | AW9: 100 | AX9: 0 | AY9: =SUM(AW9:AX9) -> 100 | AZ9: =SUM(AV9,AY9) -> 190 | BA9: =IF(OR(AZ9="",AZ$7=""),"",AZ9/AZ$7*100) -> 95.00 | BB9: =IF(AV9="AB","AB",IF(AND(OR(AO9="ab",AO9="ml"),OR(AP9="ab",AP9="ml"),OR(AR9="ab",AR9="ml")),"AB",IF(AND(OR(AO9="ab",AO9="ml"),OR(AR9="ab",AR9="ml")),"AB",""))) ->  | BC9: =IF(OR($G9="NSO",$G9="",AW9="",AO$3=""),"",IF(OR(BB9="AB",AW9="ab"),"AB",IF(AND(BA9>=36,AW9>=20%*AW$7,AX9>=20%*AX7),"P",IF(AND(BA9>=34,AW9>=20%*AW7,AX9>=20%*AX7,COUNTIF(AQ9:AX9,"ML")=0),"G2",IF(AND(BA9>31,AW9>=20%*AW7,AX9>=20%*AX7,COUNTIF(AQ9:AX9,"ML")=0),"G1",IF(AND(BA9>25,AW9>20),"S","F")))))) -> P | BD9: =IF(OR(AN9="",AN9=0),"",IF(OR(BC9="",BC9=0,BC9="S",BC9="F",BC9="AB"),BC9,IF(BA9>=75,"D",IF(BA9>=60,"I",IF(BA9>=48,"II",IF(BA9>=36,"III",BC9)))))) -> D | BE9: 2 | BF9: 10 | BG9: 10 | BH9: 10 | BI9: =SUM(BF9:BH9) -> 30 | BJ9: 70 | BK9: 0 | BL9: =SUM(BJ9:BK9) -> 70 | BM9: =SUM(BL9,BI9) -> 100 | BN9: 100 | BO9: 0 | BP9: =SUM(BN9:BO9) -> 100 | BQ9: =SUM(BM9,BP9) -> 200 | BR9: =IF(OR(BQ9="",BQ$7=""),"",BQ9/BQ$7*100) -> 100 | BS9: =IF(BM9="AB","AB",IF(AND(OR(BF9="ab",BF9="ml"),OR(BG9="ab",BG9="ml"),OR(BI9="ab",BI9="ml")),"AB",IF(AND(OR(BF9="ab",BF9="ml"),OR(BI9="ab",BI9="ml")),"AB",""))) ->  | BT9: =IF(OR($G9="NSO",$G9="",BN9="",BF$3=""),"",IF(OR(BS9="AB",BN9="ab"),"AB",IF(AND(BR9>=36,BN9>=20%*BN$7,BO9>=20%*BO7),"P",IF(AND(BR9>=34,BN9>=20%*BN7,BO9>=20%*BO7,COUNTIF(BH9:BO9,"ML")=0),"G2",IF(AND(BR9>31,BN9>=20%*BN7,BO9>=20%*BO7,COUNTIF(BH9:BO9,"ML")=0),"G1",IF(AND(BR9>25,BN9>20),"S","F")))))) -> P | BU9: =IF(OR(BE9="",BE9=0),"",IF(OR(BT9="",BT9=0,BT9="S",BT9="F",BT9="AB"),BT9,IF(BR9>=75,"D",IF(BR9>=60,"I",IF(BR9>=48,"II",IF(BR9>=36,"III",BT9)))))) -> D | BV9: 3 | BW9: 10 | BX9: 10 | BY9: 10 | BZ9: =SUM(BW9:BY9) -> 30 | CA9: 70 | CB9: 0 | CC9: =SUM(CA9:CB9) -> 70 | CD9: =SUM(CC9,BZ9) -> 100 | CE9: 100 | CF9: 0 | CG9: =SUM(CE9:CF9) -> 100 | CH9: =SUM(CD9,CG9) -> 200 | CI9: =IF(OR(CH$7=0,0),"",CH9/CH$7*100) -> 100.00 | CJ9: =IF(CD9="AB","AB",IF(AND(OR(BW9="ab",BW9="ml"),OR(BX9="ab",BX9="ml"),OR(BZ9="ab",BZ9="ml")),"AB",IF(AND(OR(BW9="ab",BW9="ml"),OR(BZ9="ab",BZ9="ml")),"AB",""))) ->  | CK9: =IF(OR($G9="NSO",$G9="",CE9="",BW$3=""),"",IF(OR(CJ9="AB",CE9="ab"),"AB",IF(AND(CI9>=36,CE9>=20%*CE$7,CF9>=20%*CF7),"P",IF(AND(CI9>=34,CE9>=20%*CE7,CF9>=20%*CF7,COUNTIF(BY9:CF9,"ML")=0),"G2",IF(AND(CI9>31,CE9>=20%*CE7,CF9>=20%*CF7,COUNTIF(BY9:CF9,"ML")=0),"G1",IF(AND(CI9>25,CE9>20),"S","F")))))) -> P | CL9: =IF(OR(BV9="",BV9=0),"",IF(OR(CK9="",CK9=0,CK9="S",CK9="F",CK9="AB"),CK9,IF(CI9>=75,"D",IF(CI9>=60,"I",IF(CI9>=48,"II",IF(CI9>=36,"III",CK9)))))) -> D | CN9: 0 | CO9: 0 | CP9: 0 | CQ9: =SUM(CN9:CP9) -> 0 | CR9: 0 | CS9: 0 | CT9: =SUM(CR9:CS9) -> 0 | CU9: =SUM(CT9,CQ9) -> 0 | CV9: 0 | CW9: 0 | CX9: =SUM(CV9:CW9) -> 0 | CY9: =SUM(CU9,CX9) -> 0 | CZ9: =IF(OR(CY$7=0,0),"",CY9/CY$7*100) -> 0 | DA9: =IF(CU9="AB","AB",IF(AND(OR(CN9="ab",CN9="ml"),OR(CO9="ab",CO9="ml"),OR(CQ9="ab",CQ9="ml")),"AB",IF(AND(OR(CN9="ab",CN9="ml"),OR(CQ9="ab",CQ9="ml")),"AB",""))) ->  | DB9: =IF(OR($G9="NSO",$G9="",CV9="",CN$3=""),"",IF(OR(DA9="AB",CV9="ab"),"AB",IF(AND(CZ9>=36,CV9>=20%*CV$7,CW9>=20%*CW7),"P",IF(AND(CZ9>=34,CV9>=20%*CV7,CW9>=20%*CW7,COUNTIF(CP9:CW9,"ML")=0),"G2",IF(AND(CZ9>31,CV9>=20%*CV7,CW9>=20%*CW7,COUNTIF(CP9:CW9,"ML")=0),"G1",IF(AND(CZ9>25,CV9>20),"S","F")))))) -> F | DC9: =IF(OR(CM9="",CM9=0),"",IF(OR(DB9="",DB9=0,DB9="S",DB9="F",DB9="AB"),DB9,IF(CZ9>=75,"D",IF(CZ9>=60,"I",IF(CZ9>=48,"II",IF(CZ9>=36,"III",DB9)))))) ->  | DD9: 0 | DE9: 0 | DF9: 0 | DG9: 0 | DH9: =SUM(DE9:DG9) -> 0 | DI9: 0 | DJ9: 0 | DK9: =SUM(DI9:DJ9) -> 0 | DL9: =SUM(DK9,DH9) -> 0 | DM9: 0 | DN9: 0 | DO9: =SUM(DM9:DN9) -> 0 | DP9: =SUM(DL9,DO9) -> 0 | DQ9: =IF(OR(DP$7=0,0),"",DP9/DP$7*100) -> 0 | DR9: =IF(DL9="AB","AB",IF(AND(OR(DE9="ab",DE9="ml"),OR(DF9="ab",DF9="ml"),OR(DH9="ab",DH9="ml")),"AB",IF(AND(OR(DE9="ab",DE9="ml"),OR(DH9="ab",DH9="ml")),"AB",""))) ->  | DS9: =IF(OR($G9="NSO",$G9="",DM9="",DE$3=""),"",IF(OR(DR9="AB",DM9="ab"),"AB",IF(AND(DQ9>=36,DM9>=20%*DM$7,DN9>=20%*DN7),"P",IF(AND(DQ9>=34,DM9>=20%*DM7,DN9>=20%*DN7,COUNTIF(DG9:DN9,"ML")=0),"G2",IF(AND(DQ9>31,DM9>=20%*DM7,DN9>=20%*DN7,COUNTIF(DG9:DN9,"ML")=0),"G1",IF(AND(DQ9>25,DM9>20),"S","F")))))) ->  | DT9: =IF(OR(DD9="",DD9=0),"",IF(OR(DS9="",DS9=0,DS9="S",DS9="F",DS9="AB"),DS9,IF(DQ9>=75,"D",IF(DQ9>=60,"I",IF(DQ9>=48,"II",IF(DQ9>=36,"III",DS9)))))) ->  | DU9: 10 | DV9: 10 | DW9: 10 | DX9: =SUM(DU9:DW9) -> 30 | DY9: 70 | DZ9: 0 | EA9: =SUM(DY9:DZ9) -> 70 | EB9: =SUM(EA9,DX9) -> 100 | EC9: 100 | ED9: 0 | EE9: =SUM(EC9:ED9) -> 100 | EF9: =SUM(EB9,EE9) -> 200 | EG9: =IF(OR(EF9="",EF$7=""),"",EF9/EF$7*100) -> 100.00 | EH9: =IF(OR(G9="",G9="tc",G9="NSO"),"",IF(EG9>=80,"A",IF(EG9>=60,"B",IF(EG9>=40,"C",IF(EG9>=36,"D",0))))) -> A | EI9: 2 | EJ9: 10 | EK9: 2 | EL9: =SUM(EI9:EK9) -> 14 | EM9: 40 | EN9: =SUM(EL9:EM9) -> 54 | EO9: 40 | ER9: =SUM(EN9,EO9) -> 94 | ES9: =IF(OR(ER9="",ER$7=""),"",ER9/ER$7*100) -> 47.00 | ET9: =IF(OR(G9="",G9="tc",G9="NSO"),"",IF(ES9>=80,"A",IF(ES9>=60,"B",IF(ES9>=40,"C",IF(ES9>=36,"D",0))))) -> C | EU9: 2 | EV9: 10 | EW9: 12 | EX9: =SUM(EU9:EW9) -> 24 | EY9: 65 | EZ9: =SUM(EX9:EY9) -> 89 | FA9: 40 | FD9: =SUM(EZ9,FA9) -> 129 | FE9: =IF(OR(FD9="",FD$7=""),"",FD9/FD$7*100) -> 64.50 | FF9: =IF(OR(G9="",G9="tc",G9="NSO"),"",IF(FE9>=80,"A",IF(FE9>=60,"B",IF(FE9>=40,"C",IF(FE9>=36,"D",0))))) -> B | FG9: 20 | FH9: 20 | FI9: 15 | FJ9: 55 | FK9: =IF(OR(FJ9="",FJ$7=""),"",FJ9/FJ$7*100) -> 55.00 | FL9: =IF(OR(G9="",G9="tc",G9="NSO"),"",IF(FK9>=80,"A",IF(FK9>=60,"B",IF(FK9>=40,"C",IF(FK9>=36,"D",0))))) -> C | FM9: 362 | FN9: 274 | FO9: =IF(OR(FM9="",FN9=""),"",FN9/FM9*100) -> 75.69 | FP9: =HQ9 -> 1000 | FQ9: =SUM(U9,AI9,AZ9,BQ9,CH9,CY9,DP9) -> 760 | FR9: =IF(OR(FT9="passed",FT9="Passed with g"),FQ9/FP9*100,0) -> 76.00 | FS9: =IF(AND(FR9>=60,FT9="Passed"),"First",IF(AND(FR9>=60,FT9="Passed with G"),"First",IF(AND(FR9>=48,FT9="Passed"),"Second",IF(AND(FR9>=48,FT9="Passed With G"),"Second",IF(OR(FT9="Passed",FT9="Passed With G"),"Third",FT9))))) -> First | FT9: =IF($G9="TC","Transfered",IF($G9="NSO","NSO",IF(OR($G9="",$G9=0,O9=""),"",IF(OR(GE9>0,(GF9+GG9+GH9)>2),"FAILED",IF(OR(GF9>0,GG9>1),"SUPP.",IF(AND(GG9>0,GH9>0),"SUPP.",IF((GG9+GH9),"Passed With G","Passed"))))))) -> Passed | FU9: =IF(FT9="Passed",FR9,"") -> 76.000 | FV9: =IF(FU9="","",SUMPRODUCT((FU9<FU$9:FU$108)/COUNTIF(FU$9:FU$108,FU$9:FU$108))) -> 1 | FW9: =IF(G9="Tc","--",IF(FT9="nso","Name Separated",IF(GE9>0,"Need Improvement",IF(GF9>0,"Need Improvement",IF(GG9>0,"Need Improvement",IF(FR9>=80,"Excellent",IF(FR9>=60,"Very Good",IF(FR9>=48,"Good",IF(FR9>=36,"Average",IF(FR9=0,0,"Need Improvement")))))))))) -> Very Good | FX9: =Y9 -> III | FY9: =AM9 -> II | FZ9: =BD9 -> D | GA9: =BU9 -> D | GB9: =CL9 -> D | GC9: =DC9 ->  | GD9: =DT9 ->  | GE9: =COUNTIF(FX9:GD9,"F")+COUNTIF(FX9:GD9,"AB") -> 0 | GF9: =COUNTIF(FX9:GD9,"S") -> 0 | GG9: =COUNTIF(FX9:GD9,"G1") -> 0 | GH9: =COUNTIF(FX9:GD9,"G2") -> 0 | GL9: =EF9 -> 200 | GM9: / | GN9: =$EF$7 -> 200 | GO9: =CONCATENATE(GL9,GM9,GN9) -> 200/200 | GP9: =ER9 -> 94 | GQ9: / | GR9: =$ER$7 -> 200 | GS9: =CONCATENATE(GP9,GQ9,GR9) -> 94/200 | GT9: =FD9 -> 129 | GU9: / | GV9: =$FD$7 -> 200 | GW9: =CONCATENATE(GT9,GU9,GV9) -> 129/200 | GX9: =FJ9 -> 55 | GY9: / | GZ9: =$FJ$7 -> 100 | HA9: =CONCATENATE(GX9,GY9,GZ9) -> 55/100 | HJ9: =IF(U9>0,$U$7,0) -> 200 | HK9: =IF(AI9>0,$AI$7,0) -> 200 | HL9: =IF(AN9>=1,$AZ$7,0) -> 200 | HM9: =IF(BE9>=1,$BQ$7,0) -> 200 | HN9: =IF(BV9>=1,$CH$7,0) -> 200 | HO9: =IF(CM9>=1,$CY$7,0) -> 0 | HP9: =IF(DD9>=1,$DP$7,0) -> 0 | HQ9: =SUM(HJ9:HP9) -> 1000
A10: =G10 -> 1102 | B10: 2 | C10: 2 | D10: =IF(E10>0,$G$4,0) -> 11 | E10: 565 | F10: SC | G10: 1102 | H10: DASFS` | I10: GBGHG | J10: GHGHG | K10: 2005-07-22 | L10: 5 | M10: 10 | N10: 4 | O10: =SUM(L10:N10) -> 19 | P10: 10 | Q10: =SUM(O10:P10) -> 29 | R10: 20 | U10: =SUM(Q10,R10) -> 49 | V10: =IF(OR(U10="",U$7=""),"",U10/U$7*100) -> 24.50 | X10: =IF(OR($G10="NSO",$G10="",R10=""),"",IF(OR(W10="AB",R10="ab"),"AB",IF(AND(V10>=36,R10>=20),"P",IF(AND(V10>=34,R10=20,COUNTIF(L10:T10,"ML")=0),"G2",IF(AND(V10>31,R10>20,COUNTIF(L10:T10,"ML")=0),"G1",IF(AND(V10>25,R10>20),"S","F")))))) -> F | Y10: F | Z10: 10 | AA10: 10 | AB10: 4 | AC10: =SUM(Z10:AB10) -> 24 | AD10: 10 | AE10: =SUM(AC10:AD10) -> 34 | AF10: 10 | AI10: =SUM(AE10,AF10) -> 44 | AJ10: =IF(OR(AI10="",AI$7=""),"",AI10/AI$7*100) -> 22.00 | AK10: =IF(AF10="AB","AB",IF(AND(OR(Z10="ab",Z10="ml"),OR(AA10="ab",AA10="ml"),OR(AC10="ab",AC10="ml")),"AB",IF(AND(OR(Z10="ab",Z10="ml"),OR(AC10="ab",AC10="ml")),"AB",""))) ->  | AL10: =IF(OR($G10="NSO",$G10="",AF10=""),"",IF(OR(AK10="AB",AF10="ab"),"AB",IF(AND(AJ10>=36,AF10>=20),"P",IF(AND(AJ10>=34,AF10=20,COUNTIF(Z10:AH10,"ML")=0),"G2",IF(AND(AJ10>31,AF10>20,COUNTIF(Z10:AH10,"ML")=0),"G1",IF(AND(AJ10>25,AF10>20),"S","F")))))) -> F | AM10: =IF(OR(AL10="",AL10=0,AL10="S",AL10="F",AL10="AB"),AL10,IF(AJ10>=75,"D",IF(AJ10>=60,"I",IF(AJ10>=48,"II",IF(AJ10>=36,"III",AL10))))) -> F | AN10: 1 | AO10: 10 | AP10: 10 | AQ10: 10 | AR10: =SUM(AO10:AQ10) -> 30 | AS10: 70 | AT10: 0 | AU10: =SUM(AS10:AT10) -> 70 | AV10: =SUM(AU10,AR10) -> 100 | AW10: 100 | AX10: 0 | AY10: =SUM(AW10:AX10) -> 100 | AZ10: =SUM(AV10,AY10) -> 200 | BA10: =IF(OR(AZ10="",AZ$7=""),"",AZ10/AZ$7*100) -> 100.00 | BB10: =IF(AV10="AB","AB",IF(AND(OR(AO10="ab",AO10="ml"),OR(AP10="ab",AP10="ml"),OR(AR10="ab",AR10="ml")),"AB",IF(AND(OR(AO10="ab",AO10="ml"),OR(AR10="ab",AR10="ml")),"AB",""))) ->  | BC10: =IF(OR($G10="NSO",$G10="",AW10="",AO$3=""),"",IF(OR(BB10="AB",AW10="ab"),"AB",IF(AND(BA10>=36,AW10>=20%*AW$7,AX10>=20%*AX8),"P",IF(AND(BA10>=34,AW10>=20%*AW8,AX10>=20%*AX8,COUNTIF(AQ10:AX10,"ML")=0),"G2",IF(AND(BA10>31,AW10>=20%*AW8,AX10>=20%*AX8,COUNTIF(AQ10:AX10,"ML")=0),"G1",IF(AND(BA10>25,AW10>20),"S","F")))))) -> P | BD10: D | BE10: 2 | BF10: 10 | BG10: 10 | BH10: 10 | BI10: =SUM(BF10:BH10) -> 30 | BJ10: 70 | BK10: 0 | BL10: =SUM(BJ10:BK10) -> 70 | BM10: =SUM(BL10,BI10) -> 100 | BN10: 100 | BO10: 0 | BP10: =SUM(BN10:BO10) -> 100 | BQ10: =SUM(BM10,BP10) -> 200 | BR10: =IF(OR(BQ10="",BQ$7=""),"",BQ10/BQ$7*100) -> 100 | BS10: =IF(BM10="AB","AB",IF(AND(OR(BF10="ab",BF10="ml"),OR(BG10="ab",BG10="ml"),OR(BI10="ab",BI10="ml")),"AB",IF(AND(OR(BF10="ab",BF10="ml"),OR(BI10="ab",BI10="ml")),"AB",""))) ->  | BT10: =IF(OR($G10="NSO",$G10="",BN10="",BF$3=""),"",IF(OR(BS10="AB",BN10="ab"),"AB",IF(AND(BR10>=36,BN10>=20%*BN$7,BO10>=20%*BO8),"P",IF(AND(BR10>=34,BN10>=20%*BN8,BO10>=20%*BO8,COUNTIF(BH10:BO10,"ML")=0),"G2",IF(AND(BR10>31,BN10>=20%*BN8,BO10>=20%*BO8,COUNTIF(BH10:BO10,"ML")=0),"G1",IF(AND(BR10>25,BN10>20),"S","F")))))) -> P | BU10: D | BV10: 3 | BW10: 10 | BX10: 10 | BY10: 10 | BZ10: =SUM(BW10:BY10) -> 30 | CA10: 70 | CB10: 0 | CC10: =SUM(CA10:CB10) -> 70 | CD10: =SUM(CC10,BZ10) -> 100 | CE10: 100 | CF10: 0 | CG10: =SUM(CE10:CF10) -> 100 | CH10: =SUM(CD10,CG10) -> 200 | CI10: =IF(OR(CH$7=0,0),"",CH10/CH$7*100) -> 100.00 | CJ10: =IF(CD10="AB","AB",IF(AND(OR(BW10="ab",BW10="ml"),OR(BX10="ab",BX10="ml"),OR(BZ10="ab",BZ10="ml")),"AB",IF(AND(OR(BW10="ab",BW10="ml"),OR(BZ10="ab",BZ10="ml")),"AB",""))) ->  | CK10: =IF(OR($G10="NSO",$G10="",CE10="",BW$3=""),"",IF(OR(CJ10="AB",CE10="ab"),"AB",IF(AND(CI10>=36,CE10>=20%*CE$7,CF10>=20%*CF8),"P",IF(AND(CI10>=34,CE10>=20%*CE8,CF10>=20%*CF8,COUNTIF(BY10:CF10,"ML")=0),"G2",IF(AND(CI10>31,CE10>=20%*CE8,CF10>=20%*CF8,COUNTIF(BY10:CF10,"ML")=0),"G1",IF(AND(CI10>25,CE10>20),"S","F")))))) -> P | CL10: D | CN10: 0 | CO10: 0 | CP10: 0 | CQ10: =SUM(CN10:CP10) -> 0 | CR10: 0 | CS10: 0 | CT10: =SUM(CR10:CS10) -> 0 | CU10: =SUM(CT10,CQ10) -> 0 | CV10: 0 | CW10: 0 | CX10: =SUM(CV10:CW10) -> 0 | CY10: =SUM(CU10,CX10) -> 0 | CZ10: =IF(OR(CY$7=0,0),"",CY10/CY$7*100) -> 0 | DA10: =IF(CU10="AB","AB",IF(AND(OR(CN10="ab",CN10="ml"),OR(CO10="ab",CO10="ml"),OR(CQ10="ab",CQ10="ml")),"AB",IF(AND(OR(CN10="ab",CN10="ml"),OR(CQ10="ab",CQ10="ml")),"AB",""))) ->  | DB10: =IF(OR($G10="NSO",$G10="",CV10="",CN$3=""),"",IF(OR(DA10="AB",CV10="ab"),"AB",IF(AND(CZ10>=36,CV10>=20%*CV$7,CW10>=20%*CW8),"P",IF(AND(CZ10>=34,CV10>=20%*CV8,CW10>=20%*CW8,COUNTIF(CP10:CW10,"ML")=0),"G2",IF(AND(CZ10>31,CV10>=20%*CV8,CW10>=20%*CW8,COUNTIF(CP10:CW10,"ML")=0),"G1",IF(AND(CZ10>25,CV10>20),"S","F")))))) -> F | DC10: =IF(OR(CM10="",CM10=0),"",IF(OR(DB10="",DB10=0,DB10="S",DB10="F",DB10="AB"),DB10,IF(CZ10>=75,"D",IF(CZ10>=60,"I",IF(CZ10>=48,"II",IF(CZ10>=36,"III",DB10)))))) ->  | DE10: 0 | DF10: 0 | DG10: 0 | DH10: =SUM(DE10:DG10) -> 0 | DI10: 0 | DJ10: 0 | DK10: =SUM(DI10:DJ10) -> 0 | DL10: =SUM(DK10,DH10) -> 0 | DM10: 0 | DN10: 0 | DO10: =SUM(DM10:DN10) -> 0 | DP10: =SUM(DL10,DO10) -> 0 | DQ10: =IF(OR(DP$7=0,0),"",DP10/DP$7*100) -> 0 | DR10: =IF(DL10="AB","AB",IF(AND(OR(DE10="ab",DE10="ml"),OR(DF10="ab",DF10="ml"),OR(DH10="ab",DH10="ml")),"AB",IF(AND(OR(DE10="ab",DE10="ml"),OR(DH10="ab",DH10="ml")),"AB",""))) ->  | DS10: =IF(OR($G10="NSO",$G10="",DM10="",DE$3=""),"",IF(OR(DR10="AB",DM10="ab"),"AB",IF(AND(DQ10>=36,DM10>=20%*DM$7,DN10>=20%*DN8),"P",IF(AND(DQ10>=34,DM10>=20%*DM8,DN10>=20%*DN8,COUNTIF(DG10:DN10,"ML")=0),"G2",IF(AND(DQ10>31,DM10>=20%*DM8,DN10>=20%*DN8,COUNTIF(DG10:DN10,"ML")=0),"G1",IF(AND(DQ10>25,DM10>20),"S","F")))))) ->  | DT10: =IF(OR(DD10="",DD10=0),"",IF(OR(DS10="",DS10=0,DS10="S",DS10="F",DS10="AB"),DS10,IF(DQ10>=75,"D",IF(DQ10>=60,"I",IF(DQ10>=48,"II",IF(DQ10>=36,"III",DS10)))))) ->  | DU10: 10 | DV10: 10 | DW10: 10 | DX10: =SUM(DU10:DW10) -> 30 | DY10: 70 | DZ10: 0 | EA10: =SUM(DY10:DZ10) -> 70 | EB10: =SUM(EA10,DX10) -> 100 | EC10: 100 | ED10: 0 | EE10: =SUM(EC10:ED10) -> 100 | EF10: =SUM(EB10,EE10) -> 200 | EG10: =IF(OR(EF10="",EF$7=""),"",EF10/EF$7*100) -> 100.00 | EH10: =IF(OR(G10="",G10="tc",G10="NSO"),"",IF(EG10>=80,"A",IF(EG10>=60,"B",IF(EG10>=40,"C",IF(EG10>=36,"D",0))))) -> A | EI10: 20 | EJ10: 10 | EK10: 3 | EL10: =SUM(EI10:EK10) -> 33 | EM10: 45 | EN10: =SUM(EL10:EM10) -> 78 | EO10: 10 | ER10: =SUM(EN10,EO10) -> 88 | ES10: =IF(OR(ER10="",ER$7=""),"",ER10/ER$7*100) -> 44.00 | ET10: =IF(OR(G10="",G10="tc",G10="NSO"),"",IF(ES10>=80,"A",IF(ES10>=60,"B",IF(ES10>=40,"C",IF(ES10>=36,"D",0))))) -> C | EU10: 20 | EV10: 10 | EW10: 30 | EX10: =SUM(EU10:EW10) -> 60 | EY10: 10 | EZ10: =SUM(EX10:EY10) -> 70 | FA10: 10 | FD10: =SUM(EZ10,FA10) -> 80 | FE10: =IF(OR(FD10="",FD$7=""),"",FD10/FD$7*100) -> 40.00 | FF10: =IF(OR(G10="",G10="tc",G10="NSO"),"",IF(FE10>=80,"A",IF(FE10>=60,"B",IF(FE10>=40,"C",IF(FE10>=36,"D",0))))) -> C | FG10: 0 | FH10: 0 | FI10: 0 | FJ10: 0 | FK10: =IF(OR(FJ10="",FJ$7=""),"",FJ10/FJ$7*100) -> 0.00 | FL10: =IF(OR(G10="",G10="tc",G10="NSO"),"",IF(FK10>=80,"A",IF(FK10>=60,"B",IF(FK10>=40,"C",IF(FK10>=36,"D",0))))) -> 0 | FM10: 362 | FN10: 275 | FO10: =IF(OR(FM10="",FN10=""),"",FN10/FM10*100) -> 75.97 | FP10: =HQ10 -> 1000 | FQ10: =SUM(U10,AI10,AZ10,BQ10,CH10,CY10,DP10) -> 693 | FR10: =IF(OR(FT10="passed",FT10="Passed with g"),FQ10/FP10*100,0) -> 0.00 | FS10: =IF(AND(FR10>=60,FT10="Passed"),"First",IF(AND(FR10>=60,FT10="Passed with G"),"First",IF(AND(FR10>=48,FT10="Passed"),"Second",IF(AND(FR10>=48,FT10="Passed With G"),"Second",IF(OR(FT10="Passed",FT10="Passed With G"),"Third",FT10))))) -> FAILED | FT10: =IF($G10="TC","Transfered",IF($G10="NSO","NSO",IF(OR($G10="",$G10=0,O10=""),"",IF(OR(GE10>0,(GF10+GG10+GH10)>2),"FAILED",IF(OR(GF10>0,GG10>1),"SUPP.",IF(AND(GG10>0,GH10>0),"SUPP.",IF((GG10+GH10),"Passed With G","Passed"))))))) -> FAILED | FU10: =IF(FT10="Passed",FR10,"") ->  | FV10: =IF(FU10="","",SUMPRODUCT((FU10<FU$9:FU$108)/COUNTIF(FU$9:FU$108,FU$9:FU$108))) ->  | FW10: =IF(G10="Tc","--",IF(FT10="nso","Name Separated",IF(GE10>0,"Need Improvement",IF(GF10>0,"Need Improvement",IF(GG10>0,"Need Improvement",IF(FR10>=80,"Excellent",IF(FR10>=60,"Very Good",IF(FR10>=48,"Good",IF(FR10>=36,"Average",IF(FR10=0,0,"Need Improvement")))))))))) -> Need Improvement | FX10: F | FY10: F | FZ10: D | GA10: D | GB10: D | GC10: =DC10 ->  | GD10: =DT10 ->  | GE10: =COUNTIF(FX10:GD10,"F")+COUNTIF(FX10:GD10,"AB") -> 2 | GF10: =COUNTIF(FX10:GD10,"S") -> 0 | GG10: =COUNTIF(FX10:GD10,"G1") -> 0 | GH10: =COUNTIF(FX10:GD10,"G2") -> 0 | GL10: 200 | GM10: / | GN10: 200 | GO10: =CONCATENATE(GL10,GM10,GN10) -> 200/200 | GP10: =ER10 -> 88 | GQ10: / | GR10: =$ER$7 -> 200 | GS10: =CONCATENATE(GP10,GQ10,GR10) -> 88/200 | GT10: =FD10 -> 80 | GU10: / | GV10: =$FD$7 -> 200 | GW10: =CONCATENATE(GT10,GU10,GV10) -> 80/200 | GX10: =FJ10 -> 0 | GY10: / | GZ10: =$FJ$7 -> 100 | HA10: =CONCATENATE(GX10,GY10,GZ10) -> 0/100 | HJ10: =IF(U10>0,$U$7,0) -> 200 | HK10: =IF(AI10>0,$AI$7,0) -> 200 | HL10: =IF(AN10>=1,$AZ$7,0) -> 200 | HM10: =IF(BE10>=1,$BQ$7,0) -> 200 | HN10: =IF(BV10>=1,$CH$7,0) -> 200 | HO10: =IF(CM10>=1,$CY$7,0) -> 0 | HP10: =IF(DD10>=1,$DP$7,0) -> 0 | HQ10: =SUM(HJ10:HP10) -> 1000
A11: 1103 | B11: 3 | C11: 3 | D11: 11 | E11: 123 | F11: ST | G11: 1103 | H11: JHGBHJ | I11: HB | J11: BJH | L11: 10 | M11: 11 | N11: 2 | O11: 23 | P11: 8 | Q11: 31 | R11: 45 | U11: 76 | V11: 38.00 | X11: P | Y11: III | Z11: 10 | AA11: 11 | AB11: 2 | AC11: 23 | AD11: 8 | AE11: 31 | AF11: 45 | AI11: 76 | AJ11: 38.00 | AK11: =IF(AF11="AB","AB",IF(AND(OR(Z11="ab",Z11="ml"),OR(AA11="ab",AA11="ml"),OR(AC11="ab",AC11="ml")),"AB",IF(AND(OR(Z11="ab",Z11="ml"),OR(AC11="ab",AC11="ml")),"AB",""))) ->  | AL11: P | AM11: =IF(OR(AL11="",AL11=0,AL11="S",AL11="F",AL11="AB"),AL11,IF(AJ11>=75,"D",IF(AJ11>=60,"I",IF(AJ11>=48,"II",IF(AJ11>=36,"III",AL11))))) -> III | AN11: 1 | AO11: 10 | AP11: 10 | AQ11: 10 | AR11: 30 | AS11: 20 | AT11: 0 | AU11: 20 | AV11: 50 | AW11: 40 | AX11: 0 | AY11: 40 | AZ11: 90 | BA11: 45.00 | BB11: =IF(AV11="AB","AB",IF(AND(OR(AO11="ab",AO11="ml"),OR(AP11="ab",AP11="ml"),OR(AR11="ab",AR11="ml")),"AB",IF(AND(OR(AO11="ab",AO11="ml"),OR(AR11="ab",AR11="ml")),"AB",""))) ->  | BC11: P | BD11: III | BE11: 2 | BF11: 10 | BG11: 10 | BH11: 10 | BI11: 30 | BJ11: 70 | BK11: 0 | BL11: 70 | BM11: 100 | BN11: 40 | BO11: 0 | BP11: 40 | BQ11: 140 | BR11: 70 | BS11: =IF(BM11="AB","AB",IF(AND(OR(BF11="ab",BF11="ml"),OR(BG11="ab",BG11="ml"),OR(BI11="ab",BI11="ml")),"AB",IF(AND(OR(BF11="ab",BF11="ml"),OR(BI11="ab",BI11="ml")),"AB",""))) ->  | BT11: P | BU11: I | BV11: 3 | BW11: 10 | BX11: 10 | BY11: 10 | BZ11: 30 | CA11: 35 | CB11: 0 | CC11: 35 | CD11: 65 | CE11: 35 | CF11: 0 | CG11: 35 | CH11: 100 | CI11: 50.00 | CK11: P | CL11: II | CN11: 0 | CO11: 0 | CP11: 0 | CQ11: 0 | CR11: 0 | CS11: 0 | CT11: 0 | CU11: 0 | CV11: 0 | CW11: 0 | CX11: 0 | CY11: 0 | CZ11: 0 | DB11: F | DE11: 0 | DF11: 0 | DG11: 0 | DH11: 0 | DI11: 0 | DJ11: 0 | DK11: 0 | DL11: 0 | DM11: 0 | DN11: 0 | DO11: 0 | DP11: 0 | DQ11: 0 | DU11: 10 | DV11: 10 | DW11: 10 | DX11: 30 | DY11: 70 | DZ11: 0 | EA11: 70 | EB11: 100 | EC11: 100 | ED11: 0 | EE11: 100 | EF11: 200 | EG11: 100.00 | EH11: A | EI11: 10 | EJ11: 11 | EK11: 4 | EL11: 25 | EM11: 8 | EN11: 33 | EO11: 45 | ER11: 78 | ES11: 39.00 | ET11: D | EU11: 10 | EV11: 11 | EW11: 21 | EX11: 42 | EY11: 8 | EZ11: 50 | FA11: 45 | FD11: 95 | FE11: 47.50 | FF11: C | FG11: 0 | FH11: 0 | FI11: 0 | FJ11: 0 | FK11: 0.00 | FL11: 0 | FO11: =IF(OR(FM11="",FN11=""),"",FN11/FM11*100) ->  | FP11: 1000 | FQ11: 482 | FR11: 48.20 | FS11: Second | FT11: Passed | FU11: 48.200 | FV11: 3 | FW11: Good | FX11: III | FY11: III | FZ11: III | GA11: I | GB11: II | GE11: 0 | GF11: 0 | GG11: 0 | GH11: 0 | GL11: 200 | GM11: / | GN11: 200 | GO11: 200/200 | GP11: 78 | GQ11: / | GR11: 200 | GS11: 78/200 | GT11: 95 | GU11: / | GV11: 200 | GW11: 95/200 | GX11: 0 | GY11: / | GZ11: 100 | HA11: 0/100 | HJ11: 200 | HK11: 200 | HL11: 200 | HM11: 200 | HN11: 200 | HO11: 0 | HP11: 0 | HQ11: 1000
A12: NSO | B12: 4 | C12: 4 | D12: 11 | E12: 51 | F12: GEN | G12: NSO | H12: HGJG | I12: HJGG | J12: BGJHGJ | L12: 10 | M12: 14 | N12: 3 | O12: 27 | P12: 10 | Q12: 37 | R12: 51 | U12: 88 | V12: 44.00 | Z12: 10 | AA12: 14 | AB12: 3 | AC12: 27 | AD12: 10 | AE12: 37 | AF12: 51 | AI12: 88 | AJ12: 44.00 | AK12: =IF(AF12="AB","AB",IF(AND(OR(Z12="ab",Z12="ml"),OR(AA12="ab",AA12="ml"),OR(AC12="ab",AC12="ml")),"AB",IF(AND(OR(Z12="ab",Z12="ml"),OR(AC12="ab",AC12="ml")),"AB",""))) ->  | AM12: =IF(OR(AL12="",AL12=0,AL12="S",AL12="F",AL12="AB"),AL12,IF(AJ12>=75,"D",IF(AJ12>=60,"I",IF(AJ12>=48,"II",IF(AJ12>=36,"III",AL12))))) ->  | AN12: 1 | AO12: 10 | AP12: 10 | AQ12: 10 | AR12: 30 | AS12: 70 | AT12: 0 | AU12: 70 | AV12: 100 | AW12: 100 | AX12: 0 | AY12: 100 | AZ12: 200 | BA12: 100.00 | BB12: =IF(AV12="AB","AB",IF(AND(OR(AO12="ab",AO12="ml"),OR(AP12="ab",AP12="ml"),OR(AR12="ab",AR12="ml")),"AB",IF(AND(OR(AO12="ab",AO12="ml"),OR(AR12="ab",AR12="ml")),"AB",""))) ->  | BE12: 2 | BF12: 10 | BG12: 10 | BH12: 10 | BI12: 30 | BJ12: 70 | BK12: 0 | BL12: 70 | BM12: 100 | BN12: 100 | BO12: 0 | BP12: 100 | BQ12: 200 | BR12: 100 | BS12: =IF(BM12="AB","AB",IF(AND(OR(BF12="ab",BF12="ml"),OR(BG12="ab",BG12="ml"),OR(BI12="ab",BI12="ml")),"AB",IF(AND(OR(BF12="ab",BF12="ml"),OR(BI12="ab",BI12="ml")),"AB",""))) ->  | BV12: 3 | BW12: 10 | BX12: 10 | BY12: 10 | BZ12: 30 | CA12: 70 | CB12: 0 | CC12: 70 | CD12: 100 | CE12: 100 | CF12: 0 | CG12: 100 | CH12: 200 | CI12: 100.00 | CN12: 0 | CO12: 0 | CP12: 0 | CQ12: 0 | CR12: 0 | CS12: 0 | CT12: 0 | CU12: 0 | CV12: 0 | CW12: 0 | CX12: 0 | CY12: 0 | CZ12: 0 | DE12: 0 | DF12: 0 | DG12: 0 | DH12: 0 | DI12: 0 | DJ12: 0 | DK12: 0 | DL12: 0 | DM12: 0 | DN12: 0 | DO12: 0 | DP12: 0 | DQ12: 0 | DU12: 10 | DV12: 10 | DW12: 10 | DX12: 30 | DY12: 70 | DZ12: 0 | EA12: 70 | EB12: 100 | EC12: 100 | ED12: 0 | EE12: 100 | EF12: 200 | EG12: 100.00 | EI12: 10 | EJ12: 4 | EK12: 5 | EL12: 19 | EM12: 10 | EN12: 29 | EO12: 51 | ER12: 80 | ES12: 40.00 | EU12: 10 | EV12: 14 | EW12: 24 | EX12: 48 | EY12: 10 | EZ12: 58 | FA12: 51 | FD12: 109 | FE12: 54.50 | FG12: 0 | FH12: 0 | FI12: 0 | FJ12: 0 | FK12: 0.00 | FO12: =IF(OR(FM12="",FN12=""),"",FN12/FM12*100) ->  | FP12: 1000 | FQ12: 776 | FR12: 0.00 | FS12: NSO | FT12: NSO | FW12: Name Separated | GE12: 0 | GF12: 0 | GG12: 0 | GH12: 0 | GL12: 200 | GM12: / | GN12: 200 | GO12: 200/200 | GP12: 80 | GQ12: / | GR12: 200 | GS12: 80/200 | GT12: 109 | GU12: / | GV12: 200 | GW12: 109/200 | GX12: 0 | GY12: / | GZ12: 100 | HA12: 0/100 | HJ12: 200 | HK12: 200 | HL12: 200 | HM12: 200 | HN12: 200 | HO12: 0 | HP12: 0 | HQ12: 1000
A13: 1105 | B13: 5 | C13: 5 | D13: =IF(E13>0,$G$4,0) -> 11 | E13: 745 | F13: OBC | G13: 1105 | H13: BHKBK | I13: KJKHK | J13: HKHK | L13: 8 | M13: 11 | N13: 2 | O13: 21 | P13: 10 | Q13: 31 | R13: 55 | U13: 86 | V13: 43.00 | X13: P | Y13: III | Z13: 8 | AA13: 11 | AB13: 2 | AC13: 21 | AD13: 10 | AE13: 31 | AF13: 55 | AI13: 86 | AJ13: 43.00 | AL13: P | AM13: III | AN13: 1 | AO13: 10 | AP13: 10 | AQ13: 10 | AR13: 30 | AS13: 70 | AT13: 20 | AU13: 90 | AV13: 120 | AW13: 10 | AX13: 0 | AY13: 10 | AZ13: 130 | BA13: 65.00 | BC13: G2 | BD13: I | BE13: 2 | BF13: 10 | BG13: 10 | BH13: 10 | BI13: 30 | BJ13: 70 | BK13: 0 | BL13: 70 | BM13: 100 | BN13: 100 | BO13: 0 | BP13: 100 | BQ13: 200 | BR13: 100 | BT13: P | BU13: D | BZ13: 0 | CB13: 0 | CC13: 0 | CD13: 0 | CF13: 0 | CG13: 0 | CH13: 0 | CI13: 0.00 | CM13: 3 | CN13: 10 | CO13: 5 | CP13: 6 | CQ13: 21 | CR13: 50 | CS13: 0 | CT13: 50 | CU13: 71 | CV13: 60 | CW13: 0 | CX13: 60 | CY13: 131 | CZ13: 65.5 | DB13: P | DC13: I | DE13: 0 | DF13: 0 | DG13: 0 | DH13: 0 | DI13: 0 | DJ13: 0 | DK13: 0 | DL13: 0 | DM13: 0 | DN13: 0 | DO13: 0 | DP13: 0 | DQ13: 0 | DU13: 10 | DV13: 10 | DW13: 10 | DX13: 30 | DY13: 70 | DZ13: 0 | EA13: 70 | EB13: 100 | EC13: 100 | ED13: 0 | EE13: 100 | EF13: 200 | EG13: 100.00 | EH13: A | EI13: 0 | EJ13: 0 | EK13: 0 | EL13: 0 | EM13: 0 | EN13: 0 | EO13: 0 | ER13: 0 | ES13: 0.00 | ET13: 0 | EU13: 8 | EV13: 11 | EW13: 19 | EX13: 38 | EY13: 10 | EZ13: 48 | FA13: 55 | FD13: 103 | FE13: 51.50 | FF13: C | FG13: 0 | FH13: 0 | FI13: 0 | FJ13: =SUM(FG13:FI13) -> 0 | FK13: 0.00 | FL13: 0 | FP13: 1000 | FQ13: 633 | FR13: 63.30 | FS13: First | FT13: Passed | FU13: 63.300 | FV13: 2 | FW13: Very Good | FX13: III | FY13: III | FZ13: I | GA13: D | GC13: I | GE13: 0 | GF13: 0 | GG13: 0 | GH13: 0 | GL13: 200 | GM13: / | GN13: 200 | GO13: 200/200 | GP13: 0 | GQ13: / | GR13: 200 | GS13: 0/200 | GT13: 103 | GU13: / | GV13: 200 | GW13: 103/200 | GX13: 0 | GY13: / | GZ13: 100 | HA13: 0/100 | HJ13: 200 | HK13: 200 | HL13: 200 | HM13: 200 | HN13: 0 | HO13: 200 | HP13: 0 | HQ13: 1000
A14: 0 | B14: 6 | C14: 6 | D14: 0 | L14: 0 | M14: 0 | N14: 0 | O14: 0 | P14: 0 | Q14: 0 | R14: 0 | S14: 0 | T14: =SUM(R14:S14) -> 0 | U14: 0 | V14: 0.00 | Z14: 0 | AA14: 0 | AB14: 0 | AC14: 0 | AD14: 0 | AE14: 0 | AF14: 0 | AG14: 0 | AH14: =SUM(AF14:AG14) -> 0 | AI14: 0 | AJ14: 0.00 | AO14: 0 | AP14: 0 | AQ14: 0 | AR14: 0 | AS14: 0 | AT14: 0 | AU14: 0 | AV14: 0 | AW14: 0 | AX14: 0 | AY14: 0 | AZ14: 0 | BA14: 0.00 | BF14: 0 | BG14: 0 | BH14: 0 | BI14: 0 | BJ14: 0 | BK14: 0 | BL14: 0 | BM14: 0 | BN14: 0 | BO14: 0 | BP14: 0 | BQ14: 0 | BR14: 0 | BW14: 0 | BX14: 0 | BY14: 0 | BZ14: 0 | CA14: 0 | CB14: 0 | CC14: 0 | CD14: 0 | CE14: 0 | CF14: 0 | CG14: 0 | CH14: 0 | CI14: 0.00 | CN14: 0 | CO14: 0 | CP14: 0 | CQ14: 0 | CR14: 0 | CS14: 0 | CT14: 0 | CU14: 0 | CV14: 0 | CW14: 0 | CX14: 0 | CY14: 0 | CZ14: 0 | DE14: 0 | DF14: 0 | DG14: 0 | DH14: 0 | DI14: 0 | DJ14: 0 | DK14: 0 | DL14: 0 | DM14: 0 | DN14: 0 | DO14: 0 | DP14: 0 | DQ14: 0 | DU14: 0 | DV14: 0 | DW14: 0 | DX14: 0 | DY14: 0 | DZ14: 0 | EA14: 0 | EB14: 0 | EC14: 0 | ED14: 0 | EE14: 0 | EF14: 0 | EG14: 0.00 | EI14: 0 | EJ14: 0 | EK14: 0 | EL14: 0 | EM14: 0 | EN14: 0 | EO14: 0 | EP14: 0 | EQ14: =SUM(EO14:EP14) -> 0 | ER14: 0 | ES14: 0.00 | EU14: 0 | EV14: 0 | EW14: 0 | EX14: 0 | EY14: 0 | EZ14: 0 | FA14: 0 | FB14: 0 | FC14: =SUM(FA14:FB14) -> 0 | FD14: 0 | FE14: 0.00 | FG14: 0 | FH14: 0 | FI14: 0 | FJ14: 0 | FK14: 0.00 | FP14: 0 | FQ14: 0 | FR14: 0.00 | FW14: 0 | GE14: 0 | GF14: 0 | GG14: 0 | GH14: 0 | GL14: 0 | GM14: / | GN14: 200 | GO14: 0/200 | GP14: 0 | GQ14: / | GR14: 200 | GS14: 0/200 | GT14: 0 | GU14: / | GV14: 200 | GW14: 0/200 | GX14: 0 | GY14: / | GZ14: 100 | HA14: 0/100 | HJ14: 0 | HK14: 0 | HL14: 0 | HM14: 0 | HN14: 0 | HO14: 0 | HP14: 0 | HQ14: 0
A15: 0 | B15: 7 | C15: 7 | D15: 0 | L15: 0 | M15: 0 | N15: 0 | O15: 0 | P15: 0 | Q15: 0 | R15: 0 | S15: 0 | T15: 0 | U15: 0 | V15: 0.00 | W15: =IF(R15="AB","AB",IF(AND(OR(L15="ab",L15="ml"),OR(M15="ab",M15="ml"),OR(O15="ab",O15="ml")),"AB",IF(AND(OR(L15="ab",L15="ml"),OR(O15="ab",O15="ml")),"AB",""))) ->  | Y15: =IF(OR(X15="",X15=0,X15="S",X15="F",X15="AB"),X15,IF(V15>=75,"D",IF(V15>=60,"I",IF(V15>=48,"II",IF(V15>=36,"III",X15))))) ->  | Z15: 0 | AA15: 0 | AB15: 0 | AC15: 0 | AD15: 0 | AE15: 0 | AF15: 0 | AG15: 0 | AH15: 0 | AI15: 0 | AJ15: 0.00 | AO15: 0 | AP15: 0 | AQ15: 0 | AR15: 0 | AS15: 0 | AT15: 0 | AU15: 0 | AV15: 0 | AW15: 0 | AX15: 0 | AY15: 0 | AZ15: 0 | BA15: 0.00 | BF15: 0 | BG15: 0 | BH15: 0 | BI15: 0 | BJ15: 0 | BK15: 0 | BL15: 0 | BM15: 0 | BN15: 0 | BO15: 0 | BP15: 0 | BQ15: 0 | BR15: 0 | BW15: 0 | BX15: 0 | BY15: 0 | BZ15: 0 | CA15: 0 | CB15: 0 | CC15: 0 | CD15: 0 | CE15: 0 | CF15: 0 | CG15: 0 | CH15: 0 | CI15: 0.00 | CN15: 0 | CO15: 0 | CP15: 0 | CQ15: 0 | CR15: 0 | CS15: 0 | CT15: 0 | CU15: 0 | CV15: 0 | CW15: 0 | CX15: 0 | CY15: 0 | CZ15: 0 | DE15: 0 | DF15: 0 | DG15: 0 | DH15: 0 | DI15: 0 | DJ15: 0 | DK15: 0 | DL15: 0 | DM15: 0 | DN15: 0 | DO15: 0 | DP15: 0 | DQ15: 0 | DU15: 0 | DV15: 0 | DW15: 0 | DX15: 0 | DY15: 0 | DZ15: 0 | EA15: 0 | EB15: 0 | EC15: 0 | ED15: 0 | EE15: 0 | EF15: 0 | EG15: 0.00 | EI15: 0 | EJ15: 0 | EK15: 0 | EL15: 0 | EM15: 0 | EN15: 0 | EO15: 0 | EP15: 0 | EQ15: 0 | ER15: 0 | ES15: 0.00 | EU15: 0 | EV15: 0 | EW15: =SUM(EU15:EV15) -> 0 | EX15: 0 | EY15: 0 | EZ15: 0 | FA15: 0 | FB15: 0 | FC15: 0 | FD15: 0 | FE15: 0.00 | FG15: 0 | FH15: 0 | FI15: 0 | FJ15: 0 | FK15: 0.00 | FP15: 0 | FQ15: 0 | FR15: 0.00 | FW15: 0 | GE15: 0 | GF15: 0 | GG15: 0 | GH15: 0 | GL15: 0 | GM15: / | GN15: 200 | GO15: 0/200 | GP15: 0 | GQ15: / | GR15: 200 | GS15: 0/200 | GT15: 0 | GU15: / | GV15: 200 | GW15: 0/200 | GX15: 0 | GY15: / | GZ15: 100 | HA15: 0/100 | HJ15: 0 | HK15: 0 | HL15: 0 | HM15: 0 | HN15: 0 | HO15: 0 | HP15: 0 | HQ15: 0
A16: 0 | B16: 8 | C16: 8 | D16: 0 | L16: 0 | M16: 0 | N16: 0 | O16: 0 | P16: 0 | Q16: 0 | R16: 0 | S16: 0 | T16: 0 | U16: 0 | V16: 0.00 | Z16: 0 | AA16: 0 | AB16: 0 | AC16: 0 | AD16: 0 | AE16: 0 | AF16: 0 | AG16: 0 | AH16: 0 | AI16: 0 | AJ16: 0.00 | AO16: 0 | AP16: 0 | AQ16: 0 | AR16: 0 | AS16: 0 | AT16: 0 | AU16: 0 | AV16: 0 | AW16: 0 | AX16: 0 | AY16: 0 | AZ16: 0 | BA16: 0.00 | BF16: 0 | BG16: 0 | BH16: 0 | BI16: 0 | BJ16: 0 | BK16: 0 | BL16: 0 | BM16: 0 | BN16: 0 | BO16: 0 | BP16: 0 | BQ16: 0 | BR16: 0 | BW16: 0 | BX16: 0 | BY16: 0 | BZ16: 0 | CA16: 0 | CB16: 0 | CC16: 0 | CD16: 0 | CE16: 0 | CF16: 0 | CG16: 0 | CH16: 0 | CI16: 0.00 | CN16: 0 | CO16: 0 | CP16: 0 | CQ16: 0 | CR16: 0 | CS16: 0 | CT16: 0 | CU16: 0 | CV16: 0 | CW16: 0 | CX16: 0 | CY16: 0 | CZ16: 0 | DE16: 0 | DF16: 0 | DG16: 0 | DH16: 0 | DI16: 0 | DJ16: 0 | DK16: 0 | DL16: 0 | DM16: 0 | DN16: 0 | DO16: 0 | DP16: 0 | DQ16: 0 | DU16: 0 | DV16: 0 | DW16: 0 | DX16: 0 | DY16: 0 | DZ16: 0 | EA16: 0 | EB16: 0 | EC16: 0 | ED16: 0 | EE16: 0 | EF16: 0 | EG16: 0.00 | EI16: 0 | EJ16: 0 | EK16: 0 | EL16: 0 | EM16: 0 | EN16: 0 | EO16: 0 | EP16: 0 | EQ16: 0 | ER16: 0 | ES16: 0.00 | EU16: 0 | EV16: 0 | EW16: 0 | EX16: 0 | EY16: 0 | EZ16: 0 | FA16: 0 | FB16: 0 | FC16: 0 | FD16: 0 | FE16: 0.00 | FG16: 0 | FH16: 0 | FI16: 0 | FJ16: 0 | FK16: 0.00 | FP16: 0 | FQ16: 0 | FR16: 0.00 | FW16: 0 | GE16: 0 | GF16: 0 | GG16: 0 | GH16: 0 | GL16: 0 | GM16: / | GN16: 200 | GO16: 0/200 | GP16: 0 | GQ16: / | GR16: 200 | GS16: 0/200 | GT16: 0 | GU16: / | GV16: 200 | GW16: 0/200 | GX16: 0 | GY16: / | GZ16: 100 | HA16: 0/100 | HJ16: 0 | HK16: 0 | HL16: 0 | HM16: 0 | HN16: 0 | HO16: 0 | HP16: 0 | HQ16: 0
A17: 0 | B17: 9 | C17: 9 | D17: 0 | L17: 0 | M17: 0 | N17: 0 | O17: 0 | P17: 0 | Q17: 0 | R17: 0 | S17: 0 | T17: 0 | U17: 0 | V17: 0.00 | Z17: 0 | AA17: 0 | AB17: 0 | AC17: 0 | AD17: 0 | AE17: 0 | AF17: 0 | AG17: 0 | AH17: 0 | AI17: 0 | AJ17: 0.00 | AO17: 0 | AP17: 0 | AQ17: 0 | AR17: 0 | AS17: 0 | AT17: 0 | AU17: 0 | AV17: 0 | AW17: 0 | AX17: 0 | AY17: 0 | AZ17: 0 | BA17: 0.00 | BF17: 0 | BG17: 0 | BH17: 0 | BI17: 0 | BJ17: 0 | BK17: 0 | BL17: 0 | BM17: 0 | BN17: 0 | BO17: 0 | BP17: 0 | BQ17: 0 | BR17: 0 | BW17: 0 | BX17: 0 | BY17: 0 | BZ17: 0 | CA17: 0 | CB17: 0 | CC17: 0 | CD17: 0 | CE17: 0 | CF17: 0 | CG17: 0 | CH17: 0 | CI17: 0.00 | CN17: 0 | CO17: 0 | CP17: 0 | CQ17: 0 | CR17: 0 | CS17: 0 | CT17: 0 | CU17: 0 | CV17: 0 | CW17: 0 | CX17: 0 | CY17: 0 | CZ17: 0 | DE17: 0 | DF17: 0 | DG17: 0 | DH17: 0 | DI17: 0 | DJ17: 0 | DK17: 0 | DL17: 0 | DM17: 0 | DN17: 0 | DO17: 0 | DP17: 0 | DQ17: 0 | DU17: 0 | DV17: 0 | DW17: 0 | DX17: 0 | DY17: 0 | DZ17: 0 | EA17: 0 | EB17: 0 | EC17: 0 | ED17: 0 | EE17: 0 | EF17: 0 | EG17: 0.00 | EI17: 0 | EJ17: 0 | EK17: 0 | EL17: 0 | EM17: 0 | EN17: 0 | EO17: 0 | EP17: 0 | EQ17: 0 | ER17: 0 | ES17: 0.00 | EU17: 0 | EV17: 0 | EW17: 0 | EX17: 0 | EY17: 0 | EZ17: 0 | FA17: 0 | FB17: 0 | FC17: 0 | FD17: 0 | FE17: 0.00 | FG17: 0 | FH17: 0 | FI17: 0 | FJ17: 0 | FK17: 0.00 | FP17: 0 | FQ17: 0 | FR17: 0.00 | FW17: 0 | GE17: 0 | GF17: 0 | GG17: 0 | GH17: 0 | GL17: 0 | GM17: / | GN17: 200 | GO17: 0/200 | GP17: 0 | GQ17: / | GR17: 200 | GS17: 0/200 | GT17: 0 | GU17: / | GV17: 200 | GW17: 0/200 | GX17: 0 | GY17: / | GZ17: 100 | HA17: 0/100 | HJ17: =IF(U17>0,$U$7,0) -> 0 | HK17: =IF(AI17>0,$AI$7,0) -> 0 | HL17: 0 | HM17: 0 | HN17: 0 | HO17: 0 | HP17: 0 | HQ17: =SUM(HJ17:HP17) -> 0
A18: 0 | B18: 10 | C18: 10 | D18: 0 | L18: 0 | M18: 0 | N18: 0 | O18: 0 | P18: 0 | Q18: 0 | R18: 0 | S18: 0 | T18: 0 | U18: 0 | V18: 0.00 | Z18: 0 | AA18: 0 | AB18: 0 | AC18: 0 | AD18: 0 | AE18: 0 | AF18: 0 | AG18: 0 | AH18: 0 | AI18: 0 | AJ18: 0.00 | AO18: 0 | AP18: 0 | AQ18: 0 | AR18: 0 | AS18: 0 | AT18: 0 | AU18: 0 | AV18: 0 | AW18: 0 | AX18: 0 | AY18: 0 | AZ18: 0 | BA18: 0.00 | BF18: 0 | BG18: 0 | BH18: 0 | BI18: 0 | BJ18: 0 | BK18: 0 | BL18: 0 | BM18: 0 | BN18: 0 | BO18: 0 | BP18: 0 | BQ18: 0 | BR18: 0 | BW18: 0 | BX18: 0 | BY18: 0 | BZ18: 0 | CA18: 0 | CB18: 0 | CC18: 0 | CD18: 0 | CE18: 0 | CF18: 0 | CG18: 0 | CH18: 0 | CI18: 0.00 | CN18: 0 | CO18: 0 | CP18: 0 | CQ18: 0 | CR18: 0 | CS18: 0 | CT18: 0 | CU18: 0 | CV18: 0 | CW18: 0 | CX18: 0 | CY18: 0 | CZ18: 0 | DE18: 0 | DF18: 0 | DG18: 0 | DH18: 0 | DI18: 0 | DJ18: 0 | DK18: 0 | DL18: 0 | DM18: 0 | DN18: 0 | DO18: 0 | DP18: 0 | DQ18: 0 | DU18: 0 | DV18: 0 | DW18: 0 | DX18: 0 | DY18: 0 | DZ18: 0 | EA18: 0 | EB18: 0 | EC18: 0 | ED18: 0 | EE18: 0 | EF18: 0 | EG18: 0.00 | EI18: 0 | EJ18: 0 | EK18: 0 | EL18: 0 | EM18: 0 | EN18: 0 | EO18: 0 | EP18: 0 | EQ18: 0 | ER18: 0 | ES18: 0.00 | EU18: 0 | EV18: 0 | EW18: 0 | EX18: 0 | EY18: 0 | EZ18: 0 | FA18: 0 | FB18: 0 | FC18: 0 | FD18: 0 | FE18: 0.00 | FG18: 0 | FH18: 0 | FI18: 0 | FJ18: 0 | FK18: 0.00 | FP18: 0 | FQ18: 0 | FR18: 0.00 | FW18: 0 | GE18: 0 | GF18: 0 | GG18: 0 | GH18: 0 | GL18: 0 | GM18: / | GN18: 200 | GO18: 0/200 | GP18: 0 | GQ18: / | GR18: 200 | GS18: 0/200 | GT18: 0 | GU18: / | GV18: 200 | GW18: 0/200 | GX18: 0 | GY18: / | GZ18: 100 | HA18: 0/100 | HJ18: 0 | HK18: 0 | HL18: 0 | HM18: 0 | HN18: 0 | HO18: 0 | HP18: 0 | HQ18: 0
A19: 0 | B19: 11 | C19: 11 | D19: 0 | L19: 0 | M19: 0 | N19: 0 | O19: 0 | P19: 0 | Q19: 0 | R19: 0 | S19: 0 | T19: 0 | U19: 0 | V19: 0.00 | Z19: 0 | AA19: 0 | AB19: 0 | AC19: 0 | AD19: 0 | AE19: 0 | AF19: 0 | AG19: 0 | AH19: 0 | AI19: 0 | AJ19: 0.00 | AO19: 0 | AP19: 0 | AQ19: 0 | AR19: 0 | AS19: 0 | AT19: 0 | AU19: 0 | AV19: 0 | AW19: 0 | AX19: 0 | AY19: 0 | AZ19: 0 | BA19: 0.00 | BF19: 0 | BG19: 0 | BH19: 0 | BI19: 0 | BJ19: 0 | BK19: 0 | BL19: 0 | BM19: 0 | BN19: 0 | BO19: 0 | BP19: 0 | BQ19: 0 | BR19: 0 | BW19: 0 | BX19: 0 | BY19: 0 | BZ19: 0 | CA19: 0 | CB19: 0 | CC19: 0 | CD19: 0 | CE19: 0 | CF19: 0 | CG19: 0 | CH19: 0 | CI19: 0.00 | CN19: 0 | CO19: 0 | CP19: 0 | CQ19: 0 | CR19: 0 | CS19: 0 | CT19: 0 | CU19: 0 | CV19: 0 | CW19: 0 | CX19: 0 | CY19: 0 | CZ19: 0 | DE19: 0 | DF19: 0 | DG19: 0 | DH19: 0 | DI19: 0 | DJ19: 0 | DK19: 0 | DL19: 0 | DM19: 0 | DN19: 0 | DO19: 0 | DP19: 0 | DQ19: 0 | DU19: 0 | DV19: 0 | DW19: 0 | DX19: 0 | DY19: 0 | DZ19: 0 | EA19: 0 | EB19: 0 | EC19: 0 | ED19: 0 | EE19: 0 | EF19: 0 | EG19: 0.00 | EI19: 0 | EJ19: 0 | EK19: 0 | EL19: 0 | EM19: 0 | EN19: 0 | EO19: 0 | EP19: 0 | EQ19: 0 | ER19: 0 | ES19: 0.00 | EU19: 0 | EV19: 0 | EW19: 0 | EX19: 0 | EY19: 0 | EZ19: 0 | FA19: 0 | FB19: 0 | FC19: 0 | FD19: 0 | FE19: 0.00 | FG19: 0 | FH19: 0 | FI19: 0 | FJ19: 0 | FK19: 0.00 | FP19: 0 | FQ19: 0 | FR19: 0.00 | FW19: 0 | GE19: 0 | GF19: 0 | GG19: 0 | GH19: 0 | GL19: 0 | GM19: / | GN19: 200 | GO19: 0/200 | GP19: 0 | GQ19: / | GR19: 200 | GS19: 0/200 | GT19: 0 | GU19: / | GV19: 200 | GW19: 0/200 | GX19: 0 | GY19: / | GZ19: 100 | HA19: 0/100 | HJ19: 0 | HK19: 0 | HL19: 0 | HM19: 0 | HN19: 0 | HO19: 0 | HP19: 0 | HQ19: 0
A20: 0 | B20: 12 | C20: 12 | D20: 0 | L20: 0 | M20: 0 | N20: 0 | O20: 0 | P20: 0 | Q20: 0 | R20: 0 | S20: 0 | T20: 0 | U20: 0 | V20: 0.00 | Z20: 0 | AA20: 0 | AB20: 0 | AC20: 0 | AD20: 0 | AE20: 0 | AF20: 0 | AG20: 0 | AH20: 0 | AI20: 0 | AJ20: 0.00 | AO20: 0 | AP20: 0 | AQ20: 0 | AR20: 0 | AS20: 0 | AT20: 0 | AU20: 0 | AV20: 0 | AW20: 0 | AX20: 0 | AY20: 0 | AZ20: 0 | BA20: 0.00 | BF20: 0 | BG20: 0 | BH20: 0 | BI20: 0 | BJ20: 0 | BK20: 0 | BL20: 0 | BM20: 0 | BN20: 0 | BO20: 0 | BP20: 0 | BQ20: 0 | BR20: 0 | BW20: 0 | BX20: 0 | BY20: 0 | BZ20: 0 | CA20: 0 | CB20: 0 | CC20: 0 | CD20: 0 | CE20: 0 | CF20: 0 | CG20: 0 | CH20: 0 | CI20: 0.00 | CN20: 0 | CO20: 0 | CP20: 0 | CQ20: 0 | CR20: 0 | CS20: 0 | CT20: 0 | CU20: 0 | CV20: 0 | CW20: 0 | CX20: 0 | CY20: 0 | CZ20: 0 | DE20: 0 | DF20: 0 | DG20: 0 | DH20: 0 | DI20: 0 | DJ20: 0 | DK20: 0 | DL20: 0 | DM20: 0 | DN20: 0 | DO20: 0 | DP20: 0 | DQ20: 0 | DU20: 0 | DV20: 0 | DW20: 0 | DX20: 0 | DY20: 0 | DZ20: 0 | EA20: 0 | EB20: 0 | EC20: 0 | ED20: 0 | EE20: 0 | EF20: 0 | EG20: 0.00 | EI20: 0 | EJ20: 0 | EK20: 0 | EL20: 0 | EM20: 0 | EN20: 0 | EO20: 0 | EP20: 0 | EQ20: 0 | ER20: 0 | ES20: 0.00 | EU20: 0 | EV20: 0 | EW20: 0 | EX20: 0 | EY20: 0 | EZ20: 0 | FA20: 0 | FB20: 0 | FC20: 0 | FD20: 0 | FE20: 0.00 | FG20: 0 | FH20: 0 | FI20: 0 | FJ20: 0 | FK20: 0.00 | FP20: 0 | FQ20: 0 | FR20: 0.00 | FW20: 0 | GE20: 0 | GF20: 0 | GG20: 0 | GH20: 0 | GL20: 0 | GM20: / | GN20: 200 | GO20: 0/200 | GP20: 0 | GQ20: / | GR20: 200 | GS20: 0/200 | GT20: 0 | GU20: / | GV20: 200 | GW20: 0/200 | GX20: 0 | GY20: / | GZ20: 100 | HA20: 0/100 | HJ20: 0 | HK20: 0 | HL20: 0 | HM20: 0 | HN20: 0 | HO20: 0 | HP20: 0 | HQ20: 0
A21: 0 | B21: 13 | C21: 13 | D21: 0 | L21: 0 | M21: 0 | N21: 0 | O21: 0 | P21: 0 | Q21: 0 | R21: 0 | S21: 0 | T21: 0 | U21: 0 | V21: 0.00 | Z21: 0 | AA21: 0 | AB21: 0 | AC21: 0 | AD21: 0 | AE21: 0 | AF21: 0 | AG21: 0 | AH21: 0 | AI21: 0 | AJ21: 0.00 | AO21: 0 | AP21: 0 | AQ21: 0 | AR21: 0 | AS21: 0 | AT21: 0 | AU21: 0 | AV21: 0 | AW21: 0 | AX21: 0 | AY21: 0 | AZ21: 0 | BA21: 0.00 | BF21: 0 | BG21: 0 | BH21: 0 | BI21: 0 | BJ21: 0 | BK21: 0 | BL21: 0 | BM21: 0 | BN21: 0 | BO21: 0 | BP21: 0 | BQ21: 0 | BR21: 0 | BW21: 0 | BX21: 0 | BY21: 0 | BZ21: 0 | CA21: 0 | CB21: 0 | CC21: 0 | CD21: 0 | CE21: 0 | CF21: 0 | CG21: 0 | CH21: 0 | CI21: 0.00 | CN21: 0 | CO21: 0 | CP21: 0 | CQ21: 0 | CR21: 0 | CS21: 0 | CT21: 0 | CU21: 0 | CV21: 0 | CW21: 0 | CX21: 0 | CY21: 0 | CZ21: 0 | DE21: 0 | DF21: 0 | DG21: 0 | DH21: 0 | DI21: 0 | DJ21: 0 | DK21: 0 | DL21: 0 | DM21: 0 | DN21: 0 | DO21: 0 | DP21: 0 | DQ21: 0 | DU21: 0 | DV21: 0 | DW21: 0 | DX21: 0 | DY21: 0 | DZ21: 0 | EA21: 0 | EB21: 0 | EC21: 0 | ED21: 0 | EE21: 0 | EF21: 0 | EG21: 0.00 | EI21: 0 | EJ21: 0 | EK21: 0 | EL21: 0 | EM21: 0 | EN21: 0 | EO21: 0 | EP21: 0 | EQ21: 0 | ER21: 0 | ES21: 0.00 | EU21: 0 | EV21: 0 | EW21: 0 | EX21: 0 | EY21: 0 | EZ21: 0 | FA21: 0 | FB21: 0 | FC21: 0 | FD21: 0 | FE21: 0.00 | FG21: 0 | FH21: 0 | FI21: 0 | FJ21: 0 | FK21: 0.00 | FP21: 0 | FQ21: 0 | FR21: 0.00 | FW21: 0 | GE21: 0 | GF21: 0 | GG21: 0 | GH21: 0 | GL21: 0 | GM21: / | GN21: 200 | GO21: 0/200 | GP21: 0 | GQ21: / | GR21: 200 | GS21: 0/200 | GT21: 0 | GU21: / | GV21: 200 | GW21: 0/200 | GX21: 0 | GY21: / | GZ21: 100 | HA21: 0/100 | HJ21: 0 | HK21: 0 | HL21: 0 | HM21: 0 | HN21: 0 | HO21: 0 | HP21: 0 | HQ21: 0
A22: 0 | B22: 14 | C22: 14 | D22: 0 | L22: 0 | M22: 0 | N22: 0 | O22: 0 | P22: 0 | Q22: 0 | R22: 0 | S22: 0 | T22: 0 | U22: 0 | V22: 0.00 | Z22: 0 | AA22: 0 | AB22: 0 | AC22: 0 | AD22: 0 | AE22: 0 | AF22: 0 | AG22: 0 | AH22: 0 | AI22: 0 | AJ22: 0.00 | AO22: 0 | AP22: 0 | AQ22: 0 | AR22: 0 | AS22: 0 | AT22: 0 | AU22: 0 | AV22: 0 | AW22: 0 | AX22: 0 | AY22: 0 | AZ22: 0 | BA22: 0.00 | BF22: 0 | BG22: 0 | BH22: 0 | BI22: 0 | BJ22: 0 | BK22: 0 | BL22: 0 | BM22: 0 | BN22: 0 | BO22: 0 | BP22: 0 | BQ22: 0 | BR22: 0 | BW22: 0 | BX22: 0 | BY22: 0 | BZ22: 0 | CA22: 0 | CB22: 0 | CC22: 0 | CD22: 0 | CE22: 0 | CF22: 0 | CG22: 0 | CH22: 0 | CI22: 0.00 | CN22: 0 | CO22: 0 | CP22: 0 | CQ22: 0 | CR22: 0 | CS22: 0 | CT22: 0 | CU22: 0 | CV22: 0 | CW22: 0 | CX22: 0 | CY22: 0 | CZ22: 0 | DE22: 0 | DF22: 0 | DG22: 0 | DH22: 0 | DI22: 0 | DJ22: 0 | DK22: 0 | DL22: 0 | DM22: 0 | DN22: 0 | DO22: 0 | DP22: 0 | DQ22: 0 | DU22: 0 | DV22: 0 | DW22: 0 | DX22: 0 | DY22: 0 | DZ22: 0 | EA22: 0 | EB22: 0 | EC22: 0 | ED22: 0 | EE22: 0 | EF22: 0 | EG22: 0.00 | EI22: 0 | EJ22: 0 | EK22: 0 | EL22: 0 | EM22: 0 | EN22: 0 | EO22: 0 | EP22: 0 | EQ22: 0 | ER22: 0 | ES22: 0.00 | EU22: 0 | EV22: 0 | EW22: 0 | EX22: 0 | EY22: 0 | EZ22: 0 | FA22: 0 | FB22: 0 | FC22: 0 | FD22: 0 | FE22: 0.00 | FG22: 0 | FH22: 0 | FI22: 0 | FJ22: 0 | FK22: 0.00 | FP22: 0 | FQ22: 0 | FR22: 0.00 | FW22: 0 | GE22: 0 | GF22: 0 | GG22: 0 | GH22: 0 | GL22: 0 | GM22: / | GN22: 200 | GO22: 0/200 | GP22: 0 | GQ22: / | GR22: 200 | GS22: 0/200 | GT22: 0 | GU22: / | GV22: 200 | GW22: 0/200 | GX22: 0 | GY22: / | GZ22: 100 | HA22: 0/100 | HJ22: 0 | HK22: 0 | HL22: 0 | HM22: 0 | HN22: 0 | HO22: 0 | HP22: 0 | HQ22: 0
A23: 0 | B23: 15 | C23: 15 | D23: 0 | L23: 0 | M23: 0 | N23: 0 | O23: 0 | P23: 0 | Q23: 0 | R23: 0 | S23: 0 | T23: 0 | U23: 0 | V23: 0.00 | Z23: 0 | AA23: 0 | AB23: 0 | AC23: 0 | AD23: 0 | AE23: 0 | AF23: 0 | AG23: 0 | AH23: 0 | AI23: 0 | AJ23: 0.00 | AO23: 0 | AP23: 0 | AQ23: 0 | AR23: 0 | AS23: 0 | AT23: 0 | AU23: 0 | AV23: 0 | AW23: 0 | AX23: 0 | AY23: 0 | AZ23: 0 | BA23: 0.00 | BF23: 0 | BG23: 0 | BH23: 0 | BI23: 0 | BJ23: 0 | BK23: 0 | BL23: 0 | BM23: 0 | BN23: 0 | BO23: 0 | BP23: 0 | BQ23: 0 | BR23: 0 | BW23: 0 | BX23: 0 | BY23: 0 | BZ23: 0 | CA23: 0 | CB23: 0 | CC23: 0 | CD23: 0 | CE23: 0 | CF23: 0 | CG23: 0 | CH23: 0 | CI23: 0.00 | CN23: 0 | CO23: 0 | CP23: 0 | CQ23: 0 | CR23: 0 | CS23: 0 | CT23: 0 | CU23: 0 | CV23: 0 | CW23: 0 | CX23: 0 | CY23: 0 | CZ23: 0 | DE23: 0 | DF23: 0 | DG23: 0 | DH23: 0 | DI23: 0 | DJ23: 0 | DK23: 0 | DL23: 0 | DM23: 0 | DN23: 0 | DO23: 0 | DP23: 0 | DQ23: 0 | DU23: 0 | DV23: 0 | DW23: 0 | DX23: 0 | DY23: 0 | DZ23: 0 | EA23: 0 | EB23: 0 | EC23: 0 | ED23: 0 | EE23: 0 | EF23: 0 | EG23: 0.00 | EI23: 0 | EJ23: 0 | EK23: 0 | EL23: 0 | EM23: 0 | EN23: 0 | EO23: 0 | EP23: 0 | EQ23: 0 | ER23: 0 | ES23: 0.00 | EU23: 0 | EV23: 0 | EW23: 0 | EX23: 0 | EY23: 0 | EZ23: 0 | FA23: 0 | FB23: 0 | FC23: 0 | FD23: 0 | FE23: 0.00 | FG23: 0 | FH23: 0 | FI23: 0 | FJ23: 0 | FK23: 0.00 | FP23: 0 | FQ23: 0 | FR23: 0.00 | FW23: 0 | GE23: 0 | GF23: 0 | GG23: 0 | GH23: 0 | GL23: 0 | GM23: / | GN23: 200 | GO23: 0/200 | GP23: 0 | GQ23: / | GR23: 200 | GS23: 0/200 | GT23: 0 | GU23: / | GV23: 200 | GW23: 0/200 | GX23: 0 | GY23: / | GZ23: 100 | HA23: 0/100 | HJ23: 0 | HK23: 0 | HL23: 0 | HM23: 0 | HN23: 0 | HO23: 0 | HP23: 0 | HQ23: 0
A24: 0 | B24: 16 | C24: 16 | D24: 0 | L24: 0 | M24: 0 | N24: 0 | O24: 0 | P24: 0 | Q24: 0 | R24: 0 | S24: 0 | T24: 0 | U24: 0 | V24: 0.00 | Z24: 0 | AA24: 0 | AB24: 0 | AC24: 0 | AD24: 0 | AE24: 0 | AF24: 0 | AG24: 0 | AH24: 0 | AI24: 0 | AJ24: 0.00 | AO24: 0 | AP24: 0 | AQ24: 0 | AR24: 0 | AS24: 0 | AT24: 0 | AU24: 0 | AV24: 0 | AW24: 0 | AX24: 0 | AY24: 0 | AZ24: 0 | BA24: 0.00 | BF24: 0 | BG24: 0 | BH24: 0 | BI24: 0 | BJ24: 0 | BK24: 0 | BL24: 0 | BM24: 0 | BN24: 0 | BO24: 0 | BP24: 0 | BQ24: 0 | BR24: 0 | BW24: 0 | BX24: 0 | BY24: 0 | BZ24: 0 | CA24: 0 | CB24: 0 | CC24: 0 | CD24: 0 | CE24: 0 | CF24: 0 | CG24: 0 | CH24: 0 | CI24: 0.00 | CN24: 0 | CO24: 0 | CP24: 0 | CQ24: 0 | CR24: 0 | CS24: 0 | CT24: 0 | CU24: 0 | CV24: 0 | CW24: 0 | CX24: 0 | CY24: 0 | CZ24: 0 | DE24: 0 | DF24: 0 | DG24: 0 | DH24: 0 | DI24: 0 | DJ24: 0 | DK24: 0 | DL24: 0 | DM24: 0 | DN24: 0 | DO24: 0 | DP24: 0 | DQ24: 0 | DU24: 0 | DV24: 0 | DW24: 0 | DX24: 0 | DY24: 0 | DZ24: 0 | EA24: 0 | EB24: 0 | EC24: 0 | ED24: 0 | EE24: 0 | EF24: 0 | EG24: 0.00 | EI24: 0 | EJ24: 0 | EK24: 0 | EL24: 0 | EM24: 0 | EN24: 0 | EO24: 0 | EP24: 0 | EQ24: 0 | ER24: 0 | ES24: 0.00 | EU24: 0 | EV24: 0 | EW24: 0 | EX24: 0 | EY24: 0 | EZ24: 0 | FA24: 0 | FB24: 0 | FC24: 0 | FD24: 0 | FE24: 0.00 | FG24: 0 | FH24: 0 | FI24: 0 | FJ24: 0 | FK24: 0.00 | FP24: 0 | FQ24: 0 | FR24: 0.00 | FW24: 0 | GE24: 0 | GF24: 0 | GG24: 0 | GH24: 0 | GL24: 0 | GM24: / | GN24: 200 | GO24: 0/200 | GP24: 0 | GQ24: / | GR24: 200 | GS24: 0/200 | GT24: 0 | GU24: / | GV24: 200 | GW24: 0/200 | GX24: 0 | GY24: / | GZ24: 100 | HA24: 0/100 | HJ24: 0 | HK24: 0 | HL24: 0 | HM24: 0 | HN24: 0 | HO24: 0 | HP24: 0 | HQ24: 0
A25: 0 | B25: 17 | C25: 17 | D25: 0 | L25: 0 | M25: 0 | N25: 0 | O25: 0 | P25: 0 | Q25: 0 | R25: 0 | S25: 0 | T25: 0 | U25: 0 | V25: 0.00 | Z25: 0 | AA25: 0 | AB25: 0 | AC25: 0 | AD25: 0 | AE25: 0 | AF25: 0 | AG25: 0 | AH25: 0 | AI25: 0 | AJ25: 0.00 | AO25: 0 | AP25: 0 | AQ25: 0 | AR25: 0 | AS25: 0 | AT25: 0 | AU25: 0 | AV25: 0 | AW25: 0 | AX25: 0 | AY25: 0 | AZ25: 0 | BA25: 0.00 | BF25: 0 | BG25: 0 | BH25: 0 | BI25: 0 | BJ25: 0 | BK25: 0 | BL25: 0 | BM25: 0 | BN25: 0 | BO25: 0 | BP25: 0 | BQ25: 0 | BR25: 0 | BW25: 0 | BX25: 0 | BY25: 0 | BZ25: 0 | CA25: 0 | CB25: 0 | CC25: 0 | CD25: 0 | CE25: 0 | CF25: 0 | CG25: 0 | CH25: 0 | CI25: 0.00 | CN25: 0 | CO25: 0 | CP25: 0 | CQ25: 0 | CR25: 0 | CS25: 0 | CT25: 0 | CU25: 0 | CV25: 0 | CW25: 0 | CX25: 0 | CY25: 0 | CZ25: 0 | DE25: 0 | DF25: 0 | DG25: 0 | DH25: 0 | DI25: 0 | DJ25: 0 | DK25: 0 | DL25: 0 | DM25: 0 | DN25: 0 | DO25: 0 | DP25: 0 | DQ25: 0 | DU25: 0 | DV25: 0 | DW25: 0 | DX25: 0 | DY25: 0 | DZ25: 0 | EA25: 0 | EB25: 0 | EC25: 0 | ED25: 0 | EE25: 0 | EF25: 0 | EG25: 0.00 | EI25: 0 | EJ25: 0 | EK25: 0 | EL25: 0 | EM25: 0 | EN25: 0 | EO25: 0 | EP25: 0 | EQ25: 0 | ER25: 0 | ES25: 0.00 | EU25: 0 | EV25: 0 | EW25: 0 | EX25: 0 | EY25: 0 | EZ25: 0 | FA25: 0 | FB25: 0 | FC25: 0 | FD25: 0 | FE25: 0.00 | FG25: 0 | FH25: 0 | FI25: 0 | FJ25: 0 | FK25: 0.00 | FP25: 0 | FQ25: 0 | FR25: 0.00 | FW25: 0 | GE25: 0 | GF25: 0 | GG25: 0 | GH25: 0 | GL25: 0 | GM25: / | GN25: 200 | GO25: 0/200 | GP25: 0 | GQ25: / | GR25: 200 | GS25: 0/200 | GT25: 0 | GU25: / | GV25: 200 | GW25: 0/200 | GX25: 0 | GY25: / | GZ25: 100 | HA25: 0/100 | HJ25: 0 | HK25: 0 | HL25: 0 | HM25: 0 | HN25: 0 | HO25: 0 | HP25: 0 | HQ25: 0
A26: 0 | B26: 18 | C26: 18 | D26: 0 | L26: 0 | M26: 0 | N26: 0 | O26: 0 | P26: 0 | Q26: 0 | R26: 0 | S26: 0 | T26: 0 | U26: 0 | V26: 0.00 | Z26: 0 | AA26: 0 | AB26: 0 | AC26: 0 | AD26: 0 | AE26: 0 | AF26: 0 | AG26: 0 | AH26: 0 | AI26: 0 | AJ26: 0.00 | AO26: 0 | AP26: 0 | AQ26: 0 | AR26: 0 | AS26: 0 | AT26: 0 | AU26: 0 | AV26: 0 | AW26: 0 | AX26: 0 | AY26: 0 | AZ26: 0 | BA26: 0.00 | BF26: 0 | BG26: 0 | BH26: 0 | BI26: 0 | BJ26: 0 | BK26: 0 | BL26: 0 | BM26: 0 | BN26: 0 | BO26: 0 | BP26: 0 | BQ26: 0 | BR26: 0 | BW26: 0 | BX26: 0 | BY26: 0 | BZ26: 0 | CA26: 0 | CB26: 0 | CC26: 0 | CD26: 0 | CE26: 0 | CF26: 0 | CG26: 0 | CH26: 0 | CI26: 0.00 | CN26: 0 | CO26: 0 | CP26: 0 | CQ26: 0 | CR26: 0 | CS26: 0 | CT26: 0 | CU26: 0 | CV26: 0 | CW26: 0 | CX26: 0 | CY26: 0 | CZ26: 0 | DE26: 0 | DF26: 0 | DG26: 0 | DH26: 0 | DI26: 0 | DJ26: 0 | DK26: 0 | DL26: 0 | DM26: 0 | DN26: 0 | DO26: 0 | DP26: 0 | DQ26: 0 | DU26: 0 | DV26: 0 | DW26: 0 | DX26: 0 | DY26: 0 | DZ26: 0 | EA26: 0 | EB26: 0 | EC26: 0 | ED26: 0 | EE26: 0 | EF26: 0 | EG26: 0.00 | EI26: 0 | EJ26: 0 | EK26: 0 | EL26: 0 | EM26: 0 | EN26: 0 | EO26: 0 | EP26: 0 | EQ26: 0 | ER26: 0 | ES26: 0.00 | EU26: 0 | EV26: 0 | EW26: 0 | EX26: 0 | EY26: 0 | EZ26: 0 | FA26: 0 | FB26: 0 | FC26: 0 | FD26: 0 | FE26: 0.00 | FG26: 0 | FH26: 0 | FI26: 0 | FJ26: 0 | FK26: 0.00 | FP26: 0 | FQ26: 0 | FR26: 0.00 | FW26: 0 | GE26: 0 | GF26: 0 | GG26: 0 | GH26: 0 | GL26: 0 | GM26: / | GN26: 200 | GO26: 0/200 | GP26: 0 | GQ26: / | GR26: 200 | GS26: 0/200 | GT26: 0 | GU26: / | GV26: 200 | GW26: 0/200 | GX26: 0 | GY26: / | GZ26: 100 | HA26: 0/100 | HJ26: 0 | HK26: 0 | HL26: 0 | HM26: 0 | HN26: 0 | HO26: 0 | HP26: 0 | HQ26: 0
A27: 0 | B27: 19 | C27: 19 | D27: 0 | L27: 0 | M27: 0 | N27: 0 | O27: 0 | P27: 0 | Q27: 0 | R27: 0 | S27: 0 | T27: 0 | U27: 0 | V27: 0.00 | Z27: 0 | AA27: 0 | AB27: 0 | AC27: 0 | AD27: 0 | AE27: 0 | AF27: 0 | AG27: 0 | AH27: 0 | AI27: 0 | AJ27: 0.00 | AO27: 0 | AP27: 0 | AQ27: 0 | AR27: 0 | AS27: 0 | AT27: 0 | AU27: 0 | AV27: 0 | AW27: 0 | AX27: 0 | AY27: 0 | AZ27: 0 | BA27: 0.00 | BF27: 0 | BG27: 0 | BH27: 0 | BI27: 0 | BJ27: 0 | BK27: 0 | BL27: 0 | BM27: 0 | BN27: 0 | BO27: 0 | BP27: 0 | BQ27: 0 | BR27: 0 | BW27: 0 | BX27: 0 | BY27: 0 | BZ27: 0 | CA27: 0 | CB27: 0 | CC27: 0 | CD27: 0 | CE27: 0 | CF27: 0 | CG27: 0 | CH27: 0 | CI27: 0.00 | CN27: 0 | CO27: 0 | CP27: 0 | CQ27: 0 | CR27: 0 | CS27: 0 | CT27: 0 | CU27: 0 | CV27: 0 | CW27: 0 | CX27: 0 | CY27: 0 | CZ27: 0 | DE27: 0 | DF27: 0 | DG27: 0 | DH27: 0 | DI27: 0 | DJ27: 0 | DK27: 0 | DL27: 0 | DM27: 0 | DN27: 0 | DO27: 0 | DP27: 0 | DQ27: 0 | DU27: 0 | DV27: 0 | DW27: 0 | DX27: 0 | DY27: 0 | DZ27: 0 | EA27: 0 | EB27: 0 | EC27: 0 | ED27: 0 | EE27: 0 | EF27: 0 | EG27: 0.00 | EI27: 0 | EJ27: 0 | EK27: 0 | EL27: 0 | EM27: 0 | EN27: 0 | EO27: 0 | EP27: 0 | EQ27: 0 | ER27: 0 | ES27: 0.00 | EU27: 0 | EV27: 0 | EW27: 0 | EX27: 0 | EY27: 0 | EZ27: 0 | FA27: 0 | FB27: 0 | FC27: 0 | FD27: 0 | FE27: 0.00 | FG27: 0 | FH27: 0 | FI27: 0 | FJ27: 0 | FK27: 0.00 | FP27: 0 | FQ27: 0 | FR27: 0.00 | FW27: 0 | GE27: 0 | GF27: 0 | GG27: 0 | GH27: 0 | GL27: 0 | GM27: / | GN27: 200 | GO27: 0/200 | GP27: 0 | GQ27: / | GR27: 200 | GS27: 0/200 | GT27: 0 | GU27: / | GV27: 200 | GW27: 0/200 | GX27: 0 | GY27: / | GZ27: 100 | HA27: 0/100 | HJ27: 0 | HK27: 0 | HL27: 0 | HM27: 0 | HN27: 0 | HO27: 0 | HP27: 0 | HQ27: 0
A28: 0 | B28: 20 | C28: 20 | D28: 0 | L28: 0 | M28: 0 | N28: 0 | O28: 0 | P28: 0 | Q28: 0 | R28: 0 | S28: 0 | T28: 0 | U28: 0 | V28: 0.00 | Z28: 0 | AA28: 0 | AB28: 0 | AC28: 0 | AD28: 0 | AE28: 0 | AF28: 0 | AG28: 0 | AH28: 0 | AI28: 0 | AJ28: 0.00 | AO28: 0 | AP28: 0 | AQ28: 0 | AR28: 0 | AS28: 0 | AT28: 0 | AU28: 0 | AV28: 0 | AW28: 0 | AX28: 0 | AY28: 0 | AZ28: 0 | BA28: 0.00 | BF28: 0 | BG28: 0 | BH28: 0 | BI28: 0 | BJ28: 0 | BK28: 0 | BL28: 0 | BM28: 0 | BN28: 0 | BO28: 0 | BP28: 0 | BQ28: 0 | BR28: 0 | BW28: 0 | BX28: 0 | BY28: 0 | BZ28: 0 | CA28: 0 | CB28: 0 | CC28: 0 | CD28: 0 | CE28: 0 | CF28: 0 | CG28: 0 | CH28: 0 | CI28: 0.00 | CN28: 0 | CO28: 0 | CP28: 0 | CQ28: 0 | CR28: 0 | CS28: 0 | CT28: 0 | CU28: 0 | CV28: 0 | CW28: 0 | CX28: 0 | CY28: 0 | CZ28: 0 | DE28: 0 | DF28: 0 | DG28: 0 | DH28: 0 | DI28: 0 | DJ28: 0 | DK28: 0 | DL28: 0 | DM28: 0 | DN28: 0 | DO28: 0 | DP28: 0 | DQ28: 0 | DU28: 0 | DV28: 0 | DW28: 0 | DX28: 0 | DY28: 0 | DZ28: 0 | EA28: 0 | EB28: 0 | EC28: 0 | ED28: 0 | EE28: 0 | EF28: 0 | EG28: 0.00 | EI28: 0 | EJ28: 0 | EK28: 0 | EL28: 0 | EM28: 0 | EN28: 0 | EO28: 0 | EP28: 0 | EQ28: 0 | ER28: 0 | ES28: 0.00 | EU28: 0 | EV28: 0 | EW28: 0 | EX28: 0 | EY28: 0 | EZ28: 0 | FA28: 0 | FB28: 0 | FC28: 0 | FD28: 0 | FE28: 0.00 | FG28: 0 | FH28: 0 | FI28: 0 | FJ28: 0 | FK28: 0.00 | FP28: 0 | FQ28: 0 | FR28: 0.00 | FW28: 0 | GE28: 0 | GF28: 0 | GG28: 0 | GH28: 0 | GL28: 0 | GM28: / | GN28: 200 | GO28: 0/200 | GP28: 0 | GQ28: / | GR28: 200 | GS28: 0/200 | GT28: 0 | GU28: / | GV28: 200 | GW28: 0/200 | GX28: 0 | GY28: / | GZ28: 100 | HA28: 0/100 | HJ28: 0 | HK28: 0 | HL28: 0 | HM28: 0 | HN28: 0 | HO28: 0 | HP28: 0 | HQ28: 0
A29: 0 | B29: 21 | C29: 21 | D29: 0 | L29: 0 | M29: 0 | N29: 0 | O29: 0 | P29: 0 | Q29: 0 | R29: 0 | S29: 0 | T29: 0 | U29: 0 | V29: 0.00 | Z29: 0 | AA29: 0 | AB29: 0 | AC29: 0 | AD29: 0 | AE29: 0 | AF29: 0 | AG29: 0 | AH29: 0 | AI29: 0 | AJ29: 0.00 | AO29: 0 | AP29: 0 | AQ29: 0 | AR29: 0 | AS29: 0 | AT29: 0 | AU29: 0 | AV29: 0 | AW29: 0 | AX29: 0 | AY29: 0 | AZ29: 0 | BA29: 0.00 | BF29: 0 | BG29: 0 | BH29: 0 | BI29: 0 | BJ29: 0 | BK29: 0 | BL29: 0 | BM29: 0 | BN29: 0 | BO29: 0 | BP29: 0 | BQ29: 0 | BR29: 0 | BW29: 0 | BX29: 0 | BY29: 0 | BZ29: 0 | CA29: 0 | CB29: 0 | CC29: 0 | CD29: 0 | CE29: 0 | CF29: 0 | CG29: 0 | CH29: 0 | CI29: 0.00 | CN29: 0 | CO29: 0 | CP29: 0 | CQ29: 0 | CR29: 0 | CS29: 0 | CT29: 0 | CU29: 0 | CV29: 0 | CW29: 0 | CX29: 0 | CY29: 0 | CZ29: 0 | DE29: 0 | DF29: 0 | DG29: 0 | DH29: 0 | DI29: 0 | DJ29: 0 | DK29: 0 | DL29: 0 | DM29: 0 | DN29: 0 | DO29: 0 | DP29: 0 | DQ29: 0 | DU29: 0 | DV29: 0 | DW29: 0 | DX29: 0 | DY29: 0 | DZ29: 0 | EA29: 0 | EB29: 0 | EC29: 0 | ED29: 0 | EE29: 0 | EF29: 0 | EG29: 0.00 | EI29: 0 | EJ29: 0 | EK29: 0 | EL29: 0 | EM29: 0 | EN29: 0 | EO29: 0 | EP29: 0 | EQ29: 0 | ER29: 0 | ES29: 0.00 | EU29: 0 | EV29: 0 | EW29: 0 | EX29: 0 | EY29: 0 | EZ29: 0 | FA29: 0 | FB29: 0 | FC29: 0 | FD29: 0 | FE29: 0.00 | FG29: 0 | FH29: 0 | FI29: 0 | FJ29: 0 | FK29: 0.00 | FP29: 0 | FQ29: 0 | FR29: 0.00 | FW29: 0 | GE29: 0 | GF29: 0 | GG29: 0 | GH29: 0 | GL29: 0 | GM29: / | GN29: 200 | GO29: 0/200 | GP29: 0 | GQ29: / | GR29: 200 | GS29: 0/200 | GT29: 0 | GU29: / | GV29: 200 | GW29: 0/200 | GX29: 0 | GY29: / | GZ29: 100 | HA29: 0/100 | HJ29: 0 | HK29: 0 | HL29: 0 | HM29: 0 | HN29: 0 | HO29: 0 | HP29: 0 | HQ29: 0
A30: 0 | B30: 22 | C30: 22 | D30: 0 | L30: 0 | M30: 0 | N30: 0 | O30: 0 | P30: 0 | Q30: 0 | R30: 0 | S30: 0 | T30: 0 | U30: 0 | V30: 0.00 | W30: =IF(R30="AB","AB",IF(AND(OR(L30="ab",L30="ml"),OR(M30="ab",M30="ml"),OR(O30="ab",O30="ml")),"AB",IF(AND(OR(L30="ab",L30="ml"),OR(O30="ab",O30="ml")),"AB",""))) ->  | Y30: =IF(OR(X30="",X30=0,X30="S",X30="F",X30="AB"),X30,IF(V30>=75,"D",IF(V30>=60,"I",IF(V30>=48,"II",IF(V30>=36,"III",X30))))) ->  | Z30: 0 | AA30: 0 | AB30: 0 | AC30: 0 | AD30: 0 | AE30: 0 | AF30: 0 | AG30: 0 | AH30: 0 | AI30: 0 | AJ30: 0.00 | AO30: 0 | AP30: 0 | AQ30: 0 | AR30: 0 | AS30: 0 | AT30: 0 | AU30: 0 | AV30: 0 | AW30: 0 | AX30: 0 | AY30: 0 | AZ30: 0 | BA30: 0.00 | BF30: 0 | BG30: 0 | BH30: 0 | BI30: 0 | BJ30: 0 | BK30: 0 | BL30: 0 | BM30: 0 | BN30: 0 | BO30: 0 | BP30: 0 | BQ30: 0 | BR30: 0 | BW30: 0 | BX30: 0 | BY30: 0 | BZ30: 0 | CA30: 0 | CB30: 0 | CC30: 0 | CD30: 0 | CE30: 0 | CF30: 0 | CG30: 0 | CH30: 0 | CI30: 0.00 | CN30: 0 | CO30: 0 | CP30: 0 | CQ30: 0 | CR30: 0 | CS30: 0 | CT30: 0 | CU30: 0 | CV30: 0 | CW30: 0 | CX30: 0 | CY30: 0 | CZ30: 0 | DE30: 0 | DF30: 0 | DG30: 0 | DH30: 0 | DI30: 0 | DJ30: 0 | DK30: 0 | DL30: 0 | DM30: 0 | DN30: 0 | DO30: 0 | DP30: 0 | DQ30: 0 | DU30: 0 | DV30: 0 | DW30: 0 | DX30: 0 | DY30: 0 | DZ30: 0 | EA30: 0 | EB30: 0 | EC30: 0 | ED30: 0 | EE30: 0 | EF30: 0 | EG30: 0.00 | EI30: 0 | EJ30: 0 | EK30: 0 | EL30: 0 | EM30: 0 | EN30: 0 | EO30: 0 | EP30: 0 | EQ30: 0 | ER30: 0 | ES30: 0.00 | EU30: 0 | EV30: 0 | EW30: =SUM(EU30:EV30) -> 0 | EX30: 0 | EY30: 0 | EZ30: 0 | FA30: 0 | FB30: 0 | FC30: 0 | FD30: 0 | FE30: 0.00 | FG30: 0 | FH30: 0 | FI30: 0 | FJ30: 0 | FK30: 0.00 | FP30: 0 | FQ30: 0 | FR30: 0.00 | FW30: 0 | GE30: 0 | GF30: 0 | GG30: 0 | GH30: 0 | GL30: 0 | GM30: / | GN30: 200 | GO30: 0/200 | GP30: 0 | GQ30: / | GR30: 200 | GS30: 0/200 | GT30: 0 | GU30: / | GV30: 200 | GW30: 0/200 | GX30: 0 | GY30: / | GZ30: 100 | HA30: 0/100 | HJ30: 0 | HK30: 0 | HL30: 0 | HM30: 0 | HN30: 0 | HO30: 0 | HP30: 0 | HQ30: 0
A31: 0 | B31: 23 | C31: 23 | D31: 0 | L31: 0 | M31: 0 | N31: 0 | O31: 0 | P31: 0 | Q31: 0 | R31: 0 | S31: 0 | T31: 0 | U31: 0 | V31: 0.00 | Z31: 0 | AA31: 0 | AB31: 0 | AC31: 0 | AD31: 0 | AE31: 0 | AF31: 0 | AG31: 0 | AH31: 0 | AI31: 0 | AJ31: 0.00 | AO31: 0 | AP31: 0 | AQ31: 0 | AR31: 0 | AS31: 0 | AT31: 0 | AU31: 0 | AV31: 0 | AW31: 0 | AX31: 0 | AY31: 0 | AZ31: 0 | BA31: 0.00 | BF31: 0 | BG31: 0 | BH31: 0 | BI31: 0 | BJ31: 0 | BK31: 0 | BL31: 0 | BM31: 0 | BN31: 0 | BO31: 0 | BP31: 0 | BQ31: 0 | BR31: 0 | BW31: 0 | BX31: 0 | BY31: 0 | BZ31: 0 | CA31: 0 | CB31: 0 | CC31: 0 | CD31: 0 | CE31: 0 | CF31: 0 | CG31: 0 | CH31: 0 | CI31: 0.00 | CN31: 0 | CO31: 0 | CP31: 0 | CQ31: 0 | CR31: 0 | CS31: 0 | CT31: 0 | CU31: 0 | CV31: 0 | CW31: 0 | CX31: 0 | CY31: 0 | CZ31: 0 | DE31: 0 | DF31: 0 | DG31: 0 | DH31: 0 | DI31: 0 | DJ31: 0 | DK31: 0 | DL31: 0 | DM31: 0 | DN31: 0 | DO31: 0 | DP31: 0 | DQ31: 0 | DU31: 0 | DV31: 0 | DW31: 0 | DX31: 0 | DY31: 0 | DZ31: 0 | EA31: 0 | EB31: 0 | EC31: 0 | ED31: 0 | EE31: 0 | EF31: 0 | EG31: 0.00 | EI31: 0 | EJ31: 0 | EK31: 0 | EL31: 0 | EM31: 0 | EN31: 0 | EO31: 0 | EP31: 0 | EQ31: 0 | ER31: 0 | ES31: 0.00 | EU31: 0 | EV31: 0 | EW31: 0 | EX31: 0 | EY31: 0 | EZ31: 0 | FA31: 0 | FB31: 0 | FC31: 0 | FD31: 0 | FE31: 0.00 | FG31: 0 | FH31: 0 | FI31: 0 | FJ31: 0 | FK31: 0.00 | FP31: 0 | FQ31: 0 | FR31: 0.00 | FW31: 0 | GE31: 0 | GF31: 0 | GG31: 0 | GH31: 0 | GL31: 0 | GM31: / | GN31: 200 | GO31: 0/200 | GP31: 0 | GQ31: / | GR31: 200 | GS31: 0/200 | GT31: 0 | GU31: / | GV31: 200 | GW31: 0/200 | GX31: 0 | GY31: / | GZ31: 100 | HA31: 0/100 | HJ31: 0 | HK31: 0 | HL31: 0 | HM31: 0 | HN31: 0 | HO31: 0 | HP31: 0 | HQ31: 0
A32: 0 | B32: 24 | C32: 24 | D32: 0 | L32: 0 | M32: 0 | N32: 0 | O32: 0 | P32: 0 | Q32: 0 | R32: 0 | S32: 0 | T32: 0 | U32: 0 | V32: 0.00 | Z32: 0 | AA32: 0 | AB32: 0 | AC32: 0 | AD32: 0 | AE32: 0 | AF32: 0 | AG32: 0 | AH32: 0 | AI32: 0 | AJ32: 0.00 | AO32: 0 | AP32: 0 | AQ32: 0 | AR32: 0 | AS32: 0 | AT32: 0 | AU32: 0 | AV32: 0 | AW32: 0 | AX32: 0 | AY32: 0 | AZ32: 0 | BA32: 0.00 | BF32: 0 | BG32: 0 | BH32: 0 | BI32: 0 | BJ32: 0 | BK32: 0 | BL32: 0 | BM32: 0 | BN32: 0 | BO32: 0 | BP32: 0 | BQ32: 0 | BR32: 0 | BW32: 0 | BX32: 0 | BY32: 0 | BZ32: 0 | CA32: 0 | CB32: 0 | CC32: 0 | CD32: 0 | CE32: 0 | CF32: 0 | CG32: 0 | CH32: 0 | CI32: 0.00 | CN32: 0 | CO32: 0 | CP32: 0 | CQ32: 0 | CR32: 0 | CS32: 0 | CT32: 0 | CU32: 0 | CV32: 0 | CW32: 0 | CX32: 0 | CY32: 0 | CZ32: 0 | DE32: 0 | DF32: 0 | DG32: 0 | DH32: 0 | DI32: 0 | DJ32: 0 | DK32: 0 | DL32: 0 | DM32: 0 | DN32: 0 | DO32: 0 | DP32: 0 | DQ32: 0 | DU32: 0 | DV32: 0 | DW32: 0 | DX32: 0 | DY32: 0 | DZ32: 0 | EA32: 0 | EB32: 0 | EC32: 0 | ED32: 0 | EE32: 0 | EF32: 0 | EG32: 0.00 | EI32: 0 | EJ32: 0 | EK32: 0 | EL32: 0 | EM32: 0 | EN32: 0 | EO32: 0 | EP32: 0 | EQ32: 0 | ER32: 0 | ES32: 0.00 | EU32: 0 | EV32: 0 | EW32: 0 | EX32: 0 | EY32: 0 | EZ32: 0 | FA32: 0 | FB32: 0 | FC32: 0 | FD32: 0 | FE32: 0.00 | FG32: 0 | FH32: 0 | FI32: 0 | FJ32: 0 | FK32: 0.00 | FP32: 0 | FQ32: 0 | FR32: 0.00 | FW32: 0 | GE32: 0 | GF32: 0 | GG32: 0 | GH32: 0 | GL32: 0 | GM32: / | GN32: 200 | GO32: 0/200 | GP32: 0 | GQ32: / | GR32: 200 | GS32: 0/200 | GT32: 0 | GU32: / | GV32: 200 | GW32: 0/200 | GX32: 0 | GY32: / | GZ32: 100 | HA32: 0/100 | HJ32: 0 | HK32: 0 | HL32: 0 | HM32: 0 | HN32: 0 | HO32: 0 | HP32: 0 | HQ32: 0
A33: 0 | B33: 25 | C33: 25 | D33: 0 | L33: 0 | M33: 0 | N33: 0 | O33: 0 | P33: 0 | Q33: 0 | R33: 0 | S33: 0 | T33: 0 | U33: 0 | V33: 0.00 | Z33: 0 | AA33: 0 | AB33: 0 | AC33: 0 | AD33: 0 | AE33: 0 | AF33: 0 | AG33: 0 | AH33: 0 | AI33: 0 | AJ33: 0.00 | AO33: 0 | AP33: 0 | AQ33: 0 | AR33: 0 | AS33: 0 | AT33: 0 | AU33: 0 | AV33: 0 | AW33: 0 | AX33: 0 | AY33: 0 | AZ33: 0 | BA33: 0.00 | BF33: 0 | BG33: 0 | BH33: 0 | BI33: 0 | BJ33: 0 | BK33: 0 | BL33: 0 | BM33: 0 | BN33: 0 | BO33: 0 | BP33: 0 | BQ33: 0 | BR33: 0 | BW33: 0 | BX33: 0 | BY33: 0 | BZ33: 0 | CA33: 0 | CB33: 0 | CC33: 0 | CD33: 0 | CE33: 0 | CF33: 0 | CG33: 0 | CH33: 0 | CI33: 0.00 | CN33: 0 | CO33: 0 | CP33: 0 | CQ33: 0 | CR33: 0 | CS33: 0 | CT33: 0 | CU33: 0 | CV33: 0 | CW33: 0 | CX33: 0 | CY33: 0 | CZ33: 0 | DE33: 0 | DF33: 0 | DG33: 0 | DH33: 0 | DI33: 0 | DJ33: 0 | DK33: 0 | DL33: 0 | DM33: 0 | DN33: 0 | DO33: 0 | DP33: 0 | DQ33: 0 | DU33: 0 | DV33: 0 | DW33: 0 | DX33: 0 | DY33: 0 | DZ33: 0 | EA33: 0 | EB33: 0 | EC33: 0 | ED33: 0 | EE33: 0 | EF33: 0 | EG33: 0.00 | EI33: 0 | EJ33: 0 | EK33: 0 | EL33: 0 | EM33: 0 | EN33: 0 | EO33: 0 | EP33: 0 | EQ33: 0 | ER33: 0 | ES33: 0.00 | EU33: 0 | EV33: 0 | EW33: 0 | EX33: 0 | EY33: 0 | EZ33: 0 | FA33: 0 | FB33: 0 | FC33: 0 | FD33: 0 | FE33: 0.00 | FG33: 0 | FH33: 0 | FI33: 0 | FJ33: 0 | FK33: 0.00 | FP33: 0 | FQ33: 0 | FR33: 0.00 | FW33: 0 | GE33: 0 | GF33: 0 | GG33: 0 | GH33: 0 | GL33: 0 | GM33: / | GN33: 200 | GO33: 0/200 | GP33: 0 | GQ33: / | GR33: 200 | GS33: 0/200 | GT33: 0 | GU33: / | GV33: 200 | GW33: 0/200 | GX33: 0 | GY33: / | GZ33: 100 | HA33: 0/100 | HJ33: 0 | HK33: 0 | HL33: 0 | HM33: 0 | HN33: 0 | HO33: 0 | HP33: 0 | HQ33: 0
A34: 0 | B34: 26 | C34: 26 | D34: 0 | L34: 0 | M34: 0 | N34: 0 | O34: 0 | P34: 0 | Q34: 0 | R34: 0 | S34: 0 | T34: 0 | U34: 0 | V34: 0.00 | Z34: 0 | AA34: 0 | AB34: 0 | AC34: 0 | AD34: 0 | AE34: 0 | AF34: 0 | AG34: 0 | AH34: 0 | AI34: 0 | AJ34: 0.00 | AO34: 0 | AP34: 0 | AQ34: 0 | AR34: 0 | AS34: 0 | AT34: 0 | AU34: 0 | AV34: 0 | AW34: 0 | AX34: 0 | AY34: 0 | AZ34: 0 | BA34: 0.00 | BF34: 0 | BG34: 0 | BH34: 0 | BI34: 0 | BJ34: 0 | BK34: 0 | BL34: 0 | BM34: 0 | BN34: 0 | BO34: 0 | BP34: 0 | BQ34: 0 | BR34: 0 | BW34: 0 | BX34: 0 | BY34: 0 | BZ34: 0 | CA34: 0 | CB34: 0 | CC34: 0 | CD34: 0 | CE34: 0 | CF34: 0 | CG34: 0 | CH34: 0 | CI34: 0.00 | CN34: 0 | CO34: 0 | CP34: 0 | CQ34: 0 | CR34: 0 | CS34: 0 | CT34: 0 | CU34: 0 | CV34: 0 | CW34: 0 | CX34: 0 | CY34: 0 | CZ34: 0 | DE34: 0 | DF34: 0 | DG34: 0 | DH34: 0 | DI34: 0 | DJ34: 0 | DK34: 0 | DL34: 0 | DM34: 0 | DN34: 0 | DO34: 0 | DP34: 0 | DQ34: 0 | DU34: 0 | DV34: 0 | DW34: 0 | DX34: 0 | DY34: 0 | DZ34: 0 | EA34: 0 | EB34: 0 | EC34: 0 | ED34: 0 | EE34: 0 | EF34: 0 | EG34: 0.00 | EI34: 0 | EJ34: 0 | EK34: 0 | EL34: 0 | EM34: 0 | EN34: 0 | EO34: 0 | EP34: 0 | EQ34: 0 | ER34: 0 | ES34: 0.00 | EU34: 0 | EV34: 0 | EW34: 0 | EX34: 0 | EY34: 0 | EZ34: 0 | FA34: 0 | FB34: 0 | FC34: 0 | FD34: 0 | FE34: 0.00 | FG34: 0 | FH34: 0 | FI34: 0 | FJ34: 0 | FK34: 0.00 | FP34: 0 | FQ34: 0 | FR34: 0.00 | FW34: 0 | GE34: 0 | GF34: 0 | GG34: 0 | GH34: 0 | GL34: 0 | GM34: / | GN34: 200 | GO34: 0/200 | GP34: 0 | GQ34: / | GR34: 200 | GS34: 0/200 | GT34: 0 | GU34: / | GV34: 200 | GW34: 0/200 | GX34: 0 | GY34: / | GZ34: 100 | HA34: 0/100 | HJ34: 0 | HK34: 0 | HL34: 0 | HM34: 0 | HN34: 0 | HO34: 0 | HP34: 0 | HQ34: 0
A35: 0 | B35: 27 | C35: 27 | D35: 0 | L35: 0 | M35: 0 | N35: 0 | O35: 0 | P35: 0 | Q35: 0 | R35: 0 | S35: 0 | T35: 0 | U35: 0 | V35: 0.00 | Z35: 0 | AA35: 0 | AB35: 0 | AC35: 0 | AD35: 0 | AE35: 0 | AF35: 0 | AG35: 0 | AH35: 0 | AI35: 0 | AJ35: 0.00 | AO35: 0 | AP35: 0 | AQ35: 0 | AR35: 0 | AS35: 0 | AT35: 0 | AU35: 0 | AV35: 0 | AW35: 0 | AX35: 0 | AY35: 0 | AZ35: 0 | BA35: 0.00 | BF35: 0 | BG35: 0 | BH35: 0 | BI35: 0 | BJ35: 0 | BK35: 0 | BL35: 0 | BM35: 0 | BN35: 0 | BO35: 0 | BP35: 0 | BQ35: 0 | BR35: 0 | BW35: 0 | BX35: 0 | BY35: 0 | BZ35: 0 | CA35: 0 | CB35: 0 | CC35: 0 | CD35: 0 | CE35: 0 | CF35: 0 | CG35: 0 | CH35: 0 | CI35: 0.00 | CN35: 0 | CO35: 0 | CP35: 0 | CQ35: 0 | CR35: 0 | CS35: 0 | CT35: 0 | CU35: 0 | CV35: 0 | CW35: 0 | CX35: 0 | CY35: 0 | CZ35: 0 | DE35: 0 | DF35: 0 | DG35: 0 | DH35: 0 | DI35: 0 | DJ35: 0 | DK35: 0 | DL35: 0 | DM35: 0 | DN35: 0 | DO35: 0 | DP35: 0 | DQ35: 0 | DU35: 0 | DV35: 0 | DW35: 0 | DX35: 0 | DY35: 0 | DZ35: 0 | EA35: 0 | EB35: 0 | EC35: 0 | ED35: 0 | EE35: 0 | EF35: 0 | EG35: 0.00 | EI35: 0 | EJ35: 0 | EK35: 0 | EL35: 0 | EM35: 0 | EN35: 0 | EO35: 0 | EP35: 0 | EQ35: 0 | ER35: 0 | ES35: 0.00 | EU35: 0 | EV35: 0 | EW35: 0 | EX35: 0 | EY35: 0 | EZ35: 0 | FA35: 0 | FB35: 0 | FC35: 0 | FD35: 0 | FE35: 0.00 | FG35: 0 | FH35: 0 | FI35: 0 | FJ35: 0 | FK35: 0.00 | FP35: 0 | FQ35: 0 | FR35: 0.00 | FW35: 0 | GE35: 0 | GF35: 0 | GG35: 0 | GH35: 0 | GL35: 0 | GM35: / | GN35: 200 | GO35: 0/200 | GP35: 0 | GQ35: / | GR35: 200 | GS35: 0/200 | GT35: 0 | GU35: / | GV35: 200 | GW35: 0/200 | GX35: 0 | GY35: / | GZ35: 100 | HA35: 0/100 | HJ35: 0 | HK35: 0 | HL35: 0 | HM35: 0 | HN35: 0 | HO35: 0 | HP35: 0 | HQ35: 0
A36: 0 | B36: 28 | C36: 28 | D36: 0 | L36: 0 | M36: 0 | N36: 0 | O36: 0 | P36: 0 | Q36: 0 | R36: 0 | S36: 0 | T36: 0 | U36: 0 | V36: 0.00 | Z36: 0 | AA36: 0 | AB36: 0 | AC36: 0 | AD36: 0 | AE36: 0 | AF36: 0 | AG36: 0 | AH36: 0 | AI36: 0 | AJ36: 0.00 | AO36: 0 | AP36: 0 | AQ36: 0 | AR36: 0 | AS36: 0 | AT36: 0 | AU36: 0 | AV36: 0 | AW36: 0 | AX36: 0 | AY36: 0 | AZ36: 0 | BA36: 0.00 | BF36: 0 | BG36: 0 | BH36: 0 | BI36: 0 | BJ36: 0 | BK36: 0 | BL36: 0 | BM36: 0 | BN36: 0 | BO36: 0 | BP36: 0 | BQ36: 0 | BR36: 0 | BW36: 0 | BX36: 0 | BY36: 0 | BZ36: 0 | CA36: 0 | CB36: 0 | CC36: 0 | CD36: 0 | CE36: 0 | CF36: 0 | CG36: 0 | CH36: 0 | CI36: 0.00 | CN36: 0 | CO36: 0 | CP36: 0 | CQ36: 0 | CR36: 0 | CS36: 0 | CT36: 0 | CU36: 0 | CV36: 0 | CW36: 0 | CX36: 0 | CY36: 0 | CZ36: 0 | DE36: 0 | DF36: 0 | DG36: 0 | DH36: 0 | DI36: 0 | DJ36: 0 | DK36: 0 | DL36: 0 | DM36: 0 | DN36: 0 | DO36: 0 | DP36: 0 | DQ36: 0 | DU36: 0 | DV36: 0 | DW36: 0 | DX36: 0 | DY36: 0 | DZ36: 0 | EA36: 0 | EB36: 0 | EC36: 0 | ED36: 0 | EE36: 0 | EF36: 0 | EG36: 0.00 | EI36: 0 | EJ36: 0 | EK36: 0 | EL36: 0 | EM36: 0 | EN36: 0 | EO36: 0 | EP36: 0 | EQ36: 0 | ER36: 0 | ES36: 0.00 | EU36: 0 | EV36: 0 | EW36: 0 | EX36: 0 | EY36: 0 | EZ36: 0 | FA36: 0 | FB36: 0 | FC36: 0 | FD36: 0 | FE36: 0.00 | FG36: 0 | FH36: 0 | FI36: 0 | FJ36: 0 | FK36: 0.00 | FP36: 0 | FQ36: 0 | FR36: 0.00 | FW36: 0 | GE36: 0 | GF36: 0 | GG36: 0 | GH36: 0 | GL36: 0 | GM36: / | GN36: 200 | GO36: 0/200 | GP36: 0 | GQ36: / | GR36: 200 | GS36: 0/200 | GT36: 0 | GU36: / | GV36: 200 | GW36: 0/200 | GX36: 0 | GY36: / | GZ36: 100 | HA36: 0/100 | HJ36: 0 | HK36: 0 | HL36: 0 | HM36: 0 | HN36: 0 | HO36: 0 | HP36: 0 | HQ36: 0
A37: 0 | B37: 29 | C37: 29 | D37: 0 | L37: 0 | M37: 0 | N37: 0 | O37: 0 | P37: 0 | Q37: 0 | R37: 0 | S37: 0 | T37: 0 | U37: 0 | V37: 0.00 | Z37: 0 | AA37: 0 | AB37: 0 | AC37: 0 | AD37: 0 | AE37: 0 | AF37: 0 | AG37: 0 | AH37: 0 | AI37: 0 | AJ37: 0.00 | AO37: 0 | AP37: 0 | AQ37: 0 | AR37: 0 | AS37: 0 | AT37: 0 | AU37: 0 | AV37: 0 | AW37: 0 | AX37: 0 | AY37: 0 | AZ37: 0 | BA37: 0.00 | BF37: 0 | BG37: 0 | BH37: 0 | BI37: 0 | BJ37: 0 | BK37: 0 | BL37: 0 | BM37: 0 | BN37: 0 | BO37: 0 | BP37: 0 | BQ37: 0 | BR37: 0 | BW37: 0 | BX37: 0 | BY37: 0 | BZ37: 0 | CA37: 0 | CB37: 0 | CC37: 0 | CD37: 0 | CE37: 0 | CF37: 0 | CG37: 0 | CH37: 0 | CI37: 0.00 | CN37: 0 | CO37: 0 | CP37: 0 | CQ37: 0 | CR37: 0 | CS37: 0 | CT37: 0 | CU37: 0 | CV37: 0 | CW37: 0 | CX37: 0 | CY37: 0 | CZ37: 0 | DE37: 0 | DF37: 0 | DG37: 0 | DH37: 0 | DI37: 0 | DJ37: 0 | DK37: 0 | DL37: 0 | DM37: 0 | DN37: 0 | DO37: 0 | DP37: 0 | DQ37: 0 | DU37: 0 | DV37: 0 | DW37: 0 | DX37: 0 | DY37: 0 | DZ37: 0 | EA37: 0 | EB37: 0 | EC37: 0 | ED37: 0 | EE37: 0 | EF37: 0 | EG37: 0.00 | EI37: 0 | EJ37: 0 | EK37: 0 | EL37: 0 | EM37: 0 | EN37: 0 | EO37: 0 | EP37: 0 | EQ37: 0 | ER37: 0 | ES37: 0.00 | EU37: 0 | EV37: 0 | EW37: 0 | EX37: 0 | EY37: 0 | EZ37: 0 | FA37: 0 | FB37: 0 | FC37: 0 | FD37: 0 | FE37: 0.00 | FG37: 0 | FH37: 0 | FI37: 0 | FJ37: 0 | FK37: 0.00 | FP37: 0 | FQ37: 0 | FR37: 0.00 | FW37: 0 | GE37: 0 | GF37: 0 | GG37: 0 | GH37: 0 | GL37: 0 | GM37: / | GN37: 200 | GO37: 0/200 | GP37: 0 | GQ37: / | GR37: 200 | GS37: 0/200 | GT37: 0 | GU37: / | GV37: 200 | GW37: 0/200 | GX37: 0 | GY37: / | GZ37: 100 | HA37: 0/100 | HJ37: 0 | HK37: 0 | HL37: 0 | HM37: 0 | HN37: 0 | HO37: 0 | HP37: 0 | HQ37: 0
A38: 0 | B38: 30 | C38: 30 | D38: 0 | L38: 0 | M38: 0 | N38: 0 | O38: 0 | P38: 0 | Q38: 0 | R38: 0 | S38: 0 | T38: 0 | U38: 0 | V38: 0.00 | Z38: 0 | AA38: 0 | AB38: 0 | AC38: 0 | AD38: 0 | AE38: 0 | AF38: 0 | AG38: 0 | AH38: 0 | AI38: 0 | AJ38: 0.00 | AO38: 0 | AP38: 0 | AQ38: 0 | AR38: 0 | AS38: 0 | AT38: 0 | AU38: 0 | AV38: 0 | AW38: 0 | AX38: 0 | AY38: 0 | AZ38: 0 | BA38: 0.00 | BF38: 0 | BG38: 0 | BH38: 0 | BI38: 0 | BJ38: 0 | BK38: 0 | BL38: 0 | BM38: 0 | BN38: 0 | BO38: 0 | BP38: 0 | BQ38: 0 | BR38: 0 | BW38: 0 | BX38: 0 | BY38: 0 | BZ38: 0 | CA38: 0 | CB38: 0 | CC38: 0 | CD38: 0 | CE38: 0 | CF38: 0 | CG38: 0 | CH38: 0 | CI38: 0.00 | CN38: 0 | CO38: 0 | CP38: 0 | CQ38: 0 | CR38: 0 | CS38: 0 | CT38: 0 | CU38: 0 | CV38: 0 | CW38: 0 | CX38: 0 | CY38: 0 | CZ38: 0 | DE38: 0 | DF38: 0 | DG38: 0 | DH38: 0 | DI38: 0 | DJ38: 0 | DK38: 0 | DL38: 0 | DM38: 0 | DN38: 0 | DO38: 0 | DP38: 0 | DQ38: 0 | DU38: 0 | DV38: 0 | DW38: 0 | DX38: 0 | DY38: 0 | DZ38: 0 | EA38: 0 | EB38: 0 | EC38: 0 | ED38: 0 | EE38: 0 | EF38: 0 | EG38: 0.00 | EI38: 0 | EJ38: 0 | EK38: 0 | EL38: 0 | EM38: 0 | EN38: 0 | EO38: 0 | EP38: 0 | EQ38: 0 | ER38: 0 | ES38: 0.00 | EU38: 0 | EV38: 0 | EW38: 0 | EX38: 0 | EY38: 0 | EZ38: 0 | FA38: 0 | FB38: 0 | FC38: 0 | FD38: 0 | FE38: 0.00 | FG38: 0 | FH38: 0 | FI38: 0 | FJ38: 0 | FK38: 0.00 | FP38: 0 | FQ38: 0 | FR38: 0.00 | FW38: 0 | GE38: 0 | GF38: 0 | GG38: 0 | GH38: 0 | GL38: 0 | GM38: / | GN38: 200 | GO38: 0/200 | GP38: 0 | GQ38: / | GR38: 200 | GS38: 0/200 | GT38: 0 | GU38: / | GV38: 200 | GW38: 0/200 | GX38: 0 | GY38: / | GZ38: 100 | HA38: 0/100 | HJ38: 0 | HK38: 0 | HL38: 0 | HM38: 0 | HN38: 0 | HO38: 0 | HP38: 0 | HQ38: 0
A39: 0 | B39: 31 | C39: 31 | D39: 0 | L39: 0 | M39: 0 | N39: 0 | O39: 0 | P39: 0 | Q39: 0 | R39: 0 | S39: 0 | T39: 0 | U39: 0 | V39: 0.00 | Z39: 0 | AA39: 0 | AB39: 0 | AC39: 0 | AD39: 0 | AE39: 0 | AF39: 0 | AG39: 0 | AH39: 0 | AI39: 0 | AJ39: 0.00 | AO39: 0 | AP39: 0 | AQ39: 0 | AR39: 0 | AS39: 0 | AT39: 0 | AU39: 0 | AV39: 0 | AW39: 0 | AX39: 0 | AY39: 0 | AZ39: 0 | BA39: 0.00 | BF39: 0 | BG39: 0 | BH39: 0 | BI39: 0 | BJ39: 0 | BK39: 0 | BL39: 0 | BM39: 0 | BN39: 0 | BO39: 0 | BP39: 0 | BQ39: 0 | BR39: 0 | BW39: 0 | BX39: 0 | BY39: 0 | BZ39: 0 | CA39: 0 | CB39: 0 | CC39: 0 | CD39: 0 | CE39: 0 | CF39: 0 | CG39: 0 | CH39: 0 | CI39: 0.00 | CN39: 0 | CO39: 0 | CP39: 0 | CQ39: 0 | CR39: 0 | CS39: 0 | CT39: 0 | CU39: 0 | CV39: 0 | CW39: 0 | CX39: 0 | CY39: 0 | CZ39: 0 | DE39: 0 | DF39: 0 | DG39: 0 | DH39: 0 | DI39: 0 | DJ39: 0 | DK39: 0 | DL39: 0 | DM39: 0 | DN39: 0 | DO39: 0 | DP39: 0 | DQ39: 0 | DU39: 0 | DV39: 0 | DW39: 0 | DX39: 0 | DY39: 0 | DZ39: 0 | EA39: 0 | EB39: 0 | EC39: 0 | ED39: 0 | EE39: 0 | EF39: 0 | EG39: 0.00 | EI39: 0 | EJ39: 0 | EK39: 0 | EL39: 0 | EM39: 0 | EN39: 0 | EO39: 0 | EP39: 0 | EQ39: 0 | ER39: 0 | ES39: 0.00 | EU39: 0 | EV39: 0 | EW39: 0 | EX39: 0 | EY39: 0 | EZ39: 0 | FA39: 0 | FB39: 0 | FC39: 0 | FD39: 0 | FE39: 0.00 | FG39: 0 | FH39: 0 | FI39: 0 | FJ39: 0 | FK39: 0.00 | FP39: 0 | FQ39: 0 | FR39: 0.00 | FW39: 0 | GE39: 0 | GF39: 0 | GG39: 0 | GH39: 0 | GL39: 0 | GM39: / | GN39: 200 | GO39: 0/200 | GP39: 0 | GQ39: / | GR39: 200 | GS39: 0/200 | GT39: 0 | GU39: / | GV39: 200 | GW39: 0/200 | GX39: 0 | GY39: / | GZ39: 100 | HA39: 0/100 | HJ39: 0 | HK39: 0 | HL39: 0 | HM39: 0 | HN39: 0 | HO39: 0 | HP39: 0 | HQ39: 0
A40: 0 | B40: 32 | C40: 32 | D40: 0 | L40: 0 | M40: 0 | N40: 0 | O40: 0 | P40: 0 | Q40: 0 | R40: 0 | S40: 0 | T40: 0 | U40: 0 | V40: 0.00 | Z40: 0 | AA40: 0 | AB40: 0 | AC40: 0 | AD40: 0 | AE40: 0 | AF40: 0 | AG40: 0 | AH40: 0 | AI40: 0 | AJ40: 0.00 | AO40: 0 | AP40: 0 | AQ40: 0 | AR40: 0 | AS40: 0 | AT40: 0 | AU40: 0 | AV40: 0 | AW40: 0 | AX40: 0 | AY40: 0 | AZ40: 0 | BA40: 0.00 | BF40: 0 | BG40: 0 | BH40: 0 | BI40: 0 | BJ40: 0 | BK40: 0 | BL40: 0 | BM40: 0 | BN40: 0 | BO40: 0 | BP40: 0 | BQ40: 0 | BR40: 0 | BW40: 0 | BX40: 0 | BY40: 0 | BZ40: 0 | CA40: 0 | CB40: 0 | CC40: 0 | CD40: 0 | CE40: 0 | CF40: 0 | CG40: 0 | CH40: 0 | CI40: 0.00 | CN40: 0 | CO40: 0 | CP40: 0 | CQ40: 0 | CR40: 0 | CS40: 0 | CT40: 0 | CU40: 0 | CV40: 0 | CW40: 0 | CX40: 0 | CY40: 0 | CZ40: 0 | DE40: 0 | DF40: 0 | DG40: 0 | DH40: 0 | DI40: 0 | DJ40: 0 | DK40: 0 | DL40: 0 | DM40: 0 | DN40: 0 | DO40: 0 | DP40: 0 | DQ40: 0 | DU40: 0 | DV40: 0 | DW40: 0 | DX40: 0 | DY40: 0 | DZ40: 0 | EA40: 0 | EB40: 0 | EC40: 0 | ED40: 0 | EE40: 0 | EF40: 0 | EG40: 0.00 | EI40: 0 | EJ40: 0 | EK40: 0 | EL40: 0 | EM40: 0 | EN40: 0 | EO40: 0 | EP40: 0 | EQ40: 0 | ER40: 0 | ES40: 0.00 | EU40: 0 | EV40: 0 | EW40: 0 | EX40: 0 | EY40: 0 | EZ40: 0 | FA40: 0 | FB40: 0 | FC40: 0 | FD40: 0 | FE40: 0.00 | FG40: 0 | FH40: 0 | FI40: 0 | FJ40: 0 | FK40: 0.00 | FP40: 0 | FQ40: 0 | FR40: 0.00 | FW40: 0 | GE40: 0 | GF40: 0 | GG40: 0 | GH40: 0 | GL40: 0 | GM40: / | GN40: 200 | GO40: 0/200 | GP40: 0 | GQ40: / | GR40: 200 | GS40: 0/200 | GT40: 0 | GU40: / | GV40: 200 | GW40: 0/200 | GX40: 0 | GY40: / | GZ40: 100 | HA40: 0/100 | HJ40: 0 | HK40: 0 | HL40: 0 | HM40: 0 | HN40: 0 | HO40: 0 | HP40: 0 | HQ40: 0
A41: 0 | B41: 33 | C41: 33 | D41: 0 | L41: 0 | M41: 0 | N41: 0 | O41: 0 | P41: 0 | Q41: 0 | R41: 0 | S41: 0 | T41: 0 | U41: 0 | V41: 0.00 | Z41: 0 | AA41: 0 | AB41: 0 | AC41: 0 | AD41: 0 | AE41: 0 | AF41: 0 | AG41: 0 | AH41: 0 | AI41: 0 | AJ41: 0.00 | AO41: 0 | AP41: 0 | AQ41: 0 | AR41: 0 | AS41: 0 | AT41: 0 | AU41: 0 | AV41: 0 | AW41: 0 | AX41: 0 | AY41: 0 | AZ41: 0 | BA41: 0.00 | BF41: 0 | BG41: 0 | BH41: 0 | BI41: 0 | BJ41: 0 | BK41: 0 | BL41: 0 | BM41: 0 | BN41: 0 | BO41: 0 | BP41: 0 | BQ41: 0 | BR41: 0 | BW41: 0 | BX41: 0 | BY41: 0 | BZ41: 0 | CA41: 0 | CB41: 0 | CC41: 0 | CD41: 0 | CE41: 0 | CF41: 0 | CG41: 0 | CH41: 0 | CI41: 0.00 | CN41: 0 | CO41: 0 | CP41: 0 | CQ41: 0 | CR41: 0 | CS41: 0 | CT41: 0 | CU41: 0 | CV41: 0 | CW41: 0 | CX41: 0 | CY41: 0 | CZ41: 0 | DE41: 0 | DF41: 0 | DG41: 0 | DH41: 0 | DI41: 0 | DJ41: 0 | DK41: 0 | DL41: 0 | DM41: 0 | DN41: 0 | DO41: 0 | DP41: 0 | DQ41: 0 | DU41: 0 | DV41: 0 | DW41: 0 | DX41: 0 | DY41: 0 | DZ41: 0 | EA41: 0 | EB41: 0 | EC41: 0 | ED41: 0 | EE41: 0 | EF41: 0 | EG41: 0.00 | EI41: 0 | EJ41: 0 | EK41: 0 | EL41: 0 | EM41: 0 | EN41: 0 | EO41: 0 | EP41: 0 | EQ41: 0 | ER41: 0 | ES41: 0.00 | EU41: 0 | EV41: 0 | EW41: 0 | EX41: 0 | EY41: 0 | EZ41: 0 | FA41: 0 | FB41: 0 | FC41: 0 | FD41: 0 | FE41: 0.00 | FG41: 0 | FH41: 0 | FI41: 0 | FJ41: 0 | FK41: 0.00 | FP41: 0 | FQ41: 0 | FR41: 0.00 | FW41: 0 | GE41: 0 | GF41: 0 | GG41: 0 | GH41: 0 | GL41: =EF41 -> 0 | GM41: / | GN41: =$EF$7 -> 200 | GO41: 0/200 | GP41: 0 | GQ41: / | GR41: 200 | GS41: 0/200 | GT41: 0 | GU41: / | GV41: 200 | GW41: 0/200 | GX41: 0 | GY41: / | GZ41: 100 | HA41: 0/100 | HJ41: 0 | HK41: 0 | HL41: 0 | HM41: 0 | HN41: 0 | HO41: 0 | HP41: 0 | HQ41: 0
A42: 0 | B42: 34 | C42: 34 | D42: 0 | L42: 0 | M42: 0 | N42: 0 | O42: 0 | P42: 0 | Q42: 0 | R42: 0 | S42: 0 | T42: 0 | U42: 0 | V42: 0.00 | Z42: 0 | AA42: 0 | AB42: 0 | AC42: 0 | AD42: 0 | AE42: 0 | AF42: 0 | AG42: 0 | AH42: 0 | AI42: 0 | AJ42: 0.00 | AO42: 0 | AP42: 0 | AQ42: 0 | AR42: 0 | AS42: 0 | AT42: 0 | AU42: 0 | AV42: 0 | AW42: 0 | AX42: 0 | AY42: 0 | AZ42: 0 | BA42: 0.00 | BF42: 0 | BG42: 0 | BH42: 0 | BI42: 0 | BJ42: 0 | BK42: 0 | BL42: 0 | BM42: 0 | BN42: 0 | BO42: 0 | BP42: 0 | BQ42: 0 | BR42: 0 | BW42: 0 | BX42: 0 | BY42: 0 | BZ42: 0 | CA42: 0 | CB42: 0 | CC42: 0 | CD42: 0 | CE42: 0 | CF42: 0 | CG42: 0 | CH42: 0 | CI42: 0.00 | CN42: 0 | CO42: 0 | CP42: 0 | CQ42: 0 | CR42: 0 | CS42: 0 | CT42: 0 | CU42: 0 | CV42: 0 | CW42: 0 | CX42: 0 | CY42: 0 | CZ42: 0 | DE42: 0 | DF42: 0 | DG42: 0 | DH42: 0 | DI42: 0 | DJ42: 0 | DK42: 0 | DL42: 0 | DM42: 0 | DN42: 0 | DO42: 0 | DP42: 0 | DQ42: 0 | DU42: 0 | DV42: 0 | DW42: 0 | DX42: 0 | DY42: 0 | DZ42: 0 | EA42: 0 | EB42: 0 | EC42: 0 | ED42: 0 | EE42: 0 | EF42: 0 | EG42: 0.00 | EI42: 0 | EJ42: 0 | EK42: 0 | EL42: 0 | EM42: 0 | EN42: 0 | EO42: 0 | EP42: 0 | EQ42: 0 | ER42: 0 | ES42: 0.00 | EU42: 0 | EV42: 0 | EW42: 0 | EX42: 0 | EY42: 0 | EZ42: 0 | FA42: 0 | FB42: 0 | FC42: 0 | FD42: 0 | FE42: 0.00 | FG42: 0 | FH42: 0 | FI42: 0 | FJ42: 0 | FK42: 0.00 | FP42: 0 | FQ42: 0 | FR42: 0.00 | FW42: 0 | GE42: 0 | GF42: 0 | GG42: 0 | GH42: 0 | GL42: 0 | GM42: / | GN42: 200 | GO42: 0/200 | GP42: 0 | GQ42: / | GR42: 200 | GS42: 0/200 | GT42: 0 | GU42: / | GV42: 200 | GW42: 0/200 | GX42: 0 | GY42: / | GZ42: 100 | HA42: 0/100 | HJ42: 0 | HK42: 0 | HL42: 0 | HM42: 0 | HN42: 0 | HO42: 0 | HP42: 0 | HQ42: 0
A43: 0 | B43: 35 | C43: 35 | D43: 0 | L43: 0 | M43: 0 | N43: 0 | O43: 0 | P43: 0 | Q43: 0 | R43: 0 | S43: 0 | T43: 0 | U43: 0 | V43: 0.00 | Z43: 0 | AA43: 0 | AB43: 0 | AC43: 0 | AD43: 0 | AE43: 0 | AF43: 0 | AG43: 0 | AH43: 0 | AI43: 0 | AJ43: 0.00 | AO43: 0 | AP43: 0 | AQ43: 0 | AR43: 0 | AS43: 0 | AT43: 0 | AU43: 0 | AV43: 0 | AW43: 0 | AX43: 0 | AY43: 0 | AZ43: 0 | BA43: 0.00 | BF43: 0 | BG43: 0 | BH43: 0 | BI43: 0 | BJ43: 0 | BK43: 0 | BL43: 0 | BM43: 0 | BN43: 0 | BO43: 0 | BP43: 0 | BQ43: 0 | BR43: 0 | BW43: 0 | BX43: 0 | BY43: 0 | BZ43: 0 | CA43: 0 | CB43: 0 | CC43: 0 | CD43: 0 | CE43: 0 | CF43: 0 | CG43: 0 | CH43: 0 | CI43: 0.00 | CN43: 0 | CO43: 0 | CP43: 0 | CQ43: 0 | CR43: 0 | CS43: 0 | CT43: 0 | CU43: 0 | CV43: 0 | CW43: 0 | CX43: 0 | CY43: 0 | CZ43: 0 | DE43: 0 | DF43: 0 | DG43: 0 | DH43: 0 | DI43: 0 | DJ43: 0 | DK43: 0 | DL43: 0 | DM43: 0 | DN43: 0 | DO43: 0 | DP43: 0 | DQ43: 0 | DU43: 0 | DV43: 0 | DW43: 0 | DX43: 0 | DY43: 0 | DZ43: 0 | EA43: 0 | EB43: 0 | EC43: 0 | ED43: 0 | EE43: 0 | EF43: 0 | EG43: 0.00 | EI43: 0 | EJ43: 0 | EK43: 0 | EL43: 0 | EM43: 0 | EN43: 0 | EO43: 0 | EP43: 0 | EQ43: 0 | ER43: 0 | ES43: 0.00 | EU43: 0 | EV43: 0 | EW43: 0 | EX43: 0 | EY43: 0 | EZ43: 0 | FA43: 0 | FB43: 0 | FC43: 0 | FD43: 0 | FE43: 0.00 | FG43: 0 | FH43: 0 | FI43: 0 | FJ43: 0 | FK43: 0.00 | FP43: 0 | FQ43: 0 | FR43: 0.00 | FW43: 0 | GE43: 0 | GF43: 0 | GG43: 0 | GH43: 0 | GL43: 0 | GM43: / | GN43: 200 | GO43: 0/200 | GP43: 0 | GQ43: / | GR43: 200 | GS43: 0/200 | GT43: 0 | GU43: / | GV43: 200 | GW43: 0/200 | GX43: 0 | GY43: / | GZ43: 100 | HA43: 0/100 | HJ43: 0 | HK43: 0 | HL43: 0 | HM43: 0 | HN43: 0 | HO43: 0 | HP43: 0 | HQ43: 0
A44: 0 | B44: 36 | C44: 36 | D44: 0 | L44: 0 | M44: 0 | N44: 0 | O44: 0 | P44: 0 | Q44: 0 | R44: 0 | S44: 0 | T44: 0 | U44: 0 | V44: 0.00 | Z44: 0 | AA44: 0 | AB44: 0 | AC44: 0 | AD44: 0 | AE44: 0 | AF44: 0 | AG44: 0 | AH44: 0 | AI44: 0 | AJ44: 0.00 | AO44: 0 | AP44: 0 | AQ44: 0 | AR44: 0 | AS44: 0 | AT44: 0 | AU44: 0 | AV44: 0 | AW44: 0 | AX44: 0 | AY44: 0 | AZ44: 0 | BA44: 0.00 | BF44: 0 | BG44: 0 | BH44: 0 | BI44: 0 | BJ44: 0 | BK44: 0 | BL44: 0 | BM44: 0 | BN44: 0 | BO44: 0 | BP44: 0 | BQ44: 0 | BR44: 0 | BW44: 0 | BX44: 0 | BY44: 0 | BZ44: 0 | CA44: 0 | CB44: 0 | CC44: 0 | CD44: 0 | CE44: 0 | CF44: 0 | CG44: 0 | CH44: 0 | CI44: 0.00 | CN44: 0 | CO44: 0 | CP44: 0 | CQ44: 0 | CR44: 0 | CS44: 0 | CT44: 0 | CU44: 0 | CV44: 0 | CW44: 0 | CX44: 0 | CY44: 0 | CZ44: 0 | DE44: 0 | DF44: 0 | DG44: 0 | DH44: 0 | DI44: 0 | DJ44: 0 | DK44: 0 | DL44: 0 | DM44: 0 | DN44: 0 | DO44: 0 | DP44: 0 | DQ44: 0 | DU44: 0 | DV44: 0 | DW44: 0 | DX44: 0 | DY44: 0 | DZ44: 0 | EA44: 0 | EB44: 0 | EC44: 0 | ED44: 0 | EE44: 0 | EF44: 0 | EG44: 0.00 | EI44: 0 | EJ44: 0 | EK44: 0 | EL44: 0 | EM44: 0 | EN44: 0 | EO44: 0 | EP44: 0 | EQ44: 0 | ER44: 0 | ES44: 0.00 | EU44: 0 | EV44: 0 | EW44: 0 | EX44: 0 | EY44: 0 | EZ44: 0 | FA44: 0 | FB44: 0 | FC44: 0 | FD44: 0 | FE44: 0.00 | FG44: 0 | FH44: 0 | FI44: 0 | FJ44: 0 | FK44: 0.00 | FP44: 0 | FQ44: 0 | FR44: 0.00 | FW44: 0 | GE44: 0 | GF44: 0 | GG44: 0 | GH44: 0 | GL44: 0 | GM44: / | GN44: 200 | GO44: 0/200 | GP44: 0 | GQ44: / | GR44: 200 | GS44: 0/200 | GT44: 0 | GU44: / | GV44: 200 | GW44: 0/200 | GX44: 0 | GY44: / | GZ44: 100 | HA44: 0/100 | HJ44: 0 | HK44: 0 | HL44: 0 | HM44: 0 | HN44: 0 | HO44: 0 | HP44: 0 | HQ44: 0
A45: 0 | B45: 37 | C45: 37 | D45: 0 | L45: 0 | M45: 0 | N45: 0 | O45: 0 | P45: 0 | Q45: 0 | R45: 0 | S45: 0 | T45: 0 | U45: 0 | V45: 0.00 | Z45: 0 | AA45: 0 | AB45: 0 | AC45: 0 | AD45: 0 | AE45: 0 | AF45: 0 | AG45: 0 | AH45: 0 | AI45: 0 | AJ45: 0.00 | AO45: 0 | AP45: 0 | AQ45: 0 | AR45: 0 | AS45: 0 | AT45: 0 | AU45: 0 | AV45: 0 | AW45: 0 | AX45: 0 | AY45: 0 | AZ45: 0 | BA45: 0.00 | BF45: 0 | BG45: 0 | BH45: 0 | BI45: 0 | BJ45: 0 | BK45: 0 | BL45: 0 | BM45: 0 | BN45: 0 | BO45: 0 | BP45: 0 | BQ45: 0 | BR45: 0 | BW45: 0 | BX45: 0 | BY45: 0 | BZ45: 0 | CA45: 0 | CB45: 0 | CC45: 0 | CD45: 0 | CE45: 0 | CF45: 0 | CG45: 0 | CH45: 0 | CI45: 0.00 | CN45: 0 | CO45: 0 | CP45: 0 | CQ45: 0 | CR45: 0 | CS45: 0 | CT45: 0 | CU45: 0 | CV45: 0 | CW45: 0 | CX45: 0 | CY45: 0 | CZ45: 0 | DE45: 0 | DF45: 0 | DG45: 0 | DH45: 0 | DI45: 0 | DJ45: 0 | DK45: 0 | DL45: 0 | DM45: 0 | DN45: 0 | DO45: 0 | DP45: 0 | DQ45: 0 | DU45: 0 | DV45: 0 | DW45: 0 | DX45: 0 | DY45: 0 | DZ45: 0 | EA45: 0 | EB45: 0 | EC45: 0 | ED45: 0 | EE45: 0 | EF45: 0 | EG45: 0.00 | EI45: 0 | EJ45: 0 | EK45: 0 | EL45: 0 | EM45: 0 | EN45: 0 | EO45: 0 | EP45: 0 | EQ45: 0 | ER45: 0 | ES45: 0.00 | EU45: 0 | EV45: 0 | EW45: 0 | EX45: 0 | EY45: 0 | EZ45: 0 | FA45: 0 | FB45: 0 | FC45: 0 | FD45: 0 | FE45: 0.00 | FG45: 0 | FH45: 0 | FI45: 0 | FJ45: 0 | FK45: 0.00 | FP45: 0 | FQ45: 0 | FR45: 0.00 | FW45: 0 | GE45: 0 | GF45: 0 | GG45: 0 | GH45: 0 | GL45: 0 | GM45: / | GN45: 200 | GO45: 0/200 | GP45: 0 | GQ45: / | GR45: 200 | GS45: 0/200 | GT45: 0 | GU45: / | GV45: 200 | GW45: 0/200 | GX45: 0 | GY45: / | GZ45: 100 | HA45: 0/100 | HJ45: 0 | HK45: 0 | HL45: 0 | HM45: 0 | HN45: 0 | HO45: 0 | HP45: 0 | HQ45: 0
A46: 0 | B46: 38 | C46: 38 | D46: 0 | L46: 0 | M46: 0 | N46: 0 | O46: 0 | P46: 0 | Q46: 0 | R46: 0 | S46: 0 | T46: 0 | U46: 0 | V46: 0.00 | Z46: 0 | AA46: 0 | AB46: 0 | AC46: 0 | AD46: 0 | AE46: 0 | AF46: 0 | AG46: 0 | AH46: 0 | AI46: 0 | AJ46: 0.00 | AO46: 0 | AP46: 0 | AQ46: 0 | AR46: 0 | AS46: 0 | AT46: 0 | AU46: 0 | AV46: 0 | AW46: 0 | AX46: 0 | AY46: 0 | AZ46: 0 | BA46: 0.00 | BF46: 0 | BG46: 0 | BH46: 0 | BI46: 0 | BJ46: 0 | BK46: 0 | BL46: 0 | BM46: 0 | BN46: 0 | BO46: 0 | BP46: 0 | BQ46: 0 | BR46: 0 | BW46: 0 | BX46: 0 | BY46: 0 | BZ46: 0 | CA46: 0 | CB46: 0 | CC46: 0 | CD46: 0 | CE46: 0 | CF46: 0 | CG46: 0 | CH46: 0 | CI46: 0.00 | CN46: 0 | CO46: 0 | CP46: 0 | CQ46: 0 | CR46: 0 | CS46: 0 | CT46: 0 | CU46: 0 | CV46: 0 | CW46: 0 | CX46: 0 | CY46: 0 | CZ46: 0 | DE46: 0 | DF46: 0 | DG46: 0 | DH46: 0 | DI46: 0 | DJ46: 0 | DK46: 0 | DL46: 0 | DM46: 0 | DN46: 0 | DO46: 0 | DP46: 0 | DQ46: 0 | DU46: 0 | DV46: 0 | DW46: 0 | DX46: 0 | DY46: 0 | DZ46: 0 | EA46: 0 | EB46: 0 | EC46: 0 | ED46: 0 | EE46: 0 | EF46: 0 | EG46: 0.00 | EI46: 0 | EJ46: 0 | EK46: 0 | EL46: 0 | EM46: 0 | EN46: 0 | EO46: 0 | EP46: 0 | EQ46: 0 | ER46: 0 | ES46: 0.00 | EU46: 0 | EV46: 0 | EW46: 0 | EX46: 0 | EY46: 0 | EZ46: 0 | FA46: 0 | FB46: 0 | FC46: 0 | FD46: 0 | FE46: 0.00 | FG46: 0 | FH46: 0 | FI46: 0 | FJ46: 0 | FK46: 0.00 | FP46: 0 | FQ46: 0 | FR46: 0.00 | FW46: 0 | GE46: 0 | GF46: 0 | GG46: 0 | GH46: 0 | GL46: 0 | GM46: / | GN46: 200 | GO46: 0/200 | GP46: 0 | GQ46: / | GR46: 200 | GS46: 0/200 | GT46: 0 | GU46: / | GV46: 200 | GW46: 0/200 | GX46: 0 | GY46: / | GZ46: 100 | HA46: 0/100 | HJ46: 0 | HK46: 0 | HL46: 0 | HM46: 0 | HN46: 0 | HO46: 0 | HP46: 0 | HQ46: 0
A47: 0 | B47: 39 | C47: 39 | D47: 0 | L47: 0 | M47: 0 | N47: 0 | O47: 0 | P47: 0 | Q47: 0 | R47: 0 | S47: 0 | T47: 0 | U47: 0 | V47: 0.00 | Z47: 0 | AA47: 0 | AB47: 0 | AC47: 0 | AD47: 0 | AE47: 0 | AF47: 0 | AG47: 0 | AH47: 0 | AI47: 0 | AJ47: 0.00 | AO47: 0 | AP47: 0 | AQ47: 0 | AR47: 0 | AS47: 0 | AT47: 0 | AU47: 0 | AV47: 0 | AW47: 0 | AX47: 0 | AY47: 0 | AZ47: 0 | BA47: 0.00 | BF47: 0 | BG47: 0 | BH47: 0 | BI47: 0 | BJ47: 0 | BK47: 0 | BL47: 0 | BM47: 0 | BN47: 0 | BO47: 0 | BP47: 0 | BQ47: 0 | BR47: 0 | BW47: 0 | BX47: 0 | BY47: 0 | BZ47: 0 | CA47: 0 | CB47: 0 | CC47: 0 | CD47: 0 | CE47: 0 | CF47: 0 | CG47: 0 | CH47: 0 | CI47: 0.00 | CN47: 0 | CO47: 0 | CP47: 0 | CQ47: 0 | CR47: 0 | CS47: 0 | CT47: 0 | CU47: 0 | CV47: 0 | CW47: 0 | CX47: 0 | CY47: 0 | CZ47: 0 | DE47: 0 | DF47: 0 | DG47: 0 | DH47: 0 | DI47: 0 | DJ47: 0 | DK47: 0 | DL47: 0 | DM47: 0 | DN47: 0 | DO47: 0 | DP47: 0 | DQ47: 0 | DU47: 0 | DV47: 0 | DW47: 0 | DX47: 0 | DY47: 0 | DZ47: 0 | EA47: 0 | EB47: 0 | EC47: 0 | ED47: 0 | EE47: 0 | EF47: 0 | EG47: 0.00 | EI47: 0 | EJ47: 0 | EK47: 0 | EL47: 0 | EM47: 0 | EN47: 0 | EO47: 0 | EP47: 0 | EQ47: 0 | ER47: 0 | ES47: 0.00 | EU47: 0 | EV47: 0 | EW47: 0 | EX47: 0 | EY47: 0 | EZ47: 0 | FA47: 0 | FB47: 0 | FC47: 0 | FD47: 0 | FE47: 0.00 | FG47: 0 | FH47: 0 | FI47: 0 | FJ47: 0 | FK47: 0.00 | FP47: 0 | FQ47: 0 | FR47: 0.00 | FW47: 0 | GE47: 0 | GF47: 0 | GG47: 0 | GH47: 0 | GL47: 0 | GM47: / | GN47: 200 | GO47: 0/200 | GP47: 0 | GQ47: / | GR47: 200 | GS47: 0/200 | GT47: 0 | GU47: / | GV47: 200 | GW47: 0/200 | GX47: 0 | GY47: / | GZ47: 100 | HA47: 0/100 | HJ47: 0 | HK47: 0 | HL47: 0 | HM47: 0 | HN47: 0 | HO47: 0 | HP47: 0 | HQ47: 0
A48: 0 | B48: 40 | C48: 40 | D48: 0 | L48: 0 | M48: 0 | N48: 0 | O48: 0 | P48: 0 | Q48: 0 | R48: 0 | S48: 0 | T48: 0 | U48: 0 | V48: 0.00 | Z48: 0 | AA48: 0 | AB48: 0 | AC48: 0 | AD48: 0 | AE48: 0 | AF48: 0 | AG48: 0 | AH48: 0 | AI48: 0 | AJ48: 0.00 | AK48: =IF(AF48="AB","AB",IF(AND(OR(Z48="ab",Z48="ml"),OR(AA48="ab",AA48="ml"),OR(AC48="ab",AC48="ml")),"AB",IF(AND(OR(Z48="ab",Z48="ml"),OR(AC48="ab",AC48="ml")),"AB",""))) ->  | AM48: =IF(OR(AL48="",AL48=0,AL48="S",AL48="F",AL48="AB"),AL48,IF(AJ48>=75,"D",IF(AJ48>=60,"I",IF(AJ48>=48,"II",IF(AJ48>=36,"III",AL48))))) ->  | AO48: 0 | AP48: 0 | AQ48: 0 | AR48: 0 | AS48: 0 | AT48: 0 | AU48: 0 | AV48: 0 | AW48: 0 | AX48: 0 | AY48: 0 | AZ48: 0 | BA48: 0.00 | BB48: =IF(AV48="AB","AB",IF(AND(OR(AO48="ab",AO48="ml"),OR(AP48="ab",AP48="ml"),OR(AR48="ab",AR48="ml")),"AB",IF(AND(OR(AO48="ab",AO48="ml"),OR(AR48="ab",AR48="ml")),"AB",""))) ->  | BF48: 0 | BG48: 0 | BH48: 0 | BI48: 0 | BJ48: 0 | BK48: 0 | BL48: 0 | BM48: 0 | BN48: 0 | BO48: 0 | BP48: 0 | BQ48: 0 | BR48: 0 | BS48: =IF(BM48="AB","AB",IF(AND(OR(BF48="ab",BF48="ml"),OR(BG48="ab",BG48="ml"),OR(BI48="ab",BI48="ml")),"AB",IF(AND(OR(BF48="ab",BF48="ml"),OR(BI48="ab",BI48="ml")),"AB",""))) ->  | BW48: 0 | BX48: 0 | BY48: 0 | BZ48: 0 | CA48: 0 | CB48: 0 | CC48: 0 | CD48: 0 | CE48: 0 | CF48: 0 | CG48: 0 | CH48: 0 | CI48: 0.00 | CN48: 0 | CO48: 0 | CP48: 0 | CQ48: 0 | CR48: 0 | CS48: 0 | CT48: 0 | CU48: 0 | CV48: 0 | CW48: 0 | CX48: 0 | CY48: 0 | CZ48: 0 | DE48: 0 | DF48: 0 | DG48: 0 | DH48: 0 | DI48: 0 | DJ48: 0 | DK48: 0 | DL48: 0 | DM48: 0 | DN48: 0 | DO48: 0 | DP48: 0 | DQ48: 0 | DU48: 0 | DV48: 0 | DW48: 0 | DX48: 0 | DY48: 0 | DZ48: 0 | EA48: 0 | EB48: 0 | EC48: 0 | ED48: 0 | EE48: 0 | EF48: 0 | EG48: 0.00 | EI48: 0 | EJ48: 0 | EK48: 0 | EL48: 0 | EM48: 0 | EN48: 0 | EO48: 0 | EP48: 0 | EQ48: 0 | ER48: 0 | ES48: 0.00 | EU48: 0 | EV48: 0 | EW48: 0 | EX48: 0 | EY48: 0 | EZ48: 0 | FA48: 0 | FB48: 0 | FC48: 0 | FD48: 0 | FE48: 0.00 | FG48: 0 | FH48: 0 | FI48: 0 | FJ48: 0 | FK48: 0.00 | FP48: 0 | FQ48: 0 | FR48: 0.00 | FW48: 0 | GE48: 0 | GF48: 0 | GG48: 0 | GH48: 0 | GL48: 0 | GM48: / | GN48: 200 | GO48: 0/200 | GP48: 0 | GQ48: / | GR48: 200 | GS48: 0/200 | GT48: 0 | GU48: / | GV48: 200 | GW48: 0/200 | GX48: 0 | GY48: / | GZ48: 100 | HA48: 0/100 | HJ48: 0 | HK48: 0 | HL48: 0 | HM48: 0 | HN48: 0 | HO48: 0 | HP48: 0 | HQ48: 0
A49: 0 | B49: 41 | C49: 41 | D49: 0 | L49: 0 | M49: 0 | N49: 0 | O49: 0 | P49: 0 | Q49: 0 | R49: 0 | S49: 0 | T49: 0 | U49: 0 | V49: 0.00 | Z49: 0 | AA49: 0 | AB49: 0 | AC49: 0 | AD49: 0 | AE49: 0 | AF49: 0 | AG49: 0 | AH49: 0 | AI49: 0 | AJ49: 0.00 | AK49: =IF(AF49="AB","AB",IF(AND(OR(Z49="ab",Z49="ml"),OR(AA49="ab",AA49="ml"),OR(AC49="ab",AC49="ml")),"AB",IF(AND(OR(Z49="ab",Z49="ml"),OR(AC49="ab",AC49="ml")),"AB",""))) ->  | AM49: =IF(OR(AL49="",AL49=0,AL49="S",AL49="F",AL49="AB"),AL49,IF(AJ49>=75,"D",IF(AJ49>=60,"I",IF(AJ49>=48,"II",IF(AJ49>=36,"III",AL49))))) ->  | AO49: 0 | AP49: 0 | AQ49: 0 | AR49: 0 | AS49: 0 | AT49: 0 | AU49: 0 | AV49: 0 | AW49: 0 | AX49: 0 | AY49: 0 | AZ49: 0 | BA49: 0.00 | BB49: =IF(AV49="AB","AB",IF(AND(OR(AO49="ab",AO49="ml"),OR(AP49="ab",AP49="ml"),OR(AR49="ab",AR49="ml")),"AB",IF(AND(OR(AO49="ab",AO49="ml"),OR(AR49="ab",AR49="ml")),"AB",""))) ->  | BF49: 0 | BG49: 0 | BH49: 0 | BI49: 0 | BJ49: 0 | BK49: 0 | BL49: 0 | BM49: 0 | BN49: 0 | BO49: 0 | BP49: 0 | BQ49: 0 | BR49: 0 | BS49: =IF(BM49="AB","AB",IF(AND(OR(BF49="ab",BF49="ml"),OR(BG49="ab",BG49="ml"),OR(BI49="ab",BI49="ml")),"AB",IF(AND(OR(BF49="ab",BF49="ml"),OR(BI49="ab",BI49="ml")),"AB",""))) ->  | BW49: 0 | BX49: 0 | BY49: 0 | BZ49: 0 | CA49: 0 | CB49: 0 | CC49: 0 | CD49: 0 | CE49: 0 | CF49: 0 | CG49: 0 | CH49: 0 | CI49: 0.00 | CN49: 0 | CO49: 0 | CP49: 0 | CQ49: 0 | CR49: 0 | CS49: 0 | CT49: 0 | CU49: 0 | CV49: 0 | CW49: 0 | CX49: 0 | CY49: 0 | CZ49: 0 | DE49: 0 | DF49: 0 | DG49: 0 | DH49: 0 | DI49: 0 | DJ49: 0 | DK49: 0 | DL49: 0 | DM49: 0 | DN49: 0 | DO49: 0 | DP49: 0 | DQ49: 0 | DU49: 0 | DV49: 0 | DW49: 0 | DX49: 0 | DY49: 0 | DZ49: 0 | EA49: 0 | EB49: 0 | EC49: 0 | ED49: 0 | EE49: 0 | EF49: 0 | EG49: 0.00 | EI49: 0 | EJ49: 0 | EK49: 0 | EL49: 0 | EM49: 0 | EN49: 0 | EO49: 0 | EP49: 0 | EQ49: 0 | ER49: 0 | ES49: 0.00 | EU49: 0 | EV49: 0 | EW49: 0 | EX49: 0 | EY49: 0 | EZ49: 0 | FA49: 0 | FB49: 0 | FC49: 0 | FD49: 0 | FE49: 0.00 | FG49: 0 | FH49: 0 | FI49: 0 | FJ49: 0 | FK49: 0.00 | FP49: 0 | FQ49: 0 | FR49: 0.00 | FW49: 0 | GE49: 0 | GF49: 0 | GG49: 0 | GH49: 0 | GL49: 0 | GM49: / | GN49: 200 | GO49: 0/200 | GP49: 0 | GQ49: / | GR49: 200 | GS49: 0/200 | GT49: 0 | GU49: / | GV49: 200 | GW49: 0/200 | GX49: 0 | GY49: / | GZ49: 100 | HA49: 0/100 | HJ49: 0 | HK49: 0 | HL49: 0 | HM49: 0 | HN49: 0 | HO49: 0 | HP49: 0 | HQ49: 0
A50: 0 | B50: 42 | C50: 42 | D50: 0 | L50: 0 | M50: 0 | N50: 0 | O50: 0 | P50: 0 | Q50: 0 | R50: 0 | S50: 0 | T50: 0 | U50: 0 | V50: 0.00 | Z50: 0 | AA50: 0 | AB50: 0 | AC50: 0 | AD50: 0 | AE50: 0 | AF50: 0 | AG50: 0 | AH50: 0 | AI50: 0 | AJ50: 0.00 | AK50: =IF(AF50="AB","AB",IF(AND(OR(Z50="ab",Z50="ml"),OR(AA50="ab",AA50="ml"),OR(AC50="ab",AC50="ml")),"AB",IF(AND(OR(Z50="ab",Z50="ml"),OR(AC50="ab",AC50="ml")),"AB",""))) ->  | AM50: =IF(OR(AL50="",AL50=0,AL50="S",AL50="F",AL50="AB"),AL50,IF(AJ50>=75,"D",IF(AJ50>=60,"I",IF(AJ50>=48,"II",IF(AJ50>=36,"III",AL50))))) ->  | AO50: 0 | AP50: 0 | AQ50: 0 | AR50: 0 | AS50: 0 | AT50: 0 | AU50: 0 | AV50: 0 | AW50: 0 | AX50: 0 | AY50: 0 | AZ50: 0 | BA50: 0.00 | BB50: =IF(AV50="AB","AB",IF(AND(OR(AO50="ab",AO50="ml"),OR(AP50="ab",AP50="ml"),OR(AR50="ab",AR50="ml")),"AB",IF(AND(OR(AO50="ab",AO50="ml"),OR(AR50="ab",AR50="ml")),"AB",""))) ->  | BF50: 0 | BG50: 0 | BH50: 0 | BI50: 0 | BJ50: 0 | BK50: 0 | BL50: 0 | BM50: 0 | BN50: 0 | BO50: 0 | BP50: 0 | BQ50: 0 | BR50: 0 | BS50: =IF(BM50="AB","AB",IF(AND(OR(BF50="ab",BF50="ml"),OR(BG50="ab",BG50="ml"),OR(BI50="ab",BI50="ml")),"AB",IF(AND(OR(BF50="ab",BF50="ml"),OR(BI50="ab",BI50="ml")),"AB",""))) ->  | BW50: 0 | BX50: 0 | BY50: 0 | BZ50: 0 | CA50: 0 | CB50: 0 | CC50: 0 | CD50: 0 | CE50: 0 | CF50: 0 | CG50: 0 | CH50: 0 | CI50: 0.00 | CN50: 0 | CO50: 0 | CP50: 0 | CQ50: 0 | CR50: 0 | CS50: 0 | CT50: 0 | CU50: 0 | CV50: 0 | CW50: 0 | CX50: 0 | CY50: 0 | CZ50: 0 | DE50: 0 | DF50: 0 | DG50: 0 | DH50: 0 | DI50: 0 | DJ50: 0 | DK50: 0 | DL50: 0 | DM50: 0 | DN50: 0 | DO50: 0 | DP50: 0 | DQ50: 0 | DU50: 0 | DV50: 0 | DW50: 0 | DX50: 0 | DY50: 0 | DZ50: 0 | EA50: 0 | EB50: 0 | EC50: 0 | ED50: 0 | EE50: 0 | EF50: 0 | EG50: 0.00 | EI50: 0 | EJ50: 0 | EK50: 0 | EL50: 0 | EM50: 0 | EN50: 0 | EO50: 0 | EP50: 0 | EQ50: 0 | ER50: 0 | ES50: 0.00 | EU50: 0 | EV50: 0 | EW50: 0 | EX50: 0 | EY50: 0 | EZ50: 0 | FA50: 0 | FB50: 0 | FC50: 0 | FD50: 0 | FE50: 0.00 | FG50: 0 | FH50: 0 | FI50: 0 | FJ50: 0 | FK50: 0.00 | FO50: =IF(OR(FM50="",FN50=""),"",FN50/FM50*100) ->  | FP50: 0 | FQ50: 0 | FR50: 0.00 | FW50: 0 | GE50: 0 | GF50: 0 | GG50: 0 | GH50: 0 | GL50: 0 | GM50: / | GN50: 200 | GO50: 0/200 | GP50: 0 | GQ50: / | GR50: 200 | GS50: 0/200 | GT50: 0 | GU50: / | GV50: 200 | GW50: 0/200 | GX50: 0 | GY50: / | GZ50: 100 | HA50: 0/100 | HJ50: 0 | HK50: 0 | HL50: 0 | HM50: 0 | HN50: 0 | HO50: 0 | HP50: 0 | HQ50: 0
A51: 0 | B51: 43 | C51: 43 | D51: 0 | L51: 0 | M51: 0 | N51: 0 | O51: 0 | P51: 0 | Q51: 0 | R51: 0 | S51: 0 | T51: 0 | U51: 0 | V51: 0.00 | Z51: 0 | AA51: 0 | AB51: 0 | AC51: 0 | AD51: 0 | AE51: 0 | AF51: 0 | AG51: 0 | AH51: 0 | AI51: 0 | AJ51: 0.00 | AO51: 0 | AP51: 0 | AQ51: 0 | AR51: 0 | AS51: 0 | AT51: 0 | AU51: 0 | AV51: 0 | AW51: 0 | AX51: 0 | AY51: 0 | AZ51: 0 | BA51: 0.00 | BF51: 0 | BG51: 0 | BH51: 0 | BI51: 0 | BJ51: 0 | BK51: 0 | BL51: 0 | BM51: 0 | BN51: 0 | BO51: 0 | BP51: 0 | BQ51: 0 | BR51: 0 | BW51: 0 | BX51: 0 | BY51: 0 | BZ51: 0 | CA51: 0 | CB51: 0 | CC51: 0 | CD51: 0 | CE51: 0 | CF51: 0 | CG51: 0 | CH51: 0 | CI51: 0.00 | CN51: 0 | CO51: 0 | CP51: 0 | CQ51: 0 | CR51: 0 | CS51: 0 | CT51: 0 | CU51: 0 | CV51: 0 | CW51: 0 | CX51: 0 | CY51: 0 | CZ51: 0 | DE51: 0 | DF51: 0 | DG51: 0 | DH51: 0 | DI51: 0 | DJ51: 0 | DK51: 0 | DL51: 0 | DM51: 0 | DN51: 0 | DO51: 0 | DP51: 0 | DQ51: 0 | DU51: 0 | DV51: 0 | DW51: 0 | DX51: 0 | DY51: 0 | DZ51: 0 | EA51: 0 | EB51: 0 | EC51: 0 | ED51: 0 | EE51: 0 | EF51: 0 | EG51: 0.00 | EI51: 0 | EJ51: 0 | EK51: 0 | EL51: 0 | EM51: 0 | EN51: 0 | EO51: 0 | EP51: 0 | EQ51: 0 | ER51: 0 | ES51: 0.00 | EU51: 0 | EV51: 0 | EW51: 0 | EX51: 0 | EY51: 0 | EZ51: 0 | FA51: 0 | FB51: 0 | FC51: 0 | FD51: 0 | FE51: 0.00 | FG51: 0 | FH51: 0 | FI51: 0 | FJ51: =SUM(FG51:FI51) -> 0 | FK51: 0.00 | FP51: 0 | FQ51: 0 | FR51: 0.00 | FW51: 0 | GE51: 0 | GF51: 0 | GG51: 0 | GH51: 0 | GL51: 0 | GM51: / | GN51: 200 | GO51: 0/200 | GP51: 0 | GQ51: / | GR51: 200 | GS51: 0/200 | GT51: 0 | GU51: / | GV51: 200 | GW51: 0/200 | GX51: 0 | GY51: / | GZ51: 100 | HA51: 0/100 | HJ51: 0 | HK51: 0 | HL51: 0 | HM51: 0 | HN51: 0 | HO51: 0 | HP51: 0 | HQ51: 0
A52: 0 | B52: 44 | C52: 44 | D52: 0 | L52: 0 | M52: 0 | N52: 0 | O52: 0 | P52: 0 | Q52: 0 | R52: 0 | S52: 0 | T52: 0 | U52: 0 | V52: 0.00 | Z52: 0 | AA52: 0 | AB52: 0 | AC52: 0 | AD52: 0 | AE52: 0 | AF52: 0 | AG52: 0 | AH52: 0 | AI52: 0 | AJ52: 0.00 | AO52: 0 | AP52: 0 | AQ52: 0 | AR52: 0 | AS52: 0 | AT52: 0 | AU52: 0 | AV52: 0 | AW52: 0 | AX52: 0 | AY52: 0 | AZ52: 0 | BA52: 0.00 | BF52: 0 | BG52: 0 | BH52: 0 | BI52: 0 | BJ52: 0 | BK52: 0 | BL52: 0 | BM52: 0 | BN52: 0 | BO52: 0 | BP52: 0 | BQ52: 0 | BR52: 0 | BW52: 0 | BX52: 0 | BY52: 0 | BZ52: 0 | CA52: 0 | CB52: 0 | CC52: 0 | CD52: 0 | CE52: 0 | CF52: 0 | CG52: 0 | CH52: 0 | CI52: 0.00 | CN52: 0 | CO52: 0 | CP52: 0 | CQ52: 0 | CR52: 0 | CS52: 0 | CT52: 0 | CU52: 0 | CV52: 0 | CW52: 0 | CX52: 0 | CY52: 0 | CZ52: 0 | DE52: 0 | DF52: 0 | DG52: 0 | DH52: 0 | DI52: 0 | DJ52: 0 | DK52: 0 | DL52: 0 | DM52: 0 | DN52: 0 | DO52: 0 | DP52: 0 | DQ52: 0 | DU52: 0 | DV52: 0 | DW52: 0 | DX52: 0 | DY52: 0 | DZ52: 0 | EA52: 0 | EB52: 0 | EC52: 0 | ED52: 0 | EE52: 0 | EF52: 0 | EG52: 0.00 | EI52: 0 | EJ52: 0 | EK52: 0 | EL52: 0 | EM52: 0 | EN52: 0 | EO52: 0 | EP52: 0 | EQ52: 0 | ER52: 0 | ES52: 0.00 | EU52: 0 | EV52: 0 | EW52: 0 | EX52: 0 | EY52: 0 | EZ52: 0 | FA52: 0 | FB52: 0 | FC52: 0 | FD52: 0 | FE52: 0.00 | FG52: 0 | FH52: 0 | FI52: 0 | FJ52: 0 | FK52: 0.00 | FP52: 0 | FQ52: 0 | FR52: 0.00 | FW52: 0 | GE52: 0 | GF52: 0 | GG52: 0 | GH52: 0 | GL52: 0 | GM52: / | GN52: 200 | GO52: 0/200 | GP52: 0 | GQ52: / | GR52: 200 | GS52: 0/200 | GT52: 0 | GU52: / | GV52: 200 | GW52: 0/200 | GX52: 0 | GY52: / | GZ52: 100 | HA52: 0/100 | HJ52: 0 | HK52: 0 | HL52: 0 | HM52: 0 | HN52: 0 | HO52: 0 | HP52: 0 | HQ52: 0
A53: 0 | B53: 45 | C53: 45 | D53: 0 | L53: 0 | M53: 0 | N53: 0 | O53: 0 | P53: 0 | Q53: 0 | R53: 0 | S53: 0 | T53: 0 | U53: 0 | V53: 0.00 | Z53: 0 | AA53: 0 | AB53: 0 | AC53: 0 | AD53: 0 | AE53: 0 | AF53: 0 | AG53: 0 | AH53: 0 | AI53: 0 | AJ53: 0.00 | AO53: 0 | AP53: 0 | AQ53: 0 | AR53: 0 | AS53: 0 | AT53: 0 | AU53: 0 | AV53: 0 | AW53: 0 | AX53: 0 | AY53: 0 | AZ53: 0 | BA53: 0.00 | BF53: 0 | BG53: 0 | BH53: 0 | BI53: 0 | BJ53: 0 | BK53: 0 | BL53: 0 | BM53: 0 | BN53: 0 | BO53: 0 | BP53: 0 | BQ53: 0 | BR53: 0 | BW53: 0 | BX53: 0 | BY53: 0 | BZ53: 0 | CA53: 0 | CB53: 0 | CC53: 0 | CD53: 0 | CE53: 0 | CF53: 0 | CG53: 0 | CH53: 0 | CI53: 0.00 | CN53: 0 | CO53: 0 | CP53: 0 | CQ53: 0 | CR53: 0 | CS53: 0 | CT53: 0 | CU53: 0 | CV53: 0 | CW53: 0 | CX53: 0 | CY53: 0 | CZ53: 0 | DE53: 0 | DF53: 0 | DG53: 0 | DH53: 0 | DI53: 0 | DJ53: 0 | DK53: 0 | DL53: 0 | DM53: 0 | DN53: 0 | DO53: 0 | DP53: 0 | DQ53: 0 | DU53: 0 | DV53: 0 | DW53: 0 | DX53: 0 | DY53: 0 | DZ53: 0 | EA53: 0 | EB53: 0 | EC53: 0 | ED53: 0 | EE53: 0 | EF53: 0 | EG53: 0.00 | EI53: 0 | EJ53: 0 | EK53: 0 | EL53: 0 | EM53: 0 | EN53: 0 | EO53: 0 | EP53: 0 | EQ53: 0 | ER53: 0 | ES53: 0.00 | EU53: 0 | EV53: 0 | EW53: 0 | EX53: 0 | EY53: 0 | EZ53: 0 | FA53: 0 | FB53: 0 | FC53: 0 | FD53: 0 | FE53: 0.00 | FG53: 0 | FH53: 0 | FI53: 0 | FJ53: 0 | FK53: 0.00 | FP53: 0 | FQ53: 0 | FR53: 0.00 | FW53: 0 | GE53: 0 | GF53: 0 | GG53: 0 | GH53: 0 | GL53: 0 | GM53: / | GN53: 200 | GO53: 0/200 | GP53: 0 | GQ53: / | GR53: 200 | GS53: 0/200 | GT53: 0 | GU53: / | GV53: 200 | GW53: 0/200 | GX53: 0 | GY53: / | GZ53: 100 | HA53: 0/100 | HJ53: 0 | HK53: 0 | HL53: 0 | HM53: 0 | HN53: 0 | HO53: 0 | HP53: 0 | HQ53: 0
A54: 0 | B54: 46 | C54: 46 | D54: 0 | L54: 0 | M54: 0 | N54: 0 | O54: 0 | P54: 0 | Q54: 0 | R54: 0 | S54: 0 | T54: 0 | U54: 0 | V54: 0.00 | Z54: 0 | AA54: 0 | AB54: 0 | AC54: 0 | AD54: 0 | AE54: 0 | AF54: 0 | AG54: 0 | AH54: 0 | AI54: 0 | AJ54: 0.00 | AO54: 0 | AP54: 0 | AQ54: 0 | AR54: 0 | AS54: 0 | AT54: 0 | AU54: 0 | AV54: 0 | AW54: 0 | AX54: 0 | AY54: 0 | AZ54: 0 | BA54: 0.00 | BF54: 0 | BG54: 0 | BH54: 0 | BI54: 0 | BJ54: 0 | BK54: 0 | BL54: 0 | BM54: 0 | BN54: 0 | BO54: 0 | BP54: 0 | BQ54: 0 | BR54: 0 | BW54: 0 | BX54: 0 | BY54: 0 | BZ54: 0 | CA54: 0 | CB54: 0 | CC54: 0 | CD54: 0 | CE54: 0 | CF54: 0 | CG54: 0 | CH54: 0 | CI54: 0.00 | CN54: 0 | CO54: 0 | CP54: 0 | CQ54: 0 | CR54: 0 | CS54: 0 | CT54: 0 | CU54: 0 | CV54: 0 | CW54: 0 | CX54: 0 | CY54: 0 | CZ54: 0 | DE54: 0 | DF54: 0 | DG54: 0 | DH54: 0 | DI54: 0 | DJ54: 0 | DK54: 0 | DL54: 0 | DM54: 0 | DN54: 0 | DO54: 0 | DP54: 0 | DQ54: 0 | DU54: 0 | DV54: 0 | DW54: 0 | DX54: 0 | DY54: 0 | DZ54: 0 | EA54: 0 | EB54: 0 | EC54: 0 | ED54: 0 | EE54: 0 | EF54: 0 | EG54: 0.00 | EI54: 0 | EJ54: 0 | EK54: 0 | EL54: 0 | EM54: 0 | EN54: 0 | EO54: 0 | EP54: 0 | EQ54: 0 | ER54: 0 | ES54: 0.00 | EU54: 0 | EV54: 0 | EW54: 0 | EX54: 0 | EY54: 0 | EZ54: 0 | FA54: 0 | FB54: 0 | FC54: 0 | FD54: 0 | FE54: 0.00 | FG54: 0 | FH54: 0 | FI54: 0 | FJ54: 0 | FK54: 0.00 | FP54: 0 | FQ54: 0 | FR54: 0.00 | FW54: 0 | GE54: 0 | GF54: 0 | GG54: 0 | GH54: 0 | GL54: 0 | GM54: / | GN54: 200 | GO54: 0/200 | GP54: 0 | GQ54: / | GR54: 200 | GS54: 0/200 | GT54: 0 | GU54: / | GV54: 200 | GW54: 0/200 | GX54: 0 | GY54: / | GZ54: 100 | HA54: 0/100 | HJ54: 0 | HK54: 0 | HL54: 0 | HM54: 0 | HN54: 0 | HO54: 0 | HP54: 0 | HQ54: 0
A55: 0 | B55: 47 | C55: 47 | D55: 0 | L55: 0 | M55: 0 | N55: 0 | O55: 0 | P55: 0 | Q55: 0 | R55: 0 | S55: 0 | T55: 0 | U55: 0 | V55: 0.00 | Z55: 0 | AA55: 0 | AB55: 0 | AC55: 0 | AD55: 0 | AE55: 0 | AF55: 0 | AG55: 0 | AH55: 0 | AI55: 0 | AJ55: 0.00 | AO55: 0 | AP55: 0 | AQ55: 0 | AR55: 0 | AS55: 0 | AT55: 0 | AU55: 0 | AV55: 0 | AW55: 0 | AX55: 0 | AY55: 0 | AZ55: 0 | BA55: 0.00 | BF55: 0 | BG55: 0 | BH55: 0 | BI55: 0 | BJ55: 0 | BK55: 0 | BL55: 0 | BM55: 0 | BN55: 0 | BO55: 0 | BP55: 0 | BQ55: 0 | BR55: 0 | BW55: 0 | BX55: 0 | BY55: 0 | BZ55: 0 | CA55: 0 | CB55: 0 | CC55: 0 | CD55: 0 | CE55: 0 | CF55: 0 | CG55: 0 | CH55: 0 | CI55: 0.00 | CN55: 0 | CO55: 0 | CP55: 0 | CQ55: 0 | CR55: 0 | CS55: 0 | CT55: 0 | CU55: 0 | CV55: 0 | CW55: 0 | CX55: 0 | CY55: 0 | CZ55: 0 | DE55: 0 | DF55: 0 | DG55: 0 | DH55: 0 | DI55: 0 | DJ55: 0 | DK55: 0 | DL55: 0 | DM55: 0 | DN55: 0 | DO55: 0 | DP55: 0 | DQ55: 0 | DU55: 0 | DV55: 0 | DW55: 0 | DX55: 0 | DY55: 0 | DZ55: 0 | EA55: 0 | EB55: 0 | EC55: 0 | ED55: 0 | EE55: 0 | EF55: 0 | EG55: 0.00 | EI55: 0 | EJ55: 0 | EK55: 0 | EL55: 0 | EM55: 0 | EN55: 0 | EO55: 0 | EP55: 0 | EQ55: 0 | ER55: 0 | ES55: 0.00 | EU55: 0 | EV55: 0 | EW55: 0 | EX55: 0 | EY55: 0 | EZ55: 0 | FA55: 0 | FB55: 0 | FC55: 0 | FD55: 0 | FE55: 0.00 | FG55: 0 | FH55: 0 | FI55: 0 | FJ55: 0 | FK55: 0.00 | FP55: 0 | FQ55: 0 | FR55: 0.00 | FW55: 0 | GE55: 0 | GF55: 0 | GG55: 0 | GH55: 0 | GL55: 0 | GM55: / | GN55: 200 | GO55: 0/200 | GP55: 0 | GQ55: / | GR55: 200 | GS55: 0/200 | GT55: 0 | GU55: / | GV55: 200 | GW55: 0/200 | GX55: 0 | GY55: / | GZ55: 100 | HA55: 0/100 | HJ55: 0 | HK55: 0 | HL55: 0 | HM55: 0 | HN55: 0 | HO55: 0 | HP55: 0 | HQ55: 0
A56: 0 | B56: 48 | C56: 48 | D56: 0 | L56: 0 | M56: 0 | N56: 0 | O56: 0 | P56: 0 | Q56: 0 | R56: 0 | S56: 0 | T56: 0 | U56: 0 | V56: 0.00 | Z56: 0 | AA56: 0 | AB56: 0 | AC56: 0 | AD56: 0 | AE56: 0 | AF56: 0 | AG56: 0 | AH56: 0 | AI56: 0 | AJ56: 0.00 | AO56: 0 | AP56: 0 | AQ56: 0 | AR56: 0 | AS56: 0 | AT56: 0 | AU56: 0 | AV56: 0 | AW56: 0 | AX56: 0 | AY56: 0 | AZ56: 0 | BA56: 0.00 | BF56: 0 | BG56: 0 | BH56: 0 | BI56: 0 | BJ56: 0 | BK56: 0 | BL56: 0 | BM56: 0 | BN56: 0 | BO56: 0 | BP56: 0 | BQ56: 0 | BR56: 0 | BW56: 0 | BX56: 0 | BY56: 0 | BZ56: 0 | CA56: 0 | CB56: 0 | CC56: 0 | CD56: 0 | CE56: 0 | CF56: 0 | CG56: 0 | CH56: 0 | CI56: 0.00 | CN56: 0 | CO56: 0 | CP56: 0 | CQ56: 0 | CR56: 0 | CS56: 0 | CT56: 0 | CU56: 0 | CV56: 0 | CW56: 0 | CX56: 0 | CY56: 0 | CZ56: 0 | DE56: 0 | DF56: 0 | DG56: 0 | DH56: 0 | DI56: 0 | DJ56: 0 | DK56: 0 | DL56: 0 | DM56: 0 | DN56: 0 | DO56: 0 | DP56: 0 | DQ56: 0 | DU56: 0 | DV56: 0 | DW56: 0 | DX56: 0 | DY56: 0 | DZ56: 0 | EA56: 0 | EB56: 0 | EC56: 0 | ED56: 0 | EE56: 0 | EF56: 0 | EG56: 0.00 | EI56: 0 | EJ56: 0 | EK56: 0 | EL56: 0 | EM56: 0 | EN56: 0 | EO56: 0 | EP56: 0 | EQ56: 0 | ER56: 0 | ES56: 0.00 | EU56: 0 | EV56: 0 | EW56: 0 | EX56: 0 | EY56: 0 | EZ56: 0 | FA56: 0 | FB56: 0 | FC56: 0 | FD56: 0 | FE56: 0.00 | FG56: 0 | FH56: 0 | FI56: 0 | FJ56: 0 | FK56: 0.00 | FP56: 0 | FQ56: 0 | FR56: 0.00 | FW56: 0 | GE56: 0 | GF56: 0 | GG56: 0 | GH56: 0 | GL56: 0 | GM56: / | GN56: 200 | GO56: 0/200 | GP56: 0 | GQ56: / | GR56: 200 | GS56: 0/200 | GT56: 0 | GU56: / | GV56: 200 | GW56: 0/200 | GX56: 0 | GY56: / | GZ56: 100 | HA56: 0/100 | HJ56: 0 | HK56: 0 | HL56: 0 | HM56: 0 | HN56: 0 | HO56: 0 | HP56: 0 | HQ56: 0
A57: 0 | B57: 49 | C57: 49 | D57: 0 | L57: 0 | M57: 0 | N57: 0 | O57: 0 | P57: 0 | Q57: 0 | R57: 0 | S57: 0 | T57: 0 | U57: 0 | V57: 0.00 | Z57: 0 | AA57: 0 | AB57: 0 | AC57: 0 | AD57: 0 | AE57: 0 | AF57: 0 | AG57: 0 | AH57: 0 | AI57: 0 | AJ57: 0.00 | AO57: 0 | AP57: 0 | AQ57: 0 | AR57: 0 | AS57: 0 | AT57: 0 | AU57: 0 | AV57: 0 | AW57: 0 | AX57: 0 | AY57: 0 | AZ57: 0 | BA57: 0.00 | BF57: 0 | BG57: 0 | BH57: 0 | BI57: 0 | BJ57: 0 | BK57: 0 | BL57: 0 | BM57: 0 | BN57: 0 | BO57: 0 | BP57: 0 | BQ57: 0 | BR57: 0 | BW57: 0 | BX57: 0 | BY57: 0 | BZ57: 0 | CA57: 0 | CB57: 0 | CC57: 0 | CD57: 0 | CE57: 0 | CF57: 0 | CG57: 0 | CH57: 0 | CI57: 0.00 | CN57: 0 | CO57: 0 | CP57: 0 | CQ57: 0 | CR57: 0 | CS57: 0 | CT57: 0 | CU57: 0 | CV57: 0 | CW57: 0 | CX57: 0 | CY57: 0 | CZ57: 0 | DE57: 0 | DF57: 0 | DG57: 0 | DH57: 0 | DI57: 0 | DJ57: 0 | DK57: 0 | DL57: 0 | DM57: 0 | DN57: 0 | DO57: 0 | DP57: 0 | DQ57: 0 | DU57: 0 | DV57: 0 | DW57: 0 | DX57: 0 | DY57: 0 | DZ57: 0 | EA57: 0 | EB57: 0 | EC57: 0 | ED57: 0 | EE57: 0 | EF57: 0 | EG57: 0.00 | EI57: 0 | EJ57: 0 | EK57: 0 | EL57: 0 | EM57: 0 | EN57: 0 | EO57: 0 | EP57: 0 | EQ57: 0 | ER57: 0 | ES57: 0.00 | EU57: 0 | EV57: 0 | EW57: 0 | EX57: 0 | EY57: 0 | EZ57: 0 | FA57: 0 | FB57: 0 | FC57: 0 | FD57: 0 | FE57: 0.00 | FG57: 0 | FH57: 0 | FI57: 0 | FJ57: 0 | FK57: 0.00 | FP57: 0 | FQ57: 0 | FR57: 0.00 | FW57: 0 | GE57: 0 | GF57: 0 | GG57: 0 | GH57: 0 | GL57: 0 | GM57: / | GN57: 200 | GO57: 0/200 | GP57: 0 | GQ57: / | GR57: 200 | GS57: 0/200 | GT57: 0 | GU57: / | GV57: 200 | GW57: 0/200 | GX57: 0 | GY57: / | GZ57: 100 | HA57: 0/100 | HJ57: 0 | HK57: 0 | HL57: 0 | HM57: 0 | HN57: 0 | HO57: 0 | HP57: 0 | HQ57: 0
A58: 0 | B58: 50 | C58: 50 | D58: 0 | L58: 0 | M58: 0 | N58: 0 | O58: 0 | P58: 0 | Q58: 0 | R58: 0 | S58: 0 | T58: 0 | U58: 0 | V58: 0.00 | Z58: 0 | AA58: 0 | AB58: 0 | AC58: 0 | AD58: 0 | AE58: 0 | AF58: 0 | AG58: 0 | AH58: 0 | AI58: 0 | AJ58: 0.00 | AO58: 0 | AP58: 0 | AQ58: 0 | AR58: 0 | AS58: 0 | AT58: 0 | AU58: 0 | AV58: 0 | AW58: 0 | AX58: 0 | AY58: 0 | AZ58: 0 | BA58: 0.00 | BF58: 0 | BG58: 0 | BH58: 0 | BI58: 0 | BJ58: 0 | BK58: 0 | BL58: 0 | BM58: 0 | BN58: 0 | BO58: 0 | BP58: 0 | BQ58: 0 | BR58: 0 | BW58: 0 | BX58: 0 | BY58: 0 | BZ58: 0 | CA58: 0 | CB58: 0 | CC58: 0 | CD58: 0 | CE58: 0 | CF58: 0 | CG58: 0 | CH58: 0 | CI58: 0.00 | CN58: 0 | CO58: 0 | CP58: 0 | CQ58: 0 | CR58: 0 | CS58: 0 | CT58: 0 | CU58: 0 | CV58: 0 | CW58: 0 | CX58: 0 | CY58: 0 | CZ58: 0 | DE58: 0 | DF58: 0 | DG58: 0 | DH58: 0 | DI58: 0 | DJ58: 0 | DK58: 0 | DL58: 0 | DM58: 0 | DN58: 0 | DO58: 0 | DP58: 0 | DQ58: 0 | DU58: 0 | DV58: 0 | DW58: 0 | DX58: 0 | DY58: 0 | DZ58: 0 | EA58: 0 | EB58: 0 | EC58: 0 | ED58: 0 | EE58: 0 | EF58: 0 | EG58: 0.00 | EI58: 0 | EJ58: 0 | EK58: 0 | EL58: 0 | EM58: 0 | EN58: 0 | EO58: 0 | EP58: 0 | EQ58: 0 | ER58: 0 | ES58: 0.00 | EU58: 0 | EV58: 0 | EW58: 0 | EX58: 0 | EY58: 0 | EZ58: 0 | FA58: 0 | FB58: 0 | FC58: 0 | FD58: 0 | FE58: 0.00 | FG58: 0 | FH58: 0 | FI58: 0 | FJ58: 0 | FK58: 0.00 | FP58: 0 | FQ58: 0 | FR58: 0.00 | FW58: 0 | GE58: 0 | GF58: 0 | GG58: 0 | GH58: 0 | GL58: 0 | GM58: / | GN58: 200 | GO58: 0/200 | GP58: 0 | GQ58: / | GR58: 200 | GS58: 0/200 | GT58: 0 | GU58: / | GV58: 200 | GW58: 0/200 | GX58: 0 | GY58: / | GZ58: 100 | HA58: 0/100 | HJ58: 0 | HK58: 0 | HL58: 0 | HM58: 0 | HN58: 0 | HO58: 0 | HP58: 0 | HQ58: 0
A59: 0 | B59: 51 | C59: 51 | D59: 0 | L59: 0 | M59: 0 | N59: 0 | O59: 0 | P59: 0 | Q59: 0 | R59: 0 | S59: 0 | T59: 0 | U59: 0 | V59: 0.00 | Z59: 0 | AA59: 0 | AB59: 0 | AC59: 0 | AD59: 0 | AE59: 0 | AF59: 0 | AG59: 0 | AH59: 0 | AI59: 0 | AJ59: 0.00 | AO59: 0 | AP59: 0 | AQ59: 0 | AR59: 0 | AS59: 0 | AT59: 0 | AU59: 0 | AV59: 0 | AW59: 0 | AX59: 0 | AY59: 0 | AZ59: 0 | BA59: 0.00 | BF59: 0 | BG59: 0 | BH59: 0 | BI59: 0 | BJ59: 0 | BK59: 0 | BL59: 0 | BM59: 0 | BN59: 0 | BO59: 0 | BP59: 0 | BQ59: 0 | BR59: 0 | BW59: 0 | BX59: 0 | BY59: 0 | BZ59: 0 | CA59: 0 | CB59: 0 | CC59: 0 | CD59: 0 | CE59: 0 | CF59: 0 | CG59: 0 | CH59: 0 | CI59: 0.00 | CN59: 0 | CO59: 0 | CP59: 0 | CQ59: 0 | CR59: 0 | CS59: 0 | CT59: 0 | CU59: 0 | CV59: 0 | CW59: 0 | CX59: 0 | CY59: 0 | CZ59: 0 | DE59: 0 | DF59: 0 | DG59: 0 | DH59: 0 | DI59: 0 | DJ59: 0 | DK59: 0 | DL59: 0 | DM59: 0 | DN59: 0 | DO59: 0 | DP59: 0 | DQ59: 0 | DU59: 0 | DV59: 0 | DW59: 0 | DX59: 0 | DY59: 0 | DZ59: 0 | EA59: 0 | EB59: 0 | EC59: 0 | ED59: 0 | EE59: 0 | EF59: 0 | EG59: 0.00 | EI59: 0 | EJ59: 0 | EK59: 0 | EL59: 0 | EM59: 0 | EN59: 0 | EO59: 0 | EP59: 0 | EQ59: 0 | ER59: 0 | ES59: 0.00 | EU59: 0 | EV59: 0 | EW59: 0 | EX59: 0 | EY59: 0 | EZ59: 0 | FA59: 0 | FB59: 0 | FC59: 0 | FD59: 0 | FE59: 0.00 | FG59: 0 | FH59: 0 | FI59: 0 | FJ59: 0 | FK59: 0.00 | FP59: 0 | FQ59: 0 | FR59: 0.00 | FW59: 0 | GE59: 0 | GF59: 0 | GG59: 0 | GH59: 0 | GL59: 0 | GM59: / | GN59: 200 | GO59: 0/200 | GP59: 0 | GQ59: / | GR59: 200 | GS59: 0/200 | GT59: 0 | GU59: / | GV59: 200 | GW59: 0/200 | GX59: 0 | GY59: / | GZ59: 100 | HA59: 0/100 | HJ59: 0 | HK59: 0 | HL59: 0 | HM59: 0 | HN59: 0 | HO59: 0 | HP59: 0 | HQ59: 0
A60: 0 | B60: 52 | C60: 52 | D60: 0 | L60: 0 | M60: 0 | N60: 0 | O60: 0 | P60: 0 | Q60: 0 | R60: 0 | S60: 0 | T60: 0 | U60: 0 | V60: 0.00 | Z60: 0 | AA60: 0 | AB60: 0 | AC60: 0 | AD60: 0 | AE60: 0 | AF60: 0 | AG60: 0 | AH60: 0 | AI60: 0 | AJ60: 0.00 | AO60: 0 | AP60: 0 | AQ60: 0 | AR60: 0 | AS60: 0 | AT60: 0 | AU60: 0 | AV60: 0 | AW60: 0 | AX60: 0 | AY60: 0 | AZ60: 0 | BA60: 0.00 | BF60: 0 | BG60: 0 | BH60: 0 | BI60: 0 | BJ60: 0 | BK60: 0 | BL60: 0 | BM60: 0 | BN60: 0 | BO60: 0 | BP60: 0 | BQ60: 0 | BR60: 0 | BW60: 0 | BX60: 0 | BY60: 0 | BZ60: 0 | CA60: 0 | CB60: 0 | CC60: 0 | CD60: 0 | CE60: 0 | CF60: 0 | CG60: 0 | CH60: 0 | CI60: 0.00 | CN60: 0 | CO60: 0 | CP60: 0 | CQ60: 0 | CR60: 0 | CS60: 0 | CT60: 0 | CU60: 0 | CV60: 0 | CW60: 0 | CX60: 0 | CY60: 0 | CZ60: 0 | DE60: 0 | DF60: 0 | DG60: 0 | DH60: 0 | DI60: 0 | DJ60: 0 | DK60: 0 | DL60: 0 | DM60: 0 | DN60: 0 | DO60: 0 | DP60: 0 | DQ60: 0 | DU60: 0 | DV60: 0 | DW60: 0 | DX60: 0 | DY60: 0 | DZ60: 0 | EA60: 0 | EB60: 0 | EC60: 0 | ED60: 0 | EE60: 0 | EF60: 0 | EG60: 0.00 | EI60: 0 | EJ60: 0 | EK60: 0 | EL60: 0 | EM60: 0 | EN60: 0 | EO60: 0 | EP60: 0 | EQ60: 0 | ER60: 0 | ES60: 0.00 | EU60: 0 | EV60: 0 | EW60: 0 | EX60: 0 | EY60: 0 | EZ60: 0 | FA60: 0 | FB60: 0 | FC60: 0 | FD60: 0 | FE60: 0.00 | FG60: 0 | FH60: 0 | FI60: 0 | FJ60: 0 | FK60: 0.00 | FP60: 0 | FQ60: 0 | FR60: 0.00 | FW60: 0 | GE60: 0 | GF60: 0 | GG60: 0 | GH60: 0 | GL60: 0 | GM60: / | GN60: 200 | GO60: 0/200 | GP60: 0 | GQ60: / | GR60: 200 | GS60: 0/200 | GT60: 0 | GU60: / | GV60: 200 | GW60: 0/200 | GX60: 0 | GY60: / | GZ60: 100 | HA60: 0/100 | HJ60: 0 | HK60: 0 | HL60: 0 | HM60: 0 | HN60: 0 | HO60: 0 | HP60: 0 | HQ60: 0
A61: 0 | B61: 53 | C61: 53 | D61: 0 | L61: 0 | M61: 0 | N61: 0 | O61: 0 | P61: 0 | Q61: 0 | R61: 0 | S61: 0 | T61: 0 | U61: 0 | V61: 0.00 | Z61: 0 | AA61: 0 | AB61: 0 | AC61: 0 | AD61: 0 | AE61: 0 | AF61: 0 | AG61: 0 | AH61: 0 | AI61: 0 | AJ61: 0.00 | AO61: 0 | AP61: 0 | AQ61: 0 | AR61: 0 | AS61: 0 | AT61: 0 | AU61: 0 | AV61: 0 | AW61: 0 | AX61: 0 | AY61: 0 | AZ61: 0 | BA61: 0.00 | BF61: 0 | BG61: 0 | BH61: 0 | BI61: 0 | BJ61: 0 | BK61: 0 | BL61: 0 | BM61: 0 | BN61: 0 | BO61: 0 | BP61: 0 | BQ61: 0 | BR61: 0 | BW61: 0 | BX61: 0 | BY61: 0 | BZ61: 0 | CA61: 0 | CB61: 0 | CC61: 0 | CD61: 0 | CE61: 0 | CF61: 0 | CG61: 0 | CH61: 0 | CI61: 0.00 | CN61: 0 | CO61: 0 | CP61: 0 | CQ61: 0 | CR61: 0 | CS61: 0 | CT61: 0 | CU61: 0 | CV61: 0 | CW61: 0 | CX61: 0 | CY61: 0 | CZ61: 0 | DE61: 0 | DF61: 0 | DG61: 0 | DH61: 0 | DI61: 0 | DJ61: 0 | DK61: 0 | DL61: 0 | DM61: 0 | DN61: 0 | DO61: 0 | DP61: 0 | DQ61: 0 | DU61: 0 | DV61: 0 | DW61: 0 | DX61: 0 | DY61: 0 | DZ61: 0 | EA61: 0 | EB61: 0 | EC61: 0 | ED61: 0 | EE61: 0 | EF61: 0 | EG61: 0.00 | EI61: 0 | EJ61: 0 | EK61: 0 | EL61: 0 | EM61: 0 | EN61: 0 | EO61: 0 | EP61: 0 | EQ61: 0 | ER61: 0 | ES61: 0.00 | EU61: 0 | EV61: 0 | EW61: 0 | EX61: 0 | EY61: 0 | EZ61: 0 | FA61: 0 | FB61: 0 | FC61: 0 | FD61: 0 | FE61: 0.00 | FG61: 0 | FH61: 0 | FI61: 0 | FJ61: 0 | FK61: 0.00 | FP61: 0 | FQ61: 0 | FR61: 0.00 | FW61: 0 | GE61: 0 | GF61: 0 | GG61: 0 | GH61: 0 | GL61: 0 | GM61: / | GN61: 200 | GO61: 0/200 | GP61: 0 | GQ61: / | GR61: 200 | GS61: 0/200 | GT61: 0 | GU61: / | GV61: 200 | GW61: 0/200 | GX61: 0 | GY61: / | GZ61: 100 | HA61: 0/100 | HJ61: 0 | HK61: 0 | HL61: 0 | HM61: 0 | HN61: 0 | HO61: 0 | HP61: 0 | HQ61: 0
A62: 0 | B62: 54 | C62: 54 | D62: 0 | L62: 0 | M62: 0 | N62: 0 | O62: 0 | P62: 0 | Q62: 0 | R62: 0 | S62: 0 | T62: 0 | U62: 0 | V62: 0.00 | Z62: 0 | AA62: 0 | AB62: 0 | AC62: 0 | AD62: 0 | AE62: 0 | AF62: 0 | AG62: 0 | AH62: 0 | AI62: 0 | AJ62: 0.00 | AO62: 0 | AP62: 0 | AQ62: 0 | AR62: 0 | AS62: 0 | AT62: 0 | AU62: 0 | AV62: 0 | AW62: 0 | AX62: 0 | AY62: 0 | AZ62: 0 | BA62: 0.00 | BF62: 0 | BG62: 0 | BH62: 0 | BI62: 0 | BJ62: 0 | BK62: 0 | BL62: 0 | BM62: 0 | BN62: 0 | BO62: 0 | BP62: 0 | BQ62: 0 | BR62: 0 | BW62: 0 | BX62: 0 | BY62: 0 | BZ62: 0 | CA62: 0 | CB62: 0 | CC62: 0 | CD62: 0 | CE62: 0 | CF62: 0 | CG62: 0 | CH62: 0 | CI62: 0.00 | CN62: 0 | CO62: 0 | CP62: 0 | CQ62: 0 | CR62: 0 | CS62: 0 | CT62: 0 | CU62: 0 | CV62: 0 | CW62: 0 | CX62: 0 | CY62: 0 | CZ62: 0 | DE62: 0 | DF62: 0 | DG62: 0 | DH62: 0 | DI62: 0 | DJ62: 0 | DK62: 0 | DL62: 0 | DM62: 0 | DN62: 0 | DO62: 0 | DP62: 0 | DQ62: 0 | DU62: 0 | DV62: 0 | DW62: 0 | DX62: 0 | DY62: 0 | DZ62: 0 | EA62: 0 | EB62: 0 | EC62: 0 | ED62: 0 | EE62: 0 | EF62: 0 | EG62: 0.00 | EI62: 0 | EJ62: 0 | EK62: 0 | EL62: 0 | EM62: 0 | EN62: 0 | EO62: 0 | EP62: 0 | EQ62: 0 | ER62: 0 | ES62: 0.00 | EU62: 0 | EV62: 0 | EW62: 0 | EX62: 0 | EY62: 0 | EZ62: 0 | FA62: 0 | FB62: 0 | FC62: 0 | FD62: 0 | FE62: 0.00 | FG62: 0 | FH62: 0 | FI62: 0 | FJ62: 0 | FK62: 0.00 | FP62: 0 | FQ62: 0 | FR62: 0.00 | FW62: 0 | GE62: 0 | GF62: 0 | GG62: 0 | GH62: 0 | GL62: 0 | GM62: / | GN62: 200 | GO62: 0/200 | GP62: 0 | GQ62: / | GR62: 200 | GS62: 0/200 | GT62: 0 | GU62: / | GV62: 200 | GW62: 0/200 | GX62: 0 | GY62: / | GZ62: 100 | HA62: 0/100 | HJ62: 0 | HK62: 0 | HL62: 0 | HM62: 0 | HN62: 0 | HO62: 0 | HP62: 0 | HQ62: 0
A63: 0 | B63: 55 | C63: 55 | D63: 0 | L63: 0 | M63: 0 | N63: 0 | O63: 0 | P63: 0 | Q63: 0 | R63: 0 | S63: 0 | T63: 0 | U63: 0 | V63: 0.00 | Z63: 0 | AA63: 0 | AB63: 0 | AC63: 0 | AD63: 0 | AE63: 0 | AF63: 0 | AG63: 0 | AH63: 0 | AI63: 0 | AJ63: 0.00 | AO63: 0 | AP63: 0 | AQ63: 0 | AR63: 0 | AS63: 0 | AT63: 0 | AU63: 0 | AV63: 0 | AW63: 0 | AX63: 0 | AY63: 0 | AZ63: 0 | BA63: 0.00 | BF63: 0 | BG63: 0 | BH63: 0 | BI63: 0 | BJ63: 0 | BK63: 0 | BL63: 0 | BM63: 0 | BN63: 0 | BO63: 0 | BP63: 0 | BQ63: 0 | BR63: 0 | BW63: 0 | BX63: 0 | BY63: 0 | BZ63: 0 | CA63: 0 | CB63: 0 | CC63: 0 | CD63: 0 | CE63: 0 | CF63: 0 | CG63: 0 | CH63: 0 | CI63: 0.00 | CN63: 0 | CO63: 0 | CP63: 0 | CQ63: 0 | CR63: 0 | CS63: 0 | CT63: 0 | CU63: 0 | CV63: 0 | CW63: 0 | CX63: 0 | CY63: 0 | CZ63: 0 | DE63: 0 | DF63: 0 | DG63: 0 | DH63: 0 | DI63: 0 | DJ63: 0 | DK63: 0 | DL63: 0 | DM63: 0 | DN63: 0 | DO63: 0 | DP63: 0 | DQ63: 0 | DU63: 0 | DV63: 0 | DW63: 0 | DX63: 0 | DY63: 0 | DZ63: 0 | EA63: 0 | EB63: 0 | EC63: 0 | ED63: 0 | EE63: 0 | EF63: 0 | EG63: 0.00 | EI63: 0 | EJ63: 0 | EK63: 0 | EL63: 0 | EM63: 0 | EN63: 0 | EO63: 0 | EP63: 0 | EQ63: 0 | ER63: 0 | ES63: 0.00 | EU63: 0 | EV63: 0 | EW63: 0 | EX63: 0 | EY63: 0 | EZ63: 0 | FA63: 0 | FB63: 0 | FC63: 0 | FD63: 0 | FE63: 0.00 | FG63: 0 | FH63: 0 | FI63: 0 | FJ63: 0 | FK63: 0.00 | FP63: 0 | FQ63: 0 | FR63: 0.00 | FW63: 0 | GE63: 0 | GF63: 0 | GG63: 0 | GH63: 0 | GL63: 0 | GM63: / | GN63: 200 | GO63: 0/200 | GP63: 0 | GQ63: / | GR63: 200 | GS63: 0/200 | GT63: 0 | GU63: / | GV63: 200 | GW63: 0/200 | GX63: 0 | GY63: / | GZ63: 100 | HA63: 0/100 | HJ63: 0 | HK63: 0 | HL63: 0 | HM63: 0 | HN63: 0 | HO63: 0 | HP63: 0 | HQ63: 0
A64: 0 | B64: 56 | C64: 56 | D64: 0 | L64: 0 | M64: 0 | N64: 0 | O64: 0 | P64: 0 | Q64: 0 | R64: 0 | S64: 0 | T64: 0 | U64: 0 | V64: 0.00 | Z64: 0 | AA64: 0 | AB64: 0 | AC64: 0 | AD64: 0 | AE64: 0 | AF64: 0 | AG64: 0 | AH64: 0 | AI64: 0 | AJ64: 0.00 | AO64: 0 | AP64: 0 | AQ64: 0 | AR64: 0 | AS64: 0 | AT64: 0 | AU64: 0 | AV64: 0 | AW64: 0 | AX64: 0 | AY64: 0 | AZ64: 0 | BA64: 0.00 | BF64: 0 | BG64: 0 | BH64: 0 | BI64: 0 | BJ64: 0 | BK64: 0 | BL64: 0 | BM64: 0 | BN64: 0 | BO64: 0 | BP64: 0 | BQ64: 0 | BR64: 0 | BW64: 0 | BX64: 0 | BY64: 0 | BZ64: 0 | CA64: 0 | CB64: 0 | CC64: 0 | CD64: 0 | CE64: 0 | CF64: 0 | CG64: 0 | CH64: 0 | CI64: 0.00 | CN64: 0 | CO64: 0 | CP64: 0 | CQ64: 0 | CR64: 0 | CS64: 0 | CT64: 0 | CU64: 0 | CV64: 0 | CW64: 0 | CX64: 0 | CY64: 0 | CZ64: 0 | DE64: 0 | DF64: 0 | DG64: 0 | DH64: 0 | DI64: 0 | DJ64: 0 | DK64: 0 | DL64: 0 | DM64: 0 | DN64: 0 | DO64: 0 | DP64: 0 | DQ64: 0 | DU64: 0 | DV64: 0 | DW64: 0 | DX64: 0 | DY64: 0 | DZ64: 0 | EA64: 0 | EB64: 0 | EC64: 0 | ED64: 0 | EE64: 0 | EF64: 0 | EG64: 0.00 | EI64: 0 | EJ64: 0 | EK64: 0 | EL64: 0 | EM64: 0 | EN64: 0 | EO64: 0 | EP64: 0 | EQ64: 0 | ER64: 0 | ES64: 0.00 | EU64: 0 | EV64: 0 | EW64: 0 | EX64: 0 | EY64: 0 | EZ64: 0 | FA64: 0 | FB64: 0 | FC64: 0 | FD64: 0 | FE64: 0.00 | FG64: 0 | FH64: 0 | FI64: 0 | FJ64: 0 | FK64: 0.00 | FP64: 0 | FQ64: 0 | FR64: 0.00 | FW64: 0 | GE64: 0 | GF64: 0 | GG64: 0 | GH64: 0 | GL64: 0 | GM64: / | GN64: 200 | GO64: 0/200 | GP64: 0 | GQ64: / | GR64: 200 | GS64: 0/200 | GT64: 0 | GU64: / | GV64: 200 | GW64: 0/200 | GX64: 0 | GY64: / | GZ64: 100 | HA64: 0/100 | HJ64: 0 | HK64: 0 | HL64: 0 | HM64: 0 | HN64: 0 | HO64: 0 | HP64: 0 | HQ64: 0
A65: 0 | B65: 57 | C65: 57 | D65: 0 | L65: 0 | M65: 0 | N65: 0 | O65: 0 | P65: 0 | Q65: 0 | R65: 0 | S65: 0 | T65: 0 | U65: 0 | V65: 0.00 | Z65: 0 | AA65: 0 | AB65: 0 | AC65: 0 | AD65: 0 | AE65: 0 | AF65: 0 | AG65: 0 | AH65: 0 | AI65: 0 | AJ65: 0.00 | AO65: 0 | AP65: 0 | AQ65: 0 | AR65: 0 | AS65: 0 | AT65: 0 | AU65: 0 | AV65: 0 | AW65: 0 | AX65: 0 | AY65: 0 | AZ65: 0 | BA65: 0.00 | BF65: 0 | BG65: 0 | BH65: 0 | BI65: 0 | BJ65: 0 | BK65: 0 | BL65: 0 | BM65: 0 | BN65: 0 | BO65: 0 | BP65: 0 | BQ65: 0 | BR65: 0 | BW65: 0 | BX65: 0 | BY65: 0 | BZ65: 0 | CA65: 0 | CB65: 0 | CC65: 0 | CD65: 0 | CE65: 0 | CF65: 0 | CG65: 0 | CH65: 0 | CI65: 0.00 | CN65: 0 | CO65: 0 | CP65: 0 | CQ65: 0 | CR65: 0 | CS65: 0 | CT65: 0 | CU65: 0 | CV65: 0 | CW65: 0 | CX65: 0 | CY65: 0 | CZ65: 0 | DE65: 0 | DF65: 0 | DG65: 0 | DH65: 0 | DI65: 0 | DJ65: 0 | DK65: 0 | DL65: 0 | DM65: 0 | DN65: 0 | DO65: 0 | DP65: 0 | DQ65: 0 | DU65: 0 | DV65: 0 | DW65: 0 | DX65: 0 | DY65: 0 | DZ65: 0 | EA65: 0 | EB65: 0 | EC65: 0 | ED65: 0 | EE65: 0 | EF65: 0 | EG65: 0.00 | EI65: 0 | EJ65: 0 | EK65: 0 | EL65: 0 | EM65: 0 | EN65: 0 | EO65: 0 | EP65: 0 | EQ65: 0 | ER65: 0 | ES65: 0.00 | EU65: 0 | EV65: 0 | EW65: 0 | EX65: 0 | EY65: 0 | EZ65: 0 | FA65: 0 | FB65: 0 | FC65: 0 | FD65: 0 | FE65: 0.00 | FG65: 0 | FH65: 0 | FI65: 0 | FJ65: 0 | FK65: 0.00 | FP65: 0 | FQ65: 0 | FR65: 0.00 | FW65: 0 | GE65: 0 | GF65: 0 | GG65: 0 | GH65: 0 | GL65: 0 | GM65: / | GN65: 200 | GO65: 0/200 | GP65: 0 | GQ65: / | GR65: 200 | GS65: 0/200 | GT65: 0 | GU65: / | GV65: 200 | GW65: 0/200 | GX65: 0 | GY65: / | GZ65: 100 | HA65: 0/100 | HJ65: 0 | HK65: 0 | HL65: 0 | HM65: 0 | HN65: 0 | HO65: 0 | HP65: 0 | HQ65: 0
A66: 0 | B66: 58 | C66: 58 | D66: 0 | L66: 0 | M66: 0 | N66: 0 | O66: 0 | P66: 0 | Q66: 0 | R66: 0 | S66: 0 | T66: 0 | U66: 0 | V66: 0.00 | W66: =IF(R66="AB","AB",IF(AND(OR(L66="ab",L66="ml"),OR(M66="ab",M66="ml"),OR(O66="ab",O66="ml")),"AB",IF(AND(OR(L66="ab",L66="ml"),OR(O66="ab",O66="ml")),"AB",""))) ->  | Y66: =IF(OR(X66="",X66=0,X66="S",X66="F",X66="AB"),X66,IF(V66>=75,"D",IF(V66>=60,"I",IF(V66>=48,"II",IF(V66>=36,"III",X66))))) ->  | Z66: 0 | AA66: 0 | AB66: 0 | AC66: 0 | AD66: 0 | AE66: 0 | AF66: 0 | AG66: 0 | AH66: 0 | AI66: 0 | AJ66: 0.00 | AO66: 0 | AP66: 0 | AQ66: 0 | AR66: 0 | AS66: 0 | AT66: 0 | AU66: 0 | AV66: 0 | AW66: 0 | AX66: 0 | AY66: 0 | AZ66: 0 | BA66: 0.00 | BF66: 0 | BG66: 0 | BH66: 0 | BI66: 0 | BJ66: 0 | BK66: 0 | BL66: 0 | BM66: 0 | BN66: 0 | BO66: 0 | BP66: 0 | BQ66: 0 | BR66: 0 | BW66: 0 | BX66: 0 | BY66: 0 | BZ66: 0 | CA66: 0 | CB66: 0 | CC66: 0 | CD66: 0 | CE66: 0 | CF66: 0 | CG66: 0 | CH66: 0 | CI66: 0.00 | CN66: 0 | CO66: 0 | CP66: 0 | CQ66: 0 | CR66: 0 | CS66: 0 | CT66: 0 | CU66: 0 | CV66: 0 | CW66: 0 | CX66: 0 | CY66: 0 | CZ66: 0 | DE66: 0 | DF66: 0 | DG66: 0 | DH66: 0 | DI66: 0 | DJ66: 0 | DK66: 0 | DL66: 0 | DM66: 0 | DN66: 0 | DO66: 0 | DP66: 0 | DQ66: 0 | DU66: 0 | DV66: 0 | DW66: 0 | DX66: 0 | DY66: 0 | DZ66: 0 | EA66: 0 | EB66: 0 | EC66: 0 | ED66: 0 | EE66: 0 | EF66: 0 | EG66: 0.00 | EI66: 0 | EJ66: 0 | EK66: 0 | EL66: 0 | EM66: 0 | EN66: 0 | EO66: 0 | EP66: 0 | EQ66: 0 | ER66: 0 | ES66: 0.00 | EU66: 0 | EV66: 0 | EW66: =SUM(EU66:EV66) -> 0 | EX66: 0 | EY66: 0 | EZ66: 0 | FA66: 0 | FB66: 0 | FC66: 0 | FD66: 0 | FE66: 0.00 | FG66: 0 | FH66: 0 | FI66: 0 | FJ66: 0 | FK66: 0.00 | FP66: 0 | FQ66: 0 | FR66: 0.00 | FW66: 0 | GE66: 0 | GF66: 0 | GG66: 0 | GH66: 0 | GL66: 0 | GM66: / | GN66: 200 | GO66: 0/200 | GP66: 0 | GQ66: / | GR66: 200 | GS66: 0/200 | GT66: 0 | GU66: / | GV66: 200 | GW66: 0/200 | GX66: 0 | GY66: / | GZ66: 100 | HA66: 0/100 | HJ66: 0 | HK66: 0 | HL66: 0 | HM66: 0 | HN66: 0 | HO66: 0 | HP66: 0 | HQ66: 0
A67: 0 | B67: 59 | C67: 59 | D67: 0 | L67: 0 | M67: 0 | N67: 0 | O67: 0 | P67: 0 | Q67: 0 | R67: 0 | S67: 0 | T67: 0 | U67: 0 | V67: 0.00 | Z67: 0 | AA67: 0 | AB67: 0 | AC67: 0 | AD67: 0 | AE67: 0 | AF67: 0 | AG67: 0 | AH67: 0 | AI67: 0 | AJ67: 0.00 | AO67: 0 | AP67: 0 | AQ67: 0 | AR67: 0 | AS67: 0 | AT67: 0 | AU67: 0 | AV67: 0 | AW67: 0 | AX67: 0 | AY67: 0 | AZ67: 0 | BA67: 0.00 | BF67: 0 | BG67: 0 | BH67: 0 | BI67: 0 | BJ67: 0 | BK67: 0 | BL67: 0 | BM67: 0 | BN67: 0 | BO67: 0 | BP67: 0 | BQ67: 0 | BR67: 0 | BW67: 0 | BX67: 0 | BY67: 0 | BZ67: 0 | CA67: 0 | CB67: 0 | CC67: 0 | CD67: 0 | CE67: 0 | CF67: 0 | CG67: 0 | CH67: 0 | CI67: 0.00 | CN67: 0 | CO67: 0 | CP67: 0 | CQ67: 0 | CR67: 0 | CS67: 0 | CT67: 0 | CU67: 0 | CV67: 0 | CW67: 0 | CX67: 0 | CY67: 0 | CZ67: 0 | DE67: 0 | DF67: 0 | DG67: 0 | DH67: 0 | DI67: 0 | DJ67: 0 | DK67: 0 | DL67: 0 | DM67: 0 | DN67: 0 | DO67: 0 | DP67: 0 | DQ67: 0 | DU67: 0 | DV67: 0 | DW67: 0 | DX67: 0 | DY67: 0 | DZ67: 0 | EA67: 0 | EB67: 0 | EC67: 0 | ED67: 0 | EE67: 0 | EF67: 0 | EG67: 0.00 | EI67: 0 | EJ67: 0 | EK67: 0 | EL67: 0 | EM67: 0 | EN67: 0 | EO67: 0 | EP67: 0 | EQ67: 0 | ER67: 0 | ES67: 0.00 | EU67: 0 | EV67: 0 | EW67: 0 | EX67: 0 | EY67: 0 | EZ67: 0 | FA67: 0 | FB67: 0 | FC67: 0 | FD67: 0 | FE67: 0.00 | FG67: 0 | FH67: 0 | FI67: 0 | FJ67: 0 | FK67: 0.00 | FP67: 0 | FQ67: 0 | FR67: 0.00 | FW67: 0 | GE67: 0 | GF67: 0 | GG67: 0 | GH67: 0 | GL67: 0 | GM67: / | GN67: 200 | GO67: 0/200 | GP67: 0 | GQ67: / | GR67: 200 | GS67: 0/200 | GT67: 0 | GU67: / | GV67: 200 | GW67: 0/200 | GX67: 0 | GY67: / | GZ67: 100 | HA67: 0/100 | HJ67: 0 | HK67: 0 | HL67: 0 | HM67: 0 | HN67: 0 | HO67: 0 | HP67: 0 | HQ67: 0
A68: 0 | B68: 60 | C68: 60 | D68: 0 | L68: 0 | M68: 0 | N68: 0 | O68: 0 | P68: 0 | Q68: 0 | R68: 0 | S68: 0 | T68: 0 | U68: 0 | V68: 0.00 | Z68: 0 | AA68: 0 | AB68: 0 | AC68: 0 | AD68: 0 | AE68: 0 | AF68: 0 | AG68: 0 | AH68: 0 | AI68: 0 | AJ68: 0.00 | AO68: 0 | AP68: 0 | AQ68: 0 | AR68: 0 | AS68: 0 | AT68: 0 | AU68: 0 | AV68: 0 | AW68: 0 | AX68: 0 | AY68: 0 | AZ68: 0 | BA68: 0.00 | BF68: 0 | BG68: 0 | BH68: 0 | BI68: 0 | BJ68: 0 | BK68: 0 | BL68: 0 | BM68: 0 | BN68: 0 | BO68: 0 | BP68: 0 | BQ68: 0 | BR68: 0 | BW68: 0 | BX68: 0 | BY68: 0 | BZ68: 0 | CA68: 0 | CB68: 0 | CC68: 0 | CD68: 0 | CE68: 0 | CF68: 0 | CG68: 0 | CH68: 0 | CI68: 0.00 | CN68: 0 | CO68: 0 | CP68: 0 | CQ68: 0 | CR68: 0 | CS68: 0 | CT68: 0 | CU68: 0 | CV68: 0 | CW68: 0 | CX68: 0 | CY68: 0 | CZ68: 0 | DE68: 0 | DF68: 0 | DG68: 0 | DH68: 0 | DI68: 0 | DJ68: 0 | DK68: 0 | DL68: 0 | DM68: 0 | DN68: 0 | DO68: 0 | DP68: 0 | DQ68: 0 | DU68: 0 | DV68: 0 | DW68: 0 | DX68: 0 | DY68: 0 | DZ68: 0 | EA68: 0 | EB68: 0 | EC68: 0 | ED68: 0 | EE68: 0 | EF68: 0 | EG68: 0.00 | EI68: 0 | EJ68: 0 | EK68: 0 | EL68: 0 | EM68: 0 | EN68: 0 | EO68: 0 | EP68: 0 | EQ68: 0 | ER68: 0 | ES68: 0.00 | EU68: 0 | EV68: 0 | EW68: 0 | EX68: 0 | EY68: 0 | EZ68: 0 | FA68: 0 | FB68: 0 | FC68: 0 | FD68: 0 | FE68: 0.00 | FG68: 0 | FH68: 0 | FI68: 0 | FJ68: 0 | FK68: 0.00 | FP68: 0 | FQ68: 0 | FR68: 0.00 | FW68: 0 | GE68: 0 | GF68: 0 | GG68: 0 | GH68: 0 | GL68: 0 | GM68: / | GN68: 200 | GO68: 0/200 | GP68: 0 | GQ68: / | GR68: 200 | GS68: 0/200 | GT68: 0 | GU68: / | GV68: 200 | GW68: 0/200 | GX68: 0 | GY68: / | GZ68: 100 | HA68: 0/100 | HJ68: 0 | HK68: 0 | HL68: 0 | HM68: 0 | HN68: 0 | HO68: 0 | HP68: 0 | HQ68: 0
A69: 0 | B69: 61 | C69: 61 | D69: 0 | L69: 0 | M69: 0 | N69: 0 | O69: 0 | P69: 0 | Q69: 0 | R69: 0 | S69: 0 | T69: 0 | U69: 0 | V69: 0.00 | Z69: 0 | AA69: 0 | AB69: 0 | AC69: 0 | AD69: 0 | AE69: 0 | AF69: 0 | AG69: 0 | AH69: 0 | AI69: 0 | AJ69: 0.00 | AO69: 0 | AP69: 0 | AQ69: 0 | AR69: 0 | AS69: 0 | AT69: 0 | AU69: 0 | AV69: 0 | AW69: 0 | AX69: 0 | AY69: 0 | AZ69: 0 | BA69: 0.00 | BF69: 0 | BG69: 0 | BH69: 0 | BI69: 0 | BJ69: 0 | BK69: 0 | BL69: 0 | BM69: 0 | BN69: 0 | BO69: 0 | BP69: 0 | BQ69: 0 | BR69: 0 | BW69: 0 | BX69: 0 | BY69: 0 | BZ69: 0 | CA69: 0 | CB69: 0 | CC69: 0 | CD69: 0 | CE69: 0 | CF69: 0 | CG69: 0 | CH69: 0 | CI69: 0.00 | CN69: 0 | CO69: 0 | CP69: 0 | CQ69: 0 | CR69: 0 | CS69: 0 | CT69: 0 | CU69: 0 | CV69: 0 | CW69: 0 | CX69: 0 | CY69: 0 | CZ69: 0 | DE69: 0 | DF69: 0 | DG69: 0 | DH69: 0 | DI69: 0 | DJ69: 0 | DK69: 0 | DL69: 0 | DM69: 0 | DN69: 0 | DO69: 0 | DP69: 0 | DQ69: 0 | DU69: 0 | DV69: 0 | DW69: 0 | DX69: 0 | DY69: 0 | DZ69: 0 | EA69: 0 | EB69: 0 | EC69: 0 | ED69: 0 | EE69: 0 | EF69: 0 | EG69: 0.00 | EI69: 0 | EJ69: 0 | EK69: 0 | EL69: 0 | EM69: 0 | EN69: 0 | EO69: 0 | EP69: 0 | EQ69: 0 | ER69: 0 | ES69: 0.00 | EU69: 0 | EV69: 0 | EW69: 0 | EX69: 0 | EY69: 0 | EZ69: 0 | FA69: 0 | FB69: 0 | FC69: 0 | FD69: 0 | FE69: 0.00 | FG69: 0 | FH69: 0 | FI69: 0 | FJ69: 0 | FK69: 0.00 | FP69: 0 | FQ69: 0 | FR69: 0.00 | FW69: 0 | GE69: 0 | GF69: 0 | GG69: 0 | GH69: 0 | GL69: 0 | GM69: / | GN69: 200 | GO69: 0/200 | GP69: 0 | GQ69: / | GR69: 200 | GS69: 0/200 | GT69: 0 | GU69: / | GV69: 200 | GW69: 0/200 | GX69: 0 | GY69: / | GZ69: 100 | HA69: 0/100 | HJ69: 0 | HK69: 0 | HL69: 0 | HM69: 0 | HN69: 0 | HO69: 0 | HP69: 0 | HQ69: 0
A70: 0 | B70: 62 | C70: 62 | D70: 0 | L70: 0 | M70: 0 | N70: 0 | O70: 0 | P70: 0 | Q70: 0 | R70: 0 | S70: 0 | T70: 0 | U70: 0 | V70: 0.00 | Z70: 0 | AA70: 0 | AB70: 0 | AC70: 0 | AD70: 0 | AE70: 0 | AF70: 0 | AG70: 0 | AH70: 0 | AI70: 0 | AJ70: 0.00 | AO70: 0 | AP70: 0 | AQ70: 0 | AR70: 0 | AS70: 0 | AT70: 0 | AU70: 0 | AV70: 0 | AW70: 0 | AX70: 0 | AY70: 0 | AZ70: 0 | BA70: 0.00 | BF70: 0 | BG70: 0 | BH70: 0 | BI70: 0 | BJ70: 0 | BK70: 0 | BL70: 0 | BM70: 0 | BN70: 0 | BO70: 0 | BP70: 0 | BQ70: 0 | BR70: 0 | BW70: 0 | BX70: 0 | BY70: 0 | BZ70: 0 | CA70: 0 | CB70: 0 | CC70: 0 | CD70: 0 | CE70: 0 | CF70: 0 | CG70: 0 | CH70: 0 | CI70: 0.00 | CN70: 0 | CO70: 0 | CP70: 0 | CQ70: 0 | CR70: 0 | CS70: 0 | CT70: 0 | CU70: 0 | CV70: 0 | CW70: 0 | CX70: 0 | CY70: 0 | CZ70: 0 | DE70: 0 | DF70: 0 | DG70: 0 | DH70: 0 | DI70: 0 | DJ70: 0 | DK70: 0 | DL70: 0 | DM70: 0 | DN70: 0 | DO70: 0 | DP70: 0 | DQ70: 0 | DU70: 0 | DV70: 0 | DW70: 0 | DX70: 0 | DY70: 0 | DZ70: 0 | EA70: 0 | EB70: 0 | EC70: 0 | ED70: 0 | EE70: 0 | EF70: 0 | EG70: 0.00 | EI70: 0 | EJ70: 0 | EK70: 0 | EL70: 0 | EM70: 0 | EN70: 0 | EO70: 0 | EP70: 0 | EQ70: 0 | ER70: 0 | ES70: 0.00 | EU70: 0 | EV70: 0 | EW70: 0 | EX70: 0 | EY70: 0 | EZ70: 0 | FA70: 0 | FB70: 0 | FC70: 0 | FD70: 0 | FE70: 0.00 | FG70: 0 | FH70: 0 | FI70: 0 | FJ70: 0 | FK70: 0.00 | FP70: 0 | FQ70: 0 | FR70: 0.00 | FW70: 0 | GE70: 0 | GF70: 0 | GG70: 0 | GH70: 0 | GL70: 0 | GM70: / | GN70: 200 | GO70: 0/200 | GP70: 0 | GQ70: / | GR70: 200 | GS70: 0/200 | GT70: 0 | GU70: / | GV70: 200 | GW70: 0/200 | GX70: 0 | GY70: / | GZ70: 100 | HA70: 0/100 | HJ70: 0 | HK70: 0 | HL70: 0 | HM70: 0 | HN70: 0 | HO70: 0 | HP70: 0 | HQ70: 0
A71: 0 | B71: 63 | C71: 63 | D71: 0 | L71: 0 | M71: 0 | N71: 0 | O71: 0 | P71: 0 | Q71: 0 | R71: 0 | S71: 0 | T71: 0 | U71: 0 | V71: 0.00 | Z71: 0 | AA71: 0 | AB71: 0 | AC71: 0 | AD71: 0 | AE71: 0 | AF71: 0 | AG71: 0 | AH71: 0 | AI71: 0 | AJ71: 0.00 | AO71: 0 | AP71: 0 | AQ71: 0 | AR71: 0 | AS71: 0 | AT71: 0 | AU71: 0 | AV71: 0 | AW71: 0 | AX71: 0 | AY71: 0 | AZ71: 0 | BA71: 0.00 | BF71: 0 | BG71: 0 | BH71: 0 | BI71: 0 | BJ71: 0 | BK71: 0 | BL71: 0 | BM71: 0 | BN71: 0 | BO71: 0 | BP71: 0 | BQ71: 0 | BR71: 0 | BW71: 0 | BX71: 0 | BY71: 0 | BZ71: 0 | CA71: 0 | CB71: 0 | CC71: 0 | CD71: 0 | CE71: 0 | CF71: 0 | CG71: 0 | CH71: 0 | CI71: 0.00 | CN71: 0 | CO71: 0 | CP71: 0 | CQ71: 0 | CR71: 0 | CS71: 0 | CT71: 0 | CU71: 0 | CV71: 0 | CW71: 0 | CX71: 0 | CY71: 0 | CZ71: 0 | DE71: 0 | DF71: 0 | DG71: 0 | DH71: 0 | DI71: 0 | DJ71: 0 | DK71: 0 | DL71: 0 | DM71: 0 | DN71: 0 | DO71: 0 | DP71: 0 | DQ71: 0 | DU71: 0 | DV71: 0 | DW71: 0 | DX71: 0 | DY71: 0 | DZ71: 0 | EA71: 0 | EB71: 0 | EC71: 0 | ED71: 0 | EE71: 0 | EF71: 0 | EG71: 0.00 | EI71: 0 | EJ71: 0 | EK71: 0 | EL71: 0 | EM71: 0 | EN71: 0 | EO71: 0 | EP71: 0 | EQ71: 0 | ER71: 0 | ES71: 0.00 | EU71: 0 | EV71: 0 | EW71: 0 | EX71: 0 | EY71: 0 | EZ71: 0 | FA71: 0 | FB71: 0 | FC71: 0 | FD71: 0 | FE71: 0.00 | FG71: 0 | FH71: 0 | FI71: 0 | FJ71: 0 | FK71: 0.00 | FP71: 0 | FQ71: 0 | FR71: 0.00 | FW71: 0 | GE71: 0 | GF71: 0 | GG71: 0 | GH71: 0 | GL71: 0 | GM71: / | GN71: 200 | GO71: 0/200 | GP71: 0 | GQ71: / | GR71: 200 | GS71: 0/200 | GT71: 0 | GU71: / | GV71: 200 | GW71: 0/200 | GX71: 0 | GY71: / | GZ71: 100 | HA71: 0/100 | HJ71: 0 | HK71: 0 | HL71: 0 | HM71: 0 | HN71: 0 | HO71: 0 | HP71: 0 | HQ71: 0
A72: 0 | B72: 64 | C72: 64 | D72: 0 | L72: 0 | M72: 0 | N72: 0 | O72: 0 | P72: 0 | Q72: 0 | R72: 0 | S72: 0 | T72: 0 | U72: 0 | V72: 0.00 | Z72: 0 | AA72: 0 | AB72: 0 | AC72: 0 | AD72: 0 | AE72: 0 | AF72: 0 | AG72: 0 | AH72: 0 | AI72: 0 | AJ72: 0.00 | AO72: 0 | AP72: 0 | AQ72: 0 | AR72: 0 | AS72: 0 | AT72: 0 | AU72: 0 | AV72: 0 | AW72: 0 | AX72: 0 | AY72: 0 | AZ72: 0 | BA72: 0.00 | BF72: 0 | BG72: 0 | BH72: 0 | BI72: 0 | BJ72: 0 | BK72: 0 | BL72: 0 | BM72: 0 | BN72: 0 | BO72: 0 | BP72: 0 | BQ72: 0 | BR72: 0 | BW72: 0 | BX72: 0 | BY72: 0 | BZ72: 0 | CA72: 0 | CB72: 0 | CC72: 0 | CD72: 0 | CE72: 0 | CF72: 0 | CG72: 0 | CH72: 0 | CI72: 0.00 | CN72: 0 | CO72: 0 | CP72: 0 | CQ72: 0 | CR72: 0 | CS72: 0 | CT72: 0 | CU72: 0 | CV72: 0 | CW72: 0 | CX72: 0 | CY72: 0 | CZ72: 0 | DE72: 0 | DF72: 0 | DG72: 0 | DH72: 0 | DI72: 0 | DJ72: 0 | DK72: 0 | DL72: 0 | DM72: 0 | DN72: 0 | DO72: 0 | DP72: 0 | DQ72: 0 | DU72: 0 | DV72: 0 | DW72: 0 | DX72: 0 | DY72: 0 | DZ72: 0 | EA72: 0 | EB72: 0 | EC72: 0 | ED72: 0 | EE72: 0 | EF72: 0 | EG72: 0.00 | EI72: 0 | EJ72: 0 | EK72: 0 | EL72: 0 | EM72: 0 | EN72: 0 | EO72: 0 | EP72: 0 | EQ72: 0 | ER72: 0 | ES72: 0.00 | EU72: 0 | EV72: 0 | EW72: 0 | EX72: 0 | EY72: 0 | EZ72: 0 | FA72: 0 | FB72: 0 | FC72: 0 | FD72: 0 | FE72: 0.00 | FG72: 0 | FH72: 0 | FI72: 0 | FJ72: 0 | FK72: 0.00 | FP72: 0 | FQ72: 0 | FR72: 0.00 | FW72: 0 | GE72: 0 | GF72: 0 | GG72: 0 | GH72: 0 | GL72: 0 | GM72: / | GN72: 200 | GO72: 0/200 | GP72: 0 | GQ72: / | GR72: 200 | GS72: 0/200 | GT72: 0 | GU72: / | GV72: 200 | GW72: 0/200 | GX72: 0 | GY72: / | GZ72: 100 | HA72: 0/100 | HJ72: 0 | HK72: 0 | HL72: 0 | HM72: 0 | HN72: 0 | HO72: 0 | HP72: 0 | HQ72: 0
A73: 0 | B73: 65 | C73: 65 | D73: 0 | L73: 0 | M73: 0 | N73: 0 | O73: 0 | P73: 0 | Q73: 0 | R73: 0 | S73: 0 | T73: 0 | U73: 0 | V73: 0.00 | Z73: 0 | AA73: 0 | AB73: 0 | AC73: 0 | AD73: 0 | AE73: 0 | AF73: 0 | AG73: 0 | AH73: 0 | AI73: 0 | AJ73: 0.00 | AK73: =IF(AF73="AB","AB",IF(AND(OR(Z73="ab",Z73="ml"),OR(AA73="ab",AA73="ml"),OR(AC73="ab",AC73="ml")),"AB",IF(AND(OR(Z73="ab",Z73="ml"),OR(AC73="ab",AC73="ml")),"AB",""))) ->  | AM73: =IF(OR(AL73="",AL73=0,AL73="S",AL73="F",AL73="AB"),AL73,IF(AJ73>=75,"D",IF(AJ73>=60,"I",IF(AJ73>=48,"II",IF(AJ73>=36,"III",AL73))))) ->  | AO73: 0 | AP73: 0 | AQ73: 0 | AR73: 0 | AS73: 0 | AT73: 0 | AU73: 0 | AV73: 0 | AW73: 0 | AX73: 0 | AY73: 0 | AZ73: 0 | BA73: 0.00 | BB73: =IF(AV73="AB","AB",IF(AND(OR(AO73="ab",AO73="ml"),OR(AP73="ab",AP73="ml"),OR(AR73="ab",AR73="ml")),"AB",IF(AND(OR(AO73="ab",AO73="ml"),OR(AR73="ab",AR73="ml")),"AB",""))) ->  | BD73: =IF(OR(AN73="",AN73=0),"",IF(OR(BC73="",BC73=0,BC73="S",BC73="F",BC73="AB"),BC73,IF(BA73>=75,"D",IF(BA73>=60,"I",IF(BA73>=48,"II",IF(BA73>=36,"III",BC73)))))) ->  | BF73: 0 | BG73: 0 | BH73: 0 | BI73: 0 | BJ73: 0 | BK73: 0 | BL73: 0 | BM73: 0 | BN73: 0 | BO73: 0 | BP73: 0 | BQ73: 0 | BR73: 0 | BS73: =IF(BM73="AB","AB",IF(AND(OR(BF73="ab",BF73="ml"),OR(BG73="ab",BG73="ml"),OR(BI73="ab",BI73="ml")),"AB",IF(AND(OR(BF73="ab",BF73="ml"),OR(BI73="ab",BI73="ml")),"AB",""))) ->  | BU73: =IF(OR(BE73="",BE73=0),"",IF(OR(BT73="",BT73=0,BT73="S",BT73="F",BT73="AB"),BT73,IF(BR73>=75,"D",IF(BR73>=60,"I",IF(BR73>=48,"II",IF(BR73>=36,"III",BT73)))))) ->  | BW73: 0 | BX73: 0 | BY73: 0 | BZ73: 0 | CA73: 0 | CB73: 0 | CC73: 0 | CD73: 0 | CE73: 0 | CF73: 0 | CG73: 0 | CH73: 0 | CI73: 0.00 | CL73: =IF(OR(BV73="",BV73=0),"",IF(OR(CK73="",CK73=0,CK73="S",CK73="F",CK73="AB"),CK73,IF(CI73>=75,"D",IF(CI73>=60,"I",IF(CI73>=48,"II",IF(CI73>=36,"III",CK73)))))) ->  | CN73: 0 | CO73: 0 | CP73: 0 | CQ73: 0 | CR73: 0 | CS73: 0 | CT73: 0 | CU73: 0 | CV73: 0 | CW73: 0 | CX73: 0 | CY73: 0 | CZ73: 0 | DE73: 0 | DF73: 0 | DG73: 0 | DH73: 0 | DI73: 0 | DJ73: 0 | DK73: 0 | DL73: 0 | DM73: 0 | DN73: 0 | DO73: 0 | DP73: 0 | DQ73: 0 | DU73: 0 | DV73: 0 | DW73: 0 | DX73: 0 | DY73: 0 | DZ73: 0 | EA73: 0 | EB73: 0 | EC73: 0 | ED73: 0 | EE73: 0 | EF73: 0 | EG73: 0.00 | EI73: 0 | EJ73: 0 | EK73: 0 | EL73: 0 | EM73: 0 | EN73: 0 | EO73: 0 | EP73: 0 | EQ73: 0 | ER73: 0 | ES73: 0.00 | EU73: 0 | EV73: 0 | EW73: 0 | EX73: 0 | EY73: 0 | EZ73: 0 | FA73: 0 | FB73: 0 | FC73: 0 | FD73: 0 | FE73: 0.00 | FG73: 0 | FH73: 0 | FI73: 0 | FJ73: 0 | FK73: 0.00 | FP73: 0 | FQ73: 0 | FR73: 0.00 | FW73: 0 | FX73: =Y73 ->  | FY73: =AM73 ->  | FZ73: =BD73 ->  | GA73: =BU73 ->  | GB73: =CL73 ->  | GE73: 0 | GF73: 0 | GG73: 0 | GH73: 0 | GL73: =EF73 -> 0 | GM73: / | GN73: =$EF$7 -> 200 | GO73: 0/200 | GP73: 0 | GQ73: / | GR73: 200 | GS73: 0/200 | GT73: 0 | GU73: / | GV73: 200 | GW73: 0/200 | GX73: 0 | GY73: / | GZ73: 100 | HA73: 0/100 | HJ73: 0 | HK73: 0 | HL73: 0 | HM73: 0 | HN73: 0 | HO73: 0 | HP73: 0 | HQ73: 0
A74: =G74 -> 0 | B74: 66 | C74: 66 | D74: =IF(E74>0,$G$4,0) -> 0 | L74: 0 | M74: 0 | N74: 0 | O74: =SUM(L74:N74) -> 0 | P74: 0 | Q74: =SUM(O74:P74) -> 0 | R74: 0 | S74: 0 | T74: =SUM(R74:S74) -> 0 | U74: =SUM(Q74,R74) -> 0 | V74: =IF(OR(U74="",U$7=""),"",U74/U$7*100) -> 0.00 | X74: =IF(OR($G74="NSO",$G74="",R74=""),"",IF(OR(W74="AB",R74="ab"),"AB",IF(AND(V74>=36,R74>=20),"P",IF(AND(V74>=34,R74=20,COUNTIF(L74:T74,"ML")=0),"G2",IF(AND(V74>31,R74>20,COUNTIF(L74:T74,"ML")=0),"G1",IF(AND(V74>25,R74>20),"S","F")))))) ->  | Z74: 0 | AA74: 0 | AB74: 0 | AC74: =SUM(Z74:AB74) -> 0 | AD74: 0 | AE74: =SUM(AC74:AD74) -> 0 | AF74: 0 | AG74: 0 | AH74: 0 | AI74: =SUM(AE74,AF74) -> 0 | AJ74: =IF(OR(AI74="",AI$7=""),"",AI74/AI$7*100) -> 0.00 | AK74: =IF(AF74="AB","AB",IF(AND(OR(Z74="ab",Z74="ml"),OR(AA74="ab",AA74="ml"),OR(AC74="ab",AC74="ml")),"AB",IF(AND(OR(Z74="ab",Z74="ml"),OR(AC74="ab",AC74="ml")),"AB",""))) ->  | AL74: =IF(OR($G74="NSO",$G74="",AF74=""),"",IF(OR(AK74="AB",AF74="ab"),"AB",IF(AND(AJ74>=36,AF74>=20),"P",IF(AND(AJ74>=34,AF74=20,COUNTIF(Z74:AH74,"ML")=0),"G2",IF(AND(AJ74>31,AF74>20,COUNTIF(Z74:AH74,"ML")=0),"G1",IF(AND(AJ74>25,AF74>20),"S","F")))))) ->  | AM74: =IF(OR(AL74="",AL74=0,AL74="S",AL74="F",AL74="AB"),AL74,IF(AJ74>=75,"D",IF(AJ74>=60,"I",IF(AJ74>=48,"II",IF(AJ74>=36,"III",AL74))))) ->  | AO74: 0 | AP74: 0 | AQ74: 0 | AR74: =SUM(AO74:AQ74) -> 0 | AS74: 0 | AT74: 0 | AU74: =SUM(AS74:AT74) -> 0 | AV74: =SUM(AU74,AR74) -> 0 | AW74: 0 | AX74: 0 | AY74: =SUM(AW74:AX74) -> 0 | AZ74: =SUM(AV74,AY74) -> 0 | BA74: =IF(OR(AZ74="",AZ$7=""),"",AZ74/AZ$7*100) -> 0.00 | BB74: =IF(AV74="AB","AB",IF(AND(OR(AO74="ab",AO74="ml"),OR(AP74="ab",AP74="ml"),OR(AR74="ab",AR74="ml")),"AB",IF(AND(OR(AO74="ab",AO74="ml"),OR(AR74="ab",AR74="ml")),"AB",""))) ->  | BC74: =IF(OR($G74="NSO",$G74="",AW74="",AO$3=""),"",IF(OR(BB74="AB",AW74="ab"),"AB",IF(AND(BA74>=36,AW74>=20%*AW$7,AX74>=20%*AX72),"P",IF(AND(BA74>=34,AW74>=20%*AW72,AX74>=20%*AX72,COUNTIF(AQ74:AX74,"ML")=0),"G2",IF(AND(BA74>31,AW74>=20%*AW72,AX74>=20%*AX72,COUNTIF(AQ74:AX74,"ML")=0),"G1",IF(AND(BA74>25,AW74>20),"S","F")))))) ->  | BF74: 0 | BG74: 0 | BH74: 0 | BI74: =SUM(BF74:BH74) -> 0 | BJ74: 0 | BK74: 0 | BL74: =SUM(BJ74:BK74) -> 0 | BM74: =SUM(BL74,BI74) -> 0 | BN74: 0 | BO74: 0 | BP74: =SUM(BN74:BO74) -> 0 | BQ74: =SUM(BM74,BP74) -> 0 | BR74: =IF(OR(BQ74="",BQ$7=""),"",BQ74/BQ$7*100) -> 0 | BS74: =IF(BM74="AB","AB",IF(AND(OR(BF74="ab",BF74="ml"),OR(BG74="ab",BG74="ml"),OR(BI74="ab",BI74="ml")),"AB",IF(AND(OR(BF74="ab",BF74="ml"),OR(BI74="ab",BI74="ml")),"AB",""))) ->  | BT74: =IF(OR($G74="NSO",$G74="",BN74="",BF$3=""),"",IF(OR(BS74="AB",BN74="ab"),"AB",IF(AND(BR74>=36,BN74>=20%*BN$7,BO74>=20%*BO72),"P",IF(AND(BR74>=34,BN74>=20%*BN72,BO74>=20%*BO72,COUNTIF(BH74:BO74,"ML")=0),"G2",IF(AND(BR74>31,BN74>=20%*BN72,BO74>=20%*BO72,COUNTIF(BH74:BO74,"ML")=0),"G1",IF(AND(BR74>25,BN74>20),"S","F")))))) ->  | BW74: 0 | BX74: 0 | BY74: 0 | BZ74: =SUM(BW74:BY74) -> 0 | CA74: 0 | CB74: 0 | CC74: =SUM(CA74:CB74) -> 0 | CD74: =SUM(CC74,BZ74) -> 0 | CE74: 0 | CF74: 0 | CG74: =SUM(CE74:CF74) -> 0 | CH74: =SUM(CD74,CG74) -> 0 | CI74: =IF(OR(CH$7=0,0),"",CH74/CH$7*100) -> 0.00 | CJ74: =IF(CD74="AB","AB",IF(AND(OR(BW74="ab",BW74="ml"),OR(BX74="ab",BX74="ml"),OR(BZ74="ab",BZ74="ml")),"AB",IF(AND(OR(BW74="ab",BW74="ml"),OR(BZ74="ab",BZ74="ml")),"AB",""))) ->  | CK74: =IF(OR($G74="NSO",$G74="",CE74="",BW$3=""),"",IF(OR(CJ74="AB",CE74="ab"),"AB",IF(AND(CI74>=36,CE74>=20%*CE$7,CF74>=20%*CF72),"P",IF(AND(CI74>=34,CE74>=20%*CE72,CF74>=20%*CF72,COUNTIF(BY74:CF74,"ML")=0),"G2",IF(AND(CI74>31,CE74>=20%*CE72,CF74>=20%*CF72,COUNTIF(BY74:CF74,"ML")=0),"G1",IF(AND(CI74>25,CE74>20),"S","F")))))) ->  | CN74: 0 | CO74: 0 | CP74: 0 | CQ74: =SUM(CN74:CP74) -> 0 | CR74: 0 | CS74: 0 | CT74: =SUM(CR74:CS74) -> 0 | CU74: =SUM(CT74,CQ74) -> 0 | CV74: 0 | CW74: 0 | CX74: =SUM(CV74:CW74) -> 0 | CY74: =SUM(CU74,CX74) -> 0 | CZ74: =IF(OR(CY$7=0,0),"",CY74/CY$7*100) -> 0 | DA74: =IF(CU74="AB","AB",IF(AND(OR(CN74="ab",CN74="ml"),OR(CO74="ab",CO74="ml"),OR(CQ74="ab",CQ74="ml")),"AB",IF(AND(OR(CN74="ab",CN74="ml"),OR(CQ74="ab",CQ74="ml")),"AB",""))) ->  | DB74: =IF(OR($G74="NSO",$G74="",CV74="",CN$3=""),"",IF(OR(DA74="AB",CV74="ab"),"AB",IF(AND(CZ74>=36,CV74>=20%*CV$7,CW74>=20%*CW72),"P",IF(AND(CZ74>=34,CV74>=20%*CV72,CW74>=20%*CW72,COUNTIF(CP74:CW74,"ML")=0),"G2",IF(AND(CZ74>31,CV74>=20%*CV72,CW74>=20%*CW72,COUNTIF(CP74:CW74,"ML")=0),"G1",IF(AND(CZ74>25,CV74>20),"S","F")))))) ->  | DC74: =IF(OR(CM74="",CM74=0),"",IF(OR(DB74="",DB74=0,DB74="S",DB74="F",DB74="AB"),DB74,IF(CZ74>=75,"D",IF(CZ74>=60,"I",IF(CZ74>=48,"II",IF(CZ74>=36,"III",DB74)))))) ->  | DE74: 0 | DF74: 0 | DG74: 0 | DH74: =SUM(DE74:DG74) -> 0 | DI74: 0 | DJ74: 0 | DK74: =SUM(DI74:DJ74) -> 0 | DL74: =SUM(DK74,DH74) -> 0 | DM74: 0 | DN74: 0 | DO74: =SUM(DM74:DN74) -> 0 | DP74: =SUM(DL74,DO74) -> 0 | DQ74: =IF(OR(DP$7=0,0),"",DP74/DP$7*100) -> 0 | DR74: =IF(DL74="AB","AB",IF(AND(OR(DE74="ab",DE74="ml"),OR(DF74="ab",DF74="ml"),OR(DH74="ab",DH74="ml")),"AB",IF(AND(OR(DE74="ab",DE74="ml"),OR(DH74="ab",DH74="ml")),"AB",""))) ->  | DS74: =IF(OR($G74="NSO",$G74="",DM74="",DE$3=""),"",IF(OR(DR74="AB",DM74="ab"),"AB",IF(AND(DQ74>=36,DM74>=20%*DM$7,DN74>=20%*DN72),"P",IF(AND(DQ74>=34,DM74>=20%*DM72,DN74>=20%*DN72,COUNTIF(DG74:DN74,"ML")=0),"G2",IF(AND(DQ74>31,DM74>=20%*DM72,DN74>=20%*DN72,COUNTIF(DG74:DN74,"ML")=0),"G1",IF(AND(DQ74>25,DM74>20),"S","F")))))) ->  | DT74: =IF(OR(DD74="",DD74=0),"",IF(OR(DS74="",DS74=0,DS74="S",DS74="F",DS74="AB"),DS74,IF(DQ74>=75,"D",IF(DQ74>=60,"I",IF(DQ74>=48,"II",IF(DQ74>=36,"III",DS74)))))) ->  | DU74: 0 | DV74: 0 | DW74: 0 | DX74: =SUM(DU74:DW74) -> 0 | DY74: 0 | DZ74: 0 | EA74: =SUM(DY74:DZ74) -> 0 | EB74: =SUM(EA74,DX74) -> 0 | EC74: 0 | ED74: 0 | EE74: =SUM(EC74:ED74) -> 0 | EF74: =SUM(EB74,EE74) -> 0 | EG74: =IF(OR(EF74="",EF$7=""),"",EF74/EF$7*100) -> 0.00 | EH74: =IF(OR(G74="",G74="tc",G74="NSO"),"",IF(EG74>=80,"A",IF(EG74>=60,"B",IF(EG74>=40,"C",IF(EG74>=36,"D",0))))) ->  | EI74: 0 | EJ74: 0 | EK74: 0 | EL74: =SUM(EI74:EK74) -> 0 | EM74: 0 | EN74: =SUM(EL74:EM74) -> 0 | EO74: 0 | EP74: 0 | EQ74: 0 | ER74: =SUM(EN74,EO74) -> 0 | ES74: =IF(OR(ER74="",ER$7=""),"",ER74/ER$7*100) -> 0.00 | ET74: =IF(OR(G74="",G74="tc",G74="NSO"),"",IF(ES74>=80,"A",IF(ES74>=60,"B",IF(ES74>=40,"C",IF(ES74>=36,"D",0))))) ->  | EU74: 0 | EV74: 0 | EW74: 0 | EX74: =SUM(EU74:EW74) -> 0 | EY74: 0 | EZ74: =SUM(EX74:EY74) -> 0 | FA74: 0 | FB74: 0 | FC74: 0 | FD74: =SUM(EZ74,FA74) -> 0 | FE74: =IF(OR(FD74="",FD$7=""),"",FD74/FD$7*100) -> 0.00 | FF74: =IF(OR(G74="",G74="tc",G74="NSO"),"",IF(FE74>=80,"A",IF(FE74>=60,"B",IF(FE74>=40,"C",IF(FE74>=36,"D",0))))) ->  | FG74: 0 | FH74: 0 | FI74: 0 | FJ74: 0 | FK74: =IF(OR(FJ74="",FJ$7=""),"",FJ74/FJ$7*100) -> 0.00 | FL74: =IF(OR(G74="",G74="tc",G74="NSO"),"",IF(FK74>=80,"A",IF(FK74>=60,"B",IF(FK74>=40,"C",IF(FK74>=36,"D",0))))) ->  | FP74: =HQ74 -> 0 | FQ74: =SUM(U74,AI74,AZ74,BQ74,CH74,CY74,DP74) -> 0 | FR74: =IF(OR(FT74="passed",FT74="Passed with g"),FQ74/FP74*100,0) -> 0.00 | FS74: =IF(AND(FR74>=60,FT74="Passed"),"First",IF(AND(FR74>=60,FT74="Passed with G"),"First",IF(AND(FR74>=48,FT74="Passed"),"Second",IF(AND(FR74>=48,FT74="Passed With G"),"Second",IF(OR(FT74="Passed",FT74="Passed With G"),"Third",FT74))))) ->  | FT74: =IF($G74="TC","Transfered",IF($G74="NSO","NSO",IF(OR($G74="",$G74=0,O74=""),"",IF(OR(GE74>0,(GF74+GG74+GH74)>2),"FAILED",IF(OR(GF74>0,GG74>1),"SUPP.",IF(AND(GG74>0,GH74>0),"SUPP.",IF((GG74+GH74),"Passed With G","Passed"))))))) ->  | FU74: =IF(FT74="Passed",FR74,"") ->  | FV74: =IF(FU74="","",SUMPRODUCT((FU74<FU$9:FU$108)/COUNTIF(FU$9:FU$108,FU$9:FU$108))) ->  | FW74: =IF(G74="Tc","--",IF(FT74="nso","Name Separated",IF(GE74>0,"Need Improvement",IF(GF74>0,"Need Improvement",IF(GG74>0,"Need Improvement",IF(FR74>=80,"Excellent",IF(FR74>=60,"Very Good",IF(FR74>=48,"Good",IF(FR74>=36,"Average",IF(FR74=0,0,"Need Improvement")))))))))) -> 0 | GC74: =DC74 ->  | GD74: =DT74 ->  | GE74: =COUNTIF(FX74:GD74,"F")+COUNTIF(FX74:GD74,"AB") -> 0 | GF74: =COUNTIF(FX74:GD74,"S") -> 0 | GG74: =COUNTIF(FX74:GD74,"G1") -> 0 | GH74: =COUNTIF(FX74:GD74,"G2") -> 0 | GL74: 0 | GM74: / | GN74: 200 | GO74: =CONCATENATE(GL74,GM74,GN74) -> 0/200 | GP74: =ER74 -> 0 | GQ74: / | GR74: =$ER$7 -> 200 | GS74: =CONCATENATE(GP74,GQ74,GR74) -> 0/200 | GT74: =FD74 -> 0 | GU74: / | GV74: =$FD$7 -> 200 | GW74: =CONCATENATE(GT74,GU74,GV74) -> 0/200 | GX74: =FJ74 -> 0 | GY74: / | GZ74: =$FJ$7 -> 100 | HA74: =CONCATENATE(GX74,GY74,GZ74) -> 0/100 | HJ74: 0 | HK74: 0 | HL74: =IF(AN74>=1,$AZ$7,0) -> 0 | HM74: =IF(BE74>=1,$BQ$7,0) -> 0 | HN74: =IF(BV74>=1,$CH$7,0) -> 0 | HO74: =IF(CM74>=1,$CY$7,0) -> 0 | HP74: =IF(DD74>=1,$DP$7,0) -> 0 | HQ74: 0
A75: 0 | B75: 67 | C75: 67 | D75: 0 | L75: 0 | M75: 0 | N75: 0 | O75: 0 | P75: 0 | Q75: 0 | R75: 0 | S75: 0 | T75: 0 | U75: 0 | V75: 0.00 | Z75: 0 | AA75: 0 | AB75: 0 | AC75: 0 | AD75: 0 | AE75: 0 | AF75: 0 | AG75: 0 | AH75: 0 | AI75: 0 | AJ75: 0.00 | AK75: =IF(AF75="AB","AB",IF(AND(OR(Z75="ab",Z75="ml"),OR(AA75="ab",AA75="ml"),OR(AC75="ab",AC75="ml")),"AB",IF(AND(OR(Z75="ab",Z75="ml"),OR(AC75="ab",AC75="ml")),"AB",""))) ->  | AM75: =IF(OR(AL75="",AL75=0,AL75="S",AL75="F",AL75="AB"),AL75,IF(AJ75>=75,"D",IF(AJ75>=60,"I",IF(AJ75>=48,"II",IF(AJ75>=36,"III",AL75))))) ->  | AO75: 0 | AP75: 0 | AQ75: 0 | AR75: 0 | AS75: 0 | AT75: 0 | AU75: 0 | AV75: 0 | AW75: 0 | AX75: 0 | AY75: 0 | AZ75: 0 | BA75: 0.00 | BB75: =IF(AV75="AB","AB",IF(AND(OR(AO75="ab",AO75="ml"),OR(AP75="ab",AP75="ml"),OR(AR75="ab",AR75="ml")),"AB",IF(AND(OR(AO75="ab",AO75="ml"),OR(AR75="ab",AR75="ml")),"AB",""))) ->  | BF75: 0 | BG75: 0 | BH75: 0 | BI75: 0 | BJ75: 0 | BK75: 0 | BL75: 0 | BM75: 0 | BN75: 0 | BO75: 0 | BP75: 0 | BQ75: 0 | BR75: 0 | BS75: =IF(BM75="AB","AB",IF(AND(OR(BF75="ab",BF75="ml"),OR(BG75="ab",BG75="ml"),OR(BI75="ab",BI75="ml")),"AB",IF(AND(OR(BF75="ab",BF75="ml"),OR(BI75="ab",BI75="ml")),"AB",""))) ->  | BW75: 0 | BX75: 0 | BY75: 0 | BZ75: 0 | CA75: 0 | CB75: 0 | CC75: 0 | CD75: 0 | CE75: 0 | CF75: 0 | CG75: 0 | CH75: 0 | CI75: 0.00 | CN75: 0 | CO75: 0 | CP75: 0 | CQ75: 0 | CR75: 0 | CS75: 0 | CT75: 0 | CU75: 0 | CV75: 0 | CW75: 0 | CX75: 0 | CY75: 0 | CZ75: 0 | DE75: 0 | DF75: 0 | DG75: 0 | DH75: 0 | DI75: 0 | DJ75: 0 | DK75: 0 | DL75: 0 | DM75: 0 | DN75: 0 | DO75: 0 | DP75: 0 | DQ75: 0 | DU75: 0 | DV75: 0 | DW75: 0 | DX75: 0 | DY75: 0 | DZ75: 0 | EA75: 0 | EB75: 0 | EC75: 0 | ED75: 0 | EE75: 0 | EF75: 0 | EG75: 0.00 | EI75: 0 | EJ75: 0 | EK75: 0 | EL75: 0 | EM75: 0 | EN75: 0 | EO75: 0 | EP75: 0 | EQ75: 0 | ER75: 0 | ES75: 0.00 | EU75: 0 | EV75: 0 | EW75: 0 | EX75: 0 | EY75: 0 | EZ75: 0 | FA75: 0 | FB75: 0 | FC75: 0 | FD75: 0 | FE75: 0.00 | FG75: 0 | FH75: 0 | FI75: 0 | FJ75: 0 | FK75: 0.00 | FP75: 0 | FQ75: 0 | FR75: 0.00 | FW75: 0 | GE75: 0 | GF75: 0 | GG75: 0 | GH75: 0 | GL75: 0 | GM75: / | GN75: 200 | GO75: 0/200 | GP75: 0 | GQ75: / | GR75: 200 | GS75: 0/200 | GT75: 0 | GU75: / | GV75: 200 | GW75: 0/200 | GX75: 0 | GY75: / | GZ75: 100 | HA75: 0/100 | HJ75: 0 | HK75: 0 | HL75: 0 | HM75: 0 | HN75: 0 | HO75: 0 | HP75: 0 | HQ75: 0
A76: 0 | B76: 68 | C76: 68 | D76: 0 | L76: 0 | M76: 0 | N76: 0 | O76: 0 | P76: 0 | Q76: 0 | R76: 0 | S76: 0 | T76: 0 | U76: 0 | V76: 0.00 | Z76: 0 | AA76: 0 | AB76: 0 | AC76: 0 | AD76: 0 | AE76: 0 | AF76: 0 | AG76: 0 | AH76: 0 | AI76: 0 | AJ76: 0.00 | AO76: 0 | AP76: 0 | AQ76: 0 | AR76: 0 | AS76: 0 | AT76: 0 | AU76: 0 | AV76: 0 | AW76: 0 | AX76: 0 | AY76: 0 | AZ76: 0 | BA76: 0.00 | BF76: 0 | BG76: 0 | BH76: 0 | BI76: 0 | BJ76: 0 | BK76: 0 | BL76: 0 | BM76: 0 | BN76: 0 | BO76: 0 | BP76: 0 | BQ76: 0 | BR76: 0 | BW76: 0 | BX76: 0 | BY76: 0 | BZ76: 0 | CA76: 0 | CB76: 0 | CC76: 0 | CD76: 0 | CE76: 0 | CF76: 0 | CG76: 0 | CH76: 0 | CI76: 0.00 | CN76: 0 | CO76: 0 | CP76: 0 | CQ76: 0 | CR76: 0 | CS76: 0 | CT76: 0 | CU76: 0 | CV76: 0 | CW76: 0 | CX76: 0 | CY76: 0 | CZ76: 0 | DE76: 0 | DF76: 0 | DG76: 0 | DH76: 0 | DI76: 0 | DJ76: 0 | DK76: 0 | DL76: 0 | DM76: 0 | DN76: 0 | DO76: 0 | DP76: 0 | DQ76: 0 | DU76: 0 | DV76: 0 | DW76: 0 | DX76: 0 | DY76: 0 | DZ76: 0 | EA76: 0 | EB76: 0 | EC76: 0 | ED76: 0 | EE76: 0 | EF76: 0 | EG76: 0.00 | EI76: 0 | EJ76: 0 | EK76: 0 | EL76: 0 | EM76: 0 | EN76: 0 | EO76: 0 | EP76: 0 | EQ76: 0 | ER76: 0 | ES76: 0.00 | EU76: 0 | EV76: 0 | EW76: 0 | EX76: 0 | EY76: 0 | EZ76: 0 | FA76: 0 | FB76: 0 | FC76: 0 | FD76: 0 | FE76: 0.00 | FG76: 0 | FH76: 0 | FI76: 0 | FJ76: 0 | FK76: 0.00 | FP76: 0 | FQ76: 0 | FR76: 0.00 | FW76: 0 | GE76: 0 | GF76: 0 | GG76: 0 | GH76: 0 | GL76: 0 | GM76: / | GN76: 200 | GO76: 0/200 | GP76: 0 | GQ76: / | GR76: 200 | GS76: 0/200 | GT76: 0 | GU76: / | GV76: 200 | GW76: 0/200 | GX76: 0 | GY76: / | GZ76: 100 | HA76: 0/100 | HJ76: 0 | HK76: 0 | HL76: 0 | HM76: 0 | HN76: 0 | HO76: 0 | HP76: 0 | HQ76: 0
A77: 0 | B77: 69 | C77: 69 | D77: 0 | L77: 0 | M77: 0 | N77: 0 | O77: 0 | P77: 0 | Q77: 0 | R77: 0 | S77: 0 | T77: 0 | U77: 0 | V77: 0.00 | Z77: 0 | AA77: 0 | AB77: 0 | AC77: 0 | AD77: 0 | AE77: 0 | AF77: 0 | AG77: 0 | AH77: 0 | AI77: 0 | AJ77: 0.00 | AO77: 0 | AP77: 0 | AQ77: 0 | AR77: 0 | AS77: 0 | AT77: 0 | AU77: 0 | AV77: 0 | AW77: 0 | AX77: 0 | AY77: 0 | AZ77: 0 | BA77: 0.00 | BF77: 0 | BG77: 0 | BH77: 0 | BI77: 0 | BJ77: 0 | BK77: 0 | BL77: 0 | BM77: 0 | BN77: 0 | BO77: 0 | BP77: 0 | BQ77: 0 | BR77: 0 | BW77: 0 | BX77: 0 | BY77: 0 | BZ77: 0 | CA77: 0 | CB77: 0 | CC77: 0 | CD77: 0 | CE77: 0 | CF77: 0 | CG77: 0 | CH77: 0 | CI77: 0.00 | CN77: 0 | CO77: 0 | CP77: 0 | CQ77: 0 | CR77: 0 | CS77: 0 | CT77: 0 | CU77: 0 | CV77: 0 | CW77: 0 | CX77: 0 | CY77: 0 | CZ77: 0 | DE77: 0 | DF77: 0 | DG77: 0 | DH77: 0 | DI77: 0 | DJ77: 0 | DK77: 0 | DL77: 0 | DM77: 0 | DN77: 0 | DO77: 0 | DP77: 0 | DQ77: 0 | DU77: 0 | DV77: 0 | DW77: 0 | DX77: 0 | DY77: 0 | DZ77: 0 | EA77: 0 | EB77: 0 | EC77: 0 | ED77: 0 | EE77: 0 | EF77: 0 | EG77: 0.00 | EI77: 0 | EJ77: 0 | EK77: 0 | EL77: 0 | EM77: 0 | EN77: 0 | EO77: 0 | EP77: 0 | EQ77: 0 | ER77: 0 | ES77: 0.00 | EU77: 0 | EV77: 0 | EW77: 0 | EX77: 0 | EY77: 0 | EZ77: 0 | FA77: 0 | FB77: 0 | FC77: 0 | FD77: 0 | FE77: 0.00 | FG77: 0 | FH77: 0 | FI77: 0 | FJ77: 0 | FK77: 0.00 | FP77: 0 | FQ77: 0 | FR77: 0.00 | FW77: 0 | GE77: 0 | GF77: 0 | GG77: 0 | GH77: 0 | GL77: 0 | GM77: / | GN77: 200 | GO77: 0/200 | GP77: 0 | GQ77: / | GR77: 200 | GS77: 0/200 | GT77: 0 | GU77: / | GV77: 200 | GW77: 0/200 | GX77: 0 | GY77: / | GZ77: 100 | HA77: 0/100 | HJ77: 0 | HK77: 0 | HL77: 0 | HM77: 0 | HN77: 0 | HO77: 0 | HP77: 0 | HQ77: 0
A78: 0 | B78: 70 | C78: 70 | D78: 0 | L78: 0 | M78: 0 | N78: 0 | O78: 0 | P78: 0 | Q78: 0 | R78: 0 | S78: 0 | T78: 0 | U78: 0 | V78: 0.00 | Z78: 0 | AA78: 0 | AB78: 0 | AC78: 0 | AD78: 0 | AE78: 0 | AF78: 0 | AG78: 0 | AH78: =SUM(AF78:AG78) -> 0 | AI78: 0 | AJ78: 0.00 | AO78: 0 | AP78: 0 | AQ78: 0 | AR78: 0 | AS78: 0 | AT78: 0 | AU78: 0 | AV78: 0 | AW78: 0 | AX78: 0 | AY78: 0 | AZ78: 0 | BA78: 0.00 | BF78: 0 | BG78: 0 | BH78: 0 | BI78: 0 | BJ78: 0 | BK78: 0 | BL78: 0 | BM78: 0 | BN78: 0 | BO78: 0 | BP78: 0 | BQ78: 0 | BR78: 0 | BW78: 0 | BX78: 0 | BY78: 0 | BZ78: 0 | CA78: 0 | CB78: 0 | CC78: 0 | CD78: 0 | CE78: 0 | CF78: 0 | CG78: 0 | CH78: 0 | CI78: 0.00 | CN78: 0 | CO78: 0 | CP78: 0 | CQ78: 0 | CR78: 0 | CS78: 0 | CT78: 0 | CU78: 0 | CV78: 0 | CW78: 0 | CX78: 0 | CY78: 0 | CZ78: 0 | DE78: 0 | DF78: 0 | DG78: 0 | DH78: 0 | DI78: 0 | DJ78: 0 | DK78: 0 | DL78: 0 | DM78: 0 | DN78: 0 | DO78: 0 | DP78: 0 | DQ78: 0 | DU78: 0 | DV78: 0 | DW78: 0 | DX78: 0 | DY78: 0 | DZ78: 0 | EA78: 0 | EB78: 0 | EC78: 0 | ED78: 0 | EE78: 0 | EF78: 0 | EG78: 0.00 | EI78: 0 | EJ78: 0 | EK78: 0 | EL78: 0 | EM78: 0 | EN78: 0 | EO78: 0 | EP78: 0 | EQ78: =SUM(EO78:EP78) -> 0 | ER78: 0 | ES78: 0.00 | EU78: 0 | EV78: 0 | EW78: 0 | EX78: 0 | EY78: 0 | EZ78: 0 | FA78: 0 | FB78: 0 | FC78: =SUM(FA78:FB78) -> 0 | FD78: 0 | FE78: 0.00 | FG78: 0 | FH78: 0 | FI78: 0 | FJ78: 0 | FK78: 0.00 | FP78: 0 | FQ78: 0 | FR78: 0.00 | FW78: 0 | GE78: 0 | GF78: 0 | GG78: 0 | GH78: 0 | GL78: 0 | GM78: / | GN78: 200 | GO78: 0/200 | GP78: 0 | GQ78: / | GR78: 200 | GS78: 0/200 | GT78: 0 | GU78: / | GV78: 200 | GW78: 0/200 | GX78: 0 | GY78: / | GZ78: 100 | HA78: 0/100 | HJ78: 0 | HK78: 0 | HL78: 0 | HM78: 0 | HN78: 0 | HO78: 0 | HP78: 0 | HQ78: 0
A79: 0 | B79: 71 | C79: 71 | D79: 0 | L79: 0 | M79: 0 | N79: 0 | O79: 0 | P79: 0 | Q79: 0 | R79: 0 | S79: 0 | T79: 0 | U79: 0 | V79: 0.00 | Z79: 0 | AA79: 0 | AB79: 0 | AC79: 0 | AD79: 0 | AE79: 0 | AF79: 0 | AG79: 0 | AH79: 0 | AI79: 0 | AJ79: 0.00 | AO79: 0 | AP79: 0 | AQ79: 0 | AR79: 0 | AS79: 0 | AT79: 0 | AU79: 0 | AV79: 0 | AW79: 0 | AX79: 0 | AY79: 0 | AZ79: 0 | BA79: 0.00 | BF79: 0 | BG79: 0 | BH79: 0 | BI79: 0 | BJ79: 0 | BK79: 0 | BL79: 0 | BM79: 0 | BN79: 0 | BO79: 0 | BP79: 0 | BQ79: 0 | BR79: 0 | BW79: 0 | BX79: 0 | BY79: 0 | BZ79: 0 | CA79: 0 | CB79: 0 | CC79: 0 | CD79: 0 | CE79: 0 | CF79: 0 | CG79: 0 | CH79: 0 | CI79: 0.00 | CN79: 0 | CO79: 0 | CP79: 0 | CQ79: 0 | CR79: 0 | CS79: 0 | CT79: 0 | CU79: 0 | CV79: 0 | CW79: 0 | CX79: 0 | CY79: 0 | CZ79: 0 | DE79: 0 | DF79: 0 | DG79: 0 | DH79: 0 | DI79: 0 | DJ79: 0 | DK79: 0 | DL79: 0 | DM79: 0 | DN79: 0 | DO79: 0 | DP79: 0 | DQ79: 0 | DU79: 0 | DV79: 0 | DW79: 0 | DX79: 0 | DY79: 0 | DZ79: 0 | EA79: 0 | EB79: 0 | EC79: 0 | ED79: 0 | EE79: 0 | EF79: 0 | EG79: 0.00 | EI79: 0 | EJ79: 0 | EK79: 0 | EL79: 0 | EM79: 0 | EN79: 0 | EO79: 0 | EP79: 0 | EQ79: 0 | ER79: 0 | ES79: 0.00 | EU79: 0 | EV79: 0 | EW79: 0 | EX79: 0 | EY79: 0 | EZ79: 0 | FA79: 0 | FB79: 0 | FC79: 0 | FD79: 0 | FE79: 0.00 | FG79: 0 | FH79: 0 | FI79: 0 | FJ79: 0 | FK79: 0.00 | FP79: 0 | FQ79: 0 | FR79: 0.00 | FW79: 0 | GE79: 0 | GF79: 0 | GG79: 0 | GH79: 0 | GL79: 0 | GM79: / | GN79: 200 | GO79: 0/200 | GP79: 0 | GQ79: / | GR79: 200 | GS79: 0/200 | GT79: 0 | GU79: / | GV79: 200 | GW79: 0/200 | GX79: 0 | GY79: / | GZ79: 100 | HA79: 0/100 | HJ79: 0 | HK79: 0 | HL79: 0 | HM79: 0 | HN79: 0 | HO79: 0 | HP79: 0 | HQ79: 0
A80: 0 | B80: 72 | C80: 72 | D80: 0 | L80: 0 | M80: 0 | N80: 0 | O80: 0 | P80: 0 | Q80: 0 | R80: 0 | S80: 0 | T80: 0 | U80: 0 | V80: 0.00 | Z80: 0 | AA80: 0 | AB80: 0 | AC80: 0 | AD80: 0 | AE80: 0 | AF80: 0 | AG80: 0 | AH80: 0 | AI80: 0 | AJ80: 0.00 | AO80: 0 | AP80: 0 | AQ80: 0 | AR80: 0 | AS80: 0 | AT80: 0 | AU80: 0 | AV80: 0 | AW80: 0 | AX80: 0 | AY80: 0 | AZ80: 0 | BA80: 0.00 | BF80: 0 | BG80: 0 | BH80: 0 | BI80: 0 | BJ80: 0 | BK80: 0 | BL80: 0 | BM80: 0 | BN80: 0 | BO80: 0 | BP80: 0 | BQ80: 0 | BR80: 0 | BW80: 0 | BX80: 0 | BY80: 0 | BZ80: 0 | CA80: 0 | CB80: 0 | CC80: 0 | CD80: 0 | CE80: 0 | CF80: 0 | CG80: 0 | CH80: 0 | CI80: 0.00 | CN80: 0 | CO80: 0 | CP80: 0 | CQ80: 0 | CR80: 0 | CS80: 0 | CT80: 0 | CU80: 0 | CV80: 0 | CW80: 0 | CX80: 0 | CY80: 0 | CZ80: 0 | DE80: 0 | DF80: 0 | DG80: 0 | DH80: 0 | DI80: 0 | DJ80: 0 | DK80: 0 | DL80: 0 | DM80: 0 | DN80: 0 | DO80: 0 | DP80: 0 | DQ80: 0 | DU80: 0 | DV80: 0 | DW80: 0 | DX80: 0 | DY80: 0 | DZ80: 0 | EA80: 0 | EB80: 0 | EC80: 0 | ED80: 0 | EE80: 0 | EF80: 0 | EG80: 0.00 | EI80: 0 | EJ80: 0 | EK80: 0 | EL80: 0 | EM80: 0 | EN80: 0 | EO80: 0 | EP80: 0 | EQ80: 0 | ER80: 0 | ES80: 0.00 | EU80: 0 | EV80: 0 | EW80: 0 | EX80: 0 | EY80: 0 | EZ80: 0 | FA80: 0 | FB80: 0 | FC80: 0 | FD80: 0 | FE80: 0.00 | FG80: 0 | FH80: 0 | FI80: 0 | FJ80: 0 | FK80: 0.00 | FP80: 0 | FQ80: 0 | FR80: 0.00 | FW80: 0 | GE80: 0 | GF80: 0 | GG80: 0 | GH80: 0 | GL80: 0 | GM80: / | GN80: 200 | GO80: 0/200 | GP80: 0 | GQ80: / | GR80: 200 | GS80: 0/200 | GT80: 0 | GU80: / | GV80: 200 | GW80: 0/200 | GX80: 0 | GY80: / | GZ80: 100 | HA80: 0/100 | HJ80: 0 | HK80: 0 | HL80: 0 | HM80: 0 | HN80: 0 | HO80: 0 | HP80: 0 | HQ80: 0
A81: 0 | B81: 73 | C81: 73 | D81: 0 | L81: 0 | M81: 0 | N81: 0 | O81: 0 | P81: 0 | Q81: 0 | R81: 0 | S81: 0 | T81: 0 | U81: 0 | V81: 0.00 | Z81: 0 | AA81: 0 | AB81: 0 | AC81: 0 | AD81: 0 | AE81: 0 | AF81: 0 | AG81: 0 | AH81: 0 | AI81: 0 | AJ81: 0.00 | AO81: 0 | AP81: 0 | AQ81: 0 | AR81: 0 | AS81: 0 | AT81: 0 | AU81: 0 | AV81: 0 | AW81: 0 | AX81: 0 | AY81: 0 | AZ81: 0 | BA81: 0.00 | BF81: 0 | BG81: 0 | BH81: 0 | BI81: 0 | BJ81: 0 | BK81: 0 | BL81: 0 | BM81: 0 | BN81: 0 | BO81: 0 | BP81: 0 | BQ81: 0 | BR81: 0 | BW81: 0 | BX81: 0 | BY81: 0 | BZ81: 0 | CA81: 0 | CB81: 0 | CC81: 0 | CD81: 0 | CE81: 0 | CF81: 0 | CG81: 0 | CH81: 0 | CI81: 0.00 | CN81: 0 | CO81: 0 | CP81: 0 | CQ81: 0 | CR81: 0 | CS81: 0 | CT81: 0 | CU81: 0 | CV81: 0 | CW81: 0 | CX81: 0 | CY81: 0 | CZ81: 0 | DE81: 0 | DF81: 0 | DG81: 0 | DH81: 0 | DI81: 0 | DJ81: 0 | DK81: 0 | DL81: 0 | DM81: 0 | DN81: 0 | DO81: 0 | DP81: 0 | DQ81: 0 | DU81: 0 | DV81: 0 | DW81: 0 | DX81: 0 | DY81: 0 | DZ81: 0 | EA81: 0 | EB81: 0 | EC81: 0 | ED81: 0 | EE81: 0 | EF81: 0 | EG81: 0.00 | EI81: 0 | EJ81: 0 | EK81: 0 | EL81: 0 | EM81: 0 | EN81: 0 | EO81: 0 | EP81: 0 | EQ81: 0 | ER81: 0 | ES81: 0.00 | EU81: 0 | EV81: 0 | EW81: 0 | EX81: 0 | EY81: 0 | EZ81: 0 | FA81: 0 | FB81: 0 | FC81: 0 | FD81: 0 | FE81: 0.00 | FG81: 0 | FH81: 0 | FI81: 0 | FJ81: 0 | FK81: 0.00 | FP81: 0 | FQ81: 0 | FR81: 0.00 | FW81: 0 | GE81: 0 | GF81: 0 | GG81: 0 | GH81: 0 | GL81: 0 | GM81: / | GN81: 200 | GO81: 0/200 | GP81: 0 | GQ81: / | GR81: 200 | GS81: 0/200 | GT81: 0 | GU81: / | GV81: 200 | GW81: 0/200 | GX81: 0 | GY81: / | GZ81: 100 | HA81: 0/100 | HJ81: =IF(U81>0,$U$7,0) -> 0 | HK81: =IF(AI81>0,$AI$7,0) -> 0 | HL81: 0 | HM81: 0 | HN81: 0 | HO81: 0 | HP81: 0 | HQ81: =SUM(HJ81:HP81) -> 0
A82: 0 | B82: 74 | C82: 74 | D82: 0 | L82: 0 | M82: 0 | N82: 0 | O82: 0 | P82: 0 | Q82: 0 | R82: 0 | S82: 0 | T82: 0 | U82: 0 | V82: 0.00 | Z82: 0 | AA82: 0 | AB82: 0 | AC82: 0 | AD82: 0 | AE82: 0 | AF82: 0 | AG82: 0 | AH82: 0 | AI82: 0 | AJ82: 0.00 | AO82: 0 | AP82: 0 | AQ82: 0 | AR82: 0 | AS82: 0 | AT82: 0 | AU82: 0 | AV82: 0 | AW82: 0 | AX82: 0 | AY82: 0 | AZ82: 0 | BA82: 0.00 | BF82: 0 | BG82: 0 | BH82: 0 | BI82: 0 | BJ82: 0 | BK82: 0 | BL82: 0 | BM82: 0 | BN82: 0 | BO82: 0 | BP82: 0 | BQ82: 0 | BR82: 0 | BW82: 0 | BX82: 0 | BY82: 0 | BZ82: 0 | CA82: 0 | CB82: 0 | CC82: 0 | CD82: 0 | CE82: 0 | CF82: 0 | CG82: 0 | CH82: 0 | CI82: 0.00 | CN82: 0 | CO82: 0 | CP82: 0 | CQ82: 0 | CR82: 0 | CS82: 0 | CT82: 0 | CU82: 0 | CV82: 0 | CW82: 0 | CX82: 0 | CY82: 0 | CZ82: 0 | DE82: 0 | DF82: 0 | DG82: 0 | DH82: 0 | DI82: 0 | DJ82: 0 | DK82: 0 | DL82: 0 | DM82: 0 | DN82: 0 | DO82: 0 | DP82: 0 | DQ82: 0 | DU82: 0 | DV82: 0 | DW82: 0 | DX82: 0 | DY82: 0 | DZ82: 0 | EA82: 0 | EB82: 0 | EC82: 0 | ED82: 0 | EE82: 0 | EF82: 0 | EG82: 0.00 | EI82: 0 | EJ82: 0 | EK82: 0 | EL82: 0 | EM82: 0 | EN82: 0 | EO82: 0 | EP82: 0 | EQ82: 0 | ER82: 0 | ES82: 0.00 | EU82: 0 | EV82: 0 | EW82: 0 | EX82: 0 | EY82: 0 | EZ82: 0 | FA82: 0 | FB82: 0 | FC82: 0 | FD82: 0 | FE82: 0.00 | FG82: 0 | FH82: 0 | FI82: 0 | FJ82: 0 | FK82: 0.00 | FP82: 0 | FQ82: 0 | FR82: 0.00 | FW82: 0 | GE82: 0 | GF82: 0 | GG82: 0 | GH82: 0 | GL82: 0 | GM82: / | GN82: 200 | GO82: 0/200 | GP82: 0 | GQ82: / | GR82: 200 | GS82: 0/200 | GT82: 0 | GU82: / | GV82: 200 | GW82: 0/200 | GX82: 0 | GY82: / | GZ82: 100 | HA82: 0/100 | HJ82: 0 | HK82: 0 | HL82: 0 | HM82: 0 | HN82: 0 | HO82: 0 | HP82: 0 | HQ82: 0
A83: 0 | B83: 75 | C83: 75 | D83: 0 | L83: 0 | M83: 0 | N83: 0 | O83: 0 | P83: 0 | Q83: 0 | R83: 0 | S83: 0 | T83: 0 | U83: 0 | V83: 0.00 | Z83: 0 | AA83: 0 | AB83: 0 | AC83: 0 | AD83: 0 | AE83: 0 | AF83: 0 | AG83: 0 | AH83: 0 | AI83: 0 | AJ83: 0.00 | AO83: 0 | AP83: 0 | AQ83: 0 | AR83: 0 | AS83: 0 | AT83: 0 | AU83: 0 | AV83: 0 | AW83: 0 | AX83: 0 | AY83: 0 | AZ83: 0 | BA83: 0.00 | BF83: 0 | BG83: 0 | BH83: 0 | BI83: 0 | BJ83: 0 | BK83: 0 | BL83: 0 | BM83: 0 | BN83: 0 | BO83: 0 | BP83: 0 | BQ83: 0 | BR83: 0 | BW83: 0 | BX83: 0 | BY83: 0 | BZ83: 0 | CA83: 0 | CB83: 0 | CC83: 0 | CD83: 0 | CE83: 0 | CF83: 0 | CG83: 0 | CH83: 0 | CI83: 0.00 | CN83: 0 | CO83: 0 | CP83: 0 | CQ83: 0 | CR83: 0 | CS83: 0 | CT83: 0 | CU83: 0 | CV83: 0 | CW83: 0 | CX83: 0 | CY83: 0 | CZ83: 0 | DE83: 0 | DF83: 0 | DG83: 0 | DH83: 0 | DI83: 0 | DJ83: 0 | DK83: 0 | DL83: 0 | DM83: 0 | DN83: 0 | DO83: 0 | DP83: 0 | DQ83: 0 | DU83: 0 | DV83: 0 | DW83: 0 | DX83: 0 | DY83: 0 | DZ83: 0 | EA83: 0 | EB83: 0 | EC83: 0 | ED83: 0 | EE83: 0 | EF83: 0 | EG83: 0.00 | EI83: 0 | EJ83: 0 | EK83: 0 | EL83: 0 | EM83: 0 | EN83: 0 | EO83: 0 | EP83: 0 | EQ83: 0 | ER83: 0 | ES83: 0.00 | EU83: 0 | EV83: 0 | EW83: 0 | EX83: 0 | EY83: 0 | EZ83: 0 | FA83: 0 | FB83: 0 | FC83: 0 | FD83: 0 | FE83: 0.00 | FG83: 0 | FH83: 0 | FI83: 0 | FJ83: 0 | FK83: 0.00 | FP83: 0 | FQ83: 0 | FR83: 0.00 | FW83: 0 | GE83: 0 | GF83: 0 | GG83: 0 | GH83: 0 | GL83: 0 | GM83: / | GN83: 200 | GO83: 0/200 | GP83: 0 | GQ83: / | GR83: 200 | GS83: 0/200 | GT83: 0 | GU83: / | GV83: 200 | GW83: 0/200 | GX83: 0 | GY83: / | GZ83: 100 | HA83: 0/100 | HJ83: 0 | HK83: 0 | HL83: 0 | HM83: 0 | HN83: 0 | HO83: 0 | HP83: 0 | HQ83: 0
A84: 0 | B84: 76 | C84: 76 | D84: 0 | L84: 0 | M84: 0 | N84: 0 | O84: 0 | P84: 0 | Q84: 0 | R84: 0 | S84: 0 | T84: 0 | U84: 0 | V84: 0.00 | Z84: 0 | AA84: 0 | AB84: 0 | AC84: 0 | AD84: 0 | AE84: 0 | AF84: 0 | AG84: 0 | AH84: 0 | AI84: 0 | AJ84: 0.00 | AO84: 0 | AP84: 0 | AQ84: 0 | AR84: 0 | AS84: 0 | AT84: 0 | AU84: 0 | AV84: 0 | AW84: 0 | AX84: 0 | AY84: 0 | AZ84: 0 | BA84: 0.00 | BF84: 0 | BG84: 0 | BH84: 0 | BI84: 0 | BJ84: 0 | BK84: 0 | BL84: 0 | BM84: 0 | BN84: 0 | BO84: 0 | BP84: 0 | BQ84: 0 | BR84: 0 | BW84: 0 | BX84: 0 | BY84: 0 | BZ84: 0 | CA84: 0 | CB84: 0 | CC84: 0 | CD84: 0 | CE84: 0 | CF84: 0 | CG84: 0 | CH84: 0 | CI84: 0.00 | CN84: 0 | CO84: 0 | CP84: 0 | CQ84: 0 | CR84: 0 | CS84: 0 | CT84: 0 | CU84: 0 | CV84: 0 | CW84: 0 | CX84: 0 | CY84: 0 | CZ84: 0 | DE84: 0 | DF84: 0 | DG84: 0 | DH84: 0 | DI84: 0 | DJ84: 0 | DK84: 0 | DL84: 0 | DM84: 0 | DN84: 0 | DO84: 0 | DP84: 0 | DQ84: 0 | DU84: 0 | DV84: 0 | DW84: 0 | DX84: 0 | DY84: 0 | DZ84: 0 | EA84: 0 | EB84: 0 | EC84: 0 | ED84: 0 | EE84: 0 | EF84: 0 | EG84: 0.00 | EI84: 0 | EJ84: 0 | EK84: 0 | EL84: 0 | EM84: 0 | EN84: 0 | EO84: 0 | EP84: 0 | EQ84: 0 | ER84: 0 | ES84: 0.00 | EU84: 0 | EV84: 0 | EW84: 0 | EX84: 0 | EY84: 0 | EZ84: 0 | FA84: 0 | FB84: 0 | FC84: 0 | FD84: 0 | FE84: 0.00 | FG84: 0 | FH84: 0 | FI84: 0 | FJ84: 0 | FK84: 0.00 | FP84: 0 | FQ84: 0 | FR84: 0.00 | FW84: 0 | GE84: 0 | GF84: 0 | GG84: 0 | GH84: 0 | GL84: 0 | GM84: / | GN84: 200 | GO84: 0/200 | GP84: 0 | GQ84: / | GR84: 200 | GS84: 0/200 | GT84: 0 | GU84: / | GV84: 200 | GW84: 0/200 | GX84: 0 | GY84: / | GZ84: 100 | HA84: 0/100 | HJ84: 0 | HK84: 0 | HL84: 0 | HM84: 0 | HN84: 0 | HO84: 0 | HP84: 0 | HQ84: 0
A85: 0 | B85: 77 | C85: 77 | D85: 0 | L85: 0 | M85: 0 | N85: 0 | O85: 0 | P85: 0 | Q85: 0 | R85: 0 | S85: 0 | T85: 0 | U85: 0 | V85: 0.00 | Z85: 0 | AA85: 0 | AB85: 0 | AC85: 0 | AD85: 0 | AE85: 0 | AF85: 0 | AG85: 0 | AH85: 0 | AI85: 0 | AJ85: 0.00 | AO85: 0 | AP85: 0 | AQ85: 0 | AR85: 0 | AS85: 0 | AT85: 0 | AU85: 0 | AV85: 0 | AW85: 0 | AX85: 0 | AY85: 0 | AZ85: 0 | BA85: 0.00 | BF85: 0 | BG85: 0 | BH85: 0 | BI85: 0 | BJ85: 0 | BK85: 0 | BL85: 0 | BM85: 0 | BN85: 0 | BO85: 0 | BP85: 0 | BQ85: 0 | BR85: 0 | BW85: 0 | BX85: 0 | BY85: 0 | BZ85: 0 | CA85: 0 | CB85: 0 | CC85: 0 | CD85: 0 | CE85: 0 | CF85: 0 | CG85: 0 | CH85: 0 | CI85: 0.00 | CN85: 0 | CO85: 0 | CP85: 0 | CQ85: 0 | CR85: 0 | CS85: 0 | CT85: 0 | CU85: 0 | CV85: 0 | CW85: 0 | CX85: 0 | CY85: 0 | CZ85: 0 | DE85: 0 | DF85: 0 | DG85: 0 | DH85: 0 | DI85: 0 | DJ85: 0 | DK85: 0 | DL85: 0 | DM85: 0 | DN85: 0 | DO85: 0 | DP85: 0 | DQ85: 0 | DU85: 0 | DV85: 0 | DW85: 0 | DX85: 0 | DY85: 0 | DZ85: 0 | EA85: 0 | EB85: 0 | EC85: 0 | ED85: 0 | EE85: 0 | EF85: 0 | EG85: 0.00 | EI85: 0 | EJ85: 0 | EK85: 0 | EL85: 0 | EM85: 0 | EN85: 0 | EO85: 0 | EP85: 0 | EQ85: 0 | ER85: 0 | ES85: 0.00 | EU85: 0 | EV85: 0 | EW85: 0 | EX85: 0 | EY85: 0 | EZ85: 0 | FA85: 0 | FB85: 0 | FC85: 0 | FD85: 0 | FE85: 0.00 | FG85: 0 | FH85: 0 | FI85: 0 | FJ85: 0 | FK85: 0.00 | FP85: 0 | FQ85: 0 | FR85: 0.00 | FW85: 0 | GE85: 0 | GF85: 0 | GG85: 0 | GH85: 0 | GL85: 0 | GM85: / | GN85: 200 | GO85: 0/200 | GP85: 0 | GQ85: / | GR85: 200 | GS85: 0/200 | GT85: 0 | GU85: / | GV85: 200 | GW85: 0/200 | GX85: 0 | GY85: / | GZ85: 100 | HA85: 0/100 | HJ85: 0 | HK85: 0 | HL85: 0 | HM85: 0 | HN85: 0 | HO85: 0 | HP85: 0 | HQ85: 0
A86: 0 | B86: 78 | C86: 78 | D86: 0 | L86: 0 | M86: 0 | N86: 0 | O86: 0 | P86: 0 | Q86: 0 | R86: 0 | S86: 0 | T86: 0 | U86: 0 | V86: 0.00 | Z86: 0 | AA86: 0 | AB86: 0 | AC86: 0 | AD86: 0 | AE86: 0 | AF86: 0 | AG86: 0 | AH86: 0 | AI86: 0 | AJ86: 0.00 | AO86: 0 | AP86: 0 | AQ86: 0 | AR86: 0 | AS86: 0 | AT86: 0 | AU86: 0 | AV86: 0 | AW86: 0 | AX86: 0 | AY86: 0 | AZ86: 0 | BA86: 0.00 | BF86: 0 | BG86: 0 | BH86: 0 | BI86: 0 | BJ86: 0 | BK86: 0 | BL86: 0 | BM86: 0 | BN86: 0 | BO86: 0 | BP86: 0 | BQ86: 0 | BR86: 0 | BW86: 0 | BX86: 0 | BY86: 0 | BZ86: 0 | CA86: 0 | CB86: 0 | CC86: 0 | CD86: 0 | CE86: 0 | CF86: 0 | CG86: 0 | CH86: 0 | CI86: 0.00 | CN86: 0 | CO86: 0 | CP86: 0 | CQ86: 0 | CR86: 0 | CS86: 0 | CT86: 0 | CU86: 0 | CV86: 0 | CW86: 0 | CX86: 0 | CY86: 0 | CZ86: 0 | DE86: 0 | DF86: 0 | DG86: 0 | DH86: 0 | DI86: 0 | DJ86: 0 | DK86: 0 | DL86: 0 | DM86: 0 | DN86: 0 | DO86: 0 | DP86: 0 | DQ86: 0 | DU86: 0 | DV86: 0 | DW86: 0 | DX86: 0 | DY86: 0 | DZ86: 0 | EA86: 0 | EB86: 0 | EC86: 0 | ED86: 0 | EE86: 0 | EF86: 0 | EG86: 0.00 | EI86: 0 | EJ86: 0 | EK86: 0 | EL86: 0 | EM86: 0 | EN86: 0 | EO86: 0 | EP86: 0 | EQ86: 0 | ER86: 0 | ES86: 0.00 | EU86: 0 | EV86: 0 | EW86: 0 | EX86: 0 | EY86: 0 | EZ86: 0 | FA86: 0 | FB86: 0 | FC86: 0 | FD86: 0 | FE86: 0.00 | FG86: 0 | FH86: 0 | FI86: 0 | FJ86: 0 | FK86: 0.00 | FP86: 0 | FQ86: 0 | FR86: 0.00 | FW86: 0 | GE86: 0 | GF86: 0 | GG86: 0 | GH86: 0 | GL86: 0 | GM86: / | GN86: 200 | GO86: 0/200 | GP86: 0 | GQ86: / | GR86: 200 | GS86: 0/200 | GT86: 0 | GU86: / | GV86: 200 | GW86: 0/200 | GX86: 0 | GY86: / | GZ86: 100 | HA86: 0/100 | HJ86: 0 | HK86: 0 | HL86: 0 | HM86: 0 | HN86: 0 | HO86: 0 | HP86: 0 | HQ86: 0
A87: 0 | B87: 79 | C87: 79 | D87: 0 | L87: 0 | M87: 0 | N87: 0 | O87: 0 | P87: 0 | Q87: 0 | R87: 0 | S87: 0 | T87: 0 | U87: 0 | V87: 0.00 | Z87: 0 | AA87: 0 | AB87: 0 | AC87: 0 | AD87: 0 | AE87: 0 | AF87: 0 | AG87: 0 | AH87: 0 | AI87: 0 | AJ87: 0.00 | AO87: 0 | AP87: 0 | AQ87: 0 | AR87: 0 | AS87: 0 | AT87: 0 | AU87: 0 | AV87: 0 | AW87: 0 | AX87: 0 | AY87: 0 | AZ87: 0 | BA87: 0.00 | BF87: 0 | BG87: 0 | BH87: 0 | BI87: 0 | BJ87: 0 | BK87: 0 | BL87: 0 | BM87: 0 | BN87: 0 | BO87: 0 | BP87: 0 | BQ87: 0 | BR87: 0 | BW87: 0 | BX87: 0 | BY87: 0 | BZ87: 0 | CA87: 0 | CB87: 0 | CC87: 0 | CD87: 0 | CE87: 0 | CF87: 0 | CG87: 0 | CH87: 0 | CI87: 0.00 | CN87: 0 | CO87: 0 | CP87: 0 | CQ87: 0 | CR87: 0 | CS87: 0 | CT87: 0 | CU87: 0 | CV87: 0 | CW87: 0 | CX87: 0 | CY87: 0 | CZ87: 0 | DE87: 0 | DF87: 0 | DG87: 0 | DH87: 0 | DI87: 0 | DJ87: 0 | DK87: 0 | DL87: 0 | DM87: 0 | DN87: 0 | DO87: 0 | DP87: 0 | DQ87: 0 | DU87: 0 | DV87: 0 | DW87: 0 | DX87: 0 | DY87: 0 | DZ87: 0 | EA87: 0 | EB87: 0 | EC87: 0 | ED87: 0 | EE87: 0 | EF87: 0 | EG87: 0.00 | EI87: 0 | EJ87: 0 | EK87: 0 | EL87: 0 | EM87: 0 | EN87: 0 | EO87: 0 | EP87: 0 | EQ87: 0 | ER87: 0 | ES87: 0.00 | EU87: 0 | EV87: 0 | EW87: 0 | EX87: 0 | EY87: 0 | EZ87: 0 | FA87: 0 | FB87: 0 | FC87: 0 | FD87: 0 | FE87: 0.00 | FG87: 0 | FH87: 0 | FI87: 0 | FJ87: 0 | FK87: 0.00 | FP87: 0 | FQ87: 0 | FR87: 0.00 | FW87: 0 | GE87: 0 | GF87: 0 | GG87: 0 | GH87: 0 | GL87: 0 | GM87: / | GN87: 200 | GO87: 0/200 | GP87: 0 | GQ87: / | GR87: 200 | GS87: 0/200 | GT87: 0 | GU87: / | GV87: 200 | GW87: 0/200 | GX87: 0 | GY87: / | GZ87: 100 | HA87: 0/100 | HJ87: 0 | HK87: 0 | HL87: 0 | HM87: 0 | HN87: 0 | HO87: 0 | HP87: 0 | HQ87: 0
A88: 0 | B88: 80 | C88: 80 | D88: 0 | L88: 0 | M88: 0 | N88: 0 | O88: 0 | P88: 0 | Q88: 0 | R88: 0 | S88: 0 | T88: 0 | U88: 0 | V88: 0.00 | Z88: 0 | AA88: 0 | AB88: 0 | AC88: 0 | AD88: 0 | AE88: 0 | AF88: 0 | AG88: 0 | AH88: 0 | AI88: 0 | AJ88: 0.00 | AO88: 0 | AP88: 0 | AQ88: 0 | AR88: 0 | AS88: 0 | AT88: 0 | AU88: 0 | AV88: 0 | AW88: 0 | AX88: 0 | AY88: 0 | AZ88: 0 | BA88: 0.00 | BF88: 0 | BG88: 0 | BH88: 0 | BI88: 0 | BJ88: 0 | BK88: 0 | BL88: 0 | BM88: 0 | BN88: 0 | BO88: 0 | BP88: 0 | BQ88: 0 | BR88: 0 | BW88: 0 | BX88: 0 | BY88: 0 | BZ88: 0 | CA88: 0 | CB88: 0 | CC88: 0 | CD88: 0 | CE88: 0 | CF88: 0 | CG88: 0 | CH88: 0 | CI88: 0.00 | CN88: 0 | CO88: 0 | CP88: 0 | CQ88: 0 | CR88: 0 | CS88: 0 | CT88: 0 | CU88: 0 | CV88: 0 | CW88: 0 | CX88: 0 | CY88: 0 | CZ88: 0 | DE88: 0 | DF88: 0 | DG88: 0 | DH88: 0 | DI88: 0 | DJ88: 0 | DK88: 0 | DL88: 0 | DM88: 0 | DN88: 0 | DO88: 0 | DP88: 0 | DQ88: 0 | DU88: 0 | DV88: 0 | DW88: 0 | DX88: 0 | DY88: 0 | DZ88: 0 | EA88: 0 | EB88: 0 | EC88: 0 | ED88: 0 | EE88: 0 | EF88: 0 | EG88: 0.00 | EI88: 0 | EJ88: 0 | EK88: 0 | EL88: 0 | EM88: 0 | EN88: 0 | EO88: 0 | EP88: 0 | EQ88: 0 | ER88: 0 | ES88: 0.00 | EU88: 0 | EV88: 0 | EW88: 0 | EX88: 0 | EY88: 0 | EZ88: 0 | FA88: 0 | FB88: 0 | FC88: 0 | FD88: 0 | FE88: 0.00 | FG88: 0 | FH88: 0 | FI88: 0 | FJ88: 0 | FK88: 0.00 | FP88: 0 | FQ88: 0 | FR88: 0.00 | FW88: 0 | GE88: 0 | GF88: 0 | GG88: 0 | GH88: 0 | GL88: 0 | GM88: / | GN88: 200 | GO88: 0/200 | GP88: 0 | GQ88: / | GR88: 200 | GS88: 0/200 | GT88: 0 | GU88: / | GV88: 200 | GW88: 0/200 | GX88: 0 | GY88: / | GZ88: 100 | HA88: 0/100 | HJ88: 0 | HK88: 0 | HL88: 0 | HM88: 0 | HN88: 0 | HO88: 0 | HP88: 0 | HQ88: 0
A89: 0 | B89: 81 | C89: 81 | D89: 0 | L89: 0 | M89: 0 | N89: 0 | O89: 0 | P89: 0 | Q89: 0 | R89: 0 | S89: 0 | T89: 0 | U89: 0 | V89: 0.00 | Z89: 0 | AA89: 0 | AB89: 0 | AC89: 0 | AD89: 0 | AE89: 0 | AF89: 0 | AG89: 0 | AH89: 0 | AI89: 0 | AJ89: 0.00 | AO89: 0 | AP89: 0 | AQ89: 0 | AR89: 0 | AS89: 0 | AT89: 0 | AU89: 0 | AV89: 0 | AW89: 0 | AX89: 0 | AY89: 0 | AZ89: 0 | BA89: 0.00 | BF89: 0 | BG89: 0 | BH89: 0 | BI89: 0 | BJ89: 0 | BK89: 0 | BL89: 0 | BM89: 0 | BN89: 0 | BO89: 0 | BP89: 0 | BQ89: 0 | BR89: 0 | BW89: 0 | BX89: 0 | BY89: 0 | BZ89: 0 | CA89: 0 | CB89: 0 | CC89: 0 | CD89: 0 | CE89: 0 | CF89: 0 | CG89: 0 | CH89: 0 | CI89: 0.00 | CN89: 0 | CO89: 0 | CP89: 0 | CQ89: 0 | CR89: 0 | CS89: 0 | CT89: 0 | CU89: 0 | CV89: 0 | CW89: 0 | CX89: 0 | CY89: 0 | CZ89: 0 | DE89: 0 | DF89: 0 | DG89: 0 | DH89: 0 | DI89: 0 | DJ89: 0 | DK89: 0 | DL89: 0 | DM89: 0 | DN89: 0 | DO89: 0 | DP89: 0 | DQ89: 0 | DU89: 0 | DV89: 0 | DW89: 0 | DX89: 0 | DY89: 0 | DZ89: 0 | EA89: 0 | EB89: 0 | EC89: 0 | ED89: 0 | EE89: 0 | EF89: 0 | EG89: 0.00 | EI89: 0 | EJ89: 0 | EK89: 0 | EL89: 0 | EM89: 0 | EN89: 0 | EO89: 0 | EP89: 0 | EQ89: 0 | ER89: 0 | ES89: 0.00 | EU89: 0 | EV89: 0 | EW89: 0 | EX89: 0 | EY89: 0 | EZ89: 0 | FA89: 0 | FB89: 0 | FC89: 0 | FD89: 0 | FE89: 0.00 | FG89: 0 | FH89: 0 | FI89: 0 | FJ89: 0 | FK89: 0.00 | FP89: 0 | FQ89: 0 | FR89: 0.00 | FW89: 0 | GE89: 0 | GF89: 0 | GG89: 0 | GH89: 0 | GL89: 0 | GM89: / | GN89: 200 | GO89: 0/200 | GP89: 0 | GQ89: / | GR89: 200 | GS89: 0/200 | GT89: 0 | GU89: / | GV89: 200 | GW89: 0/200 | GX89: 0 | GY89: / | GZ89: 100 | HA89: 0/100 | HJ89: 0 | HK89: 0 | HL89: 0 | HM89: 0 | HN89: 0 | HO89: 0 | HP89: 0 | HQ89: 0
A90: 0 | B90: 82 | C90: 82 | D90: 0 | L90: 0 | M90: 0 | N90: 0 | O90: 0 | P90: 0 | Q90: 0 | R90: 0 | S90: 0 | T90: 0 | U90: 0 | V90: 0.00 | Z90: 0 | AA90: 0 | AB90: 0 | AC90: 0 | AD90: 0 | AE90: 0 | AF90: 0 | AG90: 0 | AH90: 0 | AI90: 0 | AJ90: 0.00 | AO90: 0 | AP90: 0 | AQ90: 0 | AR90: 0 | AS90: 0 | AT90: 0 | AU90: 0 | AV90: 0 | AW90: 0 | AX90: 0 | AY90: 0 | AZ90: 0 | BA90: 0.00 | BF90: 0 | BG90: 0 | BH90: 0 | BI90: 0 | BJ90: 0 | BK90: 0 | BL90: 0 | BM90: 0 | BN90: 0 | BO90: 0 | BP90: 0 | BQ90: 0 | BR90: 0 | BW90: 0 | BX90: 0 | BY90: 0 | BZ90: 0 | CA90: 0 | CB90: 0 | CC90: 0 | CD90: 0 | CE90: 0 | CF90: 0 | CG90: 0 | CH90: 0 | CI90: 0.00 | CN90: 0 | CO90: 0 | CP90: 0 | CQ90: 0 | CR90: 0 | CS90: 0 | CT90: 0 | CU90: 0 | CV90: 0 | CW90: 0 | CX90: 0 | CY90: 0 | CZ90: 0 | DE90: 0 | DF90: 0 | DG90: 0 | DH90: 0 | DI90: 0 | DJ90: 0 | DK90: 0 | DL90: 0 | DM90: 0 | DN90: 0 | DO90: 0 | DP90: 0 | DQ90: 0 | DU90: 0 | DV90: 0 | DW90: 0 | DX90: 0 | DY90: 0 | DZ90: 0 | EA90: 0 | EB90: 0 | EC90: 0 | ED90: 0 | EE90: 0 | EF90: 0 | EG90: 0.00 | EI90: 0 | EJ90: 0 | EK90: 0 | EL90: 0 | EM90: 0 | EN90: 0 | EO90: 0 | EP90: 0 | EQ90: 0 | ER90: 0 | ES90: 0.00 | EU90: 0 | EV90: 0 | EW90: 0 | EX90: 0 | EY90: 0 | EZ90: 0 | FA90: 0 | FB90: 0 | FC90: 0 | FD90: 0 | FE90: 0.00 | FG90: 0 | FH90: 0 | FI90: 0 | FJ90: 0 | FK90: 0.00 | FP90: 0 | FQ90: 0 | FR90: 0.00 | FW90: 0 | GE90: 0 | GF90: 0 | GG90: 0 | GH90: 0 | GL90: 0 | GM90: / | GN90: 200 | GO90: 0/200 | GP90: 0 | GQ90: / | GR90: 200 | GS90: 0/200 | GT90: 0 | GU90: / | GV90: 200 | GW90: 0/200 | GX90: 0 | GY90: / | GZ90: 100 | HA90: 0/100 | HJ90: 0 | HK90: 0 | HL90: 0 | HM90: 0 | HN90: 0 | HO90: 0 | HP90: 0 | HQ90: 0
A91: 0 | B91: 83 | C91: 83 | D91: 0 | L91: 0 | M91: 0 | N91: 0 | O91: 0 | P91: 0 | Q91: 0 | R91: 0 | S91: 0 | T91: 0 | U91: 0 | V91: 0.00 | Z91: 0 | AA91: 0 | AB91: 0 | AC91: 0 | AD91: 0 | AE91: 0 | AF91: 0 | AG91: 0 | AH91: 0 | AI91: 0 | AJ91: 0.00 | AO91: 0 | AP91: 0 | AQ91: 0 | AR91: 0 | AS91: 0 | AT91: 0 | AU91: 0 | AV91: 0 | AW91: 0 | AX91: 0 | AY91: 0 | AZ91: 0 | BA91: 0.00 | BF91: 0 | BG91: 0 | BH91: 0 | BI91: 0 | BJ91: 0 | BK91: 0 | BL91: 0 | BM91: 0 | BN91: 0 | BO91: 0 | BP91: 0 | BQ91: 0 | BR91: 0 | BW91: 0 | BX91: 0 | BY91: 0 | BZ91: 0 | CA91: 0 | CB91: 0 | CC91: 0 | CD91: 0 | CE91: 0 | CF91: 0 | CG91: 0 | CH91: 0 | CI91: 0.00 | CN91: 0 | CO91: 0 | CP91: 0 | CQ91: 0 | CR91: 0 | CS91: 0 | CT91: 0 | CU91: 0 | CV91: 0 | CW91: 0 | CX91: 0 | CY91: 0 | CZ91: 0 | DE91: 0 | DF91: 0 | DG91: 0 | DH91: 0 | DI91: 0 | DJ91: 0 | DK91: 0 | DL91: 0 | DM91: 0 | DN91: 0 | DO91: 0 | DP91: 0 | DQ91: 0 | DU91: 0 | DV91: 0 | DW91: 0 | DX91: 0 | DY91: 0 | DZ91: 0 | EA91: 0 | EB91: 0 | EC91: 0 | ED91: 0 | EE91: 0 | EF91: 0 | EG91: 0.00 | EI91: 0 | EJ91: 0 | EK91: 0 | EL91: 0 | EM91: 0 | EN91: 0 | EO91: 0 | EP91: 0 | EQ91: 0 | ER91: 0 | ES91: 0.00 | EU91: 0 | EV91: 0 | EW91: 0 | EX91: 0 | EY91: 0 | EZ91: 0 | FA91: 0 | FB91: 0 | FC91: 0 | FD91: 0 | FE91: 0.00 | FG91: 0 | FH91: 0 | FI91: 0 | FJ91: 0 | FK91: 0.00 | FP91: 0 | FQ91: 0 | FR91: 0.00 | FW91: 0 | GE91: 0 | GF91: 0 | GG91: 0 | GH91: 0 | GL91: 0 | GM91: / | GN91: 200 | GO91: 0/200 | GP91: 0 | GQ91: / | GR91: 200 | GS91: 0/200 | GT91: 0 | GU91: / | GV91: 200 | GW91: 0/200 | GX91: 0 | GY91: / | GZ91: 100 | HA91: 0/100 | HJ91: 0 | HK91: 0 | HL91: 0 | HM91: 0 | HN91: 0 | HO91: 0 | HP91: 0 | HQ91: 0
A92: 0 | B92: 84 | C92: 84 | D92: 0 | L92: 0 | M92: 0 | N92: 0 | O92: 0 | P92: 0 | Q92: 0 | R92: 0 | S92: 0 | T92: 0 | U92: 0 | V92: 0.00 | Z92: 0 | AA92: 0 | AB92: 0 | AC92: 0 | AD92: 0 | AE92: 0 | AF92: 0 | AG92: 0 | AH92: 0 | AI92: 0 | AJ92: 0.00 | AO92: 0 | AP92: 0 | AQ92: 0 | AR92: 0 | AS92: 0 | AT92: 0 | AU92: 0 | AV92: 0 | AW92: 0 | AX92: 0 | AY92: 0 | AZ92: 0 | BA92: 0.00 | BF92: 0 | BG92: 0 | BH92: 0 | BI92: 0 | BJ92: 0 | BK92: 0 | BL92: 0 | BM92: 0 | BN92: 0 | BO92: 0 | BP92: 0 | BQ92: 0 | BR92: 0 | BW92: 0 | BX92: 0 | BY92: 0 | BZ92: 0 | CA92: 0 | CB92: 0 | CC92: 0 | CD92: 0 | CE92: 0 | CF92: 0 | CG92: 0 | CH92: 0 | CI92: 0.00 | CN92: 0 | CO92: 0 | CP92: 0 | CQ92: 0 | CR92: 0 | CS92: 0 | CT92: 0 | CU92: 0 | CV92: 0 | CW92: 0 | CX92: 0 | CY92: 0 | CZ92: 0 | DE92: 0 | DF92: 0 | DG92: 0 | DH92: 0 | DI92: 0 | DJ92: 0 | DK92: 0 | DL92: 0 | DM92: 0 | DN92: 0 | DO92: 0 | DP92: 0 | DQ92: 0 | DU92: 0 | DV92: 0 | DW92: 0 | DX92: 0 | DY92: 0 | DZ92: 0 | EA92: 0 | EB92: 0 | EC92: 0 | ED92: 0 | EE92: 0 | EF92: 0 | EG92: 0.00 | EI92: 0 | EJ92: 0 | EK92: 0 | EL92: 0 | EM92: 0 | EN92: 0 | EO92: 0 | EP92: 0 | EQ92: 0 | ER92: 0 | ES92: 0.00 | EU92: 0 | EV92: 0 | EW92: 0 | EX92: 0 | EY92: 0 | EZ92: 0 | FA92: 0 | FB92: 0 | FC92: 0 | FD92: 0 | FE92: 0.00 | FG92: 0 | FH92: 0 | FI92: 0 | FJ92: 0 | FK92: 0.00 | FP92: 0 | FQ92: 0 | FR92: 0.00 | FW92: 0 | GE92: 0 | GF92: 0 | GG92: 0 | GH92: 0 | GL92: 0 | GM92: / | GN92: 200 | GO92: 0/200 | GP92: 0 | GQ92: / | GR92: 200 | GS92: 0/200 | GT92: 0 | GU92: / | GV92: 200 | GW92: 0/200 | GX92: 0 | GY92: / | GZ92: 100 | HA92: 0/100 | HJ92: 0 | HK92: 0 | HL92: 0 | HM92: 0 | HN92: 0 | HO92: 0 | HP92: 0 | HQ92: 0
A93: 0 | B93: 85 | C93: 85 | D93: 0 | L93: 0 | M93: 0 | N93: 0 | O93: 0 | P93: 0 | Q93: 0 | R93: 0 | S93: 0 | T93: 0 | U93: 0 | V93: 0.00 | Z93: 0 | AA93: 0 | AB93: 0 | AC93: 0 | AD93: 0 | AE93: 0 | AF93: 0 | AG93: 0 | AH93: 0 | AI93: 0 | AJ93: 0.00 | AO93: 0 | AP93: 0 | AQ93: 0 | AR93: 0 | AS93: 0 | AT93: 0 | AU93: 0 | AV93: 0 | AW93: 0 | AX93: 0 | AY93: 0 | AZ93: 0 | BA93: 0.00 | BF93: 0 | BG93: 0 | BH93: 0 | BI93: 0 | BJ93: 0 | BK93: 0 | BL93: 0 | BM93: 0 | BN93: 0 | BO93: 0 | BP93: 0 | BQ93: 0 | BR93: 0 | BW93: 0 | BX93: 0 | BY93: 0 | BZ93: 0 | CA93: 0 | CB93: 0 | CC93: 0 | CD93: 0 | CE93: 0 | CF93: 0 | CG93: 0 | CH93: 0 | CI93: 0.00 | CN93: 0 | CO93: 0 | CP93: 0 | CQ93: 0 | CR93: 0 | CS93: 0 | CT93: 0 | CU93: 0 | CV93: 0 | CW93: 0 | CX93: 0 | CY93: 0 | CZ93: 0 | DE93: 0 | DF93: 0 | DG93: 0 | DH93: 0 | DI93: 0 | DJ93: 0 | DK93: 0 | DL93: 0 | DM93: 0 | DN93: 0 | DO93: 0 | DP93: 0 | DQ93: 0 | DU93: 0 | DV93: 0 | DW93: 0 | DX93: 0 | DY93: 0 | DZ93: 0 | EA93: 0 | EB93: 0 | EC93: 0 | ED93: 0 | EE93: 0 | EF93: 0 | EG93: 0.00 | EI93: 0 | EJ93: 0 | EK93: 0 | EL93: 0 | EM93: 0 | EN93: 0 | EO93: 0 | EP93: 0 | EQ93: 0 | ER93: 0 | ES93: 0.00 | EU93: 0 | EV93: 0 | EW93: 0 | EX93: 0 | EY93: 0 | EZ93: 0 | FA93: 0 | FB93: 0 | FC93: 0 | FD93: 0 | FE93: 0.00 | FG93: 0 | FH93: 0 | FI93: 0 | FJ93: 0 | FK93: 0.00 | FP93: 0 | FQ93: 0 | FR93: 0.00 | FW93: 0 | GE93: 0 | GF93: 0 | GG93: 0 | GH93: 0 | GL93: 0 | GM93: / | GN93: 200 | GO93: 0/200 | GP93: 0 | GQ93: / | GR93: 200 | GS93: 0/200 | GT93: 0 | GU93: / | GV93: 200 | GW93: 0/200 | GX93: 0 | GY93: / | GZ93: 100 | HA93: 0/100 | HJ93: 0 | HK93: 0 | HL93: 0 | HM93: 0 | HN93: 0 | HO93: 0 | HP93: 0 | HQ93: 0
A94: 0 | B94: 86 | C94: 86 | D94: 0 | L94: 0 | M94: 0 | N94: 0 | O94: 0 | P94: 0 | Q94: 0 | R94: 0 | S94: 0 | T94: 0 | U94: 0 | V94: 0.00 | Z94: 0 | AA94: 0 | AB94: 0 | AC94: 0 | AD94: 0 | AE94: 0 | AF94: 0 | AG94: 0 | AH94: 0 | AI94: 0 | AJ94: 0.00 | AO94: 0 | AP94: 0 | AQ94: 0 | AR94: 0 | AS94: 0 | AT94: 0 | AU94: 0 | AV94: 0 | AW94: 0 | AX94: 0 | AY94: 0 | AZ94: 0 | BA94: 0.00 | BF94: 0 | BG94: 0 | BH94: 0 | BI94: 0 | BJ94: 0 | BK94: 0 | BL94: 0 | BM94: 0 | BN94: 0 | BO94: 0 | BP94: 0 | BQ94: 0 | BR94: 0 | BW94: 0 | BX94: 0 | BY94: 0 | BZ94: 0 | CA94: 0 | CB94: 0 | CC94: 0 | CD94: 0 | CE94: 0 | CF94: 0 | CG94: 0 | CH94: 0 | CI94: 0.00 | CN94: 0 | CO94: 0 | CP94: 0 | CQ94: 0 | CR94: 0 | CS94: 0 | CT94: 0 | CU94: 0 | CV94: 0 | CW94: 0 | CX94: 0 | CY94: 0 | CZ94: 0 | DE94: 0 | DF94: 0 | DG94: 0 | DH94: 0 | DI94: 0 | DJ94: 0 | DK94: 0 | DL94: 0 | DM94: 0 | DN94: 0 | DO94: 0 | DP94: 0 | DQ94: 0 | DU94: 0 | DV94: 0 | DW94: 0 | DX94: 0 | DY94: 0 | DZ94: 0 | EA94: 0 | EB94: 0 | EC94: 0 | ED94: 0 | EE94: 0 | EF94: 0 | EG94: 0.00 | EI94: 0 | EJ94: 0 | EK94: 0 | EL94: 0 | EM94: 0 | EN94: 0 | EO94: 0 | EP94: 0 | EQ94: 0 | ER94: 0 | ES94: 0.00 | EU94: 0 | EV94: 0 | EW94: 0 | EX94: 0 | EY94: 0 | EZ94: 0 | FA94: 0 | FB94: 0 | FC94: 0 | FD94: 0 | FE94: 0.00 | FG94: 0 | FH94: 0 | FI94: 0 | FJ94: 0 | FK94: 0.00 | FP94: 0 | FQ94: 0 | FR94: 0.00 | FW94: 0 | GE94: 0 | GF94: 0 | GG94: 0 | GH94: 0 | GL94: 0 | GM94: / | GN94: 200 | GO94: 0/200 | GP94: 0 | GQ94: / | GR94: 200 | GS94: 0/200 | GT94: 0 | GU94: / | GV94: 200 | GW94: 0/200 | GX94: 0 | GY94: / | GZ94: 100 | HA94: 0/100 | HJ94: 0 | HK94: 0 | HL94: 0 | HM94: 0 | HN94: 0 | HO94: 0 | HP94: 0 | HQ94: 0
A95: 0 | B95: 87 | C95: 87 | D95: 0 | L95: 0 | M95: 0 | N95: 0 | O95: 0 | P95: 0 | Q95: 0 | R95: 0 | S95: 0 | T95: 0 | U95: 0 | V95: 0.00 | Z95: 0 | AA95: 0 | AB95: 0 | AC95: 0 | AD95: 0 | AE95: 0 | AF95: 0 | AG95: 0 | AH95: 0 | AI95: 0 | AJ95: 0.00 | AO95: 0 | AP95: 0 | AQ95: 0 | AR95: 0 | AS95: 0 | AT95: 0 | AU95: 0 | AV95: 0 | AW95: 0 | AX95: 0 | AY95: 0 | AZ95: 0 | BA95: 0.00 | BF95: 0 | BG95: 0 | BH95: 0 | BI95: 0 | BJ95: 0 | BK95: 0 | BL95: 0 | BM95: 0 | BN95: 0 | BO95: 0 | BP95: 0 | BQ95: 0 | BR95: 0 | BW95: 0 | BX95: 0 | BY95: 0 | BZ95: 0 | CA95: 0 | CB95: 0 | CC95: 0 | CD95: 0 | CE95: 0 | CF95: 0 | CG95: 0 | CH95: 0 | CI95: 0.00 | CN95: 0 | CO95: 0 | CP95: 0 | CQ95: 0 | CR95: 0 | CS95: 0 | CT95: 0 | CU95: 0 | CV95: 0 | CW95: 0 | CX95: 0 | CY95: 0 | CZ95: 0 | DE95: 0 | DF95: 0 | DG95: 0 | DH95: 0 | DI95: 0 | DJ95: 0 | DK95: 0 | DL95: 0 | DM95: 0 | DN95: 0 | DO95: 0 | DP95: 0 | DQ95: 0 | DU95: 0 | DV95: 0 | DW95: 0 | DX95: 0 | DY95: 0 | DZ95: 0 | EA95: 0 | EB95: 0 | EC95: 0 | ED95: 0 | EE95: 0 | EF95: 0 | EG95: 0.00 | EI95: 0 | EJ95: 0 | EK95: 0 | EL95: 0 | EM95: 0 | EN95: 0 | EO95: 0 | EP95: 0 | EQ95: 0 | ER95: 0 | ES95: 0.00 | EU95: 0 | EV95: 0 | EW95: 0 | EX95: 0 | EY95: 0 | EZ95: 0 | FA95: 0 | FB95: 0 | FC95: 0 | FD95: 0 | FE95: 0.00 | FG95: 0 | FH95: 0 | FI95: 0 | FJ95: 0 | FK95: 0.00 | FP95: 0 | FQ95: 0 | FR95: 0.00 | FW95: 0 | GE95: 0 | GF95: 0 | GG95: 0 | GH95: 0 | GL95: 0 | GM95: / | GN95: 200 | GO95: 0/200 | GP95: 0 | GQ95: / | GR95: 200 | GS95: 0/200 | GT95: 0 | GU95: / | GV95: 200 | GW95: 0/200 | GX95: 0 | GY95: / | GZ95: 100 | HA95: 0/100 | HJ95: 0 | HK95: 0 | HL95: 0 | HM95: 0 | HN95: 0 | HO95: 0 | HP95: 0 | HQ95: 0
A96: 0 | B96: 88 | C96: 88 | D96: 0 | L96: 0 | M96: 0 | N96: 0 | O96: 0 | P96: 0 | Q96: 0 | R96: 0 | S96: 0 | T96: 0 | U96: 0 | V96: 0.00 | Z96: 0 | AA96: 0 | AB96: 0 | AC96: 0 | AD96: 0 | AE96: 0 | AF96: 0 | AG96: 0 | AH96: 0 | AI96: 0 | AJ96: 0.00 | AO96: 0 | AP96: 0 | AQ96: 0 | AR96: 0 | AS96: 0 | AT96: 0 | AU96: 0 | AV96: 0 | AW96: 0 | AX96: 0 | AY96: 0 | AZ96: 0 | BA96: 0.00 | BF96: 0 | BG96: 0 | BH96: 0 | BI96: 0 | BJ96: 0 | BK96: 0 | BL96: 0 | BM96: 0 | BN96: 0 | BO96: 0 | BP96: 0 | BQ96: 0 | BR96: 0 | BW96: 0 | BX96: 0 | BY96: 0 | BZ96: 0 | CA96: 0 | CB96: 0 | CC96: 0 | CD96: 0 | CE96: 0 | CF96: 0 | CG96: 0 | CH96: 0 | CI96: 0.00 | CN96: 0 | CO96: 0 | CP96: 0 | CQ96: 0 | CR96: 0 | CS96: 0 | CT96: 0 | CU96: 0 | CV96: 0 | CW96: 0 | CX96: 0 | CY96: 0 | CZ96: 0 | DE96: 0 | DF96: 0 | DG96: 0 | DH96: 0 | DI96: 0 | DJ96: 0 | DK96: 0 | DL96: 0 | DM96: 0 | DN96: 0 | DO96: 0 | DP96: 0 | DQ96: 0 | DU96: 0 | DV96: 0 | DW96: 0 | DX96: 0 | DY96: 0 | DZ96: 0 | EA96: 0 | EB96: 0 | EC96: 0 | ED96: 0 | EE96: 0 | EF96: 0 | EG96: 0.00 | EI96: 0 | EJ96: 0 | EK96: 0 | EL96: 0 | EM96: 0 | EN96: 0 | EO96: 0 | EP96: 0 | EQ96: 0 | ER96: 0 | ES96: 0.00 | EU96: 0 | EV96: 0 | EW96: 0 | EX96: 0 | EY96: 0 | EZ96: 0 | FA96: 0 | FB96: 0 | FC96: 0 | FD96: 0 | FE96: 0.00 | FG96: 0 | FH96: 0 | FI96: 0 | FJ96: 0 | FK96: 0.00 | FP96: 0 | FQ96: 0 | FR96: 0.00 | FW96: 0 | GE96: 0 | GF96: 0 | GG96: 0 | GH96: 0 | GL96: 0 | GM96: / | GN96: 200 | GO96: 0/200 | GP96: 0 | GQ96: / | GR96: 200 | GS96: 0/200 | GT96: 0 | GU96: / | GV96: 200 | GW96: 0/200 | GX96: 0 | GY96: / | GZ96: 100 | HA96: 0/100 | HJ96: 0 | HK96: 0 | HL96: 0 | HM96: 0 | HN96: 0 | HO96: 0 | HP96: 0 | HQ96: 0
A97: 0 | B97: 89 | C97: 89 | D97: 0 | L97: 0 | M97: 0 | N97: 0 | O97: 0 | P97: 0 | Q97: 0 | R97: 0 | S97: 0 | T97: 0 | U97: 0 | V97: 0.00 | Z97: 0 | AA97: 0 | AB97: 0 | AC97: 0 | AD97: 0 | AE97: 0 | AF97: 0 | AG97: 0 | AH97: 0 | AI97: 0 | AJ97: 0.00 | AO97: 0 | AP97: 0 | AQ97: 0 | AR97: 0 | AS97: 0 | AT97: 0 | AU97: 0 | AV97: 0 | AW97: 0 | AX97: 0 | AY97: 0 | AZ97: 0 | BA97: 0.00 | BF97: 0 | BG97: 0 | BH97: 0 | BI97: 0 | BJ97: 0 | BK97: 0 | BL97: 0 | BM97: 0 | BN97: 0 | BO97: 0 | BP97: 0 | BQ97: 0 | BR97: 0 | BW97: 0 | BX97: 0 | BY97: 0 | BZ97: 0 | CA97: 0 | CB97: 0 | CC97: 0 | CD97: 0 | CE97: 0 | CF97: 0 | CG97: 0 | CH97: 0 | CI97: 0.00 | CN97: 0 | CO97: 0 | CP97: 0 | CQ97: 0 | CR97: 0 | CS97: 0 | CT97: 0 | CU97: 0 | CV97: 0 | CW97: 0 | CX97: 0 | CY97: 0 | CZ97: 0 | DE97: 0 | DF97: 0 | DG97: 0 | DH97: 0 | DI97: 0 | DJ97: 0 | DK97: 0 | DL97: 0 | DM97: 0 | DN97: 0 | DO97: 0 | DP97: 0 | DQ97: 0 | DU97: 0 | DV97: 0 | DW97: 0 | DX97: 0 | DY97: 0 | DZ97: 0 | EA97: 0 | EB97: 0 | EC97: 0 | ED97: 0 | EE97: 0 | EF97: 0 | EG97: 0.00 | EI97: 0 | EJ97: 0 | EK97: 0 | EL97: 0 | EM97: 0 | EN97: 0 | EO97: 0 | EP97: 0 | EQ97: 0 | ER97: 0 | ES97: 0.00 | EU97: 0 | EV97: 0 | EW97: 0 | EX97: 0 | EY97: 0 | EZ97: 0 | FA97: 0 | FB97: 0 | FC97: 0 | FD97: 0 | FE97: 0.00 | FG97: 0 | FH97: 0 | FI97: 0 | FJ97: 0 | FK97: 0.00 | FP97: 0 | FQ97: 0 | FR97: 0.00 | FW97: 0 | GE97: 0 | GF97: 0 | GG97: 0 | GH97: 0 | GL97: 0 | GM97: / | GN97: 200 | GO97: 0/200 | GP97: 0 | GQ97: / | GR97: 200 | GS97: 0/200 | GT97: 0 | GU97: / | GV97: 200 | GW97: 0/200 | GX97: 0 | GY97: / | GZ97: 100 | HA97: 0/100 | HJ97: 0 | HK97: 0 | HL97: 0 | HM97: 0 | HN97: 0 | HO97: 0 | HP97: 0 | HQ97: 0
A98: 0 | B98: 90 | C98: 90 | D98: 0 | L98: 0 | M98: 0 | N98: 0 | O98: 0 | P98: 0 | Q98: 0 | R98: 0 | S98: 0 | T98: 0 | U98: 0 | V98: 0.00 | Z98: 0 | AA98: 0 | AB98: 0 | AC98: 0 | AD98: 0 | AE98: 0 | AF98: 0 | AG98: 0 | AH98: 0 | AI98: 0 | AJ98: 0.00 | AO98: 0 | AP98: 0 | AQ98: 0 | AR98: 0 | AS98: 0 | AT98: 0 | AU98: 0 | AV98: 0 | AW98: 0 | AX98: 0 | AY98: 0 | AZ98: 0 | BA98: 0.00 | BF98: 0 | BG98: 0 | BH98: 0 | BI98: 0 | BJ98: 0 | BK98: 0 | BL98: 0 | BM98: 0 | BN98: 0 | BO98: 0 | BP98: 0 | BQ98: 0 | BR98: 0 | BW98: 0 | BX98: 0 | BY98: 0 | BZ98: 0 | CA98: 0 | CB98: 0 | CC98: 0 | CD98: 0 | CE98: 0 | CF98: 0 | CG98: 0 | CH98: 0 | CI98: 0.00 | CN98: 0 | CO98: 0 | CP98: 0 | CQ98: 0 | CR98: 0 | CS98: 0 | CT98: 0 | CU98: 0 | CV98: 0 | CW98: 0 | CX98: 0 | CY98: 0 | CZ98: 0 | DE98: 0 | DF98: 0 | DG98: 0 | DH98: 0 | DI98: 0 | DJ98: 0 | DK98: 0 | DL98: 0 | DM98: 0 | DN98: 0 | DO98: 0 | DP98: 0 | DQ98: 0 | DU98: 0 | DV98: 0 | DW98: 0 | DX98: 0 | DY98: 0 | DZ98: 0 | EA98: 0 | EB98: 0 | EC98: 0 | ED98: 0 | EE98: 0 | EF98: 0 | EG98: 0.00 | EI98: 0 | EJ98: 0 | EK98: 0 | EL98: 0 | EM98: 0 | EN98: 0 | EO98: 0 | EP98: 0 | EQ98: 0 | ER98: 0 | ES98: 0.00 | EU98: 0 | EV98: 0 | EW98: 0 | EX98: 0 | EY98: 0 | EZ98: 0 | FA98: 0 | FB98: 0 | FC98: 0 | FD98: 0 | FE98: 0.00 | FG98: 0 | FH98: 0 | FI98: 0 | FJ98: 0 | FK98: 0.00 | FP98: 0 | FQ98: 0 | FR98: 0.00 | FW98: 0 | GE98: 0 | GF98: 0 | GG98: 0 | GH98: 0 | GL98: 0 | GM98: / | GN98: 200 | GO98: 0/200 | GP98: 0 | GQ98: / | GR98: 200 | GS98: 0/200 | GT98: 0 | GU98: / | GV98: 200 | GW98: 0/200 | GX98: 0 | GY98: / | GZ98: 100 | HA98: 0/100 | HJ98: 0 | HK98: 0 | HL98: 0 | HM98: 0 | HN98: 0 | HO98: 0 | HP98: 0 | HQ98: 0
A99: 0 | B99: 91 | C99: 91 | D99: 0 | L99: 0 | M99: 0 | N99: 0 | O99: 0 | P99: 0 | Q99: 0 | R99: 0 | S99: 0 | T99: 0 | U99: 0 | V99: 0.00 | Z99: 0 | AA99: 0 | AB99: 0 | AC99: 0 | AD99: 0 | AE99: 0 | AF99: 0 | AG99: 0 | AH99: 0 | AI99: 0 | AJ99: 0.00 | AO99: 0 | AP99: 0 | AQ99: 0 | AR99: 0 | AS99: 0 | AT99: 0 | AU99: 0 | AV99: 0 | AW99: 0 | AX99: 0 | AY99: 0 | AZ99: 0 | BA99: 0.00 | BF99: 0 | BG99: 0 | BH99: 0 | BI99: 0 | BJ99: 0 | BK99: 0 | BL99: 0 | BM99: 0 | BN99: 0 | BO99: 0 | BP99: 0 | BQ99: 0 | BR99: 0 | BW99: 0 | BX99: 0 | BY99: 0 | BZ99: 0 | CA99: 0 | CB99: 0 | CC99: 0 | CD99: 0 | CE99: 0 | CF99: 0 | CG99: 0 | CH99: 0 | CI99: 0.00 | CN99: 0 | CO99: 0 | CP99: 0 | CQ99: 0 | CR99: 0 | CS99: 0 | CT99: 0 | CU99: 0 | CV99: 0 | CW99: 0 | CX99: 0 | CY99: 0 | CZ99: 0 | DE99: 0 | DF99: 0 | DG99: 0 | DH99: 0 | DI99: 0 | DJ99: 0 | DK99: 0 | DL99: 0 | DM99: 0 | DN99: 0 | DO99: 0 | DP99: 0 | DQ99: 0 | DU99: 0 | DV99: 0 | DW99: 0 | DX99: 0 | DY99: 0 | DZ99: 0 | EA99: 0 | EB99: 0 | EC99: 0 | ED99: 0 | EE99: 0 | EF99: 0 | EG99: 0.00 | EI99: 0 | EJ99: 0 | EK99: 0 | EL99: 0 | EM99: 0 | EN99: 0 | EO99: 0 | EP99: 0 | EQ99: 0 | ER99: 0 | ES99: 0.00 | EU99: 0 | EV99: 0 | EW99: 0 | EX99: 0 | EY99: 0 | EZ99: 0 | FA99: 0 | FB99: 0 | FC99: 0 | FD99: 0 | FE99: 0.00 | FG99: 0 | FH99: 0 | FI99: 0 | FJ99: 0 | FK99: 0.00 | FP99: 0 | FQ99: 0 | FR99: 0.00 | FW99: 0 | GE99: 0 | GF99: 0 | GG99: 0 | GH99: 0 | GL99: 0 | GM99: / | GN99: 200 | GO99: 0/200 | GP99: 0 | GQ99: / | GR99: 200 | GS99: 0/200 | GT99: 0 | GU99: / | GV99: 200 | GW99: 0/200 | GX99: 0 | GY99: / | GZ99: 100 | HA99: 0/100 | HJ99: 0 | HK99: 0 | HL99: 0 | HM99: 0 | HN99: 0 | HO99: 0 | HP99: 0 | HQ99: 0
A100: 0 | B100: 92 | C100: 92 | D100: 0 | L100: 0 | M100: 0 | N100: 0 | O100: 0 | P100: 0 | Q100: 0 | R100: 0 | S100: 0 | T100: 0 | U100: 0 | V100: 0.00 | Z100: 0 | AA100: 0 | AB100: 0 | AC100: 0 | AD100: 0 | AE100: 0 | AF100: 0 | AG100: 0 | AH100: 0 | AI100: 0 | AJ100: 0.00 | AO100: 0 | AP100: 0 | AQ100: 0 | AR100: 0 | AS100: 0 | AT100: 0 | AU100: 0 | AV100: 0 | AW100: 0 | AX100: 0 | AY100: 0 | AZ100: 0 | BA100: 0.00 | BF100: 0 | BG100: 0 | BH100: 0 | BI100: 0 | BJ100: 0 | BK100: 0 | BL100: 0 | BM100: 0 | BN100: 0 | BO100: 0 | BP100: 0 | BQ100: 0 | BR100: 0 | BW100: 0 | BX100: 0 | BY100: 0 | BZ100: 0 | CA100: 0 | CB100: 0 | CC100: 0 | CD100: 0 | CE100: 0 | CF100: 0 | CG100: 0 | CH100: 0 | CI100: 0.00 | CN100: 0 | CO100: 0 | CP100: 0 | CQ100: 0 | CR100: 0 | CS100: 0 | CT100: 0 | CU100: 0 | CV100: 0 | CW100: 0 | CX100: 0 | CY100: 0 | CZ100: 0 | DE100: 0 | DF100: 0 | DG100: 0 | DH100: 0 | DI100: 0 | DJ100: 0 | DK100: 0 | DL100: 0 | DM100: 0 | DN100: 0 | DO100: 0 | DP100: 0 | DQ100: 0 | DU100: 0 | DV100: 0 | DW100: 0 | DX100: 0 | DY100: 0 | DZ100: 0 | EA100: 0 | EB100: 0 | EC100: 0 | ED100: 0 | EE100: 0 | EF100: 0 | EG100: 0.00 | EI100: 0 | EJ100: 0 | EK100: 0 | EL100: 0 | EM100: 0 | EN100: 0 | EO100: 0 | EP100: 0 | EQ100: 0 | ER100: 0 | ES100: 0.00 | EU100: 0 | EV100: 0 | EW100: 0 | EX100: 0 | EY100: 0 | EZ100: 0 | FA100: 0 | FB100: 0 | FC100: 0 | FD100: 0 | FE100: 0.00 | FG100: 0 | FH100: 0 | FI100: 0 | FJ100: 0 | FK100: 0.00 | FP100: 0 | FQ100: 0 | FR100: 0.00 | FW100: 0 | GE100: 0 | GF100: 0 | GG100: 0 | GH100: 0 | GL100: 0 | GM100: / | GN100: 200 | GO100: 0/200 | GP100: 0 | GQ100: / | GR100: 200 | GS100: 0/200 | GT100: 0 | GU100: / | GV100: 200 | GW100: 0/200 | GX100: 0 | GY100: / | GZ100: 100 | HA100: 0/100 | HJ100: 0 | HK100: 0 | HL100: 0 | HM100: 0 | HN100: 0 | HO100: 0 | HP100: 0 | HQ100: 0
A101: 0 | B101: 93 | C101: 93 | D101: 0 | L101: 0 | M101: 0 | N101: 0 | O101: 0 | P101: 0 | Q101: 0 | R101: 0 | S101: 0 | T101: 0 | U101: 0 | V101: 0.00 | Z101: 0 | AA101: 0 | AB101: 0 | AC101: 0 | AD101: 0 | AE101: 0 | AF101: 0 | AG101: 0 | AH101: 0 | AI101: 0 | AJ101: 0.00 | AO101: 0 | AP101: 0 | AQ101: 0 | AR101: 0 | AS101: 0 | AT101: 0 | AU101: 0 | AV101: 0 | AW101: 0 | AX101: 0 | AY101: 0 | AZ101: 0 | BA101: 0.00 | BF101: 0 | BG101: 0 | BH101: 0 | BI101: 0 | BJ101: 0 | BK101: 0 | BL101: 0 | BM101: 0 | BN101: 0 | BO101: 0 | BP101: 0 | BQ101: 0 | BR101: 0 | BW101: 0 | BX101: 0 | BY101: 0 | BZ101: 0 | CA101: 0 | CB101: 0 | CC101: 0 | CD101: 0 | CE101: 0 | CF101: 0 | CG101: 0 | CH101: 0 | CI101: 0.00 | CN101: 0 | CO101: 0 | CP101: 0 | CQ101: 0 | CR101: 0 | CS101: 0 | CT101: 0 | CU101: 0 | CV101: 0 | CW101: 0 | CX101: 0 | CY101: 0 | CZ101: 0 | DE101: 0 | DF101: 0 | DG101: 0 | DH101: 0 | DI101: 0 | DJ101: 0 | DK101: 0 | DL101: 0 | DM101: 0 | DN101: 0 | DO101: 0 | DP101: 0 | DQ101: 0 | DU101: 0 | DV101: 0 | DW101: 0 | DX101: 0 | DY101: 0 | DZ101: 0 | EA101: 0 | EB101: 0 | EC101: 0 | ED101: 0 | EE101: 0 | EF101: 0 | EG101: 0.00 | EI101: 0 | EJ101: 0 | EK101: 0 | EL101: 0 | EM101: 0 | EN101: 0 | EO101: 0 | EP101: 0 | EQ101: 0 | ER101: 0 | ES101: 0.00 | EU101: 0 | EV101: 0 | EW101: 0 | EX101: 0 | EY101: 0 | EZ101: 0 | FA101: 0 | FB101: 0 | FC101: 0 | FD101: 0 | FE101: 0.00 | FG101: 0 | FH101: 0 | FI101: 0 | FJ101: 0 | FK101: 0.00 | FP101: 0 | FQ101: 0 | FR101: 0.00 | FW101: 0 | GE101: 0 | GF101: 0 | GG101: 0 | GH101: 0 | GL101: 0 | GM101: / | GN101: 200 | GO101: 0/200 | GP101: 0 | GQ101: / | GR101: 200 | GS101: 0/200 | GT101: 0 | GU101: / | GV101: 200 | GW101: 0/200 | GX101: 0 | GY101: / | GZ101: 100 | HA101: 0/100 | HJ101: 0 | HK101: 0 | HL101: 0 | HM101: 0 | HN101: 0 | HO101: 0 | HP101: 0 | HQ101: 0
A102: 0 | B102: 94 | C102: 94 | D102: 0 | L102: 0 | M102: 0 | N102: 0 | O102: 0 | P102: 0 | Q102: 0 | R102: 0 | S102: 0 | T102: 0 | U102: 0 | V102: 0.00 | Z102: 0 | AA102: 0 | AB102: 0 | AC102: 0 | AD102: 0 | AE102: 0 | AF102: 0 | AG102: 0 | AH102: 0 | AI102: 0 | AJ102: 0.00 | AO102: 0 | AP102: 0 | AQ102: 0 | AR102: 0 | AS102: 0 | AT102: 0 | AU102: 0 | AV102: 0 | AW102: 0 | AX102: 0 | AY102: 0 | AZ102: 0 | BA102: 0.00 | BF102: 0 | BG102: 0 | BH102: 0 | BI102: 0 | BJ102: 0 | BK102: 0 | BL102: 0 | BM102: 0 | BN102: 0 | BO102: 0 | BP102: 0 | BQ102: 0 | BR102: 0 | BW102: 0 | BX102: 0 | BY102: 0 | BZ102: 0 | CA102: 0 | CB102: 0 | CC102: 0 | CD102: 0 | CE102: 0 | CF102: 0 | CG102: 0 | CH102: 0 | CI102: 0.00 | CN102: 0 | CO102: 0 | CP102: 0 | CQ102: 0 | CR102: 0 | CS102: 0 | CT102: 0 | CU102: 0 | CV102: 0 | CW102: 0 | CX102: 0 | CY102: 0 | CZ102: 0 | DE102: 0 | DF102: 0 | DG102: 0 | DH102: 0 | DI102: 0 | DJ102: 0 | DK102: 0 | DL102: 0 | DM102: 0 | DN102: 0 | DO102: 0 | DP102: 0 | DQ102: 0 | DU102: 0 | DV102: 0 | DW102: 0 | DX102: 0 | DY102: 0 | DZ102: 0 | EA102: 0 | EB102: 0 | EC102: 0 | ED102: 0 | EE102: 0 | EF102: 0 | EG102: 0.00 | EI102: 0 | EJ102: 0 | EK102: 0 | EL102: 0 | EM102: 0 | EN102: 0 | EO102: 0 | EP102: 0 | EQ102: 0 | ER102: 0 | ES102: 0.00 | EU102: 0 | EV102: 0 | EW102: 0 | EX102: 0 | EY102: 0 | EZ102: 0 | FA102: 0 | FB102: 0 | FC102: 0 | FD102: 0 | FE102: 0.00 | FG102: 0 | FH102: 0 | FI102: 0 | FJ102: 0 | FK102: 0.00 | FP102: 0 | FQ102: 0 | FR102: 0.00 | FW102: 0 | GE102: 0 | GF102: 0 | GG102: 0 | GH102: 0 | GL102: 0 | GM102: / | GN102: 200 | GO102: 0/200 | GP102: 0 | GQ102: / | GR102: 200 | GS102: 0/200 | GT102: 0 | GU102: / | GV102: 200 | GW102: 0/200 | GX102: 0 | GY102: / | GZ102: 100 | HA102: 0/100 | HJ102: 0 | HK102: 0 | HL102: 0 | HM102: 0 | HN102: 0 | HO102: 0 | HP102: 0 | HQ102: 0
A103: 0 | B103: 95 | C103: 95 | D103: 0 | L103: 0 | M103: 0 | N103: 0 | O103: 0 | P103: 0 | Q103: 0 | R103: 0 | S103: 0 | T103: 0 | U103: 0 | V103: 0.00 | Z103: 0 | AA103: 0 | AB103: 0 | AC103: 0 | AD103: 0 | AE103: 0 | AF103: 0 | AG103: 0 | AH103: 0 | AI103: 0 | AJ103: 0.00 | AO103: 0 | AP103: 0 | AQ103: 0 | AR103: 0 | AS103: 0 | AT103: 0 | AU103: 0 | AV103: 0 | AW103: 0 | AX103: 0 | AY103: 0 | AZ103: 0 | BA103: 0.00 | BF103: 0 | BG103: 0 | BH103: 0 | BI103: 0 | BJ103: 0 | BK103: 0 | BL103: 0 | BM103: 0 | BN103: 0 | BO103: 0 | BP103: 0 | BQ103: 0 | BR103: 0 | BW103: 0 | BX103: 0 | BY103: 0 | BZ103: 0 | CA103: 0 | CB103: 0 | CC103: 0 | CD103: 0 | CE103: 0 | CF103: 0 | CG103: 0 | CH103: 0 | CI103: 0.00 | CN103: 0 | CO103: 0 | CP103: 0 | CQ103: 0 | CR103: 0 | CS103: 0 | CT103: 0 | CU103: 0 | CV103: 0 | CW103: 0 | CX103: 0 | CY103: 0 | CZ103: 0 | DE103: 0 | DF103: 0 | DG103: 0 | DH103: 0 | DI103: 0 | DJ103: 0 | DK103: 0 | DL103: 0 | DM103: 0 | DN103: 0 | DO103: 0 | DP103: 0 | DQ103: 0 | DU103: 0 | DV103: 0 | DW103: 0 | DX103: 0 | DY103: 0 | DZ103: 0 | EA103: 0 | EB103: 0 | EC103: 0 | ED103: 0 | EE103: 0 | EF103: 0 | EG103: 0.00 | EI103: 0 | EJ103: 0 | EK103: 0 | EL103: 0 | EM103: 0 | EN103: 0 | EO103: 0 | EP103: 0 | EQ103: 0 | ER103: 0 | ES103: 0.00 | EU103: 0 | EV103: 0 | EW103: 0 | EX103: 0 | EY103: 0 | EZ103: 0 | FA103: 0 | FB103: 0 | FC103: 0 | FD103: 0 | FE103: 0.00 | FG103: 0 | FH103: 0 | FI103: 0 | FJ103: 0 | FK103: 0.00 | FP103: 0 | FQ103: 0 | FR103: 0.00 | FW103: 0 | GE103: 0 | GF103: 0 | GG103: 0 | GH103: 0 | GL103: 0 | GM103: / | GN103: 200 | GO103: 0/200 | GP103: 0 | GQ103: / | GR103: 200 | GS103: 0/200 | GT103: 0 | GU103: / | GV103: 200 | GW103: 0/200 | GX103: 0 | GY103: / | GZ103: 100 | HA103: 0/100 | HJ103: 0 | HK103: 0 | HL103: 0 | HM103: 0 | HN103: 0 | HO103: 0 | HP103: 0 | HQ103: 0
A104: 0 | B104: 96 | C104: 96 | D104: 0 | L104: 0 | M104: 0 | N104: 0 | O104: 0 | P104: 0 | Q104: 0 | R104: 0 | S104: 0 | T104: 0 | U104: 0 | V104: 0.00 | Z104: 0 | AA104: 0 | AB104: 0 | AC104: 0 | AD104: 0 | AE104: 0 | AF104: 0 | AG104: 0 | AH104: 0 | AI104: 0 | AJ104: 0.00 | AO104: 0 | AP104: 0 | AQ104: 0 | AR104: 0 | AS104: 0 | AT104: 0 | AU104: 0 | AV104: 0 | AW104: 0 | AX104: 0 | AY104: 0 | AZ104: 0 | BA104: 0.00 | BF104: 0 | BG104: 0 | BH104: 0 | BI104: 0 | BJ104: 0 | BK104: 0 | BL104: 0 | BM104: 0 | BN104: 0 | BO104: 0 | BP104: 0 | BQ104: 0 | BR104: 0 | BW104: 0 | BX104: 0 | BY104: 0 | BZ104: 0 | CA104: 0 | CB104: 0 | CC104: 0 | CD104: 0 | CE104: 0 | CF104: 0 | CG104: 0 | CH104: 0 | CI104: 0.00 | CN104: 0 | CO104: 0 | CP104: 0 | CQ104: 0 | CR104: 0 | CS104: 0 | CT104: 0 | CU104: 0 | CV104: 0 | CW104: 0 | CX104: 0 | CY104: 0 | CZ104: 0 | DE104: 0 | DF104: 0 | DG104: 0 | DH104: 0 | DI104: 0 | DJ104: 0 | DK104: 0 | DL104: 0 | DM104: 0 | DN104: 0 | DO104: 0 | DP104: 0 | DQ104: 0 | DU104: 0 | DV104: 0 | DW104: 0 | DX104: 0 | DY104: 0 | DZ104: 0 | EA104: 0 | EB104: 0 | EC104: 0 | ED104: 0 | EE104: 0 | EF104: 0 | EG104: 0.00 | EI104: 0 | EJ104: 0 | EK104: 0 | EL104: 0 | EM104: 0 | EN104: 0 | EO104: 0 | EP104: 0 | EQ104: 0 | ER104: 0 | ES104: 0.00 | EU104: 0 | EV104: 0 | EW104: 0 | EX104: 0 | EY104: 0 | EZ104: 0 | FA104: 0 | FB104: 0 | FC104: 0 | FD104: 0 | FE104: 0.00 | FG104: 0 | FH104: 0 | FI104: 0 | FJ104: 0 | FK104: 0.00 | FP104: 0 | FQ104: 0 | FR104: 0.00 | FW104: 0 | GE104: 0 | GF104: 0 | GG104: 0 | GH104: 0 | GL104: 0 | GM104: / | GN104: 200 | GO104: 0/200 | GP104: 0 | GQ104: / | GR104: 200 | GS104: 0/200 | GT104: 0 | GU104: / | GV104: 200 | GW104: 0/200 | GX104: 0 | GY104: / | GZ104: 100 | HA104: 0/100 | HJ104: 0 | HK104: 0 | HL104: 0 | HM104: 0 | HN104: 0 | HO104: 0 | HP104: 0 | HQ104: 0
A105: 0 | B105: 97 | C105: 97 | D105: 0 | L105: 0 | M105: 0 | N105: 0 | O105: 0 | P105: 0 | Q105: 0 | R105: 0 | S105: 0 | T105: 0 | U105: 0 | V105: 0.00 | Z105: 0 | AA105: 0 | AB105: 0 | AC105: 0 | AD105: 0 | AE105: 0 | AF105: 0 | AG105: 0 | AH105: 0 | AI105: 0 | AJ105: 0.00 | AK105: =IF(AF105="AB","AB",IF(AND(OR(Z105="ab",Z105="ml"),OR(AA105="ab",AA105="ml"),OR(AC105="ab",AC105="ml")),"AB",IF(AND(OR(Z105="ab",Z105="ml"),OR(AC105="ab",AC105="ml")),"AB",""))) ->  | AM105: =IF(OR(AL105="",AL105=0,AL105="S",AL105="F",AL105="AB"),AL105,IF(AJ105>=75,"D",IF(AJ105>=60,"I",IF(AJ105>=48,"II",IF(AJ105>=36,"III",AL105))))) ->  | AO105: 0 | AP105: 0 | AQ105: 0 | AR105: 0 | AS105: 0 | AT105: 0 | AU105: 0 | AV105: 0 | AW105: 0 | AX105: 0 | AY105: 0 | AZ105: 0 | BA105: 0.00 | BB105: =IF(AV105="AB","AB",IF(AND(OR(AO105="ab",AO105="ml"),OR(AP105="ab",AP105="ml"),OR(AR105="ab",AR105="ml")),"AB",IF(AND(OR(AO105="ab",AO105="ml"),OR(AR105="ab",AR105="ml")),"AB",""))) ->  | BF105: 0 | BG105: 0 | BH105: 0 | BI105: 0 | BJ105: 0 | BK105: 0 | BL105: 0 | BM105: 0 | BN105: 0 | BO105: 0 | BP105: 0 | BQ105: 0 | BR105: 0 | BS105: =IF(BM105="AB","AB",IF(AND(OR(BF105="ab",BF105="ml"),OR(BG105="ab",BG105="ml"),OR(BI105="ab",BI105="ml")),"AB",IF(AND(OR(BF105="ab",BF105="ml"),OR(BI105="ab",BI105="ml")),"AB",""))) ->  | BW105: 0 | BX105: 0 | BY105: 0 | BZ105: 0 | CA105: 0 | CB105: 0 | CC105: 0 | CD105: 0 | CE105: 0 | CF105: 0 | CG105: 0 | CH105: 0 | CI105: 0.00 | CN105: 0 | CO105: 0 | CP105: 0 | CQ105: 0 | CR105: 0 | CS105: 0 | CT105: 0 | CU105: 0 | CV105: 0 | CW105: 0 | CX105: 0 | CY105: 0 | CZ105: 0 | DE105: 0 | DF105: 0 | DG105: 0 | DH105: 0 | DI105: 0 | DJ105: 0 | DK105: 0 | DL105: 0 | DM105: 0 | DN105: 0 | DO105: 0 | DP105: 0 | DQ105: 0 | DU105: 0 | DV105: 0 | DW105: 0 | DX105: 0 | DY105: 0 | DZ105: 0 | EA105: 0 | EB105: 0 | EC105: 0 | ED105: 0 | EE105: 0 | EF105: 0 | EG105: 0.00 | EI105: 0 | EJ105: 0 | EK105: 0 | EL105: 0 | EM105: 0 | EN105: 0 | EO105: 0 | EP105: 0 | EQ105: 0 | ER105: 0 | ES105: 0.00 | EU105: 0 | EV105: 0 | EW105: 0 | EX105: 0 | EY105: 0 | EZ105: 0 | FA105: 0 | FB105: 0 | FC105: 0 | FD105: 0 | FE105: 0.00 | FG105: 0 | FH105: 0 | FI105: 0 | FJ105: 0 | FK105: 0.00 | FP105: 0 | FQ105: 0 | FR105: 0.00 | FW105: 0 | GE105: 0 | GF105: 0 | GG105: 0 | GH105: 0 | GL105: 0 | GM105: / | GN105: 200 | GO105: 0/200 | GP105: 0 | GQ105: / | GR105: 200 | GS105: 0/200 | GT105: 0 | GU105: / | GV105: 200 | GW105: 0/200 | GX105: 0 | GY105: / | GZ105: 100 | HA105: 0/100 | HJ105: 0 | HK105: 0 | HL105: 0 | HM105: 0 | HN105: 0 | HO105: 0 | HP105: 0 | HQ105: 0
A106: 0 | B106: 98 | C106: 98 | D106: 0 | L106: 0 | M106: 0 | N106: 0 | O106: 0 | P106: 0 | Q106: 0 | R106: 0 | S106: 0 | T106: 0 | U106: 0 | V106: 0.00 | Z106: 0 | AA106: 0 | AB106: 0 | AC106: 0 | AD106: 0 | AE106: 0 | AF106: 0 | AG106: 0 | AH106: 0 | AI106: 0 | AJ106: 0.00 | AK106: =IF(AF106="AB","AB",IF(AND(OR(Z106="ab",Z106="ml"),OR(AA106="ab",AA106="ml"),OR(AC106="ab",AC106="ml")),"AB",IF(AND(OR(Z106="ab",Z106="ml"),OR(AC106="ab",AC106="ml")),"AB",""))) ->  | AM106: =IF(OR(AL106="",AL106=0,AL106="S",AL106="F",AL106="AB"),AL106,IF(AJ106>=75,"D",IF(AJ106>=60,"I",IF(AJ106>=48,"II",IF(AJ106>=36,"III",AL106))))) ->  | AO106: 0 | AP106: 0 | AQ106: 0 | AR106: 0 | AS106: 0 | AT106: 0 | AU106: 0 | AV106: 0 | AW106: 0 | AX106: 0 | AY106: 0 | AZ106: 0 | BA106: 0.00 | BB106: =IF(AV106="AB","AB",IF(AND(OR(AO106="ab",AO106="ml"),OR(AP106="ab",AP106="ml"),OR(AR106="ab",AR106="ml")),"AB",IF(AND(OR(AO106="ab",AO106="ml"),OR(AR106="ab",AR106="ml")),"AB",""))) ->  | BF106: 0 | BG106: 0 | BH106: 0 | BI106: 0 | BJ106: 0 | BK106: 0 | BL106: 0 | BM106: 0 | BN106: 0 | BO106: 0 | BP106: 0 | BQ106: 0 | BR106: 0 | BS106: =IF(BM106="AB","AB",IF(AND(OR(BF106="ab",BF106="ml"),OR(BG106="ab",BG106="ml"),OR(BI106="ab",BI106="ml")),"AB",IF(AND(OR(BF106="ab",BF106="ml"),OR(BI106="ab",BI106="ml")),"AB",""))) ->  | BW106: 0 | BX106: 0 | BY106: 0 | BZ106: 0 | CA106: 0 | CB106: 0 | CC106: 0 | CD106: 0 | CE106: 0 | CF106: 0 | CG106: 0 | CH106: 0 | CI106: 0.00 | CN106: 0 | CO106: 0 | CP106: 0 | CQ106: 0 | CR106: 0 | CS106: 0 | CT106: 0 | CU106: 0 | CV106: 0 | CW106: 0 | CX106: 0 | CY106: 0 | CZ106: 0 | DE106: 0 | DF106: 0 | DG106: 0 | DH106: 0 | DI106: 0 | DJ106: 0 | DK106: 0 | DL106: 0 | DM106: 0 | DN106: 0 | DO106: 0 | DP106: 0 | DQ106: 0 | DU106: 0 | DV106: 0 | DW106: 0 | DX106: 0 | DY106: 0 | DZ106: 0 | EA106: 0 | EB106: 0 | EC106: 0 | ED106: 0 | EE106: 0 | EF106: 0 | EG106: 0.00 | EI106: 0 | EJ106: 0 | EK106: 0 | EL106: 0 | EM106: 0 | EN106: 0 | EO106: 0 | EP106: 0 | EQ106: 0 | ER106: 0 | ES106: 0.00 | EU106: 0 | EV106: 0 | EW106: 0 | EX106: 0 | EY106: 0 | EZ106: 0 | FA106: 0 | FB106: 0 | FC106: 0 | FD106: 0 | FE106: 0.00 | FG106: 0 | FH106: 0 | FI106: 0 | FJ106: 0 | FK106: 0.00 | FP106: 0 | FQ106: 0 | FR106: 0.00 | FW106: 0 | GE106: 0 | GF106: 0 | GG106: 0 | GH106: 0 | GL106: 0 | GM106: / | GN106: 200 | GO106: 0/200 | GP106: 0 | GQ106: / | GR106: 200 | GS106: 0/200 | GT106: 0 | GU106: / | GV106: 200 | GW106: 0/200 | GX106: 0 | GY106: / | GZ106: 100 | HA106: 0/100 | HJ106: 0 | HK106: 0 | HL106: 0 | HM106: 0 | HN106: 0 | HO106: 0 | HP106: 0 | HQ106: 0
A107: 0 | B107: 99 | C107: 99 | D107: 0 | L107: 0 | M107: 0 | N107: 0 | O107: 0 | P107: 0 | Q107: 0 | R107: 0 | S107: 0 | T107: 0 | U107: 0 | V107: 0.00 | Z107: 0 | AA107: 0 | AB107: 0 | AC107: 0 | AD107: 0 | AE107: 0 | AF107: 0 | AG107: 0 | AH107: 0 | AI107: 0 | AJ107: 0.00 | AK107: =IF(AF107="AB","AB",IF(AND(OR(Z107="ab",Z107="ml"),OR(AA107="ab",AA107="ml"),OR(AC107="ab",AC107="ml")),"AB",IF(AND(OR(Z107="ab",Z107="ml"),OR(AC107="ab",AC107="ml")),"AB",""))) ->  | AM107: =IF(OR(AL107="",AL107=0,AL107="S",AL107="F",AL107="AB"),AL107,IF(AJ107>=75,"D",IF(AJ107>=60,"I",IF(AJ107>=48,"II",IF(AJ107>=36,"III",AL107))))) ->  | AO107: 0 | AP107: 0 | AQ107: 0 | AR107: 0 | AS107: 0 | AT107: 0 | AU107: 0 | AV107: 0 | AW107: 0 | AX107: 0 | AY107: 0 | AZ107: 0 | BA107: 0.00 | BB107: =IF(AV107="AB","AB",IF(AND(OR(AO107="ab",AO107="ml"),OR(AP107="ab",AP107="ml"),OR(AR107="ab",AR107="ml")),"AB",IF(AND(OR(AO107="ab",AO107="ml"),OR(AR107="ab",AR107="ml")),"AB",""))) ->  | BF107: 0 | BG107: 0 | BH107: 0 | BI107: 0 | BJ107: 0 | BK107: 0 | BL107: 0 | BM107: 0 | BN107: 0 | BO107: 0 | BP107: 0 | BQ107: 0 | BR107: 0 | BS107: =IF(BM107="AB","AB",IF(AND(OR(BF107="ab",BF107="ml"),OR(BG107="ab",BG107="ml"),OR(BI107="ab",BI107="ml")),"AB",IF(AND(OR(BF107="ab",BF107="ml"),OR(BI107="ab",BI107="ml")),"AB",""))) ->  | BW107: 0 | BX107: 0 | BY107: 0 | BZ107: 0 | CA107: 0 | CB107: 0 | CC107: 0 | CD107: 0 | CE107: 0 | CF107: 0 | CG107: 0 | CH107: 0 | CI107: 0.00 | CN107: 0 | CO107: 0 | CP107: 0 | CQ107: 0 | CR107: 0 | CS107: 0 | CT107: 0 | CU107: 0 | CV107: 0 | CW107: 0 | CX107: 0 | CY107: 0 | CZ107: 0 | DE107: 0 | DF107: 0 | DG107: 0 | DH107: 0 | DI107: 0 | DJ107: 0 | DK107: 0 | DL107: 0 | DM107: 0 | DN107: 0 | DO107: 0 | DP107: 0 | DQ107: 0 | DU107: 0 | DV107: 0 | DW107: 0 | DX107: 0 | DY107: 0 | DZ107: 0 | EA107: 0 | EB107: 0 | EC107: 0 | ED107: 0 | EE107: 0 | EF107: 0 | EG107: 0.00 | EI107: 0 | EJ107: 0 | EK107: 0 | EL107: 0 | EM107: 0 | EN107: 0 | EO107: 0 | EP107: 0 | EQ107: 0 | ER107: 0 | ES107: 0.00 | EU107: 0 | EV107: 0 | EW107: 0 | EX107: 0 | EY107: 0 | EZ107: 0 | FA107: 0 | FB107: 0 | FC107: 0 | FD107: 0 | FE107: 0.00 | FG107: 0 | FH107: 0 | FI107: 0 | FJ107: 0 | FK107: 0.00 | FP107: 0 | FQ107: 0 | FR107: 0.00 | FW107: 0 | GE107: 0 | GF107: 0 | GG107: 0 | GH107: 0 | GL107: 0 | GM107: / | GN107: 200 | GO107: 0/200 | GP107: 0 | GQ107: / | GR107: 200 | GS107: 0/200 | GT107: 0 | GU107: / | GV107: 200 | GW107: 0/200 | GX107: 0 | GY107: / | GZ107: 100 | HA107: 0/100 | HJ107: 0 | HK107: 0 | HL107: 0 | HM107: 0 | HN107: 0 | HO107: 0 | HP107: 0 | HQ107: 0
A108: 0 | B108: 100 | C108: 100 | D108: 0 | L108: 0 | M108: 0 | N108: 0 | O108: 0 | P108: 0 | Q108: 0 | R108: 0 | S108: 0 | T108: 0 | U108: 0 | V108: 0.00 | W108: =IF(R108="AB","AB",IF(AND(OR(L108="ab",L108="ml"),OR(M108="ab",M108="ml"),OR(O108="ab",O108="ml")),"AB",IF(AND(OR(L108="ab",L108="ml"),OR(O108="ab",O108="ml")),"AB",""))) ->  | Y108: =IF(OR(X108="",X108=0,X108="S",X108="F",X108="AB"),X108,IF(V108>=75,"D",IF(V108>=60,"I",IF(V108>=48,"II",IF(V108>=36,"III",X108))))) ->  | Z108: 0 | AA108: 0 | AB108: 0 | AC108: 0 | AD108: 0 | AE108: 0 | AF108: 0 | AG108: 0 | AH108: 0 | AI108: 0 | AJ108: 0.00 | AK108: =IF(AF108="AB","AB",IF(AND(OR(Z108="ab",Z108="ml"),OR(AA108="ab",AA108="ml"),OR(AC108="ab",AC108="ml")),"AB",IF(AND(OR(Z108="ab",Z108="ml"),OR(AC108="ab",AC108="ml")),"AB",""))) ->  | AM108: =IF(OR(AL108="",AL108=0,AL108="S",AL108="F",AL108="AB"),AL108,IF(AJ108>=75,"D",IF(AJ108>=60,"I",IF(AJ108>=48,"II",IF(AJ108>=36,"III",AL108))))) ->  | AO108: 0 | AP108: 0 | AQ108: 0 | AR108: 0 | AS108: 0 | AT108: 0 | AU108: 0 | AV108: 0 | AW108: 0 | AX108: 0 | AY108: 0 | AZ108: 0 | BA108: 0.00 | BB108: =IF(AV108="AB","AB",IF(AND(OR(AO108="ab",AO108="ml"),OR(AP108="ab",AP108="ml"),OR(AR108="ab",AR108="ml")),"AB",IF(AND(OR(AO108="ab",AO108="ml"),OR(AR108="ab",AR108="ml")),"AB",""))) ->  | BD108: =IF(OR(BC108="",BC108=0,BC108="S",BC108="F",BC108="AB"),BC108,IF(BA108>=75,"D",IF(BA108>=60,"I",IF(BA108>=48,"II",IF(BA108>=36,"III",BC108))))) ->  | BF108: 0 | BG108: 0 | BH108: 0 | BI108: 0 | BJ108: 0 | BK108: 0 | BL108: 0 | BM108: 0 | BN108: 0 | BO108: 0 | BP108: 0 | BQ108: 0 | BR108: 0 | BS108: =IF(BM108="AB","AB",IF(AND(OR(BF108="ab",BF108="ml"),OR(BG108="ab",BG108="ml"),OR(BI108="ab",BI108="ml")),"AB",IF(AND(OR(BF108="ab",BF108="ml"),OR(BI108="ab",BI108="ml")),"AB",""))) ->  | BU108: =IF(OR(BT108="",BT108=0,BT108="S",BT108="F",BT108="AB"),BT108,IF(BR108>=75,"D",IF(BR108>=60,"I",IF(BR108>=48,"II",IF(BR108>=36,"III",BT108))))) ->  | BW108: 0 | BX108: 0 | BY108: 0 | BZ108: 0 | CA108: 0 | CB108: 0 | CC108: 0 | CD108: 0 | CE108: 0 | CF108: 0 | CG108: 0 | CH108: 0 | CI108: 0.00 | CL108: =IF(OR(CK108="",CK108=0,CK108="S",CK108="F",CK108="AB"),CK108,IF(CI108>=75,"D",IF(CI108>=60,"I",IF(CI108>=48,"II",IF(CI108>=36,"III",CK108))))) ->  | CN108: 0 | CO108: 0 | CP108: 0 | CQ108: 0 | CR108: 0 | CS108: 0 | CT108: 0 | CU108: 0 | CV108: 0 | CW108: 0 | CX108: 0 | CY108: 0 | CZ108: 0 | DE108: 0 | DF108: 0 | DG108: 0 | DH108: 0 | DI108: 0 | DJ108: 0 | DK108: 0 | DL108: 0 | DM108: 0 | DN108: 0 | DO108: 0 | DP108: 0 | DQ108: 0 | DU108: 0 | DV108: 0 | DW108: 0 | DX108: 0 | DY108: 0 | DZ108: 0 | EA108: 0 | EB108: 0 | EC108: 0 | ED108: 0 | EE108: 0 | EF108: 0 | EG108: 0.00 | EI108: 0 | EJ108: 0 | EK108: 0 | EL108: 0 | EM108: 0 | EN108: 0 | EO108: 0 | EP108: 0 | EQ108: 0 | ER108: 0 | ES108: 0.00 | EU108: 0 | EV108: 0 | EW108: =SUM(EU108:EV108) -> 0 | EX108: 0 | EY108: 0 | EZ108: 0 | FA108: 0 | FB108: 0 | FC108: 0 | FD108: 0 | FE108: 0.00 | FG108: 0 | FH108: 0 | FI108: 0 | FJ108: 0 | FK108: 0.00 | FP108: 0 | FQ108: 0 | FR108: 0.00 | FW108: 0 | GE108: 0 | GF108: 0 | GG108: 0 | GH108: 0 | GL108: 0 | GM108: / | GN108: 200 | GO108: 0/200 | GP108: 0 | GQ108: / | GR108: 200 | GS108: 0/200 | GT108: 0 | GU108: / | GV108: 200 | GW108: 0/200 | GX108: 0 | GY108: / | GZ108: 100 | HA108: 0/100 | HJ108: 0 | HK108: 0 | HL108: 0 | HM108: 0 | HN108: 0 | HO108: 0 | HP108: 0 | HQ108: 0
B109: 1 | C109: 2 | D109: 3 | E109: 4 | F109: 5 | G109: 6 | H109: 7 | I109: 8 | J109: 9 | K109: 10 | L109: 11 | M109: 12 | N109: 13 | O109: 14 | P109: 15 | Q109: 16 | R109: 17 | S109: 18 | T109: 19 | U109: 20 | V109: 21 | W109: 22 | X109: 23 | Y109: 24 | Z109: 25 | AA109: 26 | AB109: 27 | AC109: 28 | AD109: 29 | AE109: 30 | AF109: 31 | AG109: 32 | AH109: 33 | AI109: 34 | AJ109: 35 | AK109: 36 | AL109: 37 | AM109: 38 | AN109: 39 | AO109: 40 | AP109: 41 | AQ109: 42 | AR109: 43 | AS109: 44 | AT109: 45 | AU109: 46 | AV109: 47 | AW109: 48 | AX109: 49 | AY109: 50 | AZ109: 51 | BA109: 52 | BB109: 53 | BC109: 54 | BD109: 55 | BE109: 56 | BF109: 57 | BG109: 58 | BH109: 59 | BI109: 60 | BJ109: 61 | BK109: 62 | BL109: 63 | BM109: 64 | BN109: 65 | BO109: 66 | BP109: 67 | BQ109: 68 | BR109: 69 | BS109: 70 | BT109: 71 | BU109: 72 | BV109: 73 | BW109: 74 | BX109: 75 | BY109: 76 | BZ109: 77 | CA109: 78 | CB109: 79 | CC109: 80 | CD109: 81 | CE109: 82 | CF109: 83 | CG109: 84 | CH109: 85 | CI109: 86 | CJ109: 87 | CK109: 88 | CL109: 89 | CM109: 90 | CN109: 91 | CO109: 92 | CP109: 93 | CQ109: 94 | CR109: 95 | CS109: 96 | CT109: 97 | CU109: 98 | CV109: 99 | CW109: 100 | CX109: 101 | CY109: 102 | CZ109: 103 | DA109: 104 | DB109: 105 | DC109: 106 | DD109: 107 | DE109: 108 | DF109: 109 | DG109: 110 | DH109: 111 | DI109: 112 | DJ109: 113 | DK109: 114 | DL109: 115 | DM109: 116 | DN109: 117 | DO109: 118 | DP109: 119 | DQ109: 120 | DR109: 121 | DS109: 122 | DT109: 123 | DU109: 124 | DV109: 125 | DW109: 126 | DX109: 127 | DY109: 128 | DZ109: 129 | EA109: 130 | EB109: 131 | EC109: 132 | ED109: 133 | EE109: 134 | EF109: 135 | EG109: 136 | EH109: 137 | EI109: 138 | EJ109: 139 | EK109: 140 | EL109: 141 | EM109: 142 | EN109: 143 | EO109: 144 | EP109: 145 | EQ109: 146 | ER109: 147 | ES109: 148 | ET109: 149 | EU109: 150 | EV109: 151 | EW109: 152 | EX109: 153 | EY109: 154 | EZ109: 155 | FA109: 156 | FB109: 157 | FC109: 158 | FD109: 159 | FE109: 160 | FF109: 161 | FG109: 162 | FH109: 163 | FI109: 164 | FJ109: 165 | FK109: 166 | FL109: 167 | FM109: 168 | FN109: 169 | FO109: 170 | FP109: 171 | FQ109: 172 | FR109: 173 | FS109: 174 | FT109: 175 | FU109: 176 | FV109: 177 | FW109: 178 | FX109: 179 | FY109: 180 | FZ109: 181 | GA109: 182 | GB109: 183 | GC109: 184 | GD109: 185 | GE109: 186 | GF109: 187 | GG109: 188 | GH109: 189 | GI109: 190 | GJ109: 191 | GK109: 192 | GL109: 193 | GM109: 194 | GN109: 195 | GO109: 196 | GP109: 197 | GQ109: 198 | GR109: 199 | GS109: 200 | GT109: 201 | GU109: 202 | GV109: 203 | GW109: 204 | GX109: 205 | GY109: 206 | GZ109: 207 | HA109: 208 | HB109: 201
I110: =Master!L7 -> HINDI Comp. | J110: =Master!N7 -> A
I111: =Master!L8 -> ENGLISH Comp. | J111: =Master!N8 -> B
I112: =Master!L9 -> Hindi Lit. | J112: =Master!N9 -> C
I113: =Master!L10 -> History | J113: =Master!N10 -> D
I114: =Master!L11 -> Pol. Sc. | J114: =Master!N11 -> E
I115: =Master!L12 -> History | J115: =Master!N12 -> F
I116: =Master!L13 -> Drawing | J116: =Master!N13 -> G
I117: =Master!L14 -> Eng. Lit. | J117: =Master!N14 -> 0
I118: =Master!L15 -> BIOLOGY | J118: =Master!N15 -> 0
I119: =Master!L16 -> MATHEMATICS | J119: =Master!N16 -> 0
I120: =Master!L17 -> PHYSICS | J120: =Master!N19 -> 0
I121: =Master!L18 -> CHEMISTRY | J121: =Master!N20 -> 0
I122: =Master!L19 -> 0 | J122: =Master!P7 -> 0
I123: =Master!L20 -> 0 | J123: =Master!P8 -> 0
J124: =Master!P9 -> 0
J125: =Master!P10 -> 0
J126: =Master!P11 -> 0
J127: =Master!P12 -> 0
J128: =Master!P13 -> 0
J129: =Master!P14 -> 0
J130: =Master!P15 -> 0
J131: =Master!P16 -> 0
J132: =Master!P19 -> 0
J133: =Master!P20 -> 0

Sheet Result Sheet 11
E2: Result Sheet | F2: Result Sheet | K2: ='Result Entry'!L3 -> HINDI Comp. | Y2: ='Result Entry'!Z3 -> ENGLISH Comp. | AN2: ='Result Entry'!AO3 -> PHYSICS | BE2: ='Result Entry'!BF3 -> CHEMISTRY | BV2: ='Result Entry'!BW3 -> BIOLOGY | CM2: ='Result Entry'!CN3 -> History | DD2: ='Result Entry'!DE3 -> 0 | DT2: ='Result Entry'!DU3 -> Foundation Of Information Tech. | EH2: ='Result Entry'!EI3 -> G.I.A.I.-II | ET2: ='Result Entry'!EU3 -> SOC.SER.PLAN | FF2: ='Result Entry'!FG3 -> Jeewan Kaushal | FL2: Attendance | FO2: Statics | FV2: Remark
B3: School' Name:- | F3: =CONCATENATE(Master!E8,Master!E11) -> Govt. Sr. Secondary School P.S.-Bapini (Jodhpur) | K3: ='Result Entry'!L4 -> 0 | Y3: ='Result Entry'!Z4 -> 0 | AN3: ='Result Entry'!AO4 -> 0 | BE3: ='Result Entry'!BF4 -> 0 | BV3: ='Result Entry'!BW4 -> 0 | CM3: ='Result Entry'!CN4 -> 0 | DD3: ='Result Entry'!DE4 -> 0 | DT3: ='Result Entry'!DU4 -> 0 | EH3: ='Result Entry'!EI4 -> 0 | ET3: ='Result Entry'!EU4 -> 0 | FF3: ='Result Entry'!FG4 -> 0 | FL3: Total Attendance | FM3: Student's Attendance | FN3: Attandance % | FO3: Total Maximum Marks | FP3: Obtained Marks | FQ3: Percentage | FR3: Overall Div. | FS3: Result | FU3: Position in Class
B4: Class:- | E4: =A7 -> 0 | F4: =CONCATENATE('Result Entry'!G4,'Result Entry'!J4) -> 11(A) | G4: Session:- | H4: =Master!E6 -> 2023-24 | K4: ='Result Entry'!L5 -> Tests | N4: ='Result Entry'!O5 -> Total Tests | O4: ='Result Entry'!P5 -> Half Yearly | P4: ='Result Entry'!Q5 -> Total (Tests+H.Y.) | Q4: ='Result Entry'!R5 -> Yearly Exam | T4: ='Result Entry'!U5 -> Total Marks | U4: ='Result Entry'!V5 -> MARKS % | V4: ='Result Entry'!W5 -> 2T+E OR 2E+T | W4: ='Result Entry'!X5 -> Result | X4: ='Result Entry'!Y5 -> Div. | Y4: ='Result Entry'!L5 -> Tests | AB4: ='Result Entry'!O5 -> Total Tests | AC4: ='Result Entry'!P5 -> Half Yearly | AD4: ='Result Entry'!Q5 -> Total (Tests+H.Y.) | AE4: ='Result Entry'!R5 -> Yearly Exam | AH4: ='Result Entry'!U5 -> Total Marks | AI4: ='Result Entry'!V5 -> MARKS % | AJ4: ='Result Entry'!W5 -> 2T+E OR 2E+T | AK4: ='Result Entry'!X5 -> Result | AL4: ='Result Entry'!Y5 -> Div. | AN4: ='Result Entry'!AO5 -> Tests | AQ4: ='Result Entry'!AR5 -> Total Tests | AR4: ='Result Entry'!AS5 -> Half Yeary | AU4: ='Result Entry'!AV5 -> Total (Tests+H.Y.) | AV4: ='Result Entry'!AW5 -> Yearly Exam | AY4: ='Result Entry'!AZ5 -> Total Marks | AZ4: ='Result Entry'!BA5 -> MARKS % | BA4: ='Result Entry'!BB5 -> 2T+E OR 2E+T | BB4: ='Result Entry'!BC5 -> Result | BC4: ='Result Entry'!BD5 -> Div. | BE4: ='Result Entry'!AO5 -> Tests | BH4: ='Result Entry'!AR5 -> Total Tests | BI4: ='Result Entry'!AS5 -> Half Yeary | BL4: ='Result Entry'!AV5 -> Total (Tests+H.Y.) | BM4: ='Result Entry'!AW5 -> Yearly Exam | BP4: ='Result Entry'!AZ5 -> Total Marks | BQ4: ='Result Entry'!BA5 -> MARKS % | BR4: ='Result Entry'!BB5 -> 2T+E OR 2E+T | BS4: ='Result Entry'!BC5 -> Result | BT4: ='Result Entry'!BD5 -> Div. | BV4: ='Result Entry'!AO5 -> Tests | BY4: ='Result Entry'!AR5 -> Total Tests | BZ4: ='Result Entry'!AS5 -> Half Yeary | CC4: ='Result Entry'!AV5 -> Total (Tests+H.Y.) | CD4: ='Result Entry'!AW5 -> Yearly Exam | CG4: ='Result Entry'!AZ5 -> Total Marks | CH4: ='Result Entry'!BA5 -> MARKS % | CI4: ='Result Entry'!BB5 -> 2T+E OR 2E+T | CJ4: ='Result Entry'!BC5 -> Result | CK4: ='Result Entry'!BD5 -> Div. | CM4: ='Result Entry'!BF5 -> Tests | CP4: ='Result Entry'!BI5 -> Total Tests | CQ4: ='Result Entry'!BJ5 -> Half Yeary | CT4: ='Result Entry'!BM5 -> Total (Tests+H.Y.) | CU4: ='Result Entry'!BN5 -> Yearly Exam | CX4: ='Result Entry'!BQ5 -> Total Marks | CY4: ='Result Entry'!BR5 -> MARKS % | CZ4: ='Result Entry'!BS5 -> 2T+E OR 2E+T | DA4: ='Result Entry'!BT5 -> Result | DB4: ='Result Entry'!BU5 -> Div. | DD4: ='Result Entry'!BF5 -> Tests | DG4: ='Result Entry'!BI5 -> Total Tests | DH4: ='Result Entry'!BJ5 -> Half Yeary | DK4: ='Result Entry'!BM5 -> Total (Tests+H.Y.) | DL4: ='Result Entry'!BN5 -> Yearly Exam | DO4: ='Result Entry'!BQ5 -> Total Marks | DP4: ='Result Entry'!BR5 -> MARKS % | DQ4: ='Result Entry'!BS5 -> 2T+E OR 2E+T | DR4: ='Result Entry'!BT5 -> Result | DS4: ='Result Entry'!BU5 -> Div. | DT4: ='Result Entry'!DU5 -> Tests | DW4: ='Result Entry'!DX5 -> Total Tests | DX4: ='Result Entry'!DY5 -> Half Yeary | DY4: ='Result Entry'!DZ5 -> 0 | DZ4: ='Result Entry'!EA5 -> 0 | EA4: ='Result Entry'!EB5 -> Total (Tests+H.Y.) | EB4: ='Result Entry'!EC5 -> Yearly Exam | EC4: ='Result Entry'!ED5 -> 0 | ED4: ='Result Entry'!EE5 -> 0 | EE4: ='Result Entry'!EF5 -> Total Marks | EF4: ='Result Entry'!EG5 -> MARKS % | EG4: ='Result Entry'!EH5 -> Grd. | EH4: ='Result Entry'!EI5 -> Tests | EK4: ='Result Entry'!EL5 -> Total Tests | EL4: ='Result Entry'!EM5 -> Half Yearly | EM4: ='Result Entry'!EN5 -> Total (Tests+H.Y.) | EN4: ='Result Entry'!EO5 -> Yearly Exam | EO4: ='Result Entry'!EP5 -> 0 | EQ4: ='Result Entry'!ER5 -> Total Marks | ER4: ='Result Entry'!EH:ES -> 0 | ES4: ='Result Entry'!ET5 -> Grd. | ET4: ='Result Entry'!EI5 -> Tests | EW4: ='Result Entry'!EL5 -> Total Tests | EX4: ='Result Entry'!EM5 -> Half Yearly | EY4: ='Result Entry'!EN5 -> Total (Tests+H.Y.) | EZ4: ='Result Entry'!EO5 -> Yearly Exam | FA4: ='Result Entry'!EP5 -> 0 | FC4: ='Result Entry'!ER5 -> Total Marks | FD4: ='Result Entry'!EH:ES ->  | FE4: ='Result Entry'!ET5 -> Grd. | FF4: ='Result Entry'!FG5 -> Cont. Assmnt. | FG4: Alternative Tendency | FH4: Camp | FI4: Total Marks | FJ4: MARKS % | FK4: Grd.
B5: Sr. No. | C5: Class | D5: Scholar Number | E5: School Adm. Date | F5: Roll Number | G5: Student's Name | H5: Father's Name | I5: Mother's Name | J5: Date Of Birth | K5: ='Result Entry'!L6 -> First Test | L5: ='Result Entry'!M6 -> Second Test | M5: ='Result Entry'!N6 -> Third Test | N5: ='Result Entry'!O6 -> 0 | O5: ='Result Entry'!P6 -> 0 | P5: ='Result Entry'!Q6 -> 0 | Q5: ='Result Entry'!R6 -> 0 | T5: ='Result Entry'!U6 -> 0 | U5: ='Result Entry'!V6 -> 0 | V5: ='Result Entry'!W6 -> 0 | W5: ='Result Entry'!X6 -> 0 | X5: ='Result Entry'!Y6 -> D/I/II/III/S | Y5: ='Result Entry'!L6 -> First Test | Z5: ='Result Entry'!M6 -> Second Test | AA5: ='Result Entry'!N6 -> Third Test | AB5: ='Result Entry'!O6 -> 0 | AC5: ='Result Entry'!P6 -> 0 | AD5: ='Result Entry'!Q6 -> 0 | AE5: ='Result Entry'!R6 -> 0 | AH5: ='Result Entry'!U6 -> 0 | AI5: ='Result Entry'!V6 -> 0 | AJ5: ='Result Entry'!W6 -> 0 | AK5: ='Result Entry'!X6 -> 0 | AL5: ='Result Entry'!Y6 -> D/I/II/III/S | AN5: ='Result Entry'!AO6 -> First Test | AO5: ='Result Entry'!AP6 -> Second Test | AP5: ='Result Entry'!AQ6 -> Third Test | AQ5: ='Result Entry'!AR6 -> 0 | AR5: ='Result Entry'!AS6 -> Theory | AS5: ='Result Entry'!AT6 -> Practical | AT5: ='Result Entry'!AU6 -> Total H.Y. | AU5: ='Result Entry'!AV6 -> 0 | AV5: ='Result Entry'!AW6 -> Theory | AW5: ='Result Entry'!AX6 -> Practical | AX5: ='Result Entry'!AY6 -> Total Yearly | AY5: ='Result Entry'!AZ6 -> 0 | AZ5: ='Result Entry'!BA6 -> 0 | BA5: ='Result Entry'!BB6 -> 0 | BB5: ='Result Entry'!BC6 -> 0 | BC5: ='Result Entry'!BD6 -> D/I/II/III/S | BE5: ='Result Entry'!AO6 -> First Test | BF5: ='Result Entry'!AP6 -> Second Test | BG5: ='Result Entry'!AQ6 -> Third Test | BH5: ='Result Entry'!AR6 -> 0 | BI5: ='Result Entry'!AS6 -> Theory | BJ5: ='Result Entry'!AT6 -> Practical | BK5: ='Result Entry'!AU6 -> Total H.Y. | BL5: ='Result Entry'!AV6 -> 0 | BM5: ='Result Entry'!AW6 -> Theory | BN5: ='Result Entry'!AX6 -> Practical | BO5: ='Result Entry'!AY6 -> Total Yearly | BP5: ='Result Entry'!AZ6 -> 0 | BQ5: ='Result Entry'!BA6 -> 0 | BR5: ='Result Entry'!BB6 -> 0 | BS5: ='Result Entry'!BC6 -> 0 | BT5: ='Result Entry'!BD6 -> D/I/II/III/S | BV5: ='Result Entry'!AO6 -> First Test | BW5: ='Result Entry'!AP6 -> Second Test | BX5: ='Result Entry'!AQ6 -> Third Test | BY5: ='Result Entry'!AR6 -> 0 | BZ5: ='Result Entry'!AS6 -> Theory | CA5: ='Result Entry'!AT6 -> Practical | CB5: ='Result Entry'!AU6 -> Total H.Y. | CC5: ='Result Entry'!AV6 -> 0 | CD5: ='Result Entry'!AW6 -> Theory | CE5: ='Result Entry'!AX6 -> Practical | CF5: ='Result Entry'!AY6 -> Total Yearly | CG5: ='Result Entry'!AZ6 -> 0 | CH5: ='Result Entry'!BA6 -> 0 | CI5: ='Result Entry'!BB6 -> 0 | CJ5: ='Result Entry'!BC6 -> 0 | CK5: ='Result Entry'!BD6 -> D/I/II/III/S | CM5: ='Result Entry'!BF6 -> First Test | CN5: ='Result Entry'!BG6 -> Second Test | CO5: ='Result Entry'!BH6 -> Third Test | CP5: ='Result Entry'!BI6 -> 0 | CQ5: ='Result Entry'!BJ6 -> Theory | CR5: ='Result Entry'!BK6 -> Practical | CS5: ='Result Entry'!BL6 -> Total H.Y. | CT5: ='Result Entry'!BM6 -> 0 | CU5: ='Result Entry'!BN6 -> Theory | CV5: ='Result Entry'!BO6 -> Practical | CW5: ='Result Entry'!BP6 -> Total Yearly | CX5: ='Result Entry'!BQ6 -> 0 | CY5: ='Result Entry'!BR6 -> 0 | CZ5: ='Result Entry'!BS6 -> 0 | DA5: ='Result Entry'!BT6 -> 0 | DB5: ='Result Entry'!BU6 -> D/I/II/III/S | DD5: ='Result Entry'!BF6 -> First Test | DE5: ='Result Entry'!BG6 -> Second Test | DF5: ='Result Entry'!BH6 -> Third Test | DG5: ='Result Entry'!BI6 -> 0 | DH5: ='Result Entry'!BJ6 -> Theory | DI5: ='Result Entry'!BK6 -> Practical | DJ5: ='Result Entry'!BL6 -> Total H.Y. | DK5: ='Result Entry'!BM6 -> 0 | DL5: ='Result Entry'!BN6 -> Theory | DM5: ='Result Entry'!BO6 -> Practical | DN5: ='Result Entry'!BP6 -> Total Yearly | DO5: ='Result Entry'!BQ6 -> 0 | DP5: ='Result Entry'!BR6 -> 0 | DQ5: ='Result Entry'!BS6 -> 0 | DR5: ='Result Entry'!BT6 -> 0 | DS5: ='Result Entry'!BU6 -> D/I/II/III/S | DT5: ='Result Entry'!DU6 -> First Test | DU5: ='Result Entry'!DV6 -> Second Test | DV5: ='Result Entry'!DW6 -> Third Test | DW5: ='Result Entry'!DX6 -> 0 | DX5: ='Result Entry'!DY6 -> Theory | DY5: ='Result Entry'!DZ6 -> Practical | DZ5: ='Result Entry'!EA6 -> Total H.Y. | EA5: ='Result Entry'!EB6 -> 0 | EB5: ='Result Entry'!EC6 -> Theory | EC5: ='Result Entry'!ED6 -> Practical | ED5: ='Result Entry'!EE6 -> Total Yearly | EE5: ='Result Entry'!EF6 -> 0 | EF5: ='Result Entry'!EG6 -> 0 | EG5: ='Result Entry'!EH6 -> A//B/C/D | EH5: ='Result Entry'!EI6 -> First Test | EI5: ='Result Entry'!EJ6 -> Second Test | EJ5: ='Result Entry'!EK6 -> Third Test | EK5: ='Result Entry'!EL6 -> 0 | EL5: ='Result Entry'!EM6 -> 0 | EM5: ='Result Entry'!EN6 -> 0 | EN5: ='Result Entry'!EO6 -> 0 | EO5: ='Result Entry'!EP6 -> 0 | EP5: ='Result Entry'!EQ6 -> 0 | EQ5: ='Result Entry'!ER6 -> 0 | ER5: ='Result Entry'!ES6 -> 0 | ES5: ='Result Entry'!ET6 -> A//B/C/D | ET5: ='Result Entry'!EI6 -> First Test | EU5: ='Result Entry'!EJ6 -> Second Test | EV5: ='Result Entry'!EK6 -> Third Test | EW5: ='Result Entry'!EL6 -> 0 | EX5: ='Result Entry'!EM6 -> 0 | EY5: ='Result Entry'!EN6 -> 0 | EZ5: ='Result Entry'!EO6 -> 0 | FA5: ='Result Entry'!EP6 -> 0 | FB5: ='Result Entry'!EQ6 -> 0 | FC5: ='Result Entry'!ER6 -> 0 | FD5: ='Result Entry'!ES6 -> 0 | FE5: ='Result Entry'!ET6 -> A//B/C/D | FK5: A/B/C/D
K6: ='Result Entry'!L7 -> 10 | L6: ='Result Entry'!M7 -> 10 | M6: ='Result Entry'!N7 -> 10 | N6: ='Result Entry'!O7 -> 30 | O6: ='Result Entry'!P7 -> 70 | P6: ='Result Entry'!Q7 -> 100 | Q6: ='Result Entry'!R7 -> 100 | R6: ='Result Entry'!S7 -> 0 | S6: ='Result Entry'!T7 -> 0 | T6: ='Result Entry'!U7 -> 200 | U6: ='Result Entry'!V7 -> 0 | V6: ='Result Entry'!W7 -> 0 | W6: ='Result Entry'!X7 -> 0 | X6: ='Result Entry'!Y7 -> 0 | Y6: ='Result Entry'!Z7 -> 10 | Z6: ='Result Entry'!AA7 -> 10 | AA6: ='Result Entry'!AB7 -> 10 | AB6: ='Result Entry'!AC7 -> 30 | AC6: ='Result Entry'!AD7 -> 70 | AD6: ='Result Entry'!AE7 -> 100 | AE6: ='Result Entry'!AF7 -> 100 | AF6: ='Result Entry'!AG7 -> 0 | AG6: ='Result Entry'!AH7 -> 0 | AH6: ='Result Entry'!AI7 -> 200 | AI6: ='Result Entry'!V7 -> 0 | AJ6: ='Result Entry'!W7 -> 0 | AK6: ='Result Entry'!X7 -> 0 | AL6: ='Result Entry'!Y7 -> 0 | AN6: ='Result Entry'!AO7 -> 10 | AO6: ='Result Entry'!AP7 -> 10 | AP6: ='Result Entry'!AQ7 -> 10 | AQ6: ='Result Entry'!AR7 -> 30 | AR6: ='Result Entry'!AS7 -> 40 | AS6: ='Result Entry'!AT7 -> 30 | AT6: ='Result Entry'!AU7 -> 70 | AU6: ='Result Entry'!AV7 -> 100 | AV6: ='Result Entry'!AW7 -> 100 | AW6: ='Result Entry'!AX7 -> 0 | AX6: ='Result Entry'!AY7 -> 100 | AY6: ='Result Entry'!AZ7 -> 200 | AZ6: ='Result Entry'!BA7 -> 0 | BA6: ='Result Entry'!BB7 -> 0 | BB6: ='Result Entry'!BC7 -> 0 | BC6: ='Result Entry'!BD7 -> 0 | BE6: ='Result Entry'!BF7 -> 10 | BF6: ='Result Entry'!BG7 -> 10 | BG6: ='Result Entry'!BH7 -> 10 | BH6: ='Result Entry'!BI7 -> 30 | BI6: ='Result Entry'!BJ7 -> 70 | BJ6: ='Result Entry'!BK7 -> 0 | BK6: ='Result Entry'!BL7 -> 70 | BL6: ='Result Entry'!BM7 -> 100 | BM6: ='Result Entry'!BN7 -> 100 | BN6: ='Result Entry'!BO7 -> 0 | BO6: ='Result Entry'!BP7 -> 100 | BP6: ='Result Entry'!BQ7 -> 200 | BQ6: ='Result Entry'!BA7 -> 0 | BR6: ='Result Entry'!BB7 -> 0 | BS6: ='Result Entry'!BC7 -> 0 | BT6: ='Result Entry'!BD7 -> 0 | BV6: ='Result Entry'!BW7 -> 10 | BW6: ='Result Entry'!BX7 -> 10 | BX6: ='Result Entry'!BY7 -> 10 | BY6: ='Result Entry'!BZ7 -> 30 | BZ6: ='Result Entry'!CA7 -> 70 | CA6: ='Result Entry'!CB7 -> 0 | CB6: ='Result Entry'!CC7 -> 70 | CC6: ='Result Entry'!CD7 -> 100 | CD6: ='Result Entry'!CE7 -> 100 | CE6: ='Result Entry'!CF7 -> 0 | CF6: ='Result Entry'!CG7 -> 100 | CG6: ='Result Entry'!CH7 -> 200 | CH6: ='Result Entry'!BA7 -> 0 | CI6: ='Result Entry'!BB7 -> 0 | CJ6: ='Result Entry'!BC7 -> 0 | CK6: ='Result Entry'!BD7 -> 0 | CM6: ='Result Entry'!CN7 -> 10 | CN6: ='Result Entry'!CO7 -> 10 | CO6: ='Result Entry'!CP7 -> 10 | CP6: ='Result Entry'!CQ7 -> 30 | CQ6: ='Result Entry'!CR7 -> 70 | CR6: ='Result Entry'!CS7 -> 0 | CS6: ='Result Entry'!CT7 -> 70 | CT6: ='Result Entry'!CU7 -> 100 | CU6: ='Result Entry'!CV7 -> 100 | CV6: ='Result Entry'!CW7 -> 0 | CW6: ='Result Entry'!CX7 -> 100 | CX6: ='Result Entry'!CY7 -> 200 | CY6: ='Result Entry'!BR7 -> 0 | CZ6: ='Result Entry'!BS7 -> 0 | DA6: ='Result Entry'!BT7 -> 0 | DB6: ='Result Entry'!BU7 -> 0 | DD6: ='Result Entry'!DE7 -> 10 | DE6: ='Result Entry'!DF7 -> 10 | DF6: ='Result Entry'!DG7 -> 10 | DG6: ='Result Entry'!DH7 -> 30 | DH6: ='Result Entry'!DI7 -> 70 | DI6: ='Result Entry'!DJ7 -> 0 | DJ6: ='Result Entry'!DK7 -> 70 | DK6: ='Result Entry'!DL7 -> 100 | DL6: ='Result Entry'!DM7 -> 100 | DM6: ='Result Entry'!DN7 -> 0 | DN6: ='Result Entry'!DO7 -> 100 | DO6: ='Result Entry'!DP7 -> 200 | DP6: ='Result Entry'!BR7 -> 0 | DQ6: ='Result Entry'!BS7 -> 0 | DR6: ='Result Entry'!BT7 -> 0 | DS6: ='Result Entry'!BU7 -> 0 | DT6: ='Result Entry'!DU7 -> 10 | DU6: ='Result Entry'!DV7 -> 10 | DV6: ='Result Entry'!DW7 -> 10 | DW6: ='Result Entry'!DX7 -> 30 | DX6: ='Result Entry'!DY7 -> 70 | DY6: ='Result Entry'!DZ7 -> 0 | DZ6: ='Result Entry'!EA7 -> 70 | EA6: ='Result Entry'!EB7 -> 100 | EB6: ='Result Entry'!EC7 -> 100 | EC6: ='Result Entry'!ED7 -> 0 | ED6: ='Result Entry'!EE7 -> 100 | EE6: ='Result Entry'!EF7 -> 200 | EF6: ='Result Entry'!EG7 -> 0 | EG6: ='Result Entry'!EH7 -> 0 | EH6: ='Result Entry'!EI7 -> 10 | EI6: ='Result Entry'!EJ7 -> 10 | EJ6: ='Result Entry'!EK7 -> 10 | EK6: ='Result Entry'!EL7 -> 30 | EL6: ='Result Entry'!EM7 -> 70 | EM6: ='Result Entry'!EN7 -> 100 | EN6: ='Result Entry'!EO7 -> 100 | EO6: ='Result Entry'!EP7 -> 0 | EP6: ='Result Entry'!EQ7 -> 0 | EQ6: ='Result Entry'!ER7 -> 200 | ER6: ='Result Entry'!ES7 -> 0 | ES6: ='Result Entry'!ET7 -> 0 | ET6: ='Result Entry'!EU7 -> 10 | EU6: ='Result Entry'!EV7 -> 10 | EV6: ='Result Entry'!EW7 -> 10 | EW6: ='Result Entry'!EX7 -> 30 | EX6: ='Result Entry'!EY7 -> 70 | EY6: ='Result Entry'!EZ7 -> 100 | EZ6: ='Result Entry'!FA7 -> 100 | FA6: ='Result Entry'!FB7 -> 0 | FB6: ='Result Entry'!FC7 -> 0 | FC6: ='Result Entry'!FD7 -> 200 | FD6: ='Result Entry'!ES7 -> 0 | FE6: ='Result Entry'!ET7 -> 0 | FF6: ='Result Entry'!FG7 -> 30 | FG6: ='Result Entry'!FH7 -> 30 | FH6: ='Result Entry'!FI7 -> 40 | FI6: ='Result Entry'!FJ7 -> 100
B7: =IF(F7>0,1,0) -> 1 | C7: ='Result Entry'!D9 -> 11 | D7: ='Result Entry'!E9 -> 793 | E7: ='Result Entry'!F9 -> SC | F7: ='Result Entry'!$G9 -> 1101 | G7: ='Result Entry'!$H9 -> ABHISHEK | H7: ='Result Entry'!I9 -> RAMU KHAN | I7: ='Result Entry'!J9 -> SEEPA DEVI | J7: ='Result Entry'!K9 -> 2005-07-22 | K7: ='Result Entry'!L9 -> 8 | L7: ='Result Entry'!M9 -> 10 | M7: ='Result Entry'!N9 -> 5 | N7: ='Result Entry'!O9 -> 23 | O7: ='Result Entry'!P9 -> 10 | P7: ='Result Entry'!Q9 -> 33 | Q7: ='Result Entry'!R9 -> 40 | R7: ='Result Entry'!S9 -> 0 | S7: ='Result Entry'!T9 -> 0 | T7: ='Result Entry'!U9 -> 73 | U7: ='Result Entry'!V9 -> 36.5 | V7: ='Result Entry'!W9 ->  | W7: ='Result Entry'!X9 -> P | X7: ='Result Entry'!Y9 -> III | Y7: ='Result Entry'!Z9 -> 2 | Z7: ='Result Entry'!AA9 -> 10 | AA7: ='Result Entry'!AB9 -> 5 | AB7: ='Result Entry'!AC9 -> 17 | AC7: ='Result Entry'!AD9 -> 40 | AD7: ='Result Entry'!AE9 -> 57 | AE7: ='Result Entry'!AF9 -> 40 | AF7: ='Result Entry'!AG9 -> 0 | AG7: ='Result Entry'!AH9 -> 0 | AH7: ='Result Entry'!AI9 -> 97 | AI7: ='Result Entry'!AJ9 -> 48.5 | AJ7: ='Result Entry'!AK9 ->  | AK7: ='Result Entry'!AL9 -> P | AL7: ='Result Entry'!AM9 -> II | AM7: ='Result Entry'!AN9 -> 1 | AN7: ='Result Entry'!AO9 -> 10 | AO7: ='Result Entry'!AP9 -> 10 | AP7: ='Result Entry'!AQ9 -> 10 | AQ7: ='Result Entry'!AR9 -> 30 | AR7: ='Result Entry'!AS9 -> 35 | AS7: ='Result Entry'!AT9 -> 25 | AT7: ='Result Entry'!AU9 -> 60 | AU7: ='Result Entry'!AV9 -> 90 | AV7: ='Result Entry'!AW9 -> 100 | AW7: ='Result Entry'!AX9 -> 0 | AX7: ='Result Entry'!AY9 -> 100 | AY7: ='Result Entry'!AZ9 -> 190 | AZ7: ='Result Entry'!BA9 -> 95 | BA7: ='Result Entry'!BB9 ->  | BB7: ='Result Entry'!BC9 -> P | BC7: ='Result Entry'!BD9 -> D | BD7: ='Result Entry'!BE9 -> 2 | BE7: ='Result Entry'!BF9 -> 10 | BF7: ='Result Entry'!BG9 -> 10 | BG7: ='Result Entry'!BH9 -> 10 | BH7: ='Result Entry'!BI9 -> 30 | BI7: ='Result Entry'!BJ9 -> 70 | BJ7: ='Result Entry'!BK9 -> 0 | BK7: ='Result Entry'!BL9 -> 70 | BL7: ='Result Entry'!BM9 -> 100 | BM7: ='Result Entry'!BN9 -> 100 | BN7: ='Result Entry'!BO9 -> 0 | BO7: ='Result Entry'!BP9 -> 100 | BP7: ='Result Entry'!BQ9 -> 200 | BQ7: ='Result Entry'!BR9 -> 100 | BR7: ='Result Entry'!BS9 ->  | BS7: ='Result Entry'!BT9 -> P | BT7: ='Result Entry'!BU9 -> D | BU7: ='Result Entry'!BV9 -> 3 | BV7: ='Result Entry'!BW9 -> 10 | BW7: ='Result Entry'!BX9 -> 10 | BX7: ='Result Entry'!BY9 -> 10 | BY7: ='Result Entry'!BZ9 -> 30 | BZ7: ='Result Entry'!CA9 -> 70 | CA7: ='Result Entry'!CB9 -> 0 | CB7: ='Result Entry'!CC9 -> 70 | CC7: ='Result Entry'!CD9 -> 100 | CD7: ='Result Entry'!CE9 -> 100 | CE7: ='Result Entry'!CF9 -> 0 | CF7: ='Result Entry'!CG9 -> 100 | CG7: ='Result Entry'!CH9 -> 200 | CH7: ='Result Entry'!CI9 -> 100 | CI7: ='Result Entry'!CJ9 ->  | CJ7: ='Result Entry'!CK9 -> P | CK7: ='Result Entry'!CL9 -> D | CL7: ='Result Entry'!CM9 -> 0 | CM7: ='Result Entry'!CN9 -> 0 | CN7: ='Result Entry'!CO9 -> 0 | CO7: ='Result Entry'!CP9 -> 0 | CP7: ='Result Entry'!CQ9 -> 0 | CQ7: ='Result Entry'!CR9 -> 0 | CR7: ='Result Entry'!CS9 -> 0 | CS7: ='Result Entry'!CT9 -> 0 | CT7: ='Result Entry'!CU9 -> 0 | CU7: ='Result Entry'!CV9 -> 0 | CV7: ='Result Entry'!CW9 -> 0 | CW7: ='Result Entry'!CX9 -> 0 | CX7: ='Result Entry'!CY9 -> 0 | CY7: ='Result Entry'!CZ9 -> 0 | CZ7: ='Result Entry'!DA9 ->  | DA7: ='Result Entry'!DB9 -> F | DB7: ='Result Entry'!DC9 ->  | DC7: ='Result Entry'!DD9 -> 0 | DD7: ='Result Entry'!DE9 -> 0 | DE7: ='Result Entry'!DF9 -> 0 | DF7: ='Result Entry'!DG9 -> 0 | DG7: ='Result Entry'!DH9 -> 0 | DH7: ='Result Entry'!DI9 -> 0 | DI7: ='Result Entry'!DJ9 -> 0 | DJ7: ='Result Entry'!DK9 -> 0 | DK7: ='Result Entry'!DL9 -> 0 | DL7: ='Result Entry'!DM9 -> 0 | DM7: ='Result Entry'!DN9 -> 0 | DN7: ='Result Entry'!DO9 -> 0 | DO7: ='Result Entry'!DP9 -> 0 | DP7: ='Result Entry'!DQ9 -> 0 | DQ7: ='Result Entry'!DR9 ->  | DR7: ='Result Entry'!DS9 ->  | DS7: ='Result Entry'!DT9 ->  | DT7: ='Result Entry'!DU9 -> 10 | DU7: ='Result Entry'!DV9 -> 10 | DV7: ='Result Entry'!DW9 -> 10 | DW7: ='Result Entry'!DX9 -> 30 | DX7: ='Result Entry'!DY9 -> 70 | DY7: ='Result Entry'!DZ9 -> 0 | DZ7: ='Result Entry'!EA9 -> 70 | EA7: ='Result Entry'!EB9 -> 100 | EB7: ='Result Entry'!EC9 -> 100 | EC7: ='Result Entry'!ED9 -> 0 | ED7: ='Result Entry'!EE9 -> 100 | EE7: ='Result Entry'!EF9 -> 200 | EF7: ='Result Entry'!EG9 -> 100 | EG7: ='Result Entry'!EH9 -> A | EH7: ='Result Entry'!EI9 -> 2 | EI7: ='Result Entry'!EJ9 -> 10 | EJ7: ='Result Entry'!EK9 -> 2 | EK7: ='Result Entry'!EL9 -> 14 | EL7: ='Result Entry'!EM9 -> 40 | EM7: ='Result Entry'!EN9 -> 54 | EN7: ='Result Entry'!EO9 -> 40 | EO7: ='Result Entry'!EP9 -> 0 | EP7: ='Result Entry'!EQ9 -> 0 | EQ7: ='Result Entry'!ER9 -> 94 | ER7: ='Result Entry'!ES9 -> 47 | ES7: ='Result Entry'!ET9 -> C | ET7: ='Result Entry'!EU9 -> 2 | EU7: ='Result Entry'!EV9 -> 10 | EV7: ='Result Entry'!EW9 -> 12 | EW7: ='Result Entry'!EX9 -> 24 | EX7: ='Result Entry'!EY9 -> 65 | EY7: ='Result Entry'!EZ9 -> 89 | EZ7: ='Result Entry'!FA9 -> 40 | FA7: ='Result Entry'!FB9 -> 0 | FB7: ='Result Entry'!FC9 -> 0 | FC7: ='Result Entry'!FD9 -> 129 | FD7: ='Result Entry'!FE9 -> 64.5 | FE7: ='Result Entry'!FF9 -> B | FF7: ='Result Entry'!FG9 -> 20 | FG7: ='Result Entry'!FH9 -> 20 | FH7: ='Result Entry'!FI9 -> 15 | FI7: ='Result Entry'!FJ9 -> 55 | FJ7: ='Result Entry'!FK9 -> 55 | FK7: ='Result Entry'!FL9 -> C | FL7: ='Result Entry'!FM9 -> 362 | FM7: ='Result Entry'!FN9 -> 274 | FN7: ='Result Entry'!FO9 -> 75.69 | FO7: ='Result Entry'!FP9 -> 1000 | FP7: ='Result Entry'!FQ9 -> 760 | FQ7: ='Result Entry'!FR9 -> 76.00 | FR7: =IF(OR(FS7="PASSED",FS7="PASSED WITH G"),'Result Entry'!FS9,"") -> First | FS7: ='Result Entry'!FT9 -> Passed | FT7: ='Result Entry'!FU9 -> 76 | FU7: ='Result Entry'!FV9 -> 1 | FV7: ='Result Entry'!FX9 -> III
B8: =IF(F8>0,B7+1,0) -> 2 | C8: ='Result Entry'!D10 -> 11 | D8: ='Result Entry'!E10 -> 565 | E8: ='Result Entry'!F10 -> SC | F8: ='Result Entry'!$G10 -> 1102 | G8: ='Result Entry'!$H10 -> DASFS` | H8: ='Result Entry'!I10 -> GBGHG | I8: ='Result Entry'!J10 -> GHGHG | J8: ='Result Entry'!K10 -> 2005-07-22 | K8: ='Result Entry'!L10 -> 5 | L8: ='Result Entry'!M10 -> 10 | M8: ='Result Entry'!N10 -> 4 | N8: ='Result Entry'!O10 -> 19 | O8: ='Result Entry'!P10 -> 10 | P8: ='Result Entry'!Q10 -> 29 | Q8: ='Result Entry'!R10 -> 20 | R8: ='Result Entry'!S10 -> 0 | S8: ='Result Entry'!T10 -> 0 | T8: ='Result Entry'!U10 -> 49 | U8: ='Result Entry'!V10 -> 24.5 | V8: ='Result Entry'!W10 ->  | W8: ='Result Entry'!X10 -> F | X8: ='Result Entry'!Y10 -> F | Y8: ='Result Entry'!Z10 -> 10 | Z8: ='Result Entry'!AA10 -> 10 | AA8: ='Result Entry'!AB10 -> 4 | AB8: ='Result Entry'!AC10 -> 24 | AC8: ='Result Entry'!AD10 -> 10 | AD8: ='Result Entry'!AE10 -> 34 | AE8: ='Result Entry'!AF10 -> 10 | AF8: ='Result Entry'!AG10 -> 0 | AG8: ='Result Entry'!AH10 -> 0 | AH8: ='Result Entry'!AI10 -> 44 | AI8: ='Result Entry'!AJ10 -> 22 | AJ8: ='Result Entry'!AK10 ->  | AK8: ='Result Entry'!AL10 -> F | AL8: ='Result Entry'!AM10 -> F | AM8: ='Result Entry'!AN10 -> 1 | AN8: ='Result Entry'!AO10 -> 10 | AO8: ='Result Entry'!AP10 -> 10 | AP8: ='Result Entry'!AQ10 -> 10 | AQ8: ='Result Entry'!AR10 -> 30 | AR8: ='Result Entry'!AS10 -> 70 | AS8: ='Result Entry'!AT10 -> 0 | AT8: ='Result Entry'!AU10 -> 70 | AU8: ='Result Entry'!AV10 -> 100 | AV8: ='Result Entry'!AW10 -> 100 | AW8: ='Result Entry'!AX10 -> 0 | AX8: ='Result Entry'!AY10 -> 100 | AY8: ='Result Entry'!AZ10 -> 200 | AZ8: ='Result Entry'!BA10 -> 100 | BA8: ='Result Entry'!BB10 ->  | BB8: ='Result Entry'!BC10 -> P | BC8: ='Result Entry'!BD10 -> D | BD8: ='Result Entry'!BE10 -> 2 | BE8: ='Result Entry'!BF10 -> 10 | BF8: ='Result Entry'!BG10 -> 10 | BG8: ='Result Entry'!BH10 -> 10 | BH8: ='Result Entry'!BI10 -> 30 | BI8: ='Result Entry'!BJ10 -> 70 | BJ8: ='Result Entry'!BK10 -> 0 | BK8: ='Result Entry'!BL10 -> 70 | BL8: ='Result Entry'!BM10 -> 100 | BM8: ='Result Entry'!BN10 -> 100 | BN8: ='Result Entry'!BO10 -> 0 | BO8: ='Result Entry'!BP10 -> 100 | BP8: ='Result Entry'!BQ10 -> 200 | BQ8: ='Result Entry'!BR10 -> 100 | BR8: ='Result Entry'!BS10 ->  | BS8: ='Result Entry'!BT10 -> P | BT8: ='Result Entry'!BU10 -> D | BU8: ='Result Entry'!BV10 -> 3 | BV8: ='Result Entry'!BW10 -> 10 | BW8: ='Result Entry'!BX10 -> 10 | BX8: ='Result Entry'!BY10 -> 10 | BY8: ='Result Entry'!BZ10 -> 30 | BZ8: ='Result Entry'!CA10 -> 70 | CA8: ='Result Entry'!CB10 -> 0 | CB8: ='Result Entry'!CC10 -> 70 | CC8: ='Result Entry'!CD10 -> 100 | CD8: ='Result Entry'!CE10 -> 100 | CE8: ='Result Entry'!CF10 -> 0 | CF8: ='Result Entry'!CG10 -> 100 | CG8: ='Result Entry'!CH10 -> 200 | CH8: ='Result Entry'!CI10 -> 100 | CI8: ='Result Entry'!CJ10 ->  | CJ8: ='Result Entry'!CK10 -> P | CK8: ='Result Entry'!CL10 -> D | CL8: ='Result Entry'!CM10 -> 0 | CM8: ='Result Entry'!CN10 -> 0 | CN8: ='Result Entry'!CO10 -> 0 | CO8: ='Result Entry'!CP10 -> 0 | CP8: ='Result Entry'!CQ10 -> 0 | CQ8: ='Result Entry'!CR10 -> 0 | CR8: ='Result Entry'!CS10 -> 0 | CS8: ='Result Entry'!CT10 -> 0 | CT8: ='Result Entry'!CU10 -> 0 | CU8: ='Result Entry'!CV10 -> 0 | CV8: ='Result Entry'!CW10 -> 0 | CW8: ='Result Entry'!CX10 -> 0 | CX8: ='Result Entry'!CY10 -> 0 | CY8: ='Result Entry'!CZ10 -> 0 | CZ8: ='Result Entry'!DA10 ->  | DA8: ='Result Entry'!DB10 -> F | DB8: ='Result Entry'!DC10 ->  | DC8: ='Result Entry'!DD10 -> 0 | DD8: ='Result Entry'!DE10 -> 0 | DE8: ='Result Entry'!DF10 -> 0 | DF8: ='Result Entry'!DG10 -> 0 | DG8: ='Result Entry'!DH10 -> 0 | DH8: ='Result Entry'!DI10 -> 0 | DI8: ='Result Entry'!DJ10 -> 0 | DJ8: ='Result Entry'!DK10 -> 0 | DK8: ='Result Entry'!DL10 -> 0 | DL8: ='Result Entry'!DM10 -> 0 | DM8: ='Result Entry'!DN10 -> 0 | DN8: ='Result Entry'!DO10 -> 0 | DO8: ='Result Entry'!DP10 -> 0 | DP8: ='Result Entry'!DQ10 -> 0 | DQ8: ='Result Entry'!DR10 ->  | DR8: ='Result Entry'!DS10 ->  | DS8: ='Result Entry'!DT10 ->  | DT8: ='Result Entry'!DU10 -> 10 | DU8: ='Result Entry'!DV10 -> 10 | DV8: ='Result Entry'!DW10 -> 10 | DW8: ='Result Entry'!DX10 -> 30 | DX8: ='Result Entry'!DY10 -> 70 | DY8: ='Result Entry'!DZ10 -> 0 | DZ8: ='Result Entry'!EA10 -> 70 | EA8: ='Result Entry'!EB10 -> 100 | EB8: ='Result Entry'!EC10 -> 100 | EC8: ='Result Entry'!ED10 -> 0 | ED8: ='Result Entry'!EE10 -> 100 | EE8: ='Result Entry'!EF10 -> 200 | EF8: ='Result Entry'!EG10 -> 100 | EG8: ='Result Entry'!EH10 -> A | EH8: ='Result Entry'!EI10 -> 20 | EI8: ='Result Entry'!EJ10 -> 10 | EJ8: ='Result Entry'!EK10 -> 3 | EK8: ='Result Entry'!EL10 -> 33 | EL8: ='Result Entry'!EM10 -> 45 | EM8: ='Result Entry'!EN10 -> 78 | EN8: ='Result Entry'!EO10 -> 10 | EO8: ='Result Entry'!EP10 -> 0 | EP8: ='Result Entry'!EQ10 -> 0 | EQ8: ='Result Entry'!ER10 -> 88 | ER8: ='Result Entry'!ES10 -> 44 | ES8: ='Result Entry'!ET10 -> C | ET8: ='Result Entry'!EU10 -> 20 | EU8: ='Result Entry'!EV10 -> 10 | EV8: ='Result Entry'!EW10 -> 30 | EW8: ='Result Entry'!EX10 -> 60 | EX8: ='Result Entry'!EY10 -> 10 | EY8: ='Result Entry'!EZ10 -> 70 | EZ8: ='Result Entry'!FA10 -> 10 | FA8: ='Result Entry'!FB10 -> 0 | FB8: ='Result Entry'!FC10 -> 0 | FC8: ='Result Entry'!FD10 -> 80 | FD8: ='Result Entry'!FE10 -> 40 | FE8: ='Result Entry'!FF10 -> C | FF8: ='Result Entry'!FG10 -> 0 | FG8: ='Result Entry'!FH10 -> 0 | FH8: ='Result Entry'!FI10 -> 0 | FI8: ='Result Entry'!FJ10 -> 0 | FJ8: ='Result Entry'!FK10 -> 0 | FK8: ='Result Entry'!FL10 -> 0 | FL8: ='Result Entry'!FM10 -> 362 | FM8: ='Result Entry'!FN10 -> 275 | FN8: ='Result Entry'!FO10 -> 75.97 | FO8: ='Result Entry'!FP10 -> 1000 | FP8: ='Result Entry'!FQ10 -> 693 | FQ8: ='Result Entry'!FR10 -> 0.00 | FR8: =IF(OR(FS8="PASSED",FS8="PASSED WITH G"),'Result Entry'!FS10,"") ->  | FS8: ='Result Entry'!FT10 -> FAILED | FT8: ='Result Entry'!FU10 ->  | FU8: ='Result Entry'!FV10 ->  | FV8: ='Result Entry'!FX10 -> F
B9: =IF(F9>0,B8+1,0) -> 3 | C9: ='Result Entry'!D11 -> 11 | D9: ='Result Entry'!E11 -> 123 | E9: ='Result Entry'!F11 -> ST | F9: ='Result Entry'!$G11 -> 1103 | G9: ='Result Entry'!$H11 -> JHGBHJ | H9: ='Result Entry'!I11 -> HB | I9: ='Result Entry'!J11 -> BJH | J9: ='Result Entry'!K11 -> 00:00:00 | K9: ='Result Entry'!L11 -> 10 | L9: ='Result Entry'!M11 -> 11 | M9: ='Result Entry'!N11 -> 2 | N9: ='Result Entry'!O11 -> 23 | O9: ='Result Entry'!P11 -> 8 | P9: ='Result Entry'!Q11 -> 31 | Q9: ='Result Entry'!R11 -> 45 | R9: ='Result Entry'!S11 -> 0 | S9: ='Result Entry'!T11 -> 0 | T9: ='Result Entry'!U11 -> 76 | U9: ='Result Entry'!V11 -> 38 | V9: ='Result Entry'!W11 ->  | W9: ='Result Entry'!X11 -> P | X9: ='Result Entry'!Y11 -> III | Y9: ='Result Entry'!Z11 -> 10 | Z9: ='Result Entry'!AA11 -> 11 | AA9: ='Result Entry'!AB11 -> 2 | AB9: ='Result Entry'!AC11 -> 23 | AC9: ='Result Entry'!AD11 -> 8 | AD9: ='Result Entry'!AE11 -> 31 | AE9: ='Result Entry'!AF11 -> 45 | AF9: ='Result Entry'!AG11 -> 0 | AG9: ='Result Entry'!AH11 -> 0 | AH9: ='Result Entry'!AI11 -> 76 | AI9: ='Result Entry'!AJ11 -> 38 | AJ9: ='Result Entry'!AK11 ->  | AK9: ='Result Entry'!AL11 -> P | AL9: ='Result Entry'!AM11 -> III | AM9: ='Result Entry'!AN11 -> 1 | AN9: ='Result Entry'!AO11 -> 10 | AO9: ='Result Entry'!AP11 -> 10 | AP9: ='Result Entry'!AQ11 -> 10 | AQ9: ='Result Entry'!AR11 -> 30 | AR9: ='Result Entry'!AS11 -> 20 | AS9: ='Result Entry'!AT11 -> 0 | AT9: ='Result Entry'!AU11 -> 20 | AU9: ='Result Entry'!AV11 -> 50 | AV9: ='Result Entry'!AW11 -> 40 | AW9: ='Result Entry'!AX11 -> 0 | AX9: ='Result Entry'!AY11 -> 40 | AY9: ='Result Entry'!AZ11 -> 90 | AZ9: ='Result Entry'!BA11 -> 45 | BA9: ='Result Entry'!BB11 ->  | BB9: ='Result Entry'!BC11 -> P | BC9: ='Result Entry'!BD11 -> III | BD9: ='Result Entry'!BE11 -> 2 | BE9: ='Result Entry'!BF11 -> 10 | BF9: ='Result Entry'!BG11 -> 10 | BG9: ='Result Entry'!BH11 -> 10 | BH9: ='Result Entry'!BI11 -> 30 | BI9: ='Result Entry'!BJ11 -> 70 | BJ9: ='Result Entry'!BK11 -> 0 | BK9: ='Result Entry'!BL11 -> 70 | BL9: ='Result Entry'!BM11 -> 100 | BM9: ='Result Entry'!BN11 -> 40 | BN9: ='Result Entry'!BO11 -> 0 | BO9: ='Result Entry'!BP11 -> 40 | BP9: ='Result Entry'!BQ11 -> 140 | BQ9: ='Result Entry'!BR11 -> 70 | BR9: ='Result Entry'!BS11 ->  | BS9: ='Result Entry'!BT11 -> P | BT9: ='Result Entry'!BU11 -> I | BU9: ='Result Entry'!BV11 -> 3 | BV9: ='Result Entry'!BW11 -> 10 | BW9: ='Result Entry'!BX11 -> 10 | BX9: ='Result Entry'!BY11 -> 10 | BY9: ='Result Entry'!BZ11 -> 30 | BZ9: ='Result Entry'!CA11 -> 35 | CA9: ='Result Entry'!CB11 -> 0 | CB9: ='Result Entry'!CC11 -> 35 | CC9: ='Result Entry'!CD11 -> 65 | CD9: ='Result Entry'!CE11 -> 35 | CE9: ='Result Entry'!CF11 -> 0 | CF9: ='Result Entry'!CG11 -> 35 | CG9: ='Result Entry'!CH11 -> 100 | CH9: ='Result Entry'!CI11 -> 50 | CI9: ='Result Entry'!CJ11 ->  | CJ9: ='Result Entry'!CK11 -> P | CK9: ='Result Entry'!CL11 -> II | CL9: ='Result Entry'!CM11 -> 0 | CM9: ='Result Entry'!CN11 -> 0 | CN9: ='Result Entry'!CO11 -> 0 | CO9: ='Result Entry'!CP11 -> 0 | CP9: ='Result Entry'!CQ11 -> 0 | CQ9: ='Result Entry'!CR11 -> 0 | CR9: ='Result Entry'!CS11 -> 0 | CS9: ='Result Entry'!CT11 -> 0 | CT9: ='Result Entry'!CU11 -> 0 | CU9: ='Result Entry'!CV11 -> 0 | CV9: ='Result Entry'!CW11 -> 0 | CW9: ='Result Entry'!CX11 -> 0 | CX9: ='Result Entry'!CY11 -> 0 | CY9: ='Result Entry'!CZ11 -> 0 | CZ9: ='Result Entry'!DA11 ->  | DA9: ='Result Entry'!DB11 -> F | DB9: ='Result Entry'!DC11 ->  | DC9: ='Result Entry'!DD11 -> 0 | DD9: ='Result Entry'!DE11 -> 0 | DE9: ='Result Entry'!DF11 -> 0 | DF9: ='Result Entry'!DG11 -> 0 | DG9: ='Result Entry'!DH11 -> 0 | DH9: ='Result Entry'!DI11 -> 0 | DI9: ='Result Entry'!DJ11 -> 0 | DJ9: ='Result Entry'!DK11 -> 0 | DK9: ='Result Entry'!DL11 -> 0 | DL9: ='Result Entry'!DM11 -> 0 | DM9: ='Result Entry'!DN11 -> 0 | DN9: ='Result Entry'!DO11 -> 0 | DO9: ='Result Entry'!DP11 -> 0 | DP9: ='Result Entry'!DQ11 -> 0 | DQ9: ='Result Entry'!DR11 ->  | DR9: ='Result Entry'!DS11 ->  | DS9: ='Result Entry'!DT11 ->  | DT9: ='Result Entry'!DU11 -> 10 | DU9: ='Result Entry'!DV11 -> 10 | DV9: ='Result Entry'!DW11 -> 10 | DW9: ='Result Entry'!DX11 -> 30 | DX9: ='Result Entry'!DY11 -> 70 | DY9: ='Result Entry'!DZ11 -> 0 | DZ9: ='Result Entry'!EA11 -> 70 | EA9: ='Result Entry'!EB11 -> 100 | EB9: ='Result Entry'!EC11 -> 100 | EC9: ='Result Entry'!ED11 -> 0 | ED9: ='Result Entry'!EE11 -> 100 | EE9: ='Result Entry'!EF11 -> 200 | EF9: ='Result Entry'!EG11 -> 100 | EG9: ='Result Entry'!EH11 -> A | EH9: ='Result Entry'!EI11 -> 10 | EI9: ='Result Entry'!EJ11 -> 11 | EJ9: ='Result Entry'!EK11 -> 4 | EK9: ='Result Entry'!EL11 -> 25 | EL9: ='Result Entry'!EM11 -> 8 | EM9: ='Result Entry'!EN11 -> 33 | EN9: ='Result Entry'!EO11 -> 45 | EO9: ='Result Entry'!EP11 -> 0 | EP9: ='Result Entry'!EQ11 -> 0 | EQ9: ='Result Entry'!ER11 -> 78 | ER9: ='Result Entry'!ES11 -> 39 | ES9: ='Result Entry'!ET11 -> D | ET9: ='Result Entry'!EU11 -> 10 | EU9: ='Result Entry'!EV11 -> 11 | EV9: ='Result Entry'!EW11 -> 21 | EW9: ='Result Entry'!EX11 -> 42 | EX9: ='Result Entry'!EY11 -> 8 | EY9: ='Result Entry'!EZ11 -> 50 | EZ9: ='Result Entry'!FA11 -> 45 | FA9: ='Result Entry'!FB11 -> 0 | FB9: ='Result Entry'!FC11 -> 0 | FC9: ='Result Entry'!FD11 -> 95 | FD9: ='Result Entry'!FE11 -> 47.5 | FE9: ='Result Entry'!FF11 -> C | FF9: ='Result Entry'!FG11 -> 0 | FG9: ='Result Entry'!FH11 -> 0 | FH9: ='Result Entry'!FI11 -> 0 | FI9: ='Result Entry'!FJ11 -> 0 | FJ9: ='Result Entry'!FK11 -> 0 | FK9: ='Result Entry'!FL11 -> 0 | FL9: ='Result Entry'!FM11 -> 0 | FM9: ='Result Entry'!FN11 -> 0 | FN9: ='Result Entry'!FO11 ->  | FO9: ='Result Entry'!FP11 -> 1000 | FP9: ='Result Entry'!FQ11 -> 482 | FQ9: ='Result Entry'!FR11 -> 48.20 | FR9: =IF(OR(FS9="PASSED",FS9="PASSED WITH G"),'Result Entry'!FS11,"") -> Second | FS9: ='Result Entry'!FT11 -> Passed | FT9: ='Result Entry'!FU11 -> 48.2 | FU9: ='Result Entry'!FV11 -> 3 | FV9: ='Result Entry'!FX11 -> III
B10: 4 | C10: ='Result Entry'!D12 -> 11 | D10: ='Result Entry'!E12 -> 51 | E10: ='Result Entry'!F12 -> GEN | F10: ='Result Entry'!$G12 -> NSO | G10: ='Result Entry'!$H12 -> HGJG | H10: ='Result Entry'!I12 -> HJGG | I10: ='Result Entry'!J12 -> BGJHGJ | J10: ='Result Entry'!K12 -> 00:00:00 | K10: ='Result Entry'!L12 -> 10 | L10: ='Result Entry'!M12 -> 14 | M10: ='Result Entry'!N12 -> 3 | N10: ='Result Entry'!O12 -> 27 | O10: ='Result Entry'!P12 -> 10 | P10: ='Result Entry'!Q12 -> 37 | Q10: ='Result Entry'!R12 -> 51 | R10: ='Result Entry'!S12 -> 0 | S10: ='Result Entry'!T12 -> 0 | T10: ='Result Entry'!U12 -> 88 | U10: ='Result Entry'!V12 -> 44 | V10: ='Result Entry'!W12 ->  | W10: ='Result Entry'!X12 ->  | X10: ='Result Entry'!Y12 ->  | Y10: ='Result Entry'!Z12 -> 10 | Z10: ='Result Entry'!AA12 -> 14 | AA10: ='Result Entry'!AB12 -> 3 | AB10: ='Result Entry'!AC12 -> 27 | AC10: ='Result Entry'!AD12 -> 10 | AD10: ='Result Entry'!AE12 -> 37 | AE10: ='Result Entry'!AF12 -> 51 | AF10: ='Result Entry'!AG12 -> 0 | AG10: ='Result Entry'!AH12 -> 0 | AH10: ='Result Entry'!AI12 -> 88 | AI10: ='Result Entry'!AJ12 -> 44 | AJ10: ='Result Entry'!AK12 ->  | AK10: ='Result Entry'!AL12 ->  | AL10: ='Result Entry'!AM12 ->  | AM10: ='Result Entry'!AN12 -> 1 | AN10: ='Result Entry'!AO12 -> 10 | AO10: ='Result Entry'!AP12 -> 10 | AP10: ='Result Entry'!AQ12 -> 10 | AQ10: ='Result Entry'!AR12 -> 30 | AR10: ='Result Entry'!AS12 -> 70 | AS10: ='Result Entry'!AT12 -> 0 | AT10: ='Result Entry'!AU12 -> 70 | AU10: ='Result Entry'!AV12 -> 100 | AV10: ='Result Entry'!AW12 -> 100 | AW10: ='Result Entry'!AX12 -> 0 | AX10: ='Result Entry'!AY12 -> 100 | AY10: ='Result Entry'!AZ12 -> 200 | AZ10: ='Result Entry'!BA12 -> 100 | BA10: ='Result Entry'!BB12 ->  | BB10: ='Result Entry'!BC12 ->  | BC10: ='Result Entry'!BD12 ->  | BD10: ='Result Entry'!BE12 -> 2 | BE10: ='Result Entry'!BF12 -> 10 | BF10: ='Result Entry'!BG12 -> 10 | BG10: ='Result Entry'!BH12 -> 10 | BH10: ='Result Entry'!BI12 -> 30 | BI10: ='Result Entry'!BJ12 -> 70 | BJ10: ='Result Entry'!BK12 -> 0 | BK10: ='Result Entry'!BL12 -> 70 | BL10: ='Result Entry'!BM12 -> 100 | BM10: ='Result Entry'!BN12 -> 100 | BN10: ='Result Entry'!BO12 -> 0 | BO10: ='Result Entry'!BP12 -> 100 | BP10: ='Result Entry'!BQ12 -> 200 | BQ10: ='Result Entry'!BR12 -> 100 | BR10: ='Result Entry'!BS12 ->  | BS10: ='Result Entry'!BT12 ->  | BT10: ='Result Entry'!BU12 ->  | BU10: ='Result Entry'!BV12 -> 3 | BV10: ='Result Entry'!BW12 -> 10 | BW10: ='Result Entry'!BX12 -> 10 | BX10: ='Result Entry'!BY12 -> 10 | BY10: ='Result Entry'!BZ12 -> 30 | BZ10: ='Result Entry'!CA12 -> 70 | CA10: ='Result Entry'!CB12 -> 0 | CB10: ='Result Entry'!CC12 -> 70 | CC10: ='Result Entry'!CD12 -> 100 | CD10: ='Result Entry'!CE12 -> 100 | CE10: ='Result Entry'!CF12 -> 0 | CF10: ='Result Entry'!CG12 -> 100 | CG10: ='Result Entry'!CH12 -> 200 | CH10: ='Result Entry'!CI12 -> 100 | CI10: ='Result Entry'!CJ12 ->  | CJ10: ='Result Entry'!CK12 ->  | CK10: ='Result Entry'!CL12 ->  | CL10: ='Result Entry'!CM12 -> 0 | CM10: ='Result Entry'!CN12 -> 0 | CN10: ='Result Entry'!CO12 -> 0 | CO10: ='Result Entry'!CP12 -> 0 | CP10: ='Result Entry'!CQ12 -> 0 | CQ10: ='Result Entry'!CR12 -> 0 | CR10: ='Result Entry'!CS12 -> 0 | CS10: ='Result Entry'!CT12 -> 0 | CT10: ='Result Entry'!CU12 -> 0 | CU10: ='Result Entry'!CV12 -> 0 | CV10: ='Result Entry'!CW12 -> 0 | CW10: ='Result Entry'!CX12 -> 0 | CX10: ='Result Entry'!CY12 -> 0 | CY10: ='Result Entry'!CZ12 -> 0 | CZ10: ='Result Entry'!DA12 ->  | DA10: ='Result Entry'!DB12 ->  | DB10: ='Result Entry'!DC12 ->  | DC10: ='Result Entry'!DD12 -> 0 | DD10: ='Result Entry'!DE12 -> 0 | DE10: ='Result Entry'!DF12 -> 0 | DF10: ='Result Entry'!DG12 -> 0 | DG10: ='Result Entry'!DH12 -> 0 | DH10: ='Result Entry'!DI12 -> 0 | DI10: ='Result Entry'!DJ12 -> 0 | DJ10: ='Result Entry'!DK12 -> 0 | DK10: ='Result Entry'!DL12 -> 0 | DL10: ='Result Entry'!DM12 -> 0 | DM10: ='Result Entry'!DN12 -> 0 | DN10: ='Result Entry'!DO12 -> 0 | DO10: ='Result Entry'!DP12 -> 0 | DP10: ='Result Entry'!DQ12 -> 0 | DQ10: ='Result Entry'!DR12 ->  | DR10: ='Result Entry'!DS12 ->  | DS10: ='Result Entry'!DT12 ->  | DT10: ='Result Entry'!DU12 -> 10 | DU10: ='Result Entry'!DV12 -> 10 | DV10: ='Result Entry'!DW12 -> 10 | DW10: ='Result Entry'!DX12 -> 30 | DX10: ='Result Entry'!DY12 -> 70 | DY10: ='Result Entry'!DZ12 -> 0 | DZ10: ='Result Entry'!EA12 -> 70 | EA10: ='Result Entry'!EB12 -> 100 | EB10: ='Result Entry'!EC12 -> 100 | EC10: ='Result Entry'!ED12 -> 0 | ED10: ='Result Entry'!EE12 -> 100 | EE10: ='Result Entry'!EF12 -> 200 | EF10: ='Result Entry'!EG12 -> 100 | EG10: ='Result Entry'!EH12 ->  | EH10: ='Result Entry'!EI12 -> 10 | EI10: ='Result Entry'!EJ12 -> 4 | EJ10: ='Result Entry'!EK12 -> 5 | EK10: ='Result Entry'!EL12 -> 19 | EL10: ='Result Entry'!EM12 -> 10 | EM10: ='Result Entry'!EN12 -> 29 | EN10: ='Result Entry'!EO12 -> 51 | EO10: ='Result Entry'!EP12 -> 0 | EP10: ='Result Entry'!EQ12 -> 0 | EQ10: ='Result Entry'!ER12 -> 80 | ER10: ='Result Entry'!ES12 -> 40 | ES10: ='Result Entry'!ET12 ->  | ET10: ='Result Entry'!EU12 -> 10 | EU10: ='Result Entry'!EV12 -> 14 | EV10: ='Result Entry'!EW12 -> 24 | EW10: ='Result Entry'!EX12 -> 48 | EX10: ='Result Entry'!EY12 -> 10 | EY10: ='Result Entry'!EZ12 -> 58 | EZ10: ='Result Entry'!FA12 -> 51 | FA10: ='Result Entry'!FB12 -> 0 | FB10: ='Result Entry'!FC12 -> 0 | FC10: ='Result Entry'!FD12 -> 109 | FD10: ='Result Entry'!FE12 -> 54.5 | FE10: ='Result Entry'!FF12 ->  | FF10: ='Result Entry'!FG12 -> 0 | FG10: ='Result Entry'!FH12 -> 0 | FH10: ='Result Entry'!FI12 -> 0 | FI10: ='Result Entry'!FJ12 -> 0 | FJ10: ='Result Entry'!FK12 -> 0 | FK10: ='Result Entry'!FL12 ->  | FL10: ='Result Entry'!FM12 -> 0 | FM10: ='Result Entry'!FN12 -> 0 | FN10: ='Result Entry'!FO12 ->  | FO10: ='Result Entry'!FP12 -> 1000 | FP10: ='Result Entry'!FQ12 -> 776 | FQ10: ='Result Entry'!FR12 -> 0.00 | FR10: =IF(OR(FS10="PASSED",FS10="PASSED WITH G"),'Result Entry'!FS12,"") ->  | FS10: ='Result Entry'!FT12 -> NSO | FT10: ='Result Entry'!FU12 ->  | FU10: ='Result Entry'!FV12 ->  | FV10: ='Result Entry'!FX12 -> 
B11: 5 | C11: ='Result Entry'!D13 -> 11 | D11: ='Result Entry'!E13 -> 745 | E11: ='Result Entry'!F13 -> OBC | F11: ='Result Entry'!$G13 -> 1105 | G11: ='Result Entry'!$H13 -> BHKBK | H11: ='Result Entry'!I13 -> KJKHK | I11: ='Result Entry'!J13 -> HKHK | J11: ='Result Entry'!K13 -> 00:00:00 | K11: ='Result Entry'!L13 -> 8 | L11: ='Result Entry'!M13 -> 11 | M11: ='Result Entry'!N13 -> 2 | N11: ='Result Entry'!O13 -> 21 | O11: ='Result Entry'!P13 -> 10 | P11: ='Result Entry'!Q13 -> 31 | Q11: ='Result Entry'!R13 -> 55 | R11: ='Result Entry'!S13 -> 0 | S11: ='Result Entry'!T13 -> 0 | T11: ='Result Entry'!U13 -> 86 | U11: ='Result Entry'!V13 -> 43 | V11: ='Result Entry'!W13 ->  | W11: ='Result Entry'!X13 -> P | X11: ='Result Entry'!Y13 -> III | Y11: ='Result Entry'!Z13 -> 8 | Z11: ='Result Entry'!AA13 -> 11 | AA11: ='Result Entry'!AB13 -> 2 | AB11: ='Result Entry'!AC13 -> 21 | AC11: ='Result Entry'!AD13 -> 10 | AD11: ='Result Entry'!AE13 -> 31 | AE11: ='Result Entry'!AF13 -> 55 | AF11: ='Result Entry'!AG13 -> 0 | AG11: ='Result Entry'!AH13 -> 0 | AH11: ='Result Entry'!AI13 -> 86 | AI11: ='Result Entry'!AJ13 -> 43 | AJ11: ='Result Entry'!AK13 ->  | AK11: ='Result Entry'!AL13 -> P | AL11: ='Result Entry'!AM13 -> III | AM11: ='Result Entry'!AN13 -> 1 | AN11: ='Result Entry'!AO13 -> 10 | AO11: ='Result Entry'!AP13 -> 10 | AP11: ='Result Entry'!AQ13 -> 10 | AQ11: ='Result Entry'!AR13 -> 30 | AR11: ='Result Entry'!AS13 -> 70 | AS11: ='Result Entry'!AT13 -> 20 | AT11: ='Result Entry'!AU13 -> 90 | AU11: ='Result Entry'!AV13 -> 120 | AV11: ='Result Entry'!AW13 -> 10 | AW11: ='Result Entry'!AX13 -> 0 | AX11: ='Result Entry'!AY13 -> 10 | AY11: ='Result Entry'!AZ13 -> 130 | AZ11: ='Result Entry'!BA13 -> 65 | BA11: ='Result Entry'!BB13 ->  | BB11: ='Result Entry'!BC13 -> G2 | BC11: ='Result Entry'!BD13 -> I | BD11: ='Result Entry'!BE13 -> 2 | BE11: ='Result Entry'!BF13 -> 10 | BF11: ='Result Entry'!BG13 -> 10 | BG11: ='Result Entry'!BH13 -> 10 | BH11: ='Result Entry'!BI13 -> 30 | BI11: ='Result Entry'!BJ13 -> 70 | BJ11: ='Result Entry'!BK13 -> 0 | BK11: ='Result Entry'!BL13 -> 70 | BL11: ='Result Entry'!BM13 -> 100 | BM11: ='Result Entry'!BN13 -> 100 | BN11: ='Result Entry'!BO13 -> 0 | BO11: ='Result Entry'!BP13 -> 100 | BP11: ='Result Entry'!BQ13 -> 200 | BQ11: ='Result Entry'!BR13 -> 100 | BR11: ='Result Entry'!BS13 ->  | BS11: ='Result Entry'!BT13 -> P | BT11: ='Result Entry'!BU13 -> D | BU11: ='Result Entry'!BV13 -> 0 | BV11: ='Result Entry'!BW13 -> 0 | BW11: ='Result Entry'!BX13 -> 0 | BX11: ='Result Entry'!BY13 -> 0 | BY11: ='Result Entry'!BZ13 -> 0 | BZ11: ='Result Entry'!CA13 -> 0 | CA11: ='Result Entry'!CB13 -> 0 | CB11: ='Result Entry'!CC13 -> 0 | CC11: ='Result Entry'!CD13 -> 0 | CD11: ='Result Entry'!CE13 -> 0 | CE11: ='Result Entry'!CF13 -> 0 | CF11: ='Result Entry'!CG13 -> 0 | CG11: ='Result Entry'!CH13 -> 0 | CH11: ='Result Entry'!CI13 -> 0 | CI11: ='Result Entry'!CJ13 ->  | CJ11: ='Result Entry'!CK13 ->  | CK11: ='Result Entry'!CL13 ->  | CL11: ='Result Entry'!CM13 -> 3 | CM11: ='Result Entry'!CN13 -> 10 | CN11: ='Result Entry'!CO13 -> 5 | CO11: ='Result Entry'!CP13 -> 6 | CP11: ='Result Entry'!CQ13 -> 21 | CQ11: ='Result Entry'!CR13 -> 50 | CR11: ='Result Entry'!CS13 -> 0 | CS11: ='Result Entry'!CT13 -> 50 | CT11: ='Result Entry'!CU13 -> 71 | CU11: ='Result Entry'!CV13 -> 60 | CV11: ='Result Entry'!CW13 -> 0 | CW11: ='Result Entry'!CX13 -> 60 | CX11: ='Result Entry'!CY13 -> 131 | CY11: ='Result Entry'!CZ13 -> 65.5 | CZ11: ='Result Entry'!DA13 ->  | DA11: ='Result Entry'!DB13 -> P | DB11: ='Result Entry'!DC13 -> I | DC11: ='Result Entry'!DD13 -> 0 | DD11: ='Result Entry'!DE13 -> 0 | DE11: ='Result Entry'!DF13 -> 0 | DF11: ='Result Entry'!DG13 -> 0 | DG11: ='Result Entry'!DH13 -> 0 | DH11: ='Result Entry'!DI13 -> 0 | DI11: ='Result Entry'!DJ13 -> 0 | DJ11: ='Result Entry'!DK13 -> 0 | DK11: ='Result Entry'!DL13 -> 0 | DL11: ='Result Entry'!DM13 -> 0 | DM11: ='Result Entry'!DN13 -> 0 | DN11: ='Result Entry'!DO13 -> 0 | DO11: ='Result Entry'!DP13 -> 0 | DP11: ='Result Entry'!DQ13 -> 0 | DQ11: ='Result Entry'!DR13 ->  | DR11: ='Result Entry'!DS13 ->  | DS11: ='Result Entry'!DT13 ->  | DT11: ='Result Entry'!DU13 -> 10 | DU11: ='Result Entry'!DV13 -> 10 | DV11: ='Result Entry'!DW13 -> 10 | DW11: ='Result Entry'!DX13 -> 30 | DX11: ='Result Entry'!DY13 -> 70 | DY11: ='Result Entry'!DZ13 -> 0 | DZ11: ='Result Entry'!EA13 -> 70 | EA11: ='Result Entry'!EB13 -> 100 | EB11: ='Result Entry'!EC13 -> 100 | EC11: ='Result Entry'!ED13 -> 0 | ED11: ='Result Entry'!EE13 -> 100 | EE11: ='Result Entry'!EF13 -> 200 | EF11: ='Result Entry'!EG13 -> 100 | EG11: ='Result Entry'!EH13 -> A | EH11: ='Result Entry'!EI13 -> 0 | EI11: ='Result Entry'!EJ13 -> 0 | EJ11: ='Result Entry'!EK13 -> 0 | EK11: ='Result Entry'!EL13 -> 0 | EL11: ='Result Entry'!EM13 -> 0 | EM11: ='Result Entry'!EN13 -> 0 | EN11: ='Result Entry'!EO13 -> 0 | EO11: ='Result Entry'!EP13 -> 0 | EP11: ='Result Entry'!EQ13 -> 0 | EQ11: ='Result Entry'!ER13 -> 0 | ER11: ='Result Entry'!ES13 -> 0 | ES11: ='Result Entry'!ET13 -> 0 | ET11: ='Result Entry'!EU13 -> 8 | EU11: ='Result Entry'!EV13 -> 11 | EV11: ='Result Entry'!EW13 -> 19 | EW11: ='Result Entry'!EX13 -> 38 | EX11: ='Result Entry'!EY13 -> 10 | EY11: ='Result Entry'!EZ13 -> 48 | EZ11: ='Result Entry'!FA13 -> 55 | FA11: ='Result Entry'!FB13 -> 0 | FB11: ='Result Entry'!FC13 -> 0 | FC11: ='Result Entry'!FD13 -> 103 | FD11: ='Result Entry'!FE13 -> 51.5 | FE11: ='Result Entry'!FF13 -> C | FF11: ='Result Entry'!FG13 -> 0 | FG11: ='Result Entry'!FH13 -> 0 | FH11: ='Result Entry'!FI13 -> 0 | FI11: ='Result Entry'!FJ13 -> 0 | FJ11: ='Result Entry'!FK13 -> 0 | FK11: ='Result Entry'!FL13 -> 0 | FL11: ='Result Entry'!FM13 -> 0 | FM11: ='Result Entry'!FN13 -> 0 | FN11: ='Result Entry'!FO13 ->  | FO11: ='Result Entry'!FP13 -> 1000 | FP11: ='Result Entry'!FQ13 -> 633 | FQ11: ='Result Entry'!FR13 -> 63.30 | FR11: =IF(OR(FS11="PASSED",FS11="PASSED WITH G"),'Result Entry'!FS13,"") -> First | FS11: ='Result Entry'!FT13 -> Passed | FT11: ='Result Entry'!FU13 -> 63.3 | FU11: ='Result Entry'!FV13 -> 2 | FV11: ='Result Entry'!FX13 -> III
B12: 0 | C12: ='Result Entry'!D14 -> 0 | D12: ='Result Entry'!E14 -> 0 | E12: ='Result Entry'!F14 -> 0 | F12: ='Result Entry'!$G14 -> 0 | G12: ='Result Entry'!$H14 -> 0 | H12: ='Result Entry'!I14 -> 0 | I12: ='Result Entry'!J14 -> 0 | J12: ='Result Entry'!K14 -> 00:00:00 | K12: ='Result Entry'!L14 -> 0 | L12: ='Result Entry'!M14 -> 0 | M12: ='Result Entry'!N14 -> 0 | N12: ='Result Entry'!O14 -> 0 | O12: ='Result Entry'!P14 -> 0 | P12: ='Result Entry'!Q14 -> 0 | Q12: ='Result Entry'!R14 -> 0 | R12: ='Result Entry'!S14 -> 0 | S12: ='Result Entry'!T14 -> 0 | T12: ='Result Entry'!U14 -> 0 | U12: ='Result Entry'!V14 -> 0 | V12: ='Result Entry'!W14 ->  | W12: ='Result Entry'!X14 ->  | X12: ='Result Entry'!Y14 ->  | Y12: ='Result Entry'!Z14 -> 0 | Z12: ='Result Entry'!AA14 -> 0 | AA12: ='Result Entry'!AB14 -> 0 | AB12: ='Result Entry'!AC14 -> 0 | AC12: ='Result Entry'!AD14 -> 0 | AD12: ='Result Entry'!AE14 -> 0 | AE12: ='Result Entry'!AF14 -> 0 | AF12: ='Result Entry'!AG14 -> 0 | AG12: ='Result Entry'!AH14 -> 0 | AH12: ='Result Entry'!AI14 -> 0 | AI12: ='Result Entry'!AJ14 -> 0 | AJ12: ='Result Entry'!AK14 ->  | AK12: ='Result Entry'!AL14 ->  | AL12: ='Result Entry'!AM14 ->  | AM12: ='Result Entry'!AN14 -> 0 | AN12: ='Result Entry'!AO14 -> 0 | AO12: ='Result Entry'!AP14 -> 0 | AP12: ='Result Entry'!AQ14 -> 0 | AQ12: ='Result Entry'!AR14 -> 0 | AR12: ='Result Entry'!AS14 -> 0 | AS12: ='Result Entry'!AT14 -> 0 | AT12: ='Result Entry'!AU14 -> 0 | AU12: ='Result Entry'!AV14 -> 0 | AV12: ='Result Entry'!AW14 -> 0 | AW12: ='Result Entry'!AX14 -> 0 | AX12: ='Result Entry'!AY14 -> 0 | AY12: ='Result Entry'!AZ14 -> 0 | AZ12: ='Result Entry'!BA14 -> 0 | BA12: ='Result Entry'!BB14 ->  | BB12: ='Result Entry'!BC14 ->  | BC12: ='Result Entry'!BD14 ->  | BD12: ='Result Entry'!BE14 -> 0 | BE12: ='Result Entry'!BF14 -> 0 | BF12: ='Result Entry'!BG14 -> 0 | BG12: ='Result Entry'!BH14 -> 0 | BH12: ='Result Entry'!BI14 -> 0 | BI12: ='Result Entry'!BJ14 -> 0 | BJ12: ='Result Entry'!BK14 -> 0 | BK12: ='Result Entry'!BL14 -> 0 | BL12: ='Result Entry'!BM14 -> 0 | BM12: ='Result Entry'!BN14 -> 0 | BN12: ='Result Entry'!BO14 -> 0 | BO12: ='Result Entry'!BP14 -> 0 | BP12: ='Result Entry'!BQ14 -> 0 | BQ12: ='Result Entry'!BR14 -> 0 | BR12: ='Result Entry'!BS14 ->  | BS12: ='Result Entry'!BT14 ->  | BT12: ='Result Entry'!BU14 ->  | BU12: ='Result Entry'!BV14 -> 0 | BV12: ='Result Entry'!BW14 -> 0 | BW12: ='Result Entry'!BX14 -> 0 | BX12: ='Result Entry'!BY14 -> 0 | BY12: ='Result Entry'!BZ14 -> 0 | BZ12: ='Result Entry'!CA14 -> 0 | CA12: ='Result Entry'!CB14 -> 0 | CB12: ='Result Entry'!CC14 -> 0 | CC12: ='Result Entry'!CD14 -> 0 | CD12: ='Result Entry'!CE14 -> 0 | CE12: ='Result Entry'!CF14 -> 0 | CF12: ='Result Entry'!CG14 -> 0 | CG12: ='Result Entry'!CH14 -> 0 | CH12: ='Result Entry'!CI14 -> 0 | CI12: ='Result Entry'!CJ14 ->  | CJ12: ='Result Entry'!CK14 ->  | CK12: ='Result Entry'!CL14 ->  | CL12: ='Result Entry'!CM14 -> 0 | CM12: ='Result Entry'!CN14 -> 0 | CN12: ='Result Entry'!CO14 -> 0 | CO12: ='Result Entry'!CP14 -> 0 | CP12: ='Result Entry'!CQ14 -> 0 | CQ12: ='Result Entry'!CR14 -> 0 | CR12: ='Result Entry'!CS14 -> 0 | CS12: ='Result Entry'!CT14 -> 0 | CT12: ='Result Entry'!CU14 -> 0 | CU12: ='Result Entry'!CV14 -> 0 | CV12: ='Result Entry'!CW14 -> 0 | CW12: ='Result Entry'!CX14 -> 0 | CX12: ='Result Entry'!CY14 -> 0 | CY12: ='Result Entry'!CZ14 -> 0 | CZ12: ='Result Entry'!DA14 ->  | DA12: ='Result Entry'!DB14 ->  | DB12: ='Result Entry'!DC14 ->  | DC12: ='Result Entry'!DD14 -> 0 | DD12: ='Result Entry'!DE14 -> 0 | DE12: ='Result Entry'!DF14 -> 0 | DF12: ='Result Entry'!DG14 -> 0 | DG12: ='Result Entry'!DH14 -> 0 | DH12: ='Result Entry'!DI14 -> 0 | DI12: ='Result Entry'!DJ14 -> 0 | DJ12: ='Result Entry'!DK14 -> 0 | DK12: ='Result Entry'!DL14 -> 0 | DL12: ='Result Entry'!DM14 -> 0 | DM12: ='Result Entry'!DN14 -> 0 | DN12: ='Result Entry'!DO14 -> 0 | DO12: ='Result Entry'!DP14 -> 0 | DP12: ='Result Entry'!DQ14 -> 0 | DQ12: ='Result Entry'!DR14 ->  | DR12: ='Result Entry'!DS14 ->  | DS12: ='Result Entry'!DT14 ->  | DT12: ='Result Entry'!DU14 -> 0 | DU12: ='Result Entry'!DV14 -> 0 | DV12: ='Result Entry'!DW14 -> 0 | DW12: ='Result Entry'!DX14 -> 0 | DX12: ='Result Entry'!DY14 -> 0 | DY12: ='Result Entry'!DZ14 -> 0 | DZ12: ='Result Entry'!EA14 -> 0 | EA12: ='Result Entry'!EB14 -> 0 | EB12: ='Result Entry'!EC14 -> 0 | EC12: ='Result Entry'!ED14 -> 0 | ED12: ='Result Entry'!EE14 -> 0 | EE12: ='Result Entry'!EF14 -> 0 | EF12: ='Result Entry'!EG14 -> 0 | EG12: ='Result Entry'!EH14 ->  | EH12: ='Result Entry'!EI14 -> 0 | EI12: ='Result Entry'!EJ14 -> 0 | EJ12: ='Result Entry'!EK14 -> 0 | EK12: ='Result Entry'!EL14 -> 0 | EL12: ='Result Entry'!EM14 -> 0 | EM12: ='Result Entry'!EN14 -> 0 | EN12: ='Result Entry'!EO14 -> 0 | EO12: ='Result Entry'!EP14 -> 0 | EP12: ='Result Entry'!EQ14 -> 0 | EQ12: ='Result Entry'!ER14 -> 0 | ER12: ='Result Entry'!ES14 -> 0 | ES12: ='Result Entry'!ET14 ->  | ET12: ='Result Entry'!EU14 -> 0 | EU12: ='Result Entry'!EV14 -> 0 | EV12: ='Result Entry'!EW14 -> 0 | EW12: ='Result Entry'!EX14 -> 0 | EX12: ='Result Entry'!EY14 -> 0 | EY12: ='Result Entry'!EZ14 -> 0 | EZ12: ='Result Entry'!FA14 -> 0 | FA12: ='Result Entry'!FB14 -> 0 | FB12: ='Result Entry'!FC14 -> 0 | FC12: ='Result Entry'!FD14 -> 0 | FD12: ='Result Entry'!FE14 -> 0 | FE12: ='Result Entry'!FF14 ->  | FF12: ='Result Entry'!FG14 -> 0 | FG12: ='Result Entry'!FH14 -> 0 | FH12: ='Result Entry'!FI14 -> 0 | FI12: ='Result Entry'!FJ14 -> 0 | FJ12: ='Result Entry'!FK14 -> 0 | FK12: ='Result Entry'!FL14 ->  | FL12: ='Result Entry'!FM14 -> 0 | FM12: ='Result Entry'!FN14 -> 0 | FN12: ='Result Entry'!FO14 ->  | FO12: ='Result Entry'!FP14 -> 0 | FP12: ='Result Entry'!FQ14 -> 0 | FQ12: ='Result Entry'!FR14 -> 0.00 | FR12: =IF(OR(FS12="PASSED",FS12="PASSED WITH G"),'Result Entry'!FS14,"") ->  | FS12: ='Result Entry'!FT14 ->  | FT12: ='Result Entry'!FU14 ->  | FU12: ='Result Entry'!FV14 ->  | FV12: ='Result Entry'!FX14 -> 
B13: 0 | C13: ='Result Entry'!D15 -> 0 | D13: ='Result Entry'!E15 -> 0 | E13: ='Result Entry'!F15 -> 0 | F13: ='Result Entry'!$G15 -> 0 | G13: ='Result Entry'!$H15 -> 0 | H13: ='Result Entry'!I15 -> 0 | I13: ='Result Entry'!J15 -> 0 | J13: ='Result Entry'!K15 -> 00:00:00 | K13: ='Result Entry'!L15 -> 0 | L13: ='Result Entry'!M15 -> 0 | M13: ='Result Entry'!N15 -> 0 | N13: ='Result Entry'!O15 -> 0 | O13: ='Result Entry'!P15 -> 0 | P13: ='Result Entry'!Q15 -> 0 | Q13: ='Result Entry'!R15 -> 0 | R13: ='Result Entry'!S15 -> 0 | S13: ='Result Entry'!T15 -> 0 | T13: ='Result Entry'!U15 -> 0 | U13: ='Result Entry'!V15 -> 0 | V13: ='Result Entry'!W15 ->  | W13: ='Result Entry'!X15 ->  | X13: ='Result Entry'!Y15 ->  | Y13: ='Result Entry'!Z15 -> 0 | Z13: ='Result Entry'!AA15 -> 0 | AA13: ='Result Entry'!AB15 -> 0 | AB13: ='Result Entry'!AC15 -> 0 | AC13: ='Result Entry'!AD15 -> 0 | AD13: ='Result Entry'!AE15 -> 0 | AE13: ='Result Entry'!AF15 -> 0 | AF13: ='Result Entry'!AG15 -> 0 | AG13: ='Result Entry'!AH15 -> 0 | AH13: ='Result Entry'!AI15 -> 0 | AI13: ='Result Entry'!AJ15 -> 0 | AJ13: ='Result Entry'!AK15 ->  | AK13: ='Result Entry'!AL15 ->  | AL13: ='Result Entry'!AM15 ->  | AM13: ='Result Entry'!AN15 -> 0 | AN13: ='Result Entry'!AO15 -> 0 | AO13: ='Result Entry'!AP15 -> 0 | AP13: ='Result Entry'!AQ15 -> 0 | AQ13: ='Result Entry'!AR15 -> 0 | AR13: ='Result Entry'!AS15 -> 0 | AS13: ='Result Entry'!AT15 -> 0 | AT13: ='Result Entry'!AU15 -> 0 | AU13: ='Result Entry'!AV15 -> 0 | AV13: ='Result Entry'!AW15 -> 0 | AW13: ='Result Entry'!AX15 -> 0 | AX13: ='Result Entry'!AY15 -> 0 | AY13: ='Result Entry'!AZ15 -> 0 | AZ13: ='Result Entry'!BA15 -> 0 | BA13: ='Result Entry'!BB15 ->  | BB13: ='Result Entry'!BC15 ->  | BC13: ='Result Entry'!BD15 ->  | BD13: ='Result Entry'!BE15 -> 0 | BE13: ='Result Entry'!BF15 -> 0 | BF13: ='Result Entry'!BG15 -> 0 | BG13: ='Result Entry'!BH15 -> 0 | BH13: ='Result Entry'!BI15 -> 0 | BI13: ='Result Entry'!BJ15 -> 0 | BJ13: ='Result Entry'!BK15 -> 0 | BK13: ='Result Entry'!BL15 -> 0 | BL13: ='Result Entry'!BM15 -> 0 | BM13: ='Result Entry'!BN15 -> 0 | BN13: ='Result Entry'!BO15 -> 0 | BO13: ='Result Entry'!BP15 -> 0 | BP13: ='Result Entry'!BQ15 -> 0 | BQ13: ='Result Entry'!BR15 -> 0 | BR13: ='Result Entry'!BS15 ->  | BS13: ='Result Entry'!BT15 ->  | BT13: ='Result Entry'!BU15 ->  | BU13: ='Result Entry'!BV15 -> 0 | BV13: ='Result Entry'!BW15 -> 0 | BW13: ='Result Entry'!BX15 -> 0 | BX13: ='Result Entry'!BY15 -> 0 | BY13: ='Result Entry'!BZ15 -> 0 | BZ13: ='Result Entry'!CA15 -> 0 | CA13: ='Result Entry'!CB15 -> 0 | CB13: ='Result Entry'!CC15 -> 0 | CC13: ='Result Entry'!CD15 -> 0 | CD13: ='Result Entry'!CE15 -> 0 | CE13: ='Result Entry'!CF15 -> 0 | CF13: ='Result Entry'!CG15 -> 0 | CG13: ='Result Entry'!CH15 -> 0 | CH13: ='Result Entry'!CI15 -> 0 | CI13: ='Result Entry'!CJ15 ->  | CJ13: ='Result Entry'!CK15 ->  | CK13: ='Result Entry'!CL15 ->  | CL13: ='Result Entry'!CM15 -> 0 | CM13: ='Result Entry'!CN15 -> 0 | CN13: ='Result Entry'!CO15 -> 0 | CO13: ='Result Entry'!CP15 -> 0 | CP13: ='Result Entry'!CQ15 -> 0 | CQ13: ='Result Entry'!CR15 -> 0 | CR13: ='Result Entry'!CS15 -> 0 | CS13: ='Result Entry'!CT15 -> 0 | CT13: ='Result Entry'!CU15 -> 0 | CU13: ='Result Entry'!CV15 -> 0 | CV13: ='Result Entry'!CW15 -> 0 | CW13: ='Result Entry'!CX15 -> 0 | CX13: ='Result Entry'!CY15 -> 0 | CY13: ='Result Entry'!CZ15 -> 0 | CZ13: ='Result Entry'!DA15 ->  | DA13: ='Result Entry'!DB15 ->  | DB13: ='Result Entry'!DC15 ->  | DC13: ='Result Entry'!DD15 -> 0 | DD13: ='Result Entry'!DE15 -> 0 | DE13: ='Result Entry'!DF15 -> 0 | DF13: ='Result Entry'!DG15 -> 0 | DG13: ='Result Entry'!DH15 -> 0 | DH13: ='Result Entry'!DI15 -> 0 | DI13: ='Result Entry'!DJ15 -> 0 | DJ13: ='Result Entry'!DK15 -> 0 | DK13: ='Result Entry'!DL15 -> 0 | DL13: ='Result Entry'!DM15 -> 0 | DM13: ='Result Entry'!DN15 -> 0 | DN13: ='Result Entry'!DO15 -> 0 | DO13: ='Result Entry'!DP15 -> 0 | DP13: ='Result Entry'!DQ15 -> 0 | DQ13: ='Result Entry'!DR15 ->  | DR13: ='Result Entry'!DS15 ->  | DS13: ='Result Entry'!DT15 ->  | DT13: ='Result Entry'!DU15 -> 0 | DU13: ='Result Entry'!DV15 -> 0 | DV13: ='Result Entry'!DW15 -> 0 | DW13: ='Result Entry'!DX15 -> 0 | DX13: ='Result Entry'!DY15 -> 0 | DY13: ='Result Entry'!DZ15 -> 0 | DZ13: ='Result Entry'!EA15 -> 0 | EA13: ='Result Entry'!EB15 -> 0 | EB13: ='Result Entry'!EC15 -> 0 | EC13: ='Result Entry'!ED15 -> 0 | ED13: ='Result Entry'!EE15 -> 0 | EE13: ='Result Entry'!EF15 -> 0 | EF13: ='Result Entry'!EG15 -> 0 | EG13: ='Result Entry'!EH15 ->  | EH13: ='Result Entry'!EI15 -> 0 | EI13: ='Result Entry'!EJ15 -> 0 | EJ13: ='Result Entry'!EK15 -> 0 | EK13: ='Result Entry'!EL15 -> 0 | EL13: ='Result Entry'!EM15 -> 0 | EM13: ='Result Entry'!EN15 -> 0 | EN13: ='Result Entry'!EO15 -> 0 | EO13: ='Result Entry'!EP15 -> 0 | EP13: ='Result Entry'!EQ15 -> 0 | EQ13: ='Result Entry'!ER15 -> 0 | ER13: ='Result Entry'!ES15 -> 0 | ES13: ='Result Entry'!ET15 ->  | ET13: ='Result Entry'!EU15 -> 0 | EU13: ='Result Entry'!EV15 -> 0 | EV13: ='Result Entry'!EW15 -> 0 | EW13: ='Result Entry'!EX15 -> 0 | EX13: ='Result Entry'!EY15 -> 0 | EY13: ='Result Entry'!EZ15 -> 0 | EZ13: ='Result Entry'!FA15 -> 0 | FA13: ='Result Entry'!FB15 -> 0 | FB13: ='Result Entry'!FC15 -> 0 | FC13: ='Result Entry'!FD15 -> 0 | FD13: ='Result Entry'!FE15 -> 0 | FE13: ='Result Entry'!FF15 ->  | FF13: ='Result Entry'!FG15 -> 0 | FG13: ='Result Entry'!FH15 -> 0 | FH13: ='Result Entry'!FI15 -> 0 | FI13: ='Result Entry'!FJ15 -> 0 | FJ13: ='Result Entry'!FK15 -> 0 | FK13: ='Result Entry'!FL15 ->  | FL13: ='Result Entry'!FM15 -> 0 | FM13: ='Result Entry'!FN15 -> 0 | FN13: ='Result Entry'!FO15 ->  | FO13: ='Result Entry'!FP15 -> 0 | FP13: ='Result Entry'!FQ15 -> 0 | FQ13: ='Result Entry'!FR15 -> 0.00 | FR13: =IF(OR(FS13="PASSED",FS13="PASSED WITH G"),'Result Entry'!FS15,"") ->  | FS13: ='Result Entry'!FT15 ->  | FT13: ='Result Entry'!FU15 ->  | FU13: ='Result Entry'!FV15 ->  | FV13: ='Result Entry'!FX15 -> 
B14: 0 | C14: ='Result Entry'!D16 -> 0 | D14: ='Result Entry'!E16 -> 0 | E14: ='Result Entry'!F16 -> 0 | F14: ='Result Entry'!$G16 -> 0 | G14: ='Result Entry'!$H16 -> 0 | H14: ='Result Entry'!I16 -> 0 | I14: ='Result Entry'!J16 -> 0 | J14: ='Result Entry'!K16 -> 00:00:00 | K14: ='Result Entry'!L16 -> 0 | L14: ='Result Entry'!M16 -> 0 | M14: ='Result Entry'!N16 -> 0 | N14: ='Result Entry'!O16 -> 0 | O14: ='Result Entry'!P16 -> 0 | P14: ='Result Entry'!Q16 -> 0 | Q14: ='Result Entry'!R16 -> 0 | R14: ='Result Entry'!S16 -> 0 | S14: ='Result Entry'!T16 -> 0 | T14: ='Result Entry'!U16 -> 0 | U14: ='Result Entry'!V16 -> 0 | V14: ='Result Entry'!W16 ->  | W14: ='Result Entry'!X16 ->  | X14: ='Result Entry'!Y16 ->  | Y14: ='Result Entry'!Z16 -> 0 | Z14: ='Result Entry'!AA16 -> 0 | AA14: ='Result Entry'!AB16 -> 0 | AB14: ='Result Entry'!AC16 -> 0 | AC14: ='Result Entry'!AD16 -> 0 | AD14: ='Result Entry'!AE16 -> 0 | AE14: ='Result Entry'!AF16 -> 0 | AF14: ='Result Entry'!AG16 -> 0 | AG14: ='Result Entry'!AH16 -> 0 | AH14: ='Result Entry'!AI16 -> 0 | AI14: ='Result Entry'!AJ16 -> 0 | AJ14: ='Result Entry'!AK16 ->  | AK14: ='Result Entry'!AL16 ->  | AL14: ='Result Entry'!AM16 ->  | AM14: ='Result Entry'!AN16 -> 0 | AN14: ='Result Entry'!AO16 -> 0 | AO14: ='Result Entry'!AP16 -> 0 | AP14: ='Result Entry'!AQ16 -> 0 | AQ14: ='Result Entry'!AR16 -> 0 | AR14: ='Result Entry'!AS16 -> 0 | AS14: ='Result Entry'!AT16 -> 0 | AT14: ='Result Entry'!AU16 -> 0 | AU14: ='Result Entry'!AV16 -> 0 | AV14: ='Result Entry'!AW16 -> 0 | AW14: ='Result Entry'!AX16 -> 0 | AX14: ='Result Entry'!AY16 -> 0 | AY14: ='Result Entry'!AZ16 -> 0 | AZ14: ='Result Entry'!BA16 -> 0 | BA14: ='Result Entry'!BB16 ->  | BB14: ='Result Entry'!BC16 ->  | BC14: ='Result Entry'!BD16 ->  | BD14: ='Result Entry'!BE16 -> 0 | BE14: ='Result Entry'!BF16 -> 0 | BF14: ='Result Entry'!BG16 -> 0 | BG14: ='Result Entry'!BH16 -> 0 | BH14: ='Result Entry'!BI16 -> 0 | BI14: ='Result Entry'!BJ16 -> 0 | BJ14: ='Result Entry'!BK16 -> 0 | BK14: ='Result Entry'!BL16 -> 0 | BL14: ='Result Entry'!BM16 -> 0 | BM14: ='Result Entry'!BN16 -> 0 | BN14: ='Result Entry'!BO16 -> 0 | BO14: ='Result Entry'!BP16 -> 0 | BP14: ='Result Entry'!BQ16 -> 0 | BQ14: ='Result Entry'!BR16 -> 0 | BR14: ='Result Entry'!BS16 ->  | BS14: ='Result Entry'!BT16 ->  | BT14: ='Result Entry'!BU16 ->  | BU14: ='Result Entry'!BV16 -> 0 | BV14: ='Result Entry'!BW16 -> 0 | BW14: ='Result Entry'!BX16 -> 0 | BX14: ='Result Entry'!BY16 -> 0 | BY14: ='Result Entry'!BZ16 -> 0 | BZ14: ='Result Entry'!CA16 -> 0 | CA14: ='Result Entry'!CB16 -> 0 | CB14: ='Result Entry'!CC16 -> 0 | CC14: ='Result Entry'!CD16 -> 0 | CD14: ='Result Entry'!CE16 -> 0 | CE14: ='Result Entry'!CF16 -> 0 | CF14: ='Result Entry'!CG16 -> 0 | CG14: ='Result Entry'!CH16 -> 0 | CH14: ='Result Entry'!CI16 -> 0 | CI14: ='Result Entry'!CJ16 ->  | CJ14: ='Result Entry'!CK16 ->  | CK14: ='Result Entry'!CL16 ->  | CL14: ='Result Entry'!CM16 -> 0 | CM14: ='Result Entry'!CN16 -> 0 | CN14: ='Result Entry'!CO16 -> 0 | CO14: ='Result Entry'!CP16 -> 0 | CP14: ='Result Entry'!CQ16 -> 0 | CQ14: ='Result Entry'!CR16 -> 0 | CR14: ='Result Entry'!CS16 -> 0 | CS14: ='Result Entry'!CT16 -> 0 | CT14: ='Result Entry'!CU16 -> 0 | CU14: ='Result Entry'!CV16 -> 0 | CV14: ='Result Entry'!CW16 -> 0 | CW14: ='Result Entry'!CX16 -> 0 | CX14: ='Result Entry'!CY16 -> 0 | CY14: ='Result Entry'!CZ16 -> 0 | CZ14: ='Result Entry'!DA16 ->  | DA14: ='Result Entry'!DB16 ->  | DB14: ='Result Entry'!DC16 ->  | DC14: ='Result Entry'!DD16 -> 0 | DD14: ='Result Entry'!DE16 -> 0 | DE14: ='Result Entry'!DF16 -> 0 | DF14: ='Result Entry'!DG16 -> 0 | DG14: ='Result Entry'!DH16 -> 0 | DH14: ='Result Entry'!DI16 -> 0 | DI14: ='Result Entry'!DJ16 -> 0 | DJ14: ='Result Entry'!DK16 -> 0 | DK14: ='Result Entry'!DL16 -> 0 | DL14: ='Result Entry'!DM16 -> 0 | DM14: ='Result Entry'!DN16 -> 0 | DN14: ='Result Entry'!DO16 -> 0 | DO14: ='Result Entry'!DP16 -> 0 | DP14: ='Result Entry'!DQ16 -> 0 | DQ14: ='Result Entry'!DR16 ->  | DR14: ='Result Entry'!DS16 ->  | DS14: ='Result Entry'!DT16 ->  | DT14: ='Result Entry'!DU16 -> 0 | DU14: ='Result Entry'!DV16 -> 0 | DV14: ='Result Entry'!DW16 -> 0 | DW14: ='Result Entry'!DX16 -> 0 | DX14: ='Result Entry'!DY16 -> 0 | DY14: ='Result Entry'!DZ16 -> 0 | DZ14: ='Result Entry'!EA16 -> 0 | EA14: ='Result Entry'!EB16 -> 0 | EB14: ='Result Entry'!EC16 -> 0 | EC14: ='Result Entry'!ED16 -> 0 | ED14: ='Result Entry'!EE16 -> 0 | EE14: ='Result Entry'!EF16 -> 0 | EF14: ='Result Entry'!EG16 -> 0 | EG14: ='Result Entry'!EH16 ->  | EH14: ='Result Entry'!EI16 -> 0 | EI14: ='Result Entry'!EJ16 -> 0 | EJ14: ='Result Entry'!EK16 -> 0 | EK14: ='Result Entry'!EL16 -> 0 | EL14: ='Result Entry'!EM16 -> 0 | EM14: ='Result Entry'!EN16 -> 0 | EN14: ='Result Entry'!EO16 -> 0 | EO14: ='Result Entry'!EP16 -> 0 | EP14: ='Result Entry'!EQ16 -> 0 | EQ14: ='Result Entry'!ER16 -> 0 | ER14: ='Result Entry'!ES16 -> 0 | ES14: ='Result Entry'!ET16 ->  | ET14: ='Result Entry'!EU16 -> 0 | EU14: ='Result Entry'!EV16 -> 0 | EV14: ='Result Entry'!EW16 -> 0 | EW14: ='Result Entry'!EX16 -> 0 | EX14: ='Result Entry'!EY16 -> 0 | EY14: ='Result Entry'!EZ16 -> 0 | EZ14: ='Result Entry'!FA16 -> 0 | FA14: ='Result Entry'!FB16 -> 0 | FB14: ='Result Entry'!FC16 -> 0 | FC14: ='Result Entry'!FD16 -> 0 | FD14: ='Result Entry'!FE16 -> 0 | FE14: ='Result Entry'!FF16 ->  | FF14: ='Result Entry'!FG16 -> 0 | FG14: ='Result Entry'!FH16 -> 0 | FH14: ='Result Entry'!FI16 -> 0 | FI14: ='Result Entry'!FJ16 -> 0 | FJ14: ='Result Entry'!FK16 -> 0 | FK14: ='Result Entry'!FL16 ->  | FL14: ='Result Entry'!FM16 -> 0 | FM14: ='Result Entry'!FN16 -> 0 | FN14: ='Result Entry'!FO16 ->  | FO14: ='Result Entry'!FP16 -> 0 | FP14: ='Result Entry'!FQ16 -> 0 | FQ14: ='Result Entry'!FR16 -> 0.00 | FR14: =IF(OR(FS14="PASSED",FS14="PASSED WITH G"),'Result Entry'!FS16,"") ->  | FS14: ='Result Entry'!FT16 ->  | FT14: ='Result Entry'!FU16 ->  | FU14: ='Result Entry'!FV16 ->  | FV14: ='Result Entry'!FX16 -> 
B15: 0 | C15: ='Result Entry'!D17 -> 0 | D15: ='Result Entry'!E17 -> 0 | E15: ='Result Entry'!F17 -> 0 | F15: ='Result Entry'!$G17 -> 0 | G15: ='Result Entry'!$H17 -> 0 | H15: ='Result Entry'!I17 -> 0 | I15: ='Result Entry'!J17 -> 0 | J15: ='Result Entry'!K17 -> 00:00:00 | K15: ='Result Entry'!L17 -> 0 | L15: ='Result Entry'!M17 -> 0 | M15: ='Result Entry'!N17 -> 0 | N15: ='Result Entry'!O17 -> 0 | O15: ='Result Entry'!P17 -> 0 | P15: ='Result Entry'!Q17 -> 0 | Q15: ='Result Entry'!R17 -> 0 | R15: ='Result Entry'!S17 -> 0 | S15: ='Result Entry'!T17 -> 0 | T15: ='Result Entry'!U17 -> 0 | U15: ='Result Entry'!V17 -> 0 | V15: ='Result Entry'!W17 ->  | W15: ='Result Entry'!X17 ->  | X15: ='Result Entry'!Y17 ->  | Y15: ='Result Entry'!Z17 -> 0 | Z15: ='Result Entry'!AA17 -> 0 | AA15: ='Result Entry'!AB17 -> 0 | AB15: ='Result Entry'!AC17 -> 0 | AC15: ='Result Entry'!AD17 -> 0 | AD15: ='Result Entry'!AE17 -> 0 | AE15: ='Result Entry'!AF17 -> 0 | AF15: ='Result Entry'!AG17 -> 0 | AG15: ='Result Entry'!AH17 -> 0 | AH15: ='Result Entry'!AI17 -> 0 | AI15: ='Result Entry'!AJ17 -> 0 | AJ15: ='Result Entry'!AK17 ->  | AK15: ='Result Entry'!AL17 ->  | AL15: ='Result Entry'!AM17 ->  | AM15: ='Result Entry'!AN17 -> 0 | AN15: ='Result Entry'!AO17 -> 0 | AO15: ='Result Entry'!AP17 -> 0 | AP15: ='Result Entry'!AQ17 -> 0 | AQ15: ='Result Entry'!AR17 -> 0 | AR15: ='Result Entry'!AS17 -> 0 | AS15: ='Result Entry'!AT17 -> 0 | AT15: ='Result Entry'!AU17 -> 0 | AU15: ='Result Entry'!AV17 -> 0 | AV15: ='Result Entry'!AW17 -> 0 | AW15: ='Result Entry'!AX17 -> 0 | AX15: ='Result Entry'!AY17 -> 0 | AY15: ='Result Entry'!AZ17 -> 0 | AZ15: ='Result Entry'!BA17 -> 0 | BA15: ='Result Entry'!BB17 ->  | BB15: ='Result Entry'!BC17 ->  | BC15: ='Result Entry'!BD17 ->  | BD15: ='Result Entry'!BE17 -> 0 | BE15: ='Result Entry'!BF17 -> 0 | BF15: ='Result Entry'!BG17 -> 0 | BG15: ='Result Entry'!BH17 -> 0 | BH15: ='Result Entry'!BI17 -> 0 | BI15: ='Result Entry'!BJ17 -> 0 | BJ15: ='Result Entry'!BK17 -> 0 | BK15: ='Result Entry'!BL17 -> 0 | BL15: ='Result Entry'!BM17 -> 0 | BM15: ='Result Entry'!BN17 -> 0 | BN15: ='Result Entry'!BO17 -> 0 | BO15: ='Result Entry'!BP17 -> 0 | BP15: ='Result Entry'!BQ17 -> 0 | BQ15: ='Result Entry'!BR17 -> 0 | BR15: ='Result Entry'!BS17 ->  | BS15: ='Result Entry'!BT17 ->  | BT15: ='Result Entry'!BU17 ->  | BU15: ='Result Entry'!BV17 -> 0 | BV15: ='Result Entry'!BW17 -> 0 | BW15: ='Result Entry'!BX17 -> 0 | BX15: ='Result Entry'!BY17 -> 0 | BY15: ='Result Entry'!BZ17 -> 0 | BZ15: ='Result Entry'!CA17 -> 0 | CA15: ='Result Entry'!CB17 -> 0 | CB15: ='Result Entry'!CC17 -> 0 | CC15: ='Result Entry'!CD17 -> 0 | CD15: ='Result Entry'!CE17 -> 0 | CE15: ='Result Entry'!CF17 -> 0 | CF15: ='Result Entry'!CG17 -> 0 | CG15: ='Result Entry'!CH17 -> 0 | CH15: ='Result Entry'!CI17 -> 0 | CI15: ='Result Entry'!CJ17 ->  | CJ15: ='Result Entry'!CK17 ->  | CK15: ='Result Entry'!CL17 ->  | CL15: ='Result Entry'!CM17 -> 0 | CM15: ='Result Entry'!CN17 -> 0 | CN15: ='Result Entry'!CO17 -> 0 | CO15: ='Result Entry'!CP17 -> 0 | CP15: ='Result Entry'!CQ17 -> 0 | CQ15: ='Result Entry'!CR17 -> 0 | CR15: ='Result Entry'!CS17 -> 0 | CS15: ='Result Entry'!CT17 -> 0 | CT15: ='Result Entry'!CU17 -> 0 | CU15: ='Result Entry'!CV17 -> 0 | CV15: ='Result Entry'!CW17 -> 0 | CW15: ='Result Entry'!CX17 -> 0 | CX15: ='Result Entry'!CY17 -> 0 | CY15: ='Result Entry'!CZ17 -> 0 | CZ15: ='Result Entry'!DA17 ->  | DA15: ='Result Entry'!DB17 ->  | DB15: ='Result Entry'!DC17 ->  | DC15: ='Result Entry'!DD17 -> 0 | DD15: ='Result Entry'!DE17 -> 0 | DE15: ='Result Entry'!DF17 -> 0 | DF15: ='Result Entry'!DG17 -> 0 | DG15: ='Result Entry'!DH17 -> 0 | DH15: ='Result Entry'!DI17 -> 0 | DI15: ='Result Entry'!DJ17 -> 0 | DJ15: ='Result Entry'!DK17 -> 0 | DK15: ='Result Entry'!DL17 -> 0 | DL15: ='Result Entry'!DM17 -> 0 | DM15: ='Result Entry'!DN17 -> 0 | DN15: ='Result Entry'!DO17 -> 0 | DO15: ='Result Entry'!DP17 -> 0 | DP15: ='Result Entry'!DQ17 -> 0 | DQ15: ='Result Entry'!DR17 ->  | DR15: ='Result Entry'!DS17 ->  | DS15: ='Result Entry'!DT17 ->  | DT15: ='Result Entry'!DU17 -> 0 | DU15: ='Result Entry'!DV17 -> 0 | DV15: ='Result Entry'!DW17 -> 0 | DW15: ='Result Entry'!DX17 -> 0 | DX15: ='Result Entry'!DY17 -> 0 | DY15: ='Result Entry'!DZ17 -> 0 | DZ15: ='Result Entry'!EA17 -> 0 | EA15: ='Result Entry'!EB17 -> 0 | EB15: ='Result Entry'!EC17 -> 0 | EC15: ='Result Entry'!ED17 -> 0 | ED15: ='Result Entry'!EE17 -> 0 | EE15: ='Result Entry'!EF17 -> 0 | EF15: ='Result Entry'!EG17 -> 0 | EG15: ='Result Entry'!EH17 ->  | EH15: ='Result Entry'!EI17 -> 0 | EI15: ='Result Entry'!EJ17 -> 0 | EJ15: ='Result Entry'!EK17 -> 0 | EK15: ='Result Entry'!EL17 -> 0 | EL15: ='Result Entry'!EM17 -> 0 | EM15: ='Result Entry'!EN17 -> 0 | EN15: ='Result Entry'!EO17 -> 0 | EO15: ='Result Entry'!EP17 -> 0 | EP15: ='Result Entry'!EQ17 -> 0 | EQ15: ='Result Entry'!ER17 -> 0 | ER15: ='Result Entry'!ES17 -> 0 | ES15: ='Result Entry'!ET17 ->  | ET15: ='Result Entry'!EU17 -> 0 | EU15: ='Result Entry'!EV17 -> 0 | EV15: ='Result Entry'!EW17 -> 0 | EW15: ='Result Entry'!EX17 -> 0 | EX15: ='Result Entry'!EY17 -> 0 | EY15: ='Result Entry'!EZ17 -> 0 | EZ15: ='Result Entry'!FA17 -> 0 | FA15: ='Result Entry'!FB17 -> 0 | FB15: ='Result Entry'!FC17 -> 0 | FC15: ='Result Entry'!FD17 -> 0 | FD15: ='Result Entry'!FE17 -> 0 | FE15: ='Result Entry'!FF17 ->  | FF15: ='Result Entry'!FG17 -> 0 | FG15: ='Result Entry'!FH17 -> 0 | FH15: ='Result Entry'!FI17 -> 0 | FI15: ='Result Entry'!FJ17 -> 0 | FJ15: ='Result Entry'!FK17 -> 0 | FK15: ='Result Entry'!FL17 ->  | FL15: ='Result Entry'!FM17 -> 0 | FM15: ='Result Entry'!FN17 -> 0 | FN15: ='Result Entry'!FO17 ->  | FO15: ='Result Entry'!FP17 -> 0 | FP15: ='Result Entry'!FQ17 -> 0 | FQ15: ='Result Entry'!FR17 -> 0.00 | FR15: =IF(OR(FS15="PASSED",FS15="PASSED WITH G"),'Result Entry'!FS17,"") ->  | FS15: ='Result Entry'!FT17 ->  | FT15: ='Result Entry'!FU17 ->  | FU15: ='Result Entry'!FV17 ->  | FV15: ='Result Entry'!FX17 -> 
B16: 0 | C16: ='Result Entry'!D18 -> 0 | D16: ='Result Entry'!E18 -> 0 | E16: ='Result Entry'!F18 -> 0 | F16: ='Result Entry'!$G18 -> 0 | G16: ='Result Entry'!$H18 -> 0 | H16: ='Result Entry'!I18 -> 0 | I16: ='Result Entry'!J18 -> 0 | J16: ='Result Entry'!K18 -> 00:00:00 | K16: ='Result Entry'!L18 -> 0 | L16: ='Result Entry'!M18 -> 0 | M16: ='Result Entry'!N18 -> 0 | N16: ='Result Entry'!O18 -> 0 | O16: ='Result Entry'!P18 -> 0 | P16: ='Result Entry'!Q18 -> 0 | Q16: ='Result Entry'!R18 -> 0 | R16: ='Result Entry'!S18 -> 0 | S16: ='Result Entry'!T18 -> 0 | T16: ='Result Entry'!U18 -> 0 | U16: ='Result Entry'!V18 -> 0 | V16: ='Result Entry'!W18 ->  | W16: ='Result Entry'!X18 ->  | X16: ='Result Entry'!Y18 ->  | Y16: ='Result Entry'!Z18 -> 0 | Z16: ='Result Entry'!AA18 -> 0 | AA16: ='Result Entry'!AB18 -> 0 | AB16: ='Result Entry'!AC18 -> 0 | AC16: ='Result Entry'!AD18 -> 0 | AD16: ='Result Entry'!AE18 -> 0 | AE16: ='Result Entry'!AF18 -> 0 | AF16: ='Result Entry'!AG18 -> 0 | AG16: ='Result Entry'!AH18 -> 0 | AH16: ='Result Entry'!AI18 -> 0 | AI16: ='Result Entry'!AJ18 -> 0 | AJ16: ='Result Entry'!AK18 ->  | AK16: ='Result Entry'!AL18 ->  | AL16: ='Result Entry'!AM18 ->  | AM16: ='Result Entry'!AN18 -> 0 | AN16: ='Result Entry'!AO18 -> 0 | AO16: ='Result Entry'!AP18 -> 0 | AP16: ='Result Entry'!AQ18 -> 0 | AQ16: ='Result Entry'!AR18 -> 0 | AR16: ='Result Entry'!AS18 -> 0 | AS16: ='Result Entry'!AT18 -> 0 | AT16: ='Result Entry'!AU18 -> 0 | AU16: ='Result Entry'!AV18 -> 0 | AV16: ='Result Entry'!AW18 -> 0 | AW16: ='Result Entry'!AX18 -> 0 | AX16: ='Result Entry'!AY18 -> 0 | AY16: ='Result Entry'!AZ18 -> 0 | AZ16: ='Result Entry'!BA18 -> 0 | BA16: ='Result Entry'!BB18 ->  | BB16: ='Result Entry'!BC18 ->  | BC16: ='Result Entry'!BD18 ->  | BD16: ='Result Entry'!BE18 -> 0 | BE16: ='Result Entry'!BF18 -> 0 | BF16: ='Result Entry'!BG18 -> 0 | BG16: ='Result Entry'!BH18 -> 0 | BH16: ='Result Entry'!BI18 -> 0 | BI16: ='Result Entry'!BJ18 -> 0 | BJ16: ='Result Entry'!BK18 -> 0 | BK16: ='Result Entry'!BL18 -> 0 | BL16: ='Result Entry'!BM18 -> 0 | BM16: ='Result Entry'!BN18 -> 0 | BN16: ='Result Entry'!BO18 -> 0 | BO16: ='Result Entry'!BP18 -> 0 | BP16: ='Result Entry'!BQ18 -> 0 | BQ16: ='Result Entry'!BR18 -> 0 | BR16: ='Result Entry'!BS18 ->  | BS16: ='Result Entry'!BT18 ->  | BT16: ='Result Entry'!BU18 ->  | BU16: ='Result Entry'!BV18 -> 0 | BV16: ='Result Entry'!BW18 -> 0 | BW16: ='Result Entry'!BX18 -> 0 | BX16: ='Result Entry'!BY18 -> 0 | BY16: ='Result Entry'!BZ18 -> 0 | BZ16: ='Result Entry'!CA18 -> 0 | CA16: ='Result Entry'!CB18 -> 0 | CB16: ='Result Entry'!CC18 -> 0 | CC16: ='Result Entry'!CD18 -> 0 | CD16: ='Result Entry'!CE18 -> 0 | CE16: ='Result Entry'!CF18 -> 0 | CF16: ='Result Entry'!CG18 -> 0 | CG16: ='Result Entry'!CH18 -> 0 | CH16: ='Result Entry'!CI18 -> 0 | CI16: ='Result Entry'!CJ18 ->  | CJ16: ='Result Entry'!CK18 ->  | CK16: ='Result Entry'!CL18 ->  | CL16: ='Result Entry'!CM18 -> 0 | CM16: ='Result Entry'!CN18 -> 0 | CN16: ='Result Entry'!CO18 -> 0 | CO16: ='Result Entry'!CP18 -> 0 | CP16: ='Result Entry'!CQ18 -> 0 | CQ16: ='Result Entry'!CR18 -> 0 | CR16: ='Result Entry'!CS18 -> 0 | CS16: ='Result Entry'!CT18 -> 0 | CT16: ='Result Entry'!CU18 -> 0 | CU16: ='Result Entry'!CV18 -> 0 | CV16: ='Result Entry'!CW18 -> 0 | CW16: ='Result Entry'!CX18 -> 0 | CX16: ='Result Entry'!CY18 -> 0 | CY16: ='Result Entry'!CZ18 -> 0 | CZ16: ='Result Entry'!DA18 ->  | DA16: ='Result Entry'!DB18 ->  | DB16: ='Result Entry'!DC18 ->  | DC16: ='Result Entry'!DD18 -> 0 | DD16: ='Result Entry'!DE18 -> 0 | DE16: ='Result Entry'!DF18 -> 0 | DF16: ='Result Entry'!DG18 -> 0 | DG16: ='Result Entry'!DH18 -> 0 | DH16: ='Result Entry'!DI18 -> 0 | DI16: ='Result Entry'!DJ18 -> 0 | DJ16: ='Result Entry'!DK18 -> 0 | DK16: ='Result Entry'!DL18 -> 0 | DL16: ='Result Entry'!DM18 -> 0 | DM16: ='Result Entry'!DN18 -> 0 | DN16: ='Result Entry'!DO18 -> 0 | DO16: ='Result Entry'!DP18 -> 0 | DP16: ='Result Entry'!DQ18 -> 0 | DQ16: ='Result Entry'!DR18 ->  | DR16: ='Result Entry'!DS18 ->  | DS16: ='Result Entry'!DT18 ->  | DT16: ='Result Entry'!DU18 -> 0 | DU16: ='Result Entry'!DV18 -> 0 | DV16: ='Result Entry'!DW18 -> 0 | DW16: ='Result Entry'!DX18 -> 0 | DX16: ='Result Entry'!DY18 -> 0 | DY16: ='Result Entry'!DZ18 -> 0 | DZ16: ='Result Entry'!EA18 -> 0 | EA16: ='Result Entry'!EB18 -> 0 | EB16: ='Result Entry'!EC18 -> 0 | EC16: ='Result Entry'!ED18 -> 0 | ED16: ='Result Entry'!EE18 -> 0 | EE16: ='Result Entry'!EF18 -> 0 | EF16: ='Result Entry'!EG18 -> 0 | EG16: ='Result Entry'!EH18 ->  | EH16: ='Result Entry'!EI18 -> 0 | EI16: ='Result Entry'!EJ18 -> 0 | EJ16: ='Result Entry'!EK18 -> 0 | EK16: ='Result Entry'!EL18 -> 0 | EL16: ='Result Entry'!EM18 -> 0 | EM16: ='Result Entry'!EN18 -> 0 | EN16: ='Result Entry'!EO18 -> 0 | EO16: ='Result Entry'!EP18 -> 0 | EP16: ='Result Entry'!EQ18 -> 0 | EQ16: ='Result Entry'!ER18 -> 0 | ER16: ='Result Entry'!ES18 -> 0 | ES16: ='Result Entry'!ET18 ->  | ET16: ='Result Entry'!EU18 -> 0 | EU16: ='Result Entry'!EV18 -> 0 | EV16: ='Result Entry'!EW18 -> 0 | EW16: ='Result Entry'!EX18 -> 0 | EX16: ='Result Entry'!EY18 -> 0 | EY16: ='Result Entry'!EZ18 -> 0 | EZ16: ='Result Entry'!FA18 -> 0 | FA16: ='Result Entry'!FB18 -> 0 | FB16: ='Result Entry'!FC18 -> 0 | FC16: ='Result Entry'!FD18 -> 0 | FD16: ='Result Entry'!FE18 -> 0 | FE16: ='Result Entry'!FF18 ->  | FF16: ='Result Entry'!FG18 -> 0 | FG16: ='Result Entry'!FH18 -> 0 | FH16: ='Result Entry'!FI18 -> 0 | FI16: ='Result Entry'!FJ18 -> 0 | FJ16: ='Result Entry'!FK18 -> 0 | FK16: ='Result Entry'!FL18 ->  | FL16: ='Result Entry'!FM18 -> 0 | FM16: ='Result Entry'!FN18 -> 0 | FN16: ='Result Entry'!FO18 ->  | FO16: ='Result Entry'!FP18 -> 0 | FP16: ='Result Entry'!FQ18 -> 0 | FQ16: ='Result Entry'!FR18 -> 0.00 | FR16: =IF(OR(FS16="PASSED",FS16="PASSED WITH G"),'Result Entry'!FS18,"") ->  | FS16: ='Result Entry'!FT18 ->  | FT16: ='Result Entry'!FU18 ->  | FU16: ='Result Entry'!FV18 ->  | FV16: ='Result Entry'!FX18 -> 
